Workbook

Sheet Admin (hidden)
B2: Tabel 3c: Inflationsantagelser, Danmark | H2: Lister - Som anvendes til at vælge beregningsforudsætninger | W2: Liste - Ark
B3: Generel inflation (BVT-deflatoren) | C3: Prisindeks 2021=1 | D3: Stigning i % | E3: Prisindeks 2015=1 | F3: Stigning i % 2019 opdatering | H3: Type | I3: Placering | J3: Scenarier | M3: Valg | O3: Enhed | Q3: CO2-pris | S3: Elpris | U3: AVV1 på træpiller eller kul | W3: Ark der skjules
B4: 2005 | C4: 0.791708532 | D4: 0.02686258699 | H4: Udtag | I4: Central | J4: ENS's priser fra 2017 | M4: Ja | O4: GJ | Q4: Kvotepris | S4: ENS's elpris | U4: Slået til | W4: Samlet hovedstaden -alle værker
B5: 2006 | C5: 0.809270954 | D5: 0.02218293889 | H5: Keddel | I5: Decentral | J5: Lave priser | M5: Nej | O5: MWh | Q5: Fortrængningspris | S5: Lav elpris | U5: Nej, som VPH | W5: AMV1træ
B6: 2007 | C6: 0.8321691395 | D6: 0.02829483177 | H6: Modtryk | J6: Egne priser | W6: AMV1træBP
B7: 2008 | C7: 0.8714661228 | D7: 0.04722235116 | W7: AMV3kul
B8: 2009 | C8: 0.8757076944 | D8: 0.004867167531 | I8: Priser fra 2019 udgivelse | W8: AMV4træ
B9: 2010 | C9: 0.877 | D9: =C9/C8-1 -> 0.001475727109 | W9: AMV4træBP
B10: 2011 | C10: 0.881 | D10: 0.0043 | W10: AVV1træ
B11: 2012 | C11: 0.903 | D11: 0.0243 | W11: AVV1kul
B12: 2013 | C12: 0.913 | D12: 0.0111 | W12: AVV2træ
B13: 2014 | C13: 0.925 | D13: 0.014 | W13: AVV2halm
B14: 2015 | C14: 0.931 | D14: 0.0061 | E14: 1 | W14: AVV2gasGT
B15: 2016 | C15: 0.934 | D15: 0.0032 | E15: =C15/$C$14 -> 1.003222342 | W15: KKV
B16: 2017 | C16: 0.946 | D16: 0.0124 | E16: =C16/$C$14 -> 1.016111708 | W16: HCVgas
B17: 2018 | C17: 0.953 | D17: 0.0077 | E17: 1.023630505 | W17: SPolie
B18: 2019 | C18: 0.963 | D18: 0.0104 | E18: =C18/$C$14 -> 1.034371643 | W18: SPgas
B19: 2020 | C19: 0.99 | D19: 0.0283 | E19: 1.063372718 | F19: 0.02253136576 | W19: GeoEL
B20: 2021 | C20: 1 | D20: 0.01 | E20: 1.074113856 | F20: 0.01382813443 | W20: GeoVa
B21: 2022 | C21: 1.012 | D21: 0.0115 | E21: 1.087003222 | F21: 0.01735533781 | W21: VP
B22: 2023 | C22: 1.028 | D22: 0.0161 | E22: 1.104189044 | F22: 0.01602594604 | W22: Sol
B23: 2024 | C23: 1.043 | D23: 0.0152 | E23: 1.120300752 | F23: 0.01419523217 | W23: Affald
B24: 2025 | C24: 1.064 | D24: 0.0194 | E24: 1.142857143 | F24: 0.01466349105 | W24: VPHgrunddata
B25: 2026 | C25: 1.083 | D25: 0.0179 | E25: 1.163265306 | F25: 0.01846595125 | W25: VPHgrunddataM
B26: 2027 | C26: 1.101 | D26: 0.0167 | E26: 1.182599356 | F26: 0.01837384518 | W26: Elafregningspris
B27: 2028 | C27: 1.119 | D27: 0.0166 | E27: 1.201933405 | F27: 0.01867542203 | W27: ElafregningsprisM
B28: 2029 | C28: 1.138 | D28: 0.0167 | E28: 1.222341568 | F28: 0.01842471877 | W28: COP faktor
B29: 2030 | C29: 1.157 | D29: 0.0167 | E29: 1.242749731 | F29: 0.01898248049 | W29: COP faktor M
B30: 2031 | C30: 1.178 | D30: 0.0179 | E30: 1.265306122 | F30: 0.02003794043 | W30: Tekniske data
B31: 2032 | C31: 1.198 | D31: 0.0176 | E31: 1.2867884 | F31: 0.02018108477
B32: 2033 | C32: 1.22 | D32: 0.018 | E32: 1.310418904 | F32: 0.01989167492
B33: 2034 | C33: 1.241 | D33: 0.0177 | E33: 1.332975295 | F33: 0.02004810024
B34: 2035 | C34: 1.264 | D34: 0.0179 | E34: =C34/$C$14 -> 1.357679914 | F34: 0.01967725425
B35: 2036 | C35: 1.289 | D35: 0.02 | F35: 0.01994664264
B36: 2037 | C36: 1.315 | D36: 0.0203 | F36: 0.01963187568
B37: 2038 | C37: 1.341 | D37: 0.02 | F37: 0.01984433564
B38: 2039 | C38: 1.368 | D38: 0.0202 | F38: 0.01957450903
B39: 2040 | C39: 1.396 | D39: 0.0199 | F39: 0.01966238143
B40: 2041 | C40: 1.424 | D40: 0.02
B41: 2042 | C41: 1.452 | D41: 0.0197
B42: 2043 | C42: 1.481 | D42: 0.02
B43: 2044 | C43: 1.51 | D43: 0.0197
B44: 2045 | C44: 1.54 | D44: 0.0199
B45: 2046 | C45: =C44*(1+D45) -> 1.570646 | D45: 0.0199
B46: 2047 | C46: =C45*(1+D46) -> 1.601901855 | D46: 0.0199
B47: 2048 | C47: =C46*(1+D47) -> 1.633779702 | D47: 0.0199
B48: 2049 | C48: =C47*(1+D48) -> 1.666291918 | D48: 0.0199
B49: 2050 | C49: =C48*(1+D49) -> 1.699451128 | D49: 0.0199

Sheet Sammenligning
C3: Sammenligning af grundscenarie (individuel opvarmning med gas) og projekt-tiltag (konvertering til fjernvarme) i hovedstadsområdet
D6: Indstillinger for resultat | I6: Indstillinger for VE-gasandel i gasnettet
E7: Standard | F7: Andet valg | G7: Anvendt | I7: Anvend pris med indfasning af VE-gas | N7: Ja
D8: Generelle | I8: Anvendt VE-gas pris (2021) | N8: - | O8: Pris for blandet gas fra ENS anvendes i stedet
D9: Vis resultater som | E9: GJ | G9: =IF(ISBLANK(F9),E9,F9) -> GJ
D10: Price year | E10: 2021 | G10: =IF(ISBLANK(F10),E10,F10) -> 2021
D11: Diskonteringsrente | E11: 0.035 | G11: =IF(ISBLANK(F11),E11,F11) -> 0.035
D12: Følsomhedsanalyser
D13: Brændsels-og CO-priser | E13: ENS's priser fra 2022 | G13: =IF(ISBLANK(F13),E13,F13) -> ENS's priser fra 2022
D14: Anvendte CO2-pris til individuel gas | E14: Kvotepris | F14: Fortrængningspris | G14: =IF(ISBLANK(F14),E14,F14) -> Fortrængningspris
D15: El-salgspris, i forhold til normal pris | E15: Modeloptimeret | G15: =IF(ISBLANK(F15),E15,F15) -> Modeloptimeret
D16: Elkøbspris, i forhold til normal pris | E16: Modeloptimeret | G16: =IF(ISBLANK(F16),E16,F16) -> Modeloptimeret
D17: AVV1 køres kun på træpiller (modsat VPH) | E17: Slået til | G17: =IF(ISBLANK(F17),E17,F17) -> Slået til
D18: Skatteforvridning af provenue undtaget | E18: Nej | G18: =IF(ISBLANK(F18),E18,F18) -> Nej
D19: EURDKK | G19: 7.42
D20: Prisjustering (fra 2014 til valgte år) | G20: =VLOOKUP(Prisår,Inflation,2,FALSE)/VLOOKUP(2014,Inflation,2,FALSE) -> 1.081081081
D21: Prisjustering (fra 2011 til valgte år) | G21: =VLOOKUP(Prisår,Inflation,2,FALSE)/VLOOKUP(2011,Inflation,2,FALSE) -> 1.13507378
C23: Samfundsøkonomiske beregningspriser for fjernvarme i hovedstadsområdet (med gældende nettoafgiftsfaktor på 1,28 indregnet)
E24: ="Enhed: "&Sammenligning!G10&"-kr/"&Sammenligning!$G$9 -> Enhed: 2021-kr/GJ | F24: Nutidsværdi | G24: 2020 | H24: 2021 | I24: 2022 | J24: 2023 | K24: 2024 | L24: 2025 | M24: 2026 | N24: 2027 | O24: 2028 | P24: 2029 | Q24: 2030 | R24: 2031 | S24: 2032 | T24: 2033 | U24: 2034 | V24: 2035 | W24: 2036 | X24: 2037 | Y24: 2038 | Z24: 2039 | AA24: 2040 | AB24: 2041 | AC24: 2042 | AD24: 2043 | AE24: 2044 | AF24: 2045 | AG24: 2046 | AH24: 2047 | AI24: 2048 | AJ24: 2049 | AK24: 2050 | AM24: 2020-januar | AN24: 2020-februar | AO24: 2020-marts | AP24: 2020-april | AQ24: 2020-maj | AR24: 2020-juni | AS24: 2020-juli | AT24: 2020-august | AU24: 2020-september | AV24: 2020-oktober | AW24: 2020-november | AX24: 2020-december | AY24: 2021-januar | AZ24: 2021-februar | BA24: 2021-marts | BB24: 2021-april | BC24: 2021-maj | BD24: 2021-juni | BE24: 2021-juli | BF24: 2021-august | BG24: 2021-september | BH24: 2021-oktober | BI24: 2021-november | BJ24: 2021-december | BK24: 2022-januar | BL24: 2022-februar | BM24: 2022-marts | BN24: 2022-april | BO24: 2022-maj | BP24: 2022-juni | BQ24: 2022-juli | BR24: 2022-august | BS24: 2022-september | BT24: 2022-oktober | BU24: 2022-november | BV24: 2022-december | BW24: 2023-januar | BX24: 2023-februar | BY24: 2023-marts | BZ24: 2023-april | CA24: 2023-maj | CB24: 2023-juni | CC24: 2023-juli | CD24: 2023-august | CE24: 2023-september | CF24: 2023-oktober | CG24: 2023-november | CH24: 2023-december | CI24: 2024-januar | CJ24: 2024-februar | CK24: 2024-marts | CL24: 2024-april | CM24: 2024-maj | CN24: 2024-juni | CO24: 2024-juli | CP24: 2024-august | CQ24: 2024-september | CR24: 2024-oktober | CS24: 2024-november | CT24: 2024-december | CU24: 2025-januar | CV24: 2025-februar | CW24: 2025-marts | CX24: 2025-april | CY24: 2025-maj | CZ24: 2025-juni | DA24: 2025-juli | DB24: 2025-august | DC24: 2025-september | DD24: 2025-oktober | DE24: 2025-november | DF24: 2025-december | DG24: 2026-januar | DH24: 2026-februar | DI24: 2026-marts | DJ24: 2026-april | DK24: 2026-maj | DL24: 2026-juni | DM24: 2026-juli | DN24: 2026-august | DO24: 2026-september | DP24: 2026-oktober | DQ24: 2026-november | DR24: 2026-december | DS24: 2027-januar | DT24: 2027-februar | DU24: 2027-marts | DV24: 2027-april | DW24: 2027-maj | DX24: 2027-juni | DY24: 2027-juli | DZ24: 2027-august | EA24: 2027-september | EB24: 2027-oktober | EC24: 2027-november | ED24: 2027-december | EE24: 2028-januar | EF24: 2028-februar | EG24: 2028-marts | EH24: 2028-april | EI24: 2028-maj | EJ24: 2028-juni | EK24: 2028-juli | EL24: 2028-august | EM24: 2028-september | EN24: 2028-oktober | EO24: 2028-november | EP24: 2028-december | EQ24: 2029-januar | ER24: 2029-februar | ES24: 2029-marts | ET24: 2029-april | EU24: 2029-maj | EV24: 2029-juni | EW24: 2029-juli | EX24: 2029-august | EY24: 2029-september | EZ24: 2029-oktober | FA24: 2029-november | FB24: 2029-december | FC24: 2030-januar | FD24: 2030-februar | FE24: 2030-marts | FF24: 2030-april | FG24: 2030-maj | FH24: 2030-juni | FI24: 2030-juli | FJ24: 2030-august | FK24: 2030-september | FL24: 2030-oktober | FM24: 2030-november | FN24: 2030-december | FO24: 2031-januar | FP24: 2031-februar | FQ24: 2031-marts | FR24: 2031-april | FS24: 2031-maj | FT24: 2031-juni | FU24: 2031-juli | FV24: 2031-august | FW24: 2031-september | FX24: 2031-oktober | FY24: 2031-november | FZ24: 2031-december | GA24: 2032-januar | GB24: 2032-februar | GC24: 2032-marts | GD24: 2032-april | GE24: 2032-maj | GF24: 2032-juni | GG24: 2032-juli | GH24: 2032-august | GI24: 2032-september | GJ24: 2032-oktober | GK24: 2032-november | GL24: 2032-december | GM24: 2033-januar | GN24: 2033-februar | GO24: 2033-marts | GP24: 2033-april | GQ24: 2033-maj | GR24: 2033-juni | GS24: 2033-juli | GT24: 2033-august | GU24: 2033-september | GV24: 2033-oktober | GW24: 2033-november | GX24: 2033-december | GY24: 2034-januar | GZ24: 2034-februar | HA24: 2034-marts | HB24: 2034-april | HC24: 2034-maj | HD24: 2034-juni | HE24: 2034-juli | HF24: 2034-august | HG24: 2034-september | HH24: 2034-oktober | HI24: 2034-november | HJ24: 2034-december | HK24: 2035-januar | HL24: 2035-februar | HM24: 2035-marts | HN24: 2035-april | HO24: 2035-maj | HP24: 2035-juni | HQ24: 2035-juli | HR24: 2035-august | HS24: 2035-september | HT24: 2035-oktober | HU24: 2035-november | HV24: 2035-december | HW24: 2036-januar | HX24: 2036-februar | HY24: 2036-marts | HZ24: 2036-april | IA24: 2036-maj | IB24: 2036-juni | IC24: 2036-juli | ID24: 2036-august | IE24: 2036-september | IF24: 2036-oktober | IG24: 2036-november | IH24: 2036-december | II24: 2037-januar | IJ24: 2037-februar | IK24: 2037-marts | IL24: 2037-april | IM24: 2037-maj | IN24: 2037-juni | IO24: 2037-juli | IP24: 2037-august | IQ24: 2037-september | IR24: 2037-oktober | IS24: 2037-november | IT24: 2037-december | IU24: 2038-januar | IV24: 2038-februar | IW24: 2038-marts | IX24: 2038-april | IY24: 2038-maj | IZ24: 2038-juni | JA24: 2038-juli | JB24: 2038-august | JC24: 2038-september | JD24: 2038-oktober | JE24: 2038-november | JF24: 2038-december | JG24: 2039-januar | JH24: 2039-februar | JI24: 2039-marts | JJ24: 2039-april | JK24: 2039-maj | JL24: 2039-juni | JM24: 2039-juli | JN24: 2039-august | JO24: 2039-september | JP24: 2039-oktober | JQ24: 2039-november | JR24: 2039-december | JS24: 2040-januar | JT24: 2040-februar | JU24: 2040-marts | JV24: 2040-april | JW24: 2040-maj | JX24: 2040-juni | JY24: 2040-juli | JZ24: 2040-august | KA24: 2040-september | KB24: 2040-oktober | KC24: 2040-november | KD24: 2040-december | KE24: 2041-januar | KF24: 2041-februar | KG24: 2041-marts | KH24: 2041-april | KI24: 2041-maj | KJ24: 2041-juni | KK24: 2041-juli | KL24: 2041-august | KM24: 2041-september | KN24: 2041-oktober | KO24: 2041-november | KP24: 2041-december | KQ24: 2042-januar | KR24: 2042-februar | KS24: 2042-marts | KT24: 2042-april | KU24: 2042-maj | KV24: 2042-juni | KW24: 2042-juli | KX24: 2042-august | KY24: 2042-september | KZ24: 2042-oktober | LA24: 2042-november | LB24: 2042-december | LC24: 2043-januar | LD24: 2043-februar | LE24: 2043-marts | LF24: 2043-april | LG24: 2043-maj | LH24: 2043-juni | LI24: 2043-juli | LJ24: 2043-august | LK24: 2043-september | LL24: 2043-oktober | LM24: 2043-november | LN24: 2043-december | LO24: 2044-januar | LP24: 2044-februar | LQ24: 2044-marts | LR24: 2044-april | LS24: 2044-maj | LT24: 2044-juni | LU24: 2044-juli | LV24: 2044-august | LW24: 2044-september | LX24: 2044-oktober | LY24: 2044-november | LZ24: 2044-december | MA24: 2045-januar | MB24: 2045-februar | MC24: 2045-marts | MD24: 2045-april | ME24: 2045-maj | MF24: 2045-juni | MG24: 2045-juli | MH24: 2045-august | MI24: 2045-september | MJ24: 2045-oktober | MK24: 2045-november | ML24: 2045-december | MM24: 2046-januar | MN24: 2046-februar | MO24: 2046-marts | MP24: 2046-april | MQ24: 2046-maj | MR24: 2046-juni | MS24: 2046-juli | MT24: 2046-august | MU24: 2046-september | MV24: 2046-oktober | MW24: 2046-november | MX24: 2046-december | MY24: 2047-januar | MZ24: 2047-februar | NA24: 2047-marts | NB24: 2047-april | NC24: 2047-maj | ND24: 2047-juni | NE24: 2047-juli | NF24: 2047-august | NG24: 2047-september | NH24: 2047-oktober | NI24: 2047-november | NJ24: 2047-december | NK24: 2048-januar | NL24: 2048-februar | NM24: 2048-marts | NN24: 2048-april | NO24: 2048-maj | NP24: 2048-juni | NQ24: 2048-juli | NR24: 2048-august | NS24: 2048-september | NT24: 2048-oktober | NU24: 2048-november | NV24: 2048-december | NW24: 2049-januar | NX24: 2049-februar | NY24: 2049-marts | NZ24: 2049-april | OA24: 2049-maj | OB24: 2049-juni | OC24: 2049-juli | OD24: 2049-august | OE24: 2049-september | OF24: 2049-oktober | OG24: 2049-november | OH24: 2049-december | OI24: 2050-januar | OJ24: 2050-februar | OK24: 2050-marts | OL24: 2050-april | OM24: 2050-maj | ON24: 2050-juni | OO24: 2050-juli | OP24: 2050-august | OQ24: 2050-september | OR24: 2050-oktober | OS24: 2050-november | OT24: 2050-december
C25: Fjernvarmepris ab net | F25: 2023-2042
D26: Kapitalomkostninger og fast D&V | F26: =NPV(Rente,J26:AC26)/$F$54 -> 0 | G26: =G42*1.28 -> 0 | H26: =H42*1.28 -> 0 | I26: 0 | J26: 0 | K26: 0 | L26: 0 | M26: 0 | N26: 0 | O26: 0 | P26: 0 | Q26: 0 | R26: 0 | S26: 0 | T26: 0 | U26: 0 | V26: 0 | W26: 0 | X26: 0 | Y26: 0 | Z26: 0 | AA26: =AA42*1.28 -> 0 | AB26: =AB42*1.28 -> 0 | AC26: 0 | AD26: 0 | AE26: =AE42*1.28 -> 0 | AF26: 0 | AG26: 0 | AH26: 0 | AI26: 0 | AJ26: 0 | AK26: 0 | AM26: =AM42*1.28 -> 0 | AN26: =AN42*1.28 -> 0 | AO26: 0 | AP26: 0 | AQ26: 0 | AR26: 0 | AS26: 0 | AT26: 0 | AU26: 0 | AV26: 0 | AW26: 0 | AX26: 0 | AY26: 0 | AZ26: 0 | BA26: 0 | BB26: 0 | BC26: 0 | BD26: 0 | BE26: 0 | BF26: 0 | BG26: 0 | BH26: 0 | BI26: 0 | BJ26: 0 | BK26: 0 | BL26: 0 | BM26: 0 | BN26: 0 | BO26: 0 | BP26: 0 | BQ26: 0 | BR26: 0 | BS26: 0 | BT26: 0 | BU26: 0 | BV26: 0 | BW26: 0 | BX26: 0 | BY26: 0 | BZ26: 0 | CA26: 0 | CB26: 0 | CC26: 0 | CD26: 0 | CE26: 0 | CF26: 0 | CG26: 0 | CH26: 0 | CI26: 0 | CJ26: 0 | CK26: 0 | CL26: 0 | CM26: 0 | CN26: 0 | CO26: 0 | CP26: 0 | CQ26: 0 | CR26: 0 | CS26: 0 | CT26: 0 | CU26: 0 | CV26: 0 | CW26: 0 | CX26: 0 | CY26: 0 | CZ26: =CZ42*1.28 -> 0 | DA26: 0 | DB26: 0 | DC26: 0 | DD26: 0 | DE26: 0 | DF26: 0 | DG26: 0 | DH26: 0 | DI26: 0 | DJ26: 0 | DK26: 0 | DL26: 0 | DM26: 0 | DN26: 0 | DO26: 0 | DP26: 0 | DQ26: 0 | DR26: 0 | DS26: 0 | DT26: 0 | DU26: 0 | DV26: 0 | DW26: 0 | DX26: 0 | DY26: 0 | DZ26: 0 | EA26: 0 | EB26: 0 | EC26: 0 | ED26: 0 | EE26: 0 | EF26: 0 | EG26: 0 | EH26: 0 | EI26: 0 | EJ26: 0 | EK26: 0 | EL26: 0 | EM26: 0 | EN26: 0 | EO26: 0 | EP26: 0 | EQ26: 0 | ER26: 0 | ES26: 0 | ET26: 0 | EU26: 0 | EV26: 0 | EW26: 0 | EX26: 0 | EY26: 0 | EZ26: 0 | FA26: 0 | FB26: 0 | FC26: 0 | FD26: 0 | FE26: 0 | FF26: 0 | FG26: 0 | FH26: 0 | FI26: 0 | FJ26: 0 | FK26: 0 | FL26: =FL42*1.28 -> 0 | FM26: 0 | FN26: 0 | FO26: 0 | FP26: 0 | FQ26: 0 | FR26: 0 | FS26: 0 | FT26: 0 | FU26: 0 | FV26: 0 | FW26: 0 | FX26: 0 | FY26: 0 | FZ26: 0 | GA26: 0 | GB26: 0 | GC26: 0 | GD26: 0 | GE26: 0 | GF26: 0 | GG26: 0 | GH26: 0 | GI26: 0 | GJ26: 0 | GK26: 0 | GL26: 0 | GM26: 0 | GN26: 0 | GO26: 0 | GP26: 0 | GQ26: 0 | GR26: 0 | GS26: 0 | GT26: 0 | GU26: 0 | GV26: 0 | GW26: 0 | GX26: 0 | GY26: 0 | GZ26: 0 | HA26: 0 | HB26: 0 | HC26: 0 | HD26: 0 | HE26: 0 | HF26: 0 | HG26: 0 | HH26: 0 | HI26: 0 | HJ26: 0 | HK26: 0 | HL26: 0 | HM26: 0 | HN26: 0 | HO26: 0 | HP26: 0 | HQ26: 0 | HR26: 0 | HS26: 0 | HT26: 0 | HU26: 0 | HV26: 0 | HW26: 0 | HX26: =HX42*1.28 -> 0 | HY26: 0 | HZ26: 0 | IA26: 0 | IB26: 0 | IC26: 0 | ID26: 0 | IE26: 0 | IF26: 0 | IG26: 0 | IH26: 0 | II26: 0 | IJ26: 0 | IK26: 0 | IL26: 0 | IM26: 0 | IN26: 0 | IO26: 0 | IP26: 0 | IQ26: 0 | IR26: 0 | IS26: 0 | IT26: 0 | IU26: 0 | IV26: 0 | IW26: 0 | IX26: 0 | IY26: 0 | IZ26: 0 | JA26: 0 | JB26: 0 | JC26: 0 | JD26: 0 | JE26: 0 | JF26: 0 | JG26: 0 | JH26: 0 | JI26: 0 | JJ26: 0 | JK26: 0 | JL26: 0 | JM26: 0 | JN26: 0 | JO26: 0 | JP26: 0 | JQ26: 0 | JR26: 0 | JS26: 0 | JT26: 0 | JU26: 0 | JV26: 0 | JW26: 0 | JX26: 0 | JY26: 0 | JZ26: 0 | KA26: 0 | KB26: 0 | KC26: 0 | KD26: 0 | KE26: 0 | KF26: 0 | KG26: 0 | KH26: 0 | KI26: 0 | KJ26: =KJ42*1.28 -> 0 | KK26: 0 | KL26: 0 | KM26: 0 | KN26: 0 | KO26: 0 | KP26: 0 | KQ26: 0 | KR26: 0 | KS26: 0 | KT26: 0 | KU26: 0 | KV26: 0 | KW26: 0 | KX26: 0 | KY26: 0 | KZ26: 0 | LA26: 0 | LB26: 0 | LC26: 0 | LD26: 0 | LE26: 0 | LF26: 0 | LG26: 0 | LH26: 0 | LI26: 0 | LJ26: 0 | LK26: 0 | LL26: 0 | LM26: 0 | LN26: 0 | LO26: 0 | LP26: 0 | LQ26: 0 | LR26: 0 | LS26: 0 | LT26: 0 | LU26: 0 | LV26: 0 | LW26: 0 | LX26: 0 | LY26: 0 | LZ26: 0 | MA26: 0 | MB26: 0 | MC26: 0 | MD26: 0 | ME26: 0 | MF26: 0 | MG26: 0 | MH26: 0 | MI26: 0 | MJ26: 0 | MK26: 0 | ML26: 0 | MM26: 0 | MN26: 0 | MO26: 0 | MP26: 0 | MQ26: 0 | MR26: 0 | MS26: 0 | MT26: 0 | MU26: 0 | MV26: =MV42*1.28 -> 0 | MW26: 0 | MX26: 0 | MY26: 0 | MZ26: 0 | NA26: 0 | NB26: 0 | NC26: 0 | ND26: 0 | NE26: 0 | NF26: 0 | NG26: 0 | NH26: 0 | NI26: 0 | NJ26: 0 | NK26: 0 | NL26: 0 | NM26: 0 | NN26: 0 | NO26: 0 | NP26: 0 | NQ26: 0 | NR26: 0 | NS26: 0 | NT26: 0 | NU26: 0 | NV26: 0 | NW26: 0 | NX26: 0 | NY26: 0 | NZ26: 0 | OA26: 0 | OB26: 0 | OC26: 0 | OD26: 0 | OE26: 0 | OF26: 0 | OG26: 0 | OH26: 0 | OI26: 0 | OJ26: 0 | OK26: 0 | OL26: 0 | OM26: 0 | ON26: 0 | OO26: 0 | OP26: 0 | OQ26: 0 | OR26: 0 | OS26: 0 | OT26: 0
D27: Elsalg | F27: -57.62065197 | G27: =G43*1.28 -> -52.21351617 | H27: =H43*1.28 -> -50.24494139 | I27: =I43*1.28 -> -173.7230315 | J27: -89.78332316 | K27: -75.06706626 | L27: -70.67035976 | M27: -69.96082791 | N27: -67.79303924 | O27: -65.48797718 | P27: -60.37459935 | Q27: -52.44644216 | R27: -51.95126907 | S27: -52.08636479 | T27: -52.76581402 | U27: -46.26137092 | V27: -44.58924873 | W27: -44.24367337 | X27: -43.88929326 | Y27: -43.52610833 | Z27: -43.15411854 | AA27: =AA43*1.28 -> -42.77332384 | AB27: =AB43*1.28 -> -42.77332384 | AC27: -42.77332384 | AD27: -42.77332384 | AE27: =AE43*1.28 -> -42.77332384 | AF27: -42.77332384 | AG27: -42.77332384 | AH27: -42.77332384 | AI27: -42.77332384 | AJ27: -42.77332384 | AK27: -42.77332384 | AM27: =AM43*1.28 -> -22.3335892 | AN27: =AN43*1.28 -> -32.07784854 | AO27: -59.61386617 | AP27: -69.97486525 | AQ27: -59.5080666 | AR27: -66.00499902 | AS27: -59.94714777 | AT27: -63.29122742 | AU27: -61.11661226 | AV27: -58.65203463 | AW27: -64.26648122 | AX27: -7.639599189 | AY27: -20.76548537 | AZ27: -33.41390413 | BA27: -61.17885642 | BB27: -75.30787731 | BC27: -64.31164062 | BD27: -72.95736323 | BE27: -68.95001428 | BF27: -67.31315466 | BG27: -67.67310905 | BH27: -63.55709732 | BI27: -67.82555772 | BJ27: -10.65019525 | BK27: -19.19738155 | BL27: -34.74995971 | BM27: -62.74384668 | BN27: -80.64088937 | BO27: -69.11521463 | BP27: -79.90972744 | BQ27: -77.9528808 | BR27: -71.33508191 | BS27: -74.22960583 | BT27: -68.46216 | BU27: -71.38463422 | BV27: -13.66079131 | BW27: -17.62927772 | BX27: -36.0860153 | BY27: -64.30883694 | BZ27: -85.97390144 | CA27: -73.91878864 | CB27: -86.86209165 | CC27: -86.95574732 | CD27: -75.35700915 | CE27: -80.78610262 | CF27: -73.36722269 | CG27: -74.94371072 | CH27: -16.67138737 | CI27: -16.0611739 | CJ27: -37.42207088 | CK27: -65.8738272 | CL27: -91.3069135 | CM27: -78.72236265 | CN27: -93.81445586 | CO27: -95.95861383 | CP27: -79.37893639 | CQ27: -87.3425994 | CR27: -78.27228538 | CS27: -78.50278722 | CT27: -19.68198343 | CU27: -14.49307007 | CV27: -38.75812647 | CW27: -67.43881745 | CX27: -96.63992556 | CY27: -83.52593666 | CZ27: =CZ43*1.28 -> -100.7668201 | DA27: -104.9614803 | DB27: -83.40086364 | DC27: -93.89909619 | DD27: -83.17734806 | DE27: -82.06186372 | DF27: -22.69257949 | DG27: -11.91724206 | DH27: -35.0278037 | DI27: -63.73427837 | DJ27: -90.95913029 | DK27: -80.22467931 | DL27: -95.39782048 | DM27: -99.98390186 | DN27: -80.21905895 | DO27: -91.19947246 | DP27: -77.58765386 | DQ27: -75.91341374 | DR27: -22.20360501 | DS27: -9.341414052 | DT27: -31.29748093 | DU27: -60.02973929 | DV27: -85.27833502 | DW27: -76.92342197 | DX27: -90.02882089 | DY27: -95.00632336 | DZ27: -77.03725427 | EA27: -88.49984874 | EB27: -71.99795965 | EC27: -69.76496375 | ED27: -21.71463053 | EE27: -6.765586043 | EF27: -27.56715816 | EG27: -56.32520021 | EH27: -79.59753975 | EI27: -73.62216462 | EJ27: -84.65982131 | EK27: -90.02874487 | EL27: -73.85544958 | EM27: -85.80022502 | EN27: -66.40826544 | EO27: -63.61651377 | EP27: -21.22565605 | EQ27: -4.189758034 | ER27: -23.83683539 | ES27: -52.62066113 | ET27: -73.91674448 | EU27: -70.32090728 | EV27: -79.29082172 | EW27: -85.05116637 | EX27: -70.6736449 | EY27: -83.1006013 | EZ27: -60.81857123 | FA27: -57.46806378 | FB27: -20.73668156 | FC27: -1.613930025 | FD27: -20.10651262 | FE27: -48.91612205 | FF27: -68.23594921 | FG27: -67.01964993 | FH27: -73.92182213 | FI27: -80.07358788 | FJ27: -67.49184022 | FK27: -80.40097758 | FL27: =FL43*1.28 -> -55.22887703 | FM27: -51.31961379 | FN27: -20.24770708 | FO27: -3.126412903 | FP27: -26.03164421 | FQ27: -50.75702558 | FR27: -67.64462075 | FS27: -66.57052705 | FT27: -76.76073835 | FU27: -80.18747966 | FV27: -68.37649284 | FW27: -77.41540147 | FX27: -54.23557058 | FY27: -50.6079195 | FZ27: -13.77188119 | GA27: -7.012545976 | GB27: -22.94877536 | GC27: -52.57973639 | GD27: -74.1964303 | GE27: -65.07770927 | GF27: -78.99953395 | GG27: -78.12806365 | GH27: -66.38783606 | GI27: -71.97380232 | GJ27: -48.08091357 | GK27: -51.38944004 | GL27: -13.59206071 | GM27: -5.516038396 | GN27: -22.00233696 | GO27: -48.87232752 | GP27: -69.23924527 | GQ27: -69.06721209 | GR27: -83.10727842 | GS27: -82.71012391 | GT27: -69.14186254 | GU27: -76.81600039 | GV27: -50.4813065 | GW27: -50.19484128 | GX27: -20.56758848 | GY27: 5.325958988 | GZ27: -17.9044713 | HA27: -56.72591768 | HB27: -58.63541564 | HC27: -65.22663644 | HD27: -85.86989584 | HE27: -82.06756984 | HF27: -59.32501236 | HG27: -79.16814968 | HH27: -43.37709402 | HI27: -30.96513852 | HJ27: -20.83945269 | HK27: 6.618337105 | HL27: -18.82014365 | HM27: -57.54773226 | HN27: -56.1635695 | HO27: -64.77261652 | HP27: -84.37812364 | HQ27: -79.95360764 | HR27: -71.92823641 | HS27: -90.57300796 | HT27: -40.59820087 | HU27: -38.11468179 | HV27: -16.583348 | HW27: 5.054277976 | HX27: =HX43*1.28 -> -16.93582313 | HY27: -54.97291383 | HZ27: -55.36673714 | IA27: -65.57572183 | IB27: -81.38228562 | IC27: -76.27265363 | ID27: -71.34865857 | IE27: -88.5145053 | IF27: -39.8650736 | IG27: -38.12773791 | IH27: -17.40325183 | II27: 3.490218846 | IJ27: -15.0515026 | IK27: -52.39809539 | IL27: -54.56990477 | IM27: -66.37882714 | IN27: -78.3864476 | IO27: -72.59169961 | IP27: -70.76908073 | IQ27: -86.45600264 | IR27: -39.13194634 | IS27: -38.14079402 | IT27: -18.22315566 | IU27: 1.926159717 | IV27: -13.16718208 | IW27: -49.82327696 | IX27: -53.7730724 | IY27: -67.18193245 | IZ27: -75.39060958 | JA27: -68.9107456 | JB27: -70.18950289 | JC27: -84.39749998 | JD27: -38.39881908 | JE27: -38.15385014 | JF27: -19.04305949 | JG27: 0.3621005871 | JH27: -11.28286155 | JI27: -47.24845852 | JJ27: -52.97624004 | JK27: -67.98503777 | JL27: -72.39477156 | JM27: -65.22979159 | JN27: -69.60992505 | JO27: -82.33899732 | JP27: -37.66569181 | JQ27: -38.16690626 | JR27: -19.86296331 | JS27: -1.201958542 | JT27: -9.398541025 | JU27: -44.67364009 | JV27: -52.17940767 | JW27: -68.78814308 | JX27: -69.39893354 | JY27: -61.54883757 | JZ27: -69.03034721 | KA27: -80.28049466 | KB27: -36.93256455 | KC27: -38.17996237 | KD27: -20.68286714 | KE27: -1.201958542 | KF27: -9.398541025 | KG27: -44.67364009 | KH27: -52.17940767 | KI27: -68.78814308 | KJ27: =KJ43*1.28 -> -69.39893354 | KK27: -61.54883757 | KL27: -69.03034721 | KM27: -80.28049466 | KN27: -36.93256455 | KO27: -38.17996237 | KP27: -20.68286714 | KQ27: -1.201958542 | KR27: -9.398541025 | KS27: -44.67364009 | KT27: -52.17940767 | KU27: -68.78814308 | KV27: -69.39893354 | KW27: -61.54883757 | KX27: -69.03034721 | KY27: -80.28049466 | KZ27: -36.93256455 | LA27: -38.17996237 | LB27: -20.68286714 | LC27: -1.201958542 | LD27: -9.398541025 | LE27: -44.67364009 | LF27: -52.17940767 | LG27: -68.78814308 | LH27: -69.39893354 | LI27: -61.54883757 | LJ27: -69.03034721 | LK27: -80.28049466 | LL27: -36.93256455 | LM27: -38.17996237 | LN27: -20.68286714 | LO27: -1.201958542 | LP27: -9.398541025 | LQ27: -44.67364009 | LR27: -52.17940767 | LS27: -68.78814308 | LT27: -69.39893354 | LU27: -61.54883757 | LV27: -69.03034721 | LW27: -80.28049466 | LX27: -36.93256455 | LY27: -38.17996237 | LZ27: -20.68286714 | MA27: -1.201958542 | MB27: -9.398541025 | MC27: -44.67364009 | MD27: -52.17940767 | ME27: -68.78814308 | MF27: -69.39893354 | MG27: -61.54883757 | MH27: -69.03034721 | MI27: -80.28049466 | MJ27: -36.93256455 | MK27: -38.17996237 | ML27: -20.68286714 | MM27: -1.201958542 | MN27: -9.398541025 | MO27: -44.67364009 | MP27: -52.17940767 | MQ27: -68.78814308 | MR27: -69.39893354 | MS27: -61.54883757 | MT27: -69.03034721 | MU27: -80.28049466 | MV27: =MV43*1.28 -> -36.93256455 | MW27: -38.17996237 | MX27: -20.68286714 | MY27: -1.201958542 | MZ27: -9.398541025 | NA27: -44.67364009 | NB27: -52.17940767 | NC27: -68.78814308 | ND27: -69.39893354 | NE27: -61.54883757 | NF27: -69.03034721 | NG27: -80.28049466 | NH27: -36.93256455 | NI27: -38.17996237 | NJ27: -20.68286714 | NK27: -1.201958542 | NL27: -9.398541025 | NM27: -44.67364009 | NN27: -52.17940767 | NO27: -68.78814308 | NP27: -69.39893354 | NQ27: -61.54883757 | NR27: -69.03034721 | NS27: -80.28049466 | NT27: -36.93256455 | NU27: -38.17996237 | NV27: -20.68286714 | NW27: -1.201958542 | NX27: -9.398541025 | NY27: -44.67364009 | NZ27: -52.17940767 | OA27: -68.78814308 | OB27: -69.39893354 | OC27: -61.54883757 | OD27: -69.03034721 | OE27: -80.28049466 | OF27: -36.93256455 | OG27: -38.17996237 | OH27: -20.68286714 | OI27: -1.201958542 | OJ27: -9.398541025 | OK27: -44.67364009 | OL27: -52.17940767 | OM27: -68.78814308 | ON27: -69.39893354 | OO27: -61.54883757 | OP27: -69.03034721 | OQ27: -80.28049466 | OR27: -36.93256455 | OS27: -38.17996237 | OT27: -20.68286714
D28: Energiomkostninger og var. D&V | F28: 126.6176177 | G28: =G44*1.28 -> 108.4069989 | H28: =H44*1.28 -> 107.5450302 | I28: =I44*1.28 -> 148.7296931 | J28: 133.3761951 | K28: 121.1866923 | L28: 120.8936237 | M28: 121.8020509 | N28: 122.584671 | O28: 123.4550368 | P28: 124.1420885 | Q28: 124.8704895 | R28: 124.8886717 | S28: 123.466241 | T28: 123.088611 | U28: 137.3436236 | V28: 136.816554 | W28: 134.602317 | X28: 132.2992922 | Y28: 130.0691862 | Z28: 127.832237 | AA28: =AA44*1.28 -> 125.6239202 | AB28: =AB44*1.28 -> 125.6239202 | AC28: 125.6239202 | AD28: 125.6239202 | AE28: =AE44*1.28 -> 125.6239202 | AF28: 125.6239202 | AG28: 125.6239202 | AH28: 125.6239202 | AI28: 125.6239202 | AJ28: 125.6239202 | AK28: 125.6239202 | AM28: =AM44*1.28 -> 96.16495886 | AN28: =AN44*1.28 -> 108.5899489 | AO28: 136.1495184 | AP28: 135.79835 | AQ28: 96.23654948 | AR28: 97.43208444 | AS28: 73.64281778 | AT28: 104.3987787 | AU28: 99.08734024 | AV28: 101.1460538 | AW28: 136.6052008 | AX28: 97.91003216 | AY28: 96.58166182 | AZ28: 111.0497403 | BA28: 137.1498576 | BB28: 137.8975576 | BC28: 98.33903983 | BD28: 98.14919831 | BE28: 77.44237597 | BF28: 107.2144247 | BG28: 101.0150387 | BH28: 105.9063425 | BI28: 137.6948604 | BJ28: 104.787469 | BK28: 96.99836478 | BL28: 113.5095318 | BM28: 138.1501967 | BN28: 139.9967652 | BO28: 100.4415302 | BP28: 98.86631218 | BQ28: 81.24193416 | BR28: 110.0300707 | BS28: 102.9427371 | BT28: 110.6666313 | BU28: 138.7845201 | BV28: 111.6649058 | BW28: 97.41506774 | BX28: 115.9693233 | BY28: 139.1505358 | BZ28: 142.0959728 | CA28: 102.5440205 | CB28: 99.58342604 | CC28: 85.04149235 | CD28: 112.8457166 | CE28: 104.8704355 | CF28: 115.4269201 | CG28: 139.8741798 | CH28: 118.5423426 | CI28: 97.8317707 | CJ28: 118.4291148 | CK28: 140.150875 | CL28: 144.1951804 | CM28: 104.6465109 | CN28: 100.3005399 | CO28: 88.84105054 | CP28: 115.6613626 | CQ28: 106.7981339 | CR28: 120.1872089 | CS28: 140.9638394 | CT28: 125.4197795 | CU28: 98.24847366 | CV28: 120.8889062 | CW28: 141.1512141 | CX28: 146.294388 | CY28: 106.7490013 | CZ28: =CZ44*1.28 -> 101.0176538 | DA28: 92.64060873 | DB28: 118.4770086 | DC28: 108.7258323 | DD28: 124.9474977 | DE28: 142.0534991 | DF28: 132.2972163 | DG28: 99.98769807 | DH28: 120.5599591 | DI28: 141.34201 | DJ28: 144.4817986 | DK28: 110.989727 | DL28: 101.310183 | DM28: 92.99816408 | DN28: 118.803057 | DO28: 111.1709602 | DP28: 126.0085227 | DQ28: 141.7708505 | DR28: 133.3569333 | DS28: 101.7269225 | DT28: 120.231012 | DU28: 141.5328059 | DV28: 142.6692092 | DW28: 115.2304527 | DX28: 101.6027121 | DY28: 93.35571944 | DZ28: 119.1291053 | EA28: 113.6160881 | EB28: 127.0695477 | EC28: 141.4882019 | ED28: 134.4166503 | EE28: 103.4661469 | EF28: 119.9020649 | EG28: 141.7236018 | EH28: 140.8566198 | EI28: 119.4711784 | EJ28: 101.8952413 | EK28: 93.7132748 | EL28: 119.4551537 | EM28: 116.0612161 | EN28: 128.1305727 | EO28: 141.2055534 | EP28: 135.4763673 | EQ28: 105.2053713 | ER28: 119.5731178 | ES28: 141.9143977 | ET28: 139.0440304 | EU28: 123.7119042 | EV28: 102.1877705 | EW28: 94.07083015 | EX28: 119.7812021 | EY28: 118.506344 | EZ28: 129.1915977 | FA28: 140.9229048 | FB28: 136.5360843 | FC28: 106.9445957 | FD28: 119.2441707 | FE28: 142.1051936 | FF28: 137.231441 | FG28: 127.9526299 | FH28: 102.4802997 | FI28: 94.42838551 | FJ28: 120.1072505 | FK28: 120.9514719 | FL28: =FL44*1.28 -> 130.2526227 | FM28: 140.6402562 | FN28: 137.5958013 | FO28: 110.5280823 | FP28: 119.4405207 | FQ28: 143.3937076 | FR28: 134.4204967 | FS28: 127.3830097 | FT28: 104.8793359 | FU28: 92.39699597 | FV28: 123.405337 | FW28: 118.6386775 | FX28: 131.1282298 | FY28: 140.5419246 | FZ28: 134.2609483 | GA28: 117.4421566 | GB28: 125.1578075 | GC28: 147.0784127 | GD28: 158.104488 | GE28: 119.5217115 | GF28: 107.6776043 | GG28: 91.43883486 | GH28: 109.756791 | GI28: 98.91753742 | GJ28: 111.368919 | GK28: 140.3151369 | GL28: 136.4692699 | GM28: 121.179922 | GN28: 125.0612986 | GO28: 134.1355638 | GP28: 150.9352773 | GQ28: 120.0563677 | GR28: 102.6798267 | GS28: 93.05324452 | GT28: 117.815085 | GU28: 100.190997 | GV28: 112.4245327 | GW28: 138.7116447 | GX28: 142.6449064 | GY28: 179.9489657 | GZ28: 180.893278 | HA28: 171.2497519 | HB28: 138.3613309 | HC28: 115.6067834 | HD28: 106.3462597 | HE28: 91.66747703 | HF28: 111.8588165 | HG28: 103.9944897 | HH28: 111.9845465 | HI28: 144.0133205 | HJ28: 179.3625909 | HK28: 177.6094515 | HL28: 178.5494777 | HM28: 169.2760811 | HN28: 131.5720694 | HO28: 123.2533695 | HP28: 105.6043316 | HQ28: 82.83229213 | HR28: 115.6605991 | HS28: 105.8728284 | HT28: 109.9384752 | HU28: 153.451341 | HV28: 173.9681301 | HW28: 174.3712045 | HX28: =HX44*1.28 -> 174.5519362 | HY28: 165.3661985 | HZ28: 128.9407312 | IA28: 123.9217804 | IB28: 104.2837823 | IC28: 77.22069721 | ID28: 114.7129427 | IE28: 107.2527449 | IF28: 107.8035168 | IG28: 150.3966744 | IH28: 173.4932767 | II28: 171.1329576 | IJ28: 170.5543948 | IK28: 161.4563159 | IL28: 126.309393 | IM28: 124.5901914 | IN28: 102.963233 | IO28: 71.6091023 | IP28: 113.7652862 | IQ28: 108.6326615 | IR28: 105.6685583 | IS28: 147.3420077 | IT28: 173.0184232 | IU28: 167.8947106 | IV28: 166.5568534 | IW28: 157.5464333 | IX28: 123.6780549 | IY28: 125.2586024 | IZ28: 101.6426838 | JA28: 65.99750738 | JB28: 112.8176298 | JC28: 110.0125781 | JD28: 103.5335999 | JE28: 144.2873411 | JF28: 172.5435697 | JG28: 164.6564637 | JH28: 162.5593119 | JI28: 153.6365507 | JJ28: 121.0467167 | JK28: 125.9270133 | JL28: 100.3221345 | JM28: 60.38591247 | JN28: 111.8699733 | JO28: 111.3924947 | JP28: 101.3986415 | JQ28: 141.2326744 | JR28: 172.0687163 | JS28: 161.4182168 | JT28: 158.5617705 | JU28: 149.726668 | JV28: 118.4153785 | JW28: 126.5954243 | JX28: 99.00158519 | JY28: 54.77431755 | JZ28: 110.9223169 | KA28: 112.7724112 | KB28: 99.26368305 | KC28: 138.1780078 | KD28: 171.5938628 | KE28: 161.4182168 | KF28: 158.5617705 | KG28: 149.726668 | KH28: 118.4153785 | KI28: 126.5954243 | KJ28: =KJ44*1.28 -> 99.00158519 | KK28: 54.77431755 | KL28: 110.9223169 | KM28: 112.7724112 | KN28: 99.26368305 | KO28: 138.1780078 | KP28: 171.5938628 | KQ28: 161.4182168 | KR28: 158.5617705 | KS28: 149.726668 | KT28: 118.4153785 | KU28: 126.5954243 | KV28: 99.00158519 | KW28: 54.77431755 | KX28: 110.9223169 | KY28: 112.7724112 | KZ28: 99.26368305 | LA28: 138.1780078 | LB28: 171.5938628 | LC28: 161.4182168 | LD28: 158.5617705 | LE28: 149.726668 | LF28: 118.4153785 | LG28: 126.5954243 | LH28: 99.00158519 | LI28: 54.77431755 | LJ28: 110.9223169 | LK28: 112.7724112 | LL28: 99.26368305 | LM28: 138.1780078 | LN28: 171.5938628 | LO28: 161.4182168 | LP28: 158.5617705 | LQ28: 149.726668 | LR28: 118.4153785 | LS28: 126.5954243 | LT28: 99.00158519 | LU28: 54.77431755 | LV28: 110.9223169 | LW28: 112.7724112 | LX28: 99.26368305 | LY28: 138.1780078 | LZ28: 171.5938628 | MA28: 161.4182168 | MB28: 158.5617705 | MC28: 149.726668 | MD28: 118.4153785 | ME28: 126.5954243 | MF28: 99.00158519 | MG28: 54.77431755 | MH28: 110.9223169 | MI28: 112.7724112 | MJ28: 99.26368305 | MK28: 138.1780078 | ML28: 171.5938628 | MM28: 161.4182168 | MN28: 158.5617705 | MO28: 149.726668 | MP28: 118.4153785 | MQ28: 126.5954243 | MR28: 99.00158519 | MS28: 54.77431755 | MT28: 110.9223169 | MU28: 112.7724112 | MV28: =MV44*1.28 -> 99.26368305 | MW28: 138.1780078 | MX28: 171.5938628 | MY28: 161.4182168 | MZ28: 158.5617705 | NA28: 149.726668 | NB28: 118.4153785 | NC28: 126.5954243 | ND28: 99.00158519 | NE28: 54.77431755 | NF28: 110.9223169 | NG28: 112.7724112 | NH28: 99.26368305 | NI28: 138.1780078 | NJ28: 171.5938628 | NK28: 161.4182168 | NL28: 158.5617705 | NM28: 149.726668 | NN28: 118.4153785 | NO28: 126.5954243 | NP28: 99.00158519 | NQ28: 54.77431755 | NR28: 110.9223169 | NS28: 112.7724112 | NT28: 99.26368305 | NU28: 138.1780078 | NV28: 171.5938628 | NW28: 161.4182168 | NX28: 158.5617705 | NY28: 149.726668 | NZ28: 118.4153785 | OA28: 126.5954243 | OB28: 99.00158519 | OC28: 54.77431755 | OD28: 110.9223169 | OE28: 112.7724112 | OF28: 99.26368305 | OG28: 138.1780078 | OH28: 171.5938628 | OI28: 161.4182168 | OJ28: 158.5617705 | OK28: 149.726668 | OL28: 118.4153785 | OM28: 126.5954243 | ON28: 99.00158519 | OO28: 54.77431755 | OP28: 110.9223169 | OQ28: 112.7724112 | OR28: 99.26368305 | OS28: 138.1780078 | OT28: 171.5938628
D29: Miljøomkostninger | F29: 8.281039719 | G29: ='Samlet hovedstaden -alle værker'!I36*1.28+SUM('Samlet hovedstaden -alle værker'!I37:I41) -> 5.249073549 | H29: ='Samlet hovedstaden -alle værker'!J36*1.28+SUM('Samlet hovedstaden -alle værker'!J37:J41) -> 5.053347862 | I29: ='Samlet hovedstaden -alle værker'!K36*1.28+SUM('Samlet hovedstaden -alle værker'!K37:K41) -> 11.3628148 | J29: ='Samlet hovedstaden -alle værker'!L36*1.28+SUM('Samlet hovedstaden -alle værker'!L37:L41) -> 10.55311327 | K29: ='Samlet hovedstaden -alle værker'!M36*1.28+SUM('Samlet hovedstaden -alle værker'!M37:M41) -> 9.778222398 | L29: ='Samlet hovedstaden -alle værker'!N36*1.28+SUM('Samlet hovedstaden -alle værker'!N37:N41) -> 8.887883265 | M29: ='Samlet hovedstaden -alle værker'!O36*1.28+SUM('Samlet hovedstaden -alle værker'!O37:O41) -> 8.878308698 | N29: ='Samlet hovedstaden -alle værker'!P36*1.28+SUM('Samlet hovedstaden -alle værker'!P37:P41) -> 8.881627559 | O29: ='Samlet hovedstaden -alle værker'!Q36*1.28+SUM('Samlet hovedstaden -alle værker'!Q37:Q41) -> 8.884626691 | P29: ='Samlet hovedstaden -alle værker'!R36*1.28+SUM('Samlet hovedstaden -alle værker'!R37:R41) -> 8.897297199 | Q29: ='Samlet hovedstaden -alle værker'!S36*1.28+SUM('Samlet hovedstaden -alle værker'!S37:S41) -> 8.907070294 | R29: ='Samlet hovedstaden -alle værker'!T36*1.28+SUM('Samlet hovedstaden -alle værker'!T37:T41) -> 8.932044004 | S29: ='Samlet hovedstaden -alle værker'!U36*1.28+SUM('Samlet hovedstaden -alle værker'!U37:U41) -> 8.792615157 | T29: ='Samlet hovedstaden -alle værker'!V36*1.28+SUM('Samlet hovedstaden -alle værker'!V37:V41) -> 9.498174516 | U29: ='Samlet hovedstaden -alle værker'!W36*1.28+SUM('Samlet hovedstaden -alle værker'!W37:W41) -> 4.290652678 | V29: ='Samlet hovedstaden -alle værker'!X36*1.28+SUM('Samlet hovedstaden -alle værker'!X37:X41) -> 4.368652584 | W29: ='Samlet hovedstaden -alle værker'!Y36*1.28+SUM('Samlet hovedstaden -alle værker'!Y37:Y41) -> 5.166813577 | X29: ='Samlet hovedstaden -alle værker'!Z36*1.28+SUM('Samlet hovedstaden -alle værker'!Z37:Z41) -> 6.017155292 | Y29: ='Samlet hovedstaden -alle værker'!AA36*1.28+SUM('Samlet hovedstaden -alle værker'!AA37:AA41) -> 6.934161891 | Z29: ='Samlet hovedstaden -alle værker'!AB36*1.28+SUM('Samlet hovedstaden -alle værker'!AB37:AB41) -> 7.924409743 | AA29: ='Samlet hovedstaden -alle værker'!AC36*1.28+SUM('Samlet hovedstaden -alle værker'!AC37:AC41) -> 8.986867983 | AB29: ='Samlet hovedstaden -alle værker'!AD36*1.28+SUM('Samlet hovedstaden -alle værker'!AD37:AD41) -> 8.986867983 | AC29: ='Samlet hovedstaden -alle værker'!AE36*1.28+SUM('Samlet hovedstaden -alle værker'!AE37:AE41) -> 8.986867983 | AD29: ='Samlet hovedstaden -alle værker'!AF36*1.28+SUM('Samlet hovedstaden -alle værker'!AF37:AF41) -> 8.986867983 | AE29: ='Samlet hovedstaden -alle værker'!AG36*1.28+SUM('Samlet hovedstaden -alle værker'!AG37:AG41) -> 8.986867983 | AF29: ='Samlet hovedstaden -alle værker'!AH36*1.28+SUM('Samlet hovedstaden -alle værker'!AH37:AH41) -> 8.986867983 | AG29: ='Samlet hovedstaden -alle værker'!AI36*1.28+SUM('Samlet hovedstaden -alle værker'!AI37:AI41) -> 8.986867983 | AH29: ='Samlet hovedstaden -alle værker'!AJ36*1.28+SUM('Samlet hovedstaden -alle værker'!AJ37:AJ41) -> 8.986867983 | AI29: ='Samlet hovedstaden -alle værker'!AK36*1.28+SUM('Samlet hovedstaden -alle værker'!AK37:AK41) -> 8.986867983 | AJ29: ='Samlet hovedstaden -alle værker'!AL36*1.28+SUM('Samlet hovedstaden -alle værker'!AL37:AL41) -> 8.986867983 | AK29: ='Samlet hovedstaden -alle værker'!AM36*1.28+SUM('Samlet hovedstaden -alle værker'!AM37:AM41) -> 8.986867983 | AM29: ='Samlet hovedstaden -alle værker'!AO36*1.28+SUM('Samlet hovedstaden -alle værker'!AO37:AO41) -> 14.39795426 | AN29: ='Samlet hovedstaden -alle værker'!AP36*1.28+SUM('Samlet hovedstaden -alle værker'!AP37:AP41) -> 10.47636591 | AO29: ='Samlet hovedstaden -alle værker'!AQ36*1.28+SUM('Samlet hovedstaden -alle værker'!AQ37:AQ41) -> 5.187037343 | AP29: ='Samlet hovedstaden -alle værker'!AR36*1.28+SUM('Samlet hovedstaden -alle værker'!AR37:AR41) -> 1.826038362 | AQ29: ='Samlet hovedstaden -alle værker'!AS36*1.28+SUM('Samlet hovedstaden -alle værker'!AS37:AS41) -> 3.853912173 | AR29: ='Samlet hovedstaden -alle værker'!AT36*1.28+SUM('Samlet hovedstaden -alle værker'!AT37:AT41) -> 1.278129534 | AS29: ='Samlet hovedstaden -alle værker'!AU36*1.28+SUM('Samlet hovedstaden -alle værker'!AU37:AU41) -> 3.738659685 | AT29: ='Samlet hovedstaden -alle værker'!AV36*1.28+SUM('Samlet hovedstaden -alle værker'!AV37:AV41) -> 3.82963489 | AU29: ='Samlet hovedstaden -alle værker'!AW36*1.28+SUM('Samlet hovedstaden -alle værker'!AW37:AW41) -> 1.078834993 | AV29: ='Samlet hovedstaden -alle værker'!AX36*1.28+SUM('Samlet hovedstaden -alle værker'!AX37:AX41) -> 3.268916459 | AW29: ='Samlet hovedstaden -alle værker'!AY36*1.28+SUM('Samlet hovedstaden -alle værker'!AY37:AY41) -> 5.322166498 | AX29: ='Samlet hovedstaden -alle værker'!AZ36*1.28+SUM('Samlet hovedstaden -alle værker'!AZ37:AZ41) -> 8.947200701 | AY29: ='Samlet hovedstaden -alle værker'!BA36*1.28+SUM('Samlet hovedstaden -alle værker'!BA37:BA41) -> 17.2462588 | AZ29: ='Samlet hovedstaden -alle værker'!BB36*1.28+SUM('Samlet hovedstaden -alle værker'!BB37:BB41) -> 12.17248437 | BA29: ='Samlet hovedstaden -alle værker'!BC36*1.28+SUM('Samlet hovedstaden -alle værker'!BC37:BC41) -> 5.702512861 | BB29: ='Samlet hovedstaden -alle værker'!BD36*1.28+SUM('Samlet hovedstaden -alle værker'!BD37:BD41) -> 2.7796308 | BC29: ='Samlet hovedstaden -alle værker'!BE36*1.28+SUM('Samlet hovedstaden -alle værker'!BE37:BE41) -> 4.838154982 | BD29: ='Samlet hovedstaden -alle værker'!BF36*1.28+SUM('Samlet hovedstaden -alle værker'!BF37:BF41) -> 1.161081462 | BE29: ='Samlet hovedstaden -alle værker'!BG36*1.28+SUM('Samlet hovedstaden -alle værker'!BG37:BG41) -> 3.650442894 | BF29: ='Samlet hovedstaden -alle værker'!BH36*1.28+SUM('Samlet hovedstaden -alle værker'!BH37:BH41) -> 3.918157886 | BG29: ='Samlet hovedstaden -alle værker'!BI36*1.28+SUM('Samlet hovedstaden -alle værker'!BI37:BI41) -> 1.186748021 | BH29: ='Samlet hovedstaden -alle værker'!BJ36*1.28+SUM('Samlet hovedstaden -alle værker'!BJ37:BJ41) -> 3.220299304 | BI29: ='Samlet hovedstaden -alle værker'!BK36*1.28+SUM('Samlet hovedstaden -alle værker'!BK37:BK41) -> 5.670565598 | BJ29: ='Samlet hovedstaden -alle værker'!BL36*1.28+SUM('Samlet hovedstaden -alle værker'!BL37:BL41) -> 10.3834635 | BK29: ='Samlet hovedstaden -alle værker'!BM36*1.28+SUM('Samlet hovedstaden -alle værker'!BM37:BM41) -> 20.09456334 | BL29: ='Samlet hovedstaden -alle værker'!BN36*1.28+SUM('Samlet hovedstaden -alle værker'!BN37:BN41) -> 13.86860284 | BM29: ='Samlet hovedstaden -alle værker'!BO36*1.28+SUM('Samlet hovedstaden -alle værker'!BO37:BO41) -> 6.217988379 | BN29: ='Samlet hovedstaden -alle værker'!BP36*1.28+SUM('Samlet hovedstaden -alle værker'!BP37:BP41) -> 3.733223238 | BO29: ='Samlet hovedstaden -alle værker'!BQ36*1.28+SUM('Samlet hovedstaden -alle værker'!BQ37:BQ41) -> 5.822397791 | BP29: ='Samlet hovedstaden -alle værker'!BR36*1.28+SUM('Samlet hovedstaden -alle værker'!BR37:BR41) -> 1.04403339 | BQ29: ='Samlet hovedstaden -alle værker'!BS36*1.28+SUM('Samlet hovedstaden -alle værker'!BS37:BS41) -> 3.562226102 | BR29: ='Samlet hovedstaden -alle værker'!BT36*1.28+SUM('Samlet hovedstaden -alle værker'!BT37:BT41) -> 4.006680882 | BS29: ='Samlet hovedstaden -alle værker'!BU36*1.28+SUM('Samlet hovedstaden -alle værker'!BU37:BU41) -> 1.294661048 | BT29: ='Samlet hovedstaden -alle værker'!BV36*1.28+SUM('Samlet hovedstaden -alle værker'!BV37:BV41) -> 3.171682149 | BU29: ='Samlet hovedstaden -alle værker'!BW36*1.28+SUM('Samlet hovedstaden -alle værker'!BW37:BW41) -> 6.018964697 | BV29: ='Samlet hovedstaden -alle værker'!BX36*1.28+SUM('Samlet hovedstaden -alle værker'!BX37:BX41) -> 11.8197263 | BW29: ='Samlet hovedstaden -alle værker'!BY36*1.28+SUM('Samlet hovedstaden -alle værker'!BY37:BY41) -> 22.94286788 | BX29: ='Samlet hovedstaden -alle værker'!BZ36*1.28+SUM('Samlet hovedstaden -alle værker'!BZ37:BZ41) -> 15.5647213 | BY29: ='Samlet hovedstaden -alle værker'!CA36*1.28+SUM('Samlet hovedstaden -alle værker'!CA37:CA41) -> 6.733463896 | BZ29: ='Samlet hovedstaden -alle værker'!CB36*1.28+SUM('Samlet hovedstaden -alle værker'!CB37:CB41) -> 4.686815676 | CA29: ='Samlet hovedstaden -alle værker'!CC36*1.28+SUM('Samlet hovedstaden -alle værker'!CC37:CC41) -> 6.806640601 | CB29: ='Samlet hovedstaden -alle værker'!CD36*1.28+SUM('Samlet hovedstaden -alle værker'!CD37:CD41) -> 0.9269853175 | CC29: ='Samlet hovedstaden -alle værker'!CE36*1.28+SUM('Samlet hovedstaden -alle værker'!CE37:CE41) -> 3.474009311 | CD29: ='Samlet hovedstaden -alle værker'!CF36*1.28+SUM('Samlet hovedstaden -alle værker'!CF37:CF41) -> 4.095203877 | CE29: ='Samlet hovedstaden -alle værker'!CG36*1.28+SUM('Samlet hovedstaden -alle værker'!CG37:CG41) -> 1.402574076 | CF29: ='Samlet hovedstaden -alle værker'!CH36*1.28+SUM('Samlet hovedstaden -alle værker'!CH37:CH41) -> 3.123064994 | CG29: ='Samlet hovedstaden -alle værker'!CI36*1.28+SUM('Samlet hovedstaden -alle værker'!CI37:CI41) -> 6.367363796 | CH29: ='Samlet hovedstaden -alle værker'!CJ36*1.28+SUM('Samlet hovedstaden -alle værker'!CJ37:CJ41) -> 13.2559891 | CI29: ='Samlet hovedstaden -alle værker'!CK36*1.28+SUM('Samlet hovedstaden -alle værker'!CK37:CK41) -> 25.79117242 | CJ29: ='Samlet hovedstaden -alle værker'!CL36*1.28+SUM('Samlet hovedstaden -alle værker'!CL37:CL41) -> 17.26083976 | CK29: ='Samlet hovedstaden -alle værker'!CM36*1.28+SUM('Samlet hovedstaden -alle værker'!CM37:CM41) -> 7.248939414 | CL29: ='Samlet hovedstaden -alle værker'!CN36*1.28+SUM('Samlet hovedstaden -alle værker'!CN37:CN41) -> 5.640408114 | CM29: ='Samlet hovedstaden -alle værker'!CO36*1.28+SUM('Samlet hovedstaden -alle værker'!CO37:CO41) -> 7.79088341 | CN29: ='Samlet hovedstaden -alle værker'!CP36*1.28+SUM('Samlet hovedstaden -alle værker'!CP37:CP41) -> 0.8099372454 | CO29: ='Samlet hovedstaden -alle værker'!CQ36*1.28+SUM('Samlet hovedstaden -alle værker'!CQ37:CQ41) -> 3.38579252 | CP29: ='Samlet hovedstaden -alle værker'!CR36*1.28+SUM('Samlet hovedstaden -alle værker'!CR37:CR41) -> 4.183726873 | CQ29: ='Samlet hovedstaden -alle værker'!CS36*1.28+SUM('Samlet hovedstaden -alle værker'!CS37:CS41) -> 1.510487104 | CR29: ='Samlet hovedstaden -alle værker'!CT36*1.28+SUM('Samlet hovedstaden -alle værker'!CT37:CT41) -> 3.07444784 | CS29: ='Samlet hovedstaden -alle værker'!CU36*1.28+SUM('Samlet hovedstaden -alle værker'!CU37:CU41) -> 6.715762895 | CT29: ='Samlet hovedstaden -alle værker'!CV36*1.28+SUM('Samlet hovedstaden -alle værker'!CV37:CV41) -> 14.6922519 | CU29: ='Samlet hovedstaden -alle værker'!CW36*1.28+SUM('Samlet hovedstaden -alle værker'!CW37:CW41) -> 28.63947696 | CV29: ='Samlet hovedstaden -alle værker'!CX36*1.28+SUM('Samlet hovedstaden -alle værker'!CX37:CX41) -> 18.95695823 | CW29: ='Samlet hovedstaden -alle værker'!CY36*1.28+SUM('Samlet hovedstaden -alle værker'!CY37:CY41) -> 7.764414931 | CX29: ='Samlet hovedstaden -alle værker'!CZ36*1.28+SUM('Samlet hovedstaden -alle værker'!CZ37:CZ41) -> 6.594000551 | CY29: ='Samlet hovedstaden -alle værker'!DA36*1.28+SUM('Samlet hovedstaden -alle værker'!DA37:DA41) -> 8.775126219 | CZ29: ='Samlet hovedstaden -alle værker'!DB36*1.28+SUM('Samlet hovedstaden -alle værker'!DB37:DB41) -> 0.6928891734 | DA29: ='Samlet hovedstaden -alle værker'!DC36*1.28+SUM('Samlet hovedstaden -alle værker'!DC37:DC41) -> 3.297575729 | DB29: ='Samlet hovedstaden -alle værker'!DD36*1.28+SUM('Samlet hovedstaden -alle værker'!DD37:DD41) -> 4.272249869 | DC29: ='Samlet hovedstaden -alle værker'!DE36*1.28+SUM('Samlet hovedstaden -alle værker'!DE37:DE41) -> 1.618400131 | DD29: ='Samlet hovedstaden -alle værker'!DF36*1.28+SUM('Samlet hovedstaden -alle værker'!DF37:DF41) -> 3.025830685 | DE29: ='Samlet hovedstaden -alle værker'!DG36*1.28+SUM('Samlet hovedstaden -alle værker'!DG37:DG41) -> 7.064161995 | DF29: ='Samlet hovedstaden -alle værker'!DH36*1.28+SUM('Samlet hovedstaden -alle værker'!DH37:DH41) -> 16.1285147 | DG29: ='Samlet hovedstaden -alle værker'!DI36*1.28+SUM('Samlet hovedstaden -alle værker'!DI37:DI41) -> 28.41062484 | DH29: ='Samlet hovedstaden -alle værker'!DJ36*1.28+SUM('Samlet hovedstaden -alle værker'!DJ37:DJ41) -> 18.67802067 | DI29: ='Samlet hovedstaden -alle værker'!DK36*1.28+SUM('Samlet hovedstaden -alle værker'!DK37:DK41) -> 7.506066125 | DJ29: ='Samlet hovedstaden -alle værker'!DL36*1.28+SUM('Samlet hovedstaden -alle værker'!DL37:DL41) -> 7.555809944 | DK29: ='Samlet hovedstaden -alle værker'!DM36*1.28+SUM('Samlet hovedstaden -alle værker'!DM37:DM41) -> 7.956007907 | DL29: ='Samlet hovedstaden -alle værker'!DN36*1.28+SUM('Samlet hovedstaden -alle værker'!DN37:DN41) -> 1.048808476 | DM29: ='Samlet hovedstaden -alle værker'!DO36*1.28+SUM('Samlet hovedstaden -alle værker'!DO37:DO41) -> 3.723040513 | DN29: ='Samlet hovedstaden -alle værker'!DP36*1.28+SUM('Samlet hovedstaden -alle værker'!DP37:DP41) -> 5.273183586 | DO29: ='Samlet hovedstaden -alle værker'!DQ36*1.28+SUM('Samlet hovedstaden -alle værker'!DQ37:DQ41) -> 1.671656116 | DP29: ='Samlet hovedstaden -alle værker'!DR36*1.28+SUM('Samlet hovedstaden -alle værker'!DR37:DR41) -> 3.019444793 | DQ29: ='Samlet hovedstaden -alle værker'!DS36*1.28+SUM('Samlet hovedstaden -alle værker'!DS37:DS41) -> 6.809615267 | DR29: ='Samlet hovedstaden -alle værker'!DT36*1.28+SUM('Samlet hovedstaden -alle værker'!DT37:DT41) -> 15.29751824 | DS29: ='Samlet hovedstaden -alle værker'!DU36*1.28+SUM('Samlet hovedstaden -alle værker'!DU37:DU41) -> 28.18177273 | DT29: ='Samlet hovedstaden -alle værker'!DV36*1.28+SUM('Samlet hovedstaden -alle værker'!DV37:DV41) -> 18.39908311 | DU29: ='Samlet hovedstaden -alle værker'!DW36*1.28+SUM('Samlet hovedstaden -alle værker'!DW37:DW41) -> 7.247717318 | DV29: ='Samlet hovedstaden -alle værker'!DX36*1.28+SUM('Samlet hovedstaden -alle værker'!DX37:DX41) -> 8.517619338 | DW29: ='Samlet hovedstaden -alle værker'!DY36*1.28+SUM('Samlet hovedstaden -alle værker'!DY37:DY41) -> 7.136889596 | DX29: ='Samlet hovedstaden -alle værker'!DZ36*1.28+SUM('Samlet hovedstaden -alle værker'!DZ37:DZ41) -> 1.404727778 | DY29: ='Samlet hovedstaden -alle værker'!EA36*1.28+SUM('Samlet hovedstaden -alle værker'!EA37:EA41) -> 4.148505296 | DZ29: ='Samlet hovedstaden -alle værker'!EB36*1.28+SUM('Samlet hovedstaden -alle værker'!EB37:EB41) -> 6.274117304 | EA29: ='Samlet hovedstaden -alle værker'!EC36*1.28+SUM('Samlet hovedstaden -alle værker'!EC37:EC41) -> 1.7249121 | EB29: ='Samlet hovedstaden -alle værker'!ED36*1.28+SUM('Samlet hovedstaden -alle værker'!ED37:ED41) -> 3.013058902 | EC29: ='Samlet hovedstaden -alle værker'!EE36*1.28+SUM('Samlet hovedstaden -alle værker'!EE37:EE41) -> 6.555068539 | ED29: ='Samlet hovedstaden -alle værker'!EF36*1.28+SUM('Samlet hovedstaden -alle værker'!EF37:EF41) -> 14.46652177 | EE29: ='Samlet hovedstaden -alle værker'!EG36*1.28+SUM('Samlet hovedstaden -alle værker'!EG37:EG41) -> 27.95292061 | EF29: ='Samlet hovedstaden -alle værker'!EH36*1.28+SUM('Samlet hovedstaden -alle værker'!EH37:EH41) -> 18.12014555 | EG29: ='Samlet hovedstaden -alle værker'!EI36*1.28+SUM('Samlet hovedstaden -alle værker'!EI37:EI41) -> 6.989368512 | EH29: ='Samlet hovedstaden -alle værker'!EJ36*1.28+SUM('Samlet hovedstaden -alle værker'!EJ37:EJ41) -> 9.479428731 | EI29: ='Samlet hovedstaden -alle værker'!EK36*1.28+SUM('Samlet hovedstaden -alle værker'!EK37:EK41) -> 6.317771284 | EJ29: ='Samlet hovedstaden -alle værker'!EL36*1.28+SUM('Samlet hovedstaden -alle værker'!EL37:EL41) -> 1.760647081 | EK29: ='Samlet hovedstaden -alle værker'!EM36*1.28+SUM('Samlet hovedstaden -alle værker'!EM37:EM41) -> 4.57397008 | EL29: ='Samlet hovedstaden -alle værker'!EN36*1.28+SUM('Samlet hovedstaden -alle værker'!EN37:EN41) -> 7.275051021 | EM29: ='Samlet hovedstaden -alle værker'!EO36*1.28+SUM('Samlet hovedstaden -alle værker'!EO37:EO41) -> 1.778168085 | EN29: ='Samlet hovedstaden -alle værker'!EP36*1.28+SUM('Samlet hovedstaden -alle værker'!EP37:EP41) -> 3.006673011 | EO29: ='Samlet hovedstaden -alle værker'!EQ36*1.28+SUM('Samlet hovedstaden -alle værker'!EQ37:EQ41) -> 6.300521811 | EP29: ='Samlet hovedstaden -alle værker'!ER36*1.28+SUM('Samlet hovedstaden -alle værker'!ER37:ER41) -> 13.6355253 | EQ29: ='Samlet hovedstaden -alle værker'!ES36*1.28+SUM('Samlet hovedstaden -alle værker'!ES37:ES41) -> 27.7240685 | ER29: ='Samlet hovedstaden -alle værker'!ET36*1.28+SUM('Samlet hovedstaden -alle værker'!ET37:ET41) -> 17.84120799 | ES29: ='Samlet hovedstaden -alle værker'!EU36*1.28+SUM('Samlet hovedstaden -alle værker'!EU37:EU41) -> 6.731019705 | ET29: ='Samlet hovedstaden -alle værker'!EV36*1.28+SUM('Samlet hovedstaden -alle værker'!EV37:EV41) -> 10.44123812 | EU29: ='Samlet hovedstaden -alle værker'!EW36*1.28+SUM('Samlet hovedstaden -alle værker'!EW37:EW41) -> 5.498652972 | EV29: ='Samlet hovedstaden -alle værker'!EX36*1.28+SUM('Samlet hovedstaden -alle værker'!EX37:EX41) -> 2.116566383 | EW29: ='Samlet hovedstaden -alle værker'!EY36*1.28+SUM('Samlet hovedstaden -alle værker'!EY37:EY41) -> 4.999434863 | EX29: ='Samlet hovedstaden -alle værker'!EZ36*1.28+SUM('Samlet hovedstaden -alle værker'!EZ37:EZ41) -> 8.275984739 | EY29: ='Samlet hovedstaden -alle værker'!FA36*1.28+SUM('Samlet hovedstaden -alle værker'!FA37:FA41) -> 1.831424069 | EZ29: ='Samlet hovedstaden -alle værker'!FB36*1.28+SUM('Samlet hovedstaden -alle værker'!FB37:FB41) -> 3.000287119 | FA29: ='Samlet hovedstaden -alle værker'!FC36*1.28+SUM('Samlet hovedstaden -alle værker'!FC37:FC41) -> 6.045975083 | FB29: ='Samlet hovedstaden -alle værker'!FD36*1.28+SUM('Samlet hovedstaden -alle værker'!FD37:FD41) -> 12.80452883 | FC29: ='Samlet hovedstaden -alle værker'!FE36*1.28+SUM('Samlet hovedstaden -alle værker'!FE37:FE41) -> 27.49521638 | FD29: ='Samlet hovedstaden -alle værker'!FF36*1.28+SUM('Samlet hovedstaden -alle værker'!FF37:FF41) -> 17.56227043 | FE29: ='Samlet hovedstaden -alle værker'!FG36*1.28+SUM('Samlet hovedstaden -alle værker'!FG37:FG41) -> 6.472670899 | FF29: ='Samlet hovedstaden -alle værker'!FH36*1.28+SUM('Samlet hovedstaden -alle værker'!FH37:FH41) -> 11.40304752 | FG29: ='Samlet hovedstaden -alle værker'!FI36*1.28+SUM('Samlet hovedstaden -alle værker'!FI37:FI41) -> 4.679534661 | FH29: ='Samlet hovedstaden -alle værker'!FJ36*1.28+SUM('Samlet hovedstaden -alle værker'!FJ37:FJ41) -> 2.472485685 | FI29: ='Samlet hovedstaden -alle værker'!FK36*1.28+SUM('Samlet hovedstaden -alle værker'!FK37:FK41) -> 5.424899646 | FJ29: ='Samlet hovedstaden -alle værker'!FL36*1.28+SUM('Samlet hovedstaden -alle værker'!FL37:FL41) -> 9.276918457 | FK29: ='Samlet hovedstaden -alle værker'!FM36*1.28+SUM('Samlet hovedstaden -alle værker'!FM37:FM41) -> 1.884680054 | FL29: ='Samlet hovedstaden -alle værker'!FN36*1.28+SUM('Samlet hovedstaden -alle værker'!FN37:FN41) -> 2.993901228 | FM29: ='Samlet hovedstaden -alle værker'!FO36*1.28+SUM('Samlet hovedstaden -alle værker'!FO37:FO41) -> 5.791428355 | FN29: ='Samlet hovedstaden -alle værker'!FP36*1.28+SUM('Samlet hovedstaden -alle værker'!FP37:FP41) -> 11.97353237 | FO29: ='Samlet hovedstaden -alle værker'!FQ36*1.28+SUM('Samlet hovedstaden -alle værker'!FQ37:FQ41) -> 26.83762659 | FP29: ='Samlet hovedstaden -alle værker'!FR36*1.28+SUM('Samlet hovedstaden -alle værker'!FR37:FR41) -> 17.3103996 | FQ29: ='Samlet hovedstaden -alle værker'!FS36*1.28+SUM('Samlet hovedstaden -alle værker'!FS37:FS41) -> 6.980277226 | FR29: ='Samlet hovedstaden -alle værker'!FT36*1.28+SUM('Samlet hovedstaden -alle værker'!FT37:FT41) -> 12.30265334 | FS29: ='Samlet hovedstaden -alle værker'!FU36*1.28+SUM('Samlet hovedstaden -alle værker'!FU37:FU41) -> 4.051981811 | FT29: ='Samlet hovedstaden -alle værker'!FV36*1.28+SUM('Samlet hovedstaden -alle værker'!FV37:FV41) -> 1.782361701 | FU29: ='Samlet hovedstaden -alle værker'!FW36*1.28+SUM('Samlet hovedstaden -alle værker'!FW37:FW41) -> 6.453351082 | FV29: ='Samlet hovedstaden -alle værker'!FX36*1.28+SUM('Samlet hovedstaden -alle værker'!FX37:FX41) -> 8.973363491 | FW29: ='Samlet hovedstaden -alle værker'!FY36*1.28+SUM('Samlet hovedstaden -alle værker'!FY37:FY41) -> 2.199079167 | FX29: ='Samlet hovedstaden -alle værker'!FZ36*1.28+SUM('Samlet hovedstaden -alle værker'!FZ37:FZ41) -> 3.203989494 | FY29: ='Samlet hovedstaden -alle værker'!GA36*1.28+SUM('Samlet hovedstaden -alle værker'!GA37:GA41) -> 5.658377979 | FZ29: ='Samlet hovedstaden -alle værker'!GB36*1.28+SUM('Samlet hovedstaden -alle værker'!GB37:GB41) -> 12.10243243 | GA29: ='Samlet hovedstaden -alle værker'!GC36*1.28+SUM('Samlet hovedstaden -alle værker'!GC37:GC41) -> 25.6188531 | GB29: ='Samlet hovedstaden -alle værker'!GD36*1.28+SUM('Samlet hovedstaden -alle værker'!GD37:GD41) -> 18.02597848 | GC29: ='Samlet hovedstaden -alle værker'!GE36*1.28+SUM('Samlet hovedstaden -alle værker'!GE37:GE41) -> 6.953530343 | GD29: ='Samlet hovedstaden -alle værker'!GF36*1.28+SUM('Samlet hovedstaden -alle værker'!GF37:GF41) -> 5.413096517 | GE29: ='Samlet hovedstaden -alle værker'!GG36*1.28+SUM('Samlet hovedstaden -alle værker'!GG37:GG41) -> 6.154756497 | GF29: ='Samlet hovedstaden -alle værker'!GH36*1.28+SUM('Samlet hovedstaden -alle værker'!GH37:GH41) -> 0.03429396207 | GG29: ='Samlet hovedstaden -alle værker'!GI36*1.28+SUM('Samlet hovedstaden -alle værker'!GI37:GI41) -> 6.992754861 | GH29: ='Samlet hovedstaden -alle værker'!GJ36*1.28+SUM('Samlet hovedstaden -alle værker'!GJ37:GJ41) -> 11.12652789 | GI29: ='Samlet hovedstaden -alle værker'!GK36*1.28+SUM('Samlet hovedstaden -alle værker'!GK37:GK41) -> 4.183853074 | GJ29: ='Samlet hovedstaden -alle værker'!GL36*1.28+SUM('Samlet hovedstaden -alle værker'!GL37:GL41) -> 4.528368814 | GK29: ='Samlet hovedstaden -alle værker'!GM36*1.28+SUM('Samlet hovedstaden -alle værker'!GM37:GM41) -> 6.466105459 | GL29: ='Samlet hovedstaden -alle værker'!GN36*1.28+SUM('Samlet hovedstaden -alle værker'!GN37:GN41) -> 10.10358802 | GM29: ='Samlet hovedstaden -alle værker'!GO36*1.28+SUM('Samlet hovedstaden -alle værker'!GO37:GO41) -> 24.41365407 | GN29: ='Samlet hovedstaden -alle værker'!GP36*1.28+SUM('Samlet hovedstaden -alle værker'!GP37:GP41) -> 17.5726941 | GO29: ='Samlet hovedstaden -alle værker'!GQ36*1.28+SUM('Samlet hovedstaden -alle værker'!GQ37:GQ41) -> 10.68867102 | GP29: ='Samlet hovedstaden -alle værker'!GR36*1.28+SUM('Samlet hovedstaden -alle værker'!GR37:GR41) -> 7.836807335 | GQ29: ='Samlet hovedstaden -alle værker'!GS36*1.28+SUM('Samlet hovedstaden -alle værker'!GS37:GS41) -> 5.6842801 | GR29: ='Samlet hovedstaden -alle værker'!GT36*1.28+SUM('Samlet hovedstaden -alle værker'!GT37:GT41) -> 3.271417488 | GS29: ='Samlet hovedstaden -alle værker'!GU36*1.28+SUM('Samlet hovedstaden -alle værker'!GU37:GU41) -> 5.558756335 | GT29: ='Samlet hovedstaden -alle værker'!GV36*1.28+SUM('Samlet hovedstaden -alle værker'!GV37:GV41) -> 8.339747303 | GU29: ='Samlet hovedstaden -alle værker'!GW36*1.28+SUM('Samlet hovedstaden -alle værker'!GW37:GW41) -> 5.082076417 | GV29: ='Samlet hovedstaden -alle værker'!GX36*1.28+SUM('Samlet hovedstaden -alle værker'!GX37:GX41) -> 5.347854852 | GW29: ='Samlet hovedstaden -alle værker'!GY36*1.28+SUM('Samlet hovedstaden -alle værker'!GY37:GY41) -> 6.887689303 | GX29: ='Samlet hovedstaden -alle værker'!GZ36*1.28+SUM('Samlet hovedstaden -alle værker'!GZ37:GZ41) -> 13.69175021 | GY29: ='Samlet hovedstaden -alle værker'!HA36*1.28+SUM('Samlet hovedstaden -alle værker'!HA37:HA41) -> 1.706197313 | GZ29: ='Samlet hovedstaden -alle værker'!HB36*1.28+SUM('Samlet hovedstaden -alle værker'!HB37:HB41) -> 0.6733533831 | HA29: ='Samlet hovedstaden -alle værker'!HC36*1.28+SUM('Samlet hovedstaden -alle værker'!HC37:HC41) -> 3.774267722 | HB29: ='Samlet hovedstaden -alle værker'!HD36*1.28+SUM('Samlet hovedstaden -alle værker'!HD37:HD41) -> 6.055380108 | HC29: ='Samlet hovedstaden -alle værker'!HE36*1.28+SUM('Samlet hovedstaden -alle værker'!HE37:HE41) -> 6.19975567 | HD29: ='Samlet hovedstaden -alle værker'!HF36*1.28+SUM('Samlet hovedstaden -alle værker'!HF37:HF41) -> 1.736869188 | HE29: ='Samlet hovedstaden -alle værker'!HG36*1.28+SUM('Samlet hovedstaden -alle værker'!HG37:HG41) -> 6.744334887 | HF29: ='Samlet hovedstaden -alle værker'!HH36*1.28+SUM('Samlet hovedstaden -alle værker'!HH37:HH41) -> 9.831609959 | HG29: ='Samlet hovedstaden -alle værker'!HI36*1.28+SUM('Samlet hovedstaden -alle værker'!HI37:HI41) -> 3.479580533 | HH29: ='Samlet hovedstaden -alle værker'!HJ36*1.28+SUM('Samlet hovedstaden -alle værker'!HJ37:HJ41) -> 3.750035904 | HI29: ='Samlet hovedstaden -alle værker'!HK36*1.28+SUM('Samlet hovedstaden -alle værker'!HK37:HK41) -> 5.276932133 | HJ29: ='Samlet hovedstaden -alle værker'!HL36*1.28+SUM('Samlet hovedstaden -alle værker'!HL37:HL41) -> 1.815093154 | HK29: ='Samlet hovedstaden -alle værker'!HM36*1.28+SUM('Samlet hovedstaden -alle værker'!HM37:HM41) -> 2.013917103 | HL29: ='Samlet hovedstaden -alle værker'!HN36*1.28+SUM('Samlet hovedstaden -alle værker'!HN37:HN41) -> 0.6379121471 | HM29: ='Samlet hovedstaden -alle værker'!HO36*1.28+SUM('Samlet hovedstaden -alle værker'!HO37:HO41) -> 3.12925733 | HN29: ='Samlet hovedstaden -alle værker'!HP36*1.28+SUM('Samlet hovedstaden -alle værker'!HP37:HP41) -> 8.192155345 | HO29: ='Samlet hovedstaden -alle værker'!HQ36*1.28+SUM('Samlet hovedstaden -alle værker'!HQ37:HQ41) -> 2.007116013 | HP29: ='Samlet hovedstaden -alle værker'!HR36*1.28+SUM('Samlet hovedstaden -alle værker'!HR37:HR41) -> 2.21244753 | HQ29: ='Samlet hovedstaden -alle værker'!HS36*1.28+SUM('Samlet hovedstaden -alle værker'!HS37:HS41) -> 11.91658979 | HR29: ='Samlet hovedstaden -alle værker'!HT36*1.28+SUM('Samlet hovedstaden -alle værker'!HT37:HT41) -> 10.26162586 | HS29: ='Samlet hovedstaden -alle værker'!HU36*1.28+SUM('Samlet hovedstaden -alle værker'!HU37:HU41) -> 2.154822025 | HT29: ='Samlet hovedstaden -alle værker'!HV36*1.28+SUM('Samlet hovedstaden -alle værker'!HV37:HV41) -> 3.9960118 | HU29: ='Samlet hovedstaden -alle værker'!HW36*1.28+SUM('Samlet hovedstaden -alle værker'!HW37:HW41) -> 4.116133706 | HV29: ='Samlet hovedstaden -alle værker'!HX36*1.28+SUM('Samlet hovedstaden -alle værker'!HX37:HX41) -> 1.432328137 | HW29: ='Samlet hovedstaden -alle værker'!HY36*1.28+SUM('Samlet hovedstaden -alle værker'!HY37:HY41) -> 2.621316691 | HX29: ='Samlet hovedstaden -alle værker'!HZ36*1.28+SUM('Samlet hovedstaden -alle værker'!HZ37:HZ41) -> 0.8019597057 | HY29: ='Samlet hovedstaden -alle værker'!IA36*1.28+SUM('Samlet hovedstaden -alle værker'!IA37:IA41) -> 3.045203073 | HZ29: ='Samlet hovedstaden -alle værker'!IB36*1.28+SUM('Samlet hovedstaden -alle værker'!IB37:IB41) -> 8.539266637 | IA29: ='Samlet hovedstaden -alle værker'!IC36*1.28+SUM('Samlet hovedstaden -alle værker'!IC37:IC41) -> 2.074349334 | IB29: ='Samlet hovedstaden -alle værker'!ID36*1.28+SUM('Samlet hovedstaden -alle værker'!ID37:ID41) -> 3.885674361 | IC29: ='Samlet hovedstaden -alle værker'!IE36*1.28+SUM('Samlet hovedstaden -alle værker'!IE37:IE41) -> 17.47595766 | ID29: ='Samlet hovedstaden -alle værker'!IF36*1.28+SUM('Samlet hovedstaden -alle værker'!IF37:IF41) -> 11.64137428 | IE29: ='Samlet hovedstaden -alle værker'!IG36*1.28+SUM('Samlet hovedstaden -alle værker'!IG37:IG41) -> 2.113953082 | IF29: ='Samlet hovedstaden -alle værker'!IH36*1.28+SUM('Samlet hovedstaden -alle værker'!IH37:IH41) -> 4.03922117 | IG29: ='Samlet hovedstaden -alle værker'!II36*1.28+SUM('Samlet hovedstaden -alle værker'!II37:II41) -> 5.448341895 | IH29: ='Samlet hovedstaden -alle værker'!IJ36*1.28+SUM('Samlet hovedstaden -alle værker'!IJ37:IJ41) -> 1.399786707 | II29: ='Samlet hovedstaden -alle værker'!IK36*1.28+SUM('Samlet hovedstaden -alle værker'!IK37:IK41) -> 3.228716278 | IJ29: ='Samlet hovedstaden -alle værker'!IL36*1.28+SUM('Samlet hovedstaden -alle værker'!IL37:IL41) -> 0.9660072643 | IK29: ='Samlet hovedstaden -alle værker'!IM36*1.28+SUM('Samlet hovedstaden -alle værker'!IM37:IM41) -> 2.961148816 | IL29: ='Samlet hovedstaden -alle værker'!IN36*1.28+SUM('Samlet hovedstaden -alle værker'!IN37:IN41) -> 8.88637793 | IM29: ='Samlet hovedstaden -alle værker'!IO36*1.28+SUM('Samlet hovedstaden -alle værker'!IO37:IO41) -> 2.141582655 | IN29: ='Samlet hovedstaden -alle værker'!IP36*1.28+SUM('Samlet hovedstaden -alle værker'!IP37:IP41) -> 5.558901193 | IO29: ='Samlet hovedstaden -alle værker'!IQ36*1.28+SUM('Samlet hovedstaden -alle værker'!IQ37:IQ41) -> 23.03532553 | IP29: ='Samlet hovedstaden -alle værker'!IR36*1.28+SUM('Samlet hovedstaden -alle værker'!IR37:IR41) -> 13.0211227 | IQ29: ='Samlet hovedstaden -alle værker'!IS36*1.28+SUM('Samlet hovedstaden -alle værker'!IS37:IS41) -> 2.07308414 | IR29: ='Samlet hovedstaden -alle værker'!IT36*1.28+SUM('Samlet hovedstaden -alle værker'!IT37:IT41) -> 4.082430539 | IS29: ='Samlet hovedstaden -alle værker'!IU36*1.28+SUM('Samlet hovedstaden -alle værker'!IU37:IU41) -> 6.780550085 | IT29: ='Samlet hovedstaden -alle værker'!IV36*1.28+SUM('Samlet hovedstaden -alle værker'!IV37:IV41) -> 1.367245276 | IU29: ='Samlet hovedstaden -alle værker'!IW36*1.28+SUM('Samlet hovedstaden -alle værker'!IW37:IW41) -> 3.836115866 | IV29: ='Samlet hovedstaden -alle værker'!IX36*1.28+SUM('Samlet hovedstaden -alle værker'!IX37:IX41) -> 1.130054823 | IW29: ='Samlet hovedstaden -alle værker'!IY36*1.28+SUM('Samlet hovedstaden -alle værker'!IY37:IY41) -> 2.87709456 | IX29: ='Samlet hovedstaden -alle værker'!IZ36*1.28+SUM('Samlet hovedstaden -alle værker'!IZ37:IZ41) -> 9.233489223 | IY29: ='Samlet hovedstaden -alle værker'!JA36*1.28+SUM('Samlet hovedstaden -alle værker'!JA37:JA41) -> 2.208815977 | IZ29: ='Samlet hovedstaden -alle værker'!JB36*1.28+SUM('Samlet hovedstaden -alle værker'!JB37:JB41) -> 7.232128024 | JA29: ='Samlet hovedstaden -alle værker'!JC36*1.28+SUM('Samlet hovedstaden -alle værker'!JC37:JC41) -> 28.5946934 | JB29: ='Samlet hovedstaden -alle værker'!JD36*1.28+SUM('Samlet hovedstaden -alle værker'!JD37:JD41) -> 14.40087111 | JC29: ='Samlet hovedstaden -alle værker'!JE36*1.28+SUM('Samlet hovedstaden -alle værker'!JE37:JE41) -> 2.032215197 | JD29: ='Samlet hovedstaden -alle værker'!JF36*1.28+SUM('Samlet hovedstaden -alle værker'!JF37:JF41) -> 4.125639908 | JE29: ='Samlet hovedstaden -alle værker'!JG36*1.28+SUM('Samlet hovedstaden -alle værker'!JG37:JG41) -> 8.112758275 | JF29: ='Samlet hovedstaden -alle værker'!JH36*1.28+SUM('Samlet hovedstaden -alle værker'!JH37:JH41) -> 1.334703845 | JG29: ='Samlet hovedstaden -alle værker'!JI36*1.28+SUM('Samlet hovedstaden -alle værker'!JI37:JI41) -> 4.443515454 | JH29: ='Samlet hovedstaden -alle værker'!JJ36*1.28+SUM('Samlet hovedstaden -alle værker'!JJ37:JJ41) -> 1.294102382 | JI29: ='Samlet hovedstaden -alle værker'!JK36*1.28+SUM('Samlet hovedstaden -alle værker'!JK37:JK41) -> 2.793040303 | JJ29: ='Samlet hovedstaden -alle værker'!JL36*1.28+SUM('Samlet hovedstaden -alle værker'!JL37:JL41) -> 9.580600515 | JK29: ='Samlet hovedstaden -alle værker'!JM36*1.28+SUM('Samlet hovedstaden -alle værker'!JM37:JM41) -> 2.276049298 | JL29: ='Samlet hovedstaden -alle værker'!JN36*1.28+SUM('Samlet hovedstaden -alle værker'!JN37:JN41) -> 8.905354855 | JM29: ='Samlet hovedstaden -alle værker'!JO36*1.28+SUM('Samlet hovedstaden -alle værker'!JO37:JO41) -> 34.15406127 | JN29: ='Samlet hovedstaden -alle værker'!JP36*1.28+SUM('Samlet hovedstaden -alle værker'!JP37:JP41) -> 15.78061953 | JO29: ='Samlet hovedstaden -alle værker'!JQ36*1.28+SUM('Samlet hovedstaden -alle værker'!JQ37:JQ41) -> 1.991346255 | JP29: ='Samlet hovedstaden -alle værker'!JR36*1.28+SUM('Samlet hovedstaden -alle værker'!JR37:JR41) -> 4.168849278 | JQ29: ='Samlet hovedstaden -alle værker'!JS36*1.28+SUM('Samlet hovedstaden -alle værker'!JS37:JS41) -> 9.444966465 | JR29: ='Samlet hovedstaden -alle værker'!JT36*1.28+SUM('Samlet hovedstaden -alle værker'!JT37:JT41) -> 1.302162414 | JS29: ='Samlet hovedstaden -alle værker'!JU36*1.28+SUM('Samlet hovedstaden -alle værker'!JU37:JU41) -> 5.050915041 | JT29: ='Samlet hovedstaden -alle værker'!JV36*1.28+SUM('Samlet hovedstaden -alle værker'!JV37:JV41) -> 1.45814994 | JU29: ='Samlet hovedstaden -alle værker'!JW36*1.28+SUM('Samlet hovedstaden -alle værker'!JW37:JW41) -> 2.708986046 | JV29: ='Samlet hovedstaden -alle værker'!JX36*1.28+SUM('Samlet hovedstaden -alle værker'!JX37:JX41) -> 9.927711808 | JW29: ='Samlet hovedstaden -alle værker'!JY36*1.28+SUM('Samlet hovedstaden -alle værker'!JY37:JY41) -> 2.343282619 | JX29: ='Samlet hovedstaden -alle værker'!JZ36*1.28+SUM('Samlet hovedstaden -alle værker'!JZ37:JZ41) -> 10.57858169 | JY29: ='Samlet hovedstaden -alle værker'!KA36*1.28+SUM('Samlet hovedstaden -alle værker'!KA37:KA41) -> 39.71342914 | JZ29: ='Samlet hovedstaden -alle værker'!KB36*1.28+SUM('Samlet hovedstaden -alle værker'!KB37:KB41) -> 17.16036794 | KA29: ='Samlet hovedstaden -alle værker'!KC36*1.28+SUM('Samlet hovedstaden -alle værker'!KC37:KC41) -> 1.950477313 | KB29: ='Samlet hovedstaden -alle værker'!KD36*1.28+SUM('Samlet hovedstaden -alle værker'!KD37:KD41) -> 4.212058647 | KC29: ='Samlet hovedstaden -alle værker'!KE36*1.28+SUM('Samlet hovedstaden -alle værker'!KE37:KE41) -> 10.77717466 | KD29: ='Samlet hovedstaden -alle værker'!KF36*1.28+SUM('Samlet hovedstaden -alle værker'!KF37:KF41) -> 1.269620983 | KE29: ='Samlet hovedstaden -alle værker'!KG36*1.28+SUM('Samlet hovedstaden -alle værker'!KG37:KG41) -> 5.050915041 | KF29: ='Samlet hovedstaden -alle værker'!KH36*1.28+SUM('Samlet hovedstaden -alle værker'!KH37:KH41) -> 1.45814994 | KG29: ='Samlet hovedstaden -alle værker'!KI36*1.28+SUM('Samlet hovedstaden -alle værker'!KI37:KI41) -> 2.708986046 | KH29: ='Samlet hovedstaden -alle værker'!KJ36*1.28+SUM('Samlet hovedstaden -alle værker'!KJ37:KJ41) -> 9.927711808 | KI29: ='Samlet hovedstaden -alle værker'!KK36*1.28+SUM('Samlet hovedstaden -alle værker'!KK37:KK41) -> 2.343282619 | KJ29: ='Samlet hovedstaden -alle værker'!KL36*1.28+SUM('Samlet hovedstaden -alle værker'!KL37:KL41) -> 10.57858169 | KK29: ='Samlet hovedstaden -alle værker'!KM36*1.28+SUM('Samlet hovedstaden -alle værker'!KM37:KM41) -> 39.71342914 | KL29: ='Samlet hovedstaden -alle værker'!KN36*1.28+SUM('Samlet hovedstaden -alle værker'!KN37:KN41) -> 17.16036794 | KM29: ='Samlet hovedstaden -alle værker'!KO36*1.28+SUM('Samlet hovedstaden -alle værker'!KO37:KO41) -> 1.950477313 | KN29: ='Samlet hovedstaden -alle værker'!KP36*1.28+SUM('Samlet hovedstaden -alle værker'!KP37:KP41) -> 4.212058647 | KO29: ='Samlet hovedstaden -alle værker'!KQ36*1.28+SUM('Samlet hovedstaden -alle værker'!KQ37:KQ41) -> 10.77717466 | KP29: ='Samlet hovedstaden -alle værker'!KR36*1.28+SUM('Samlet hovedstaden -alle værker'!KR37:KR41) -> 1.269620983 | KQ29: ='Samlet hovedstaden -alle værker'!KS36*1.28+SUM('Samlet hovedstaden -alle værker'!KS37:KS41) -> 5.050915041 | KR29: ='Samlet hovedstaden -alle værker'!KT36*1.28+SUM('Samlet hovedstaden -alle værker'!KT37:KT41) -> 1.45814994 | KS29: ='Samlet hovedstaden -alle værker'!KU36*1.28+SUM('Samlet hovedstaden -alle værker'!KU37:KU41) -> 2.708986046 | KT29: ='Samlet hovedstaden -alle værker'!KV36*1.28+SUM('Samlet hovedstaden -alle værker'!KV37:KV41) -> 9.927711808 | KU29: ='Samlet hovedstaden -alle værker'!KW36*1.28+SUM('Samlet hovedstaden -alle værker'!KW37:KW41) -> 2.343282619 | KV29: ='Samlet hovedstaden -alle værker'!KX36*1.28+SUM('Samlet hovedstaden -alle værker'!KX37:KX41) -> 10.57858169 | KW29: ='Samlet hovedstaden -alle værker'!KY36*1.28+SUM('Samlet hovedstaden -alle værker'!KY37:KY41) -> 39.71342914 | KX29: ='Samlet hovedstaden -alle værker'!KZ36*1.28+SUM('Samlet hovedstaden -alle værker'!KZ37:KZ41) -> 17.16036794 | KY29: ='Samlet hovedstaden -alle værker'!LA36*1.28+SUM('Samlet hovedstaden -alle værker'!LA37:LA41) -> 1.950477313 | KZ29: ='Samlet hovedstaden -alle værker'!LB36*1.28+SUM('Samlet hovedstaden -alle værker'!LB37:LB41) -> 4.212058647 | LA29: ='Samlet hovedstaden -alle værker'!LC36*1.28+SUM('Samlet hovedstaden -alle værker'!LC37:LC41) -> 10.77717466 | LB29: ='Samlet hovedstaden -alle værker'!LD36*1.28+SUM('Samlet hovedstaden -alle værker'!LD37:LD41) -> 1.269620983 | LC29: ='Samlet hovedstaden -alle værker'!LE36*1.28+SUM('Samlet hovedstaden -alle værker'!LE37:LE41) -> 5.050915041 | LD29: ='Samlet hovedstaden -alle værker'!LF36*1.28+SUM('Samlet hovedstaden -alle værker'!LF37:LF41) -> 1.45814994 | LE29: ='Samlet hovedstaden -alle værker'!LG36*1.28+SUM('Samlet hovedstaden -alle værker'!LG37:LG41) -> 2.708986046 | LF29: ='Samlet hovedstaden -alle værker'!LH36*1.28+SUM('Samlet hovedstaden -alle værker'!LH37:LH41) -> 9.927711808 | LG29: ='Samlet hovedstaden -alle værker'!LI36*1.28+SUM('Samlet hovedstaden -alle værker'!LI37:LI41) -> 2.343282619 | LH29: ='Samlet hovedstaden -alle værker'!LJ36*1.28+SUM('Samlet hovedstaden -alle værker'!LJ37:LJ41) -> 10.57858169 | LI29: ='Samlet hovedstaden -alle værker'!LK36*1.28+SUM('Samlet hovedstaden -alle værker'!LK37:LK41) -> 39.71342914 | LJ29: ='Samlet hovedstaden -alle værker'!LL36*1.28+SUM('Samlet hovedstaden -alle værker'!LL37:LL41) -> 17.16036794 | LK29: ='Samlet hovedstaden -alle værker'!LM36*1.28+SUM('Samlet hovedstaden -alle værker'!LM37:LM41) -> 1.950477313 | LL29: ='Samlet hovedstaden -alle værker'!LN36*1.28+SUM('Samlet hovedstaden -alle værker'!LN37:LN41) -> 4.212058647 | LM29: ='Samlet hovedstaden -alle værker'!LO36*1.28+SUM('Samlet hovedstaden -alle værker'!LO37:LO41) -> 10.77717466 | LN29: ='Samlet hovedstaden -alle værker'!LP36*1.28+SUM('Samlet hovedstaden -alle værker'!LP37:LP41) -> 1.269620983 | LO29: ='Samlet hovedstaden -alle værker'!LQ36*1.28+SUM('Samlet hovedstaden -alle værker'!LQ37:LQ41) -> 5.050915041 | LP29: ='Samlet hovedstaden -alle værker'!LR36*1.28+SUM('Samlet hovedstaden -alle værker'!LR37:LR41) -> 1.45814994 | LQ29: ='Samlet hovedstaden -alle værker'!LS36*1.28+SUM('Samlet hovedstaden -alle værker'!LS37:LS41) -> 2.708986046 | LR29: ='Samlet hovedstaden -alle værker'!LT36*1.28+SUM('Samlet hovedstaden -alle værker'!LT37:LT41) -> 9.927711808 | LS29: ='Samlet hovedstaden -alle værker'!LU36*1.28+SUM('Samlet hovedstaden -alle værker'!LU37:LU41) -> 2.343282619 | LT29: ='Samlet hovedstaden -alle værker'!LV36*1.28+SUM('Samlet hovedstaden -alle værker'!LV37:LV41) -> 10.57858169 | LU29: ='Samlet hovedstaden -alle værker'!LW36*1.28+SUM('Samlet hovedstaden -alle værker'!LW37:LW41) -> 39.71342914 | LV29: ='Samlet hovedstaden -alle værker'!LX36*1.28+SUM('Samlet hovedstaden -alle værker'!LX37:LX41) -> 17.16036794 | LW29: ='Samlet hovedstaden -alle værker'!LY36*1.28+SUM('Samlet hovedstaden -alle værker'!LY37:LY41) -> 1.950477313 | LX29: ='Samlet hovedstaden -alle værker'!LZ36*1.28+SUM('Samlet hovedstaden -alle værker'!LZ37:LZ41) -> 4.212058647 | LY29: ='Samlet hovedstaden -alle værker'!MA36*1.28+SUM('Samlet hovedstaden -alle værker'!MA37:MA41) -> 10.77717466 | LZ29: ='Samlet hovedstaden -alle værker'!MB36*1.28+SUM('Samlet hovedstaden -alle værker'!MB37:MB41) -> 1.269620983 | MA29: ='Samlet hovedstaden -alle værker'!MC36*1.28+SUM('Samlet hovedstaden -alle værker'!MC37:MC41) -> 5.050915041 | MB29: ='Samlet hovedstaden -alle værker'!MD36*1.28+SUM('Samlet hovedstaden -alle værker'!MD37:MD41) -> 1.45814994 | MC29: ='Samlet hovedstaden -alle værker'!ME36*1.28+SUM('Samlet hovedstaden -alle værker'!ME37:ME41) -> 2.708986046 | MD29: ='Samlet hovedstaden -alle værker'!MF36*1.28+SUM('Samlet hovedstaden -alle værker'!MF37:MF41) -> 9.927711808 | ME29: ='Samlet hovedstaden -alle værker'!MG36*1.28+SUM('Samlet hovedstaden -alle værker'!MG37:MG41) -> 2.343282619 | MF29: ='Samlet hovedstaden -alle værker'!MH36*1.28+SUM('Samlet hovedstaden -alle værker'!MH37:MH41) -> 10.57858169 | MG29: ='Samlet hovedstaden -alle værker'!MI36*1.28+SUM('Samlet hovedstaden -alle værker'!MI37:MI41) -> 39.71342914 | MH29: ='Samlet hovedstaden -alle værker'!MJ36*1.28+SUM('Samlet hovedstaden -alle værker'!MJ37:MJ41) -> 17.16036794 | MI29: ='Samlet hovedstaden -alle værker'!MK36*1.28+SUM('Samlet hovedstaden -alle værker'!MK37:MK41) -> 1.950477313 | MJ29: ='Samlet hovedstaden -alle værker'!ML36*1.28+SUM('Samlet hovedstaden -alle værker'!ML37:ML41) -> 4.212058647 | MK29: ='Samlet hovedstaden -alle værker'!MM36*1.28+SUM('Samlet hovedstaden -alle værker'!MM37:MM41) -> 10.77717466 | ML29: ='Samlet hovedstaden -alle værker'!MN36*1.28+SUM('Samlet hovedstaden -alle værker'!MN37:MN41) -> 1.269620983 | MM29: ='Samlet hovedstaden -alle værker'!MO36*1.28+SUM('Samlet hovedstaden -alle værker'!MO37:MO41) -> 5.050915041 | MN29: ='Samlet hovedstaden -alle værker'!MP36*1.28+SUM('Samlet hovedstaden -alle værker'!MP37:MP41) -> 1.45814994 | MO29: ='Samlet hovedstaden -alle værker'!MQ36*1.28+SUM('Samlet hovedstaden -alle værker'!MQ37:MQ41) -> 2.708986046 | MP29: ='Samlet hovedstaden -alle værker'!MR36*1.28+SUM('Samlet hovedstaden -alle værker'!MR37:MR41) -> 9.927711808 | MQ29: ='Samlet hovedstaden -alle værker'!MS36*1.28+SUM('Samlet hovedstaden -alle værker'!MS37:MS41) -> 2.343282619 | MR29: ='Samlet hovedstaden -alle værker'!MT36*1.28+SUM('Samlet hovedstaden -alle værker'!MT37:MT41) -> 10.57858169 | MS29: ='Samlet hovedstaden -alle værker'!MU36*1.28+SUM('Samlet hovedstaden -alle værker'!MU37:MU41) -> 39.71342914 | MT29: ='Samlet hovedstaden -alle værker'!MV36*1.28+SUM('Samlet hovedstaden -alle værker'!MV37:MV41) -> 17.16036794 | MU29: ='Samlet hovedstaden -alle værker'!MW36*1.28+SUM('Samlet hovedstaden -alle værker'!MW37:MW41) -> 1.950477313 | MV29: ='Samlet hovedstaden -alle værker'!MX36*1.28+SUM('Samlet hovedstaden -alle værker'!MX37:MX41) -> 4.212058647 | MW29: ='Samlet hovedstaden -alle værker'!MY36*1.28+SUM('Samlet hovedstaden -alle værker'!MY37:MY41) -> 10.77717466 | MX29: ='Samlet hovedstaden -alle værker'!MZ36*1.28+SUM('Samlet hovedstaden -alle værker'!MZ37:MZ41) -> 1.269620983 | MY29: ='Samlet hovedstaden -alle værker'!NA36*1.28+SUM('Samlet hovedstaden -alle værker'!NA37:NA41) -> 5.050915041 | MZ29: ='Samlet hovedstaden -alle værker'!NB36*1.28+SUM('Samlet hovedstaden -alle værker'!NB37:NB41) -> 1.45814994 | NA29: ='Samlet hovedstaden -alle værker'!NC36*1.28+SUM('Samlet hovedstaden -alle værker'!NC37:NC41) -> 2.708986046 | NB29: ='Samlet hovedstaden -alle værker'!ND36*1.28+SUM('Samlet hovedstaden -alle værker'!ND37:ND41) -> 9.927711808 | NC29: ='Samlet hovedstaden -alle værker'!NE36*1.28+SUM('Samlet hovedstaden -alle værker'!NE37:NE41) -> 2.343282619 | ND29: ='Samlet hovedstaden -alle værker'!NF36*1.28+SUM('Samlet hovedstaden -alle værker'!NF37:NF41) -> 10.57858169 | NE29: ='Samlet hovedstaden -alle værker'!NG36*1.28+SUM('Samlet hovedstaden -alle værker'!NG37:NG41) -> 39.71342914 | NF29: ='Samlet hovedstaden -alle værker'!NH36*1.28+SUM('Samlet hovedstaden -alle værker'!NH37:NH41) -> 17.16036794 | NG29: ='Samlet hovedstaden -alle værker'!NI36*1.28+SUM('Samlet hovedstaden -alle værker'!NI37:NI41) -> 1.950477313 | NH29: ='Samlet hovedstaden -alle værker'!NJ36*1.28+SUM('Samlet hovedstaden -alle værker'!NJ37:NJ41) -> 4.212058647 | NI29: ='Samlet hovedstaden -alle værker'!NK36*1.28+SUM('Samlet hovedstaden -alle værker'!NK37:NK41) -> 10.77717466 | NJ29: ='Samlet hovedstaden -alle værker'!NL36*1.28+SUM('Samlet hovedstaden -alle værker'!NL37:NL41) -> 1.269620983 | NK29: ='Samlet hovedstaden -alle værker'!NM36*1.28+SUM('Samlet hovedstaden -alle værker'!NM37:NM41) -> 5.050915041 | NL29: ='Samlet hovedstaden -alle værker'!NN36*1.28+SUM('Samlet hovedstaden -alle værker'!NN37:NN41) -> 1.45814994 | NM29: ='Samlet hovedstaden -alle værker'!NO36*1.28+SUM('Samlet hovedstaden -alle værker'!NO37:NO41) -> 2.708986046 | NN29: ='Samlet hovedstaden -alle værker'!NP36*1.28+SUM('Samlet hovedstaden -alle værker'!NP37:NP41) -> 9.927711808 | NO29: ='Samlet hovedstaden -alle værker'!NQ36*1.28+SUM('Samlet hovedstaden -alle værker'!NQ37:NQ41) -> 2.343282619 | NP29: ='Samlet hovedstaden -alle værker'!NR36*1.28+SUM('Samlet hovedstaden -alle værker'!NR37:NR41) -> 10.57858169 | NQ29: ='Samlet hovedstaden -alle værker'!NS36*1.28+SUM('Samlet hovedstaden -alle værker'!NS37:NS41) -> 39.71342914 | NR29: ='Samlet hovedstaden -alle værker'!NT36*1.28+SUM('Samlet hovedstaden -alle værker'!NT37:NT41) -> 17.16036794 | NS29: ='Samlet hovedstaden -alle værker'!NU36*1.28+SUM('Samlet hovedstaden -alle værker'!NU37:NU41) -> 1.950477313 | NT29: ='Samlet hovedstaden -alle værker'!NV36*1.28+SUM('Samlet hovedstaden -alle værker'!NV37:NV41) -> 4.212058647 | NU29: ='Samlet hovedstaden -alle værker'!NW36*1.28+SUM('Samlet hovedstaden -alle værker'!NW37:NW41) -> 10.77717466 | NV29: ='Samlet hovedstaden -alle værker'!NX36*1.28+SUM('Samlet hovedstaden -alle værker'!NX37:NX41) -> 1.269620983 | NW29: ='Samlet hovedstaden -alle værker'!NY36*1.28+SUM('Samlet hovedstaden -alle værker'!NY37:NY41) -> 5.050915041 | NX29: ='Samlet hovedstaden -alle værker'!NZ36*1.28+SUM('Samlet hovedstaden -alle værker'!NZ37:NZ41) -> 1.45814994 | NY29: ='Samlet hovedstaden -alle værker'!OA36*1.28+SUM('Samlet hovedstaden -alle værker'!OA37:OA41) -> 2.708986046 | NZ29: ='Samlet hovedstaden -alle værker'!OB36*1.28+SUM('Samlet hovedstaden -alle værker'!OB37:OB41) -> 9.927711808 | OA29: ='Samlet hovedstaden -alle værker'!OC36*1.28+SUM('Samlet hovedstaden -alle værker'!OC37:OC41) -> 2.343282619 | OB29: ='Samlet hovedstaden -alle værker'!OD36*1.28+SUM('Samlet hovedstaden -alle værker'!OD37:OD41) -> 10.57858169 | OC29: ='Samlet hovedstaden -alle værker'!OE36*1.28+SUM('Samlet hovedstaden -alle værker'!OE37:OE41) -> 39.71342914 | OD29: ='Samlet hovedstaden -alle værker'!OF36*1.28+SUM('Samlet hovedstaden -alle værker'!OF37:OF41) -> 17.16036794 | OE29: ='Samlet hovedstaden -alle værker'!OG36*1.28+SUM('Samlet hovedstaden -alle værker'!OG37:OG41) -> 1.950477313 | OF29: ='Samlet hovedstaden -alle værker'!OH36*1.28+SUM('Samlet hovedstaden -alle værker'!OH37:OH41) -> 4.212058647 | OG29: ='Samlet hovedstaden -alle værker'!OI36*1.28+SUM('Samlet hovedstaden -alle værker'!OI37:OI41) -> 10.77717466 | OH29: ='Samlet hovedstaden -alle værker'!OJ36*1.28+SUM('Samlet hovedstaden -alle værker'!OJ37:OJ41) -> 1.269620983 | OI29: ='Samlet hovedstaden -alle værker'!OK36*1.28+SUM('Samlet hovedstaden -alle værker'!OK37:OK41) -> 5.050915041 | OJ29: ='Samlet hovedstaden -alle værker'!OL36*1.28+SUM('Samlet hovedstaden -alle værker'!OL37:OL41) -> 1.45814994 | OK29: ='Samlet hovedstaden -alle værker'!OM36*1.28+SUM('Samlet hovedstaden -alle værker'!OM37:OM41) -> 2.708986046 | OL29: ='Samlet hovedstaden -alle værker'!ON36*1.28+SUM('Samlet hovedstaden -alle værker'!ON37:ON41) -> 9.927711808 | OM29: ='Samlet hovedstaden -alle værker'!OO36*1.28+SUM('Samlet hovedstaden -alle værker'!OO37:OO41) -> 2.343282619 | ON29: ='Samlet hovedstaden -alle værker'!OP36*1.28+SUM('Samlet hovedstaden -alle værker'!OP37:OP41) -> 10.57858169 | OO29: ='Samlet hovedstaden -alle værker'!OQ36*1.28+SUM('Samlet hovedstaden -alle værker'!OQ37:OQ41) -> 39.71342914 | OP29: ='Samlet hovedstaden -alle værker'!OR36*1.28+SUM('Samlet hovedstaden -alle værker'!OR37:OR41) -> 17.16036794 | OQ29: ='Samlet hovedstaden -alle værker'!OS36*1.28+SUM('Samlet hovedstaden -alle værker'!OS37:OS41) -> 1.950477313 | OR29: ='Samlet hovedstaden -alle værker'!OT36*1.28+SUM('Samlet hovedstaden -alle værker'!OT37:OT41) -> 4.212058647 | OS29: ='Samlet hovedstaden -alle værker'!OU36*1.28+SUM('Samlet hovedstaden -alle værker'!OU37:OU41) -> 10.77717466 | OT29: ='Samlet hovedstaden -alle værker'!OV36*1.28+SUM('Samlet hovedstaden -alle værker'!OV37:OV41) -> 1.269620983
D30: Total, produktion | F30: 77.27800545 | G30: =SUM(G26:G29) -> 61.44255633 | H30: =SUM(H26:H29) -> 62.35343671 | I30: =SUM(I26:I29) -> -13.63052356 | J30: 54.14598522 | K30: 55.89784847 | L30: 59.1111472 | M30: 60.71953168 | N30: 63.67325937 | O30: 66.85168636 | P30: 72.66478637 | Q30: 81.33111767 | R30: =SUM(R26:R29) -> 81.86944665 | S30: 80.17249141 | T30: 79.82097152 | U30: 95.37290534 | V30: 96.59595785 | W30: 95.52545722 | X30: 94.42715423 | Y30: 93.47723975 | Z30: 92.60252816 | AA30: =SUM(AA26:AA29) -> 91.83746434 | AB30: =SUM(AB26:AB29) -> 91.83746434 | AC30: 91.83746434 | AD30: 91.83746434 | AE30: =SUM(AE26:AE29) -> 91.83746434 | AF30: 91.83746434 | AG30: 91.83746434 | AH30: 91.83746434 | AI30: 91.83746434 | AJ30: 91.83746434 | AK30: 91.83746434 | AM30: =SUM(AM26:AM29) -> 88.22932391 | AN30: =SUM(AN26:AN29) -> 86.98846624 | AO30: 81.7226896 | AP30: 67.64952314 | AQ30: 40.58239505 | AR30: 32.70521495 | AS30: 17.4343297 | AT30: 44.93718621 | AU30: 39.04956297 | AV30: 45.76293558 | AW30: 77.66088607 | AX30: 99.21763367 | AY30: 93.06243524 | AZ30: 89.80832059 | BA30: 81.673514 | BB30: 65.36931111 | BC30: 38.8655542 | BD30: 26.35291654 | BE30: 12.14280458 | BF30: 43.81942793 | BG30: 34.52867763 | BH30: 45.56954453 | BI30: 75.53986832 | BJ30: 104.5207372 | BK30: 97.89554657 | BL30: 92.62817494 | BM30: 81.6243384 | BN30: 63.08909907 | BO30: 37.14871336 | BP30: 20.00061812 | BQ30: 6.851279463 | BR30: 42.70166965 | BS30: 30.00779228 | BT30: 45.37615348 | BU30: 73.41885058 | BV30: 109.8238408 | BW30: 102.7286579 | BX30: 95.44802929 | BY30: 81.5751628 | BZ30: 60.80888704 | CA30: 35.43187251 | CB30: 13.64831971 | CC30: 1.559754344 | CD30: 41.58391137 | CE30: 25.48690694 | CF30: 45.18276243 | CG30: 71.29783283 | CH30: 115.1269444 | CI30: 107.5617692 | CJ30: 98.26788364 | CK30: 81.52598721 | CL30: 58.528675 | CM30: 33.71503167 | CN30: 7.296021297 | CO30: -3.731770775 | CP30: 40.46615309 | CQ30: 20.96602159 | CR30: 44.98937138 | CS30: 69.17681509 | CT30: 120.4300479 | CU30: 112.3948805 | CV30: 101.087738 | CW30: 81.47681161 | CX30: 56.24846297 | CY30: 31.99819082 | CZ30: =SUM(CZ26:CZ29) -> 0.943722884 | DA30: -9.023295894 | DB30: 39.34839481 | DC30: 16.44513624 | DD30: 44.79598033 | DE30: 67.05579734 | DF30: 125.7331515 | DG30: 116.4810809 | DH30: 104.2101761 | DI30: 85.11379778 | DJ30: 61.07847823 | DK30: 38.72105558 | DL30: 6.961170959 | DM30: -3.262697259 | DN30: 43.8571816 | DO30: 21.64314387 | DP30: 51.44031365 | DQ30: 72.66705203 | DR30: 126.4508465 | DS30: 120.5672812 | DT30: 107.3326142 | DU30: 88.75078395 | DV30: 65.90849349 | DW30: 45.44392034 | DX30: 12.97861903 | DY30: 2.497901376 | DZ30: 48.36596838 | EA30: 26.84115149 | EB30: 58.08464698 | EC30: 78.27830672 | ED30: 127.1685415 | EE30: 124.6534815 | EF30: 110.4550523 | EG30: 92.38777012 | EH30: 70.73850875 | EI30: 52.1667851 | EJ30: 18.99606711 | EK30: 8.258500011 | EL30: 52.87475517 | EM30: 32.03915912 | EN30: 64.7289803 | EO30: 83.88956141 | EP30: 127.8862365 | EQ30: 128.7396818 | ER30: 113.5774905 | ES30: 96.02475629 | ET30: 75.568524 | EU30: 58.88964986 | EV30: 25.01351518 | EW30: 14.01909865 | EX30: 57.38354196 | EY30: 37.23716674 | EZ30: 71.37331363 | FA30: 89.5008161 | FB30: 128.6039316 | FC30: 132.8258821 | FD30: 116.6999286 | FE30: 99.66174246 | FF30: 80.39853926 | FG30: 65.61251462 | FH30: 31.03096326 | FI30: 19.77969728 | FJ30: 61.89232875 | FK30: 42.43517437 | FL30: =SUM(FL26:FL29) -> 78.01764695 | FM30: 95.11207079 | FN30: 129.3216266 | FO30: 134.2392959 | FP30: 110.7192761 | FQ30: 99.6169592 | FR30: 79.07852924 | FS30: 64.86446449 | FT30: 29.90095923 | FU30: 18.66286739 | FV30: 64.0022077 | FW30: 43.42235522 | FX30: 80.09664876 | FY30: 95.59238307 | FZ30: 132.5914996 | GA30: 136.0484637 | GB30: 120.2350106 | GC30: 101.4522067 | GD30: 89.32115421 | GE30: 60.5987587 | GF30: 28.7123643 | GG30: 20.30352607 | GH30: 54.49548282 | GI30: 31.12758818 | GJ30: 67.81637428 | GK30: 95.39180236 | GL30: 132.9807972 | GM30: 140.0775376 | GN30: 120.6316557 | GO30: 95.95190732 | GP30: 89.53283937 | GQ30: 56.67343568 | GR30: 22.84396581 | GS30: 15.90187695 | GT30: 57.01296974 | GU30: 28.457073 | GV30: 67.29108107 | GW30: 95.40449277 | GX30: 135.7690681 | GY30: 186.981122 | GZ30: 163.66216 | HA30: 118.2981019 | HB30: 85.78129542 | HC30: 56.57990258 | HD30: 22.21323309 | HE30: 16.34424208 | HF30: 62.36541405 | HG30: 28.30592059 | HH30: 72.35748837 | HI30: 118.3251141 | HJ30: 160.3382314 | HK30: 186.2417057 | HL30: 160.3672462 | HM30: 114.8576062 | HN30: 83.60065529 | HO30: 60.48786896 | HP30: 23.43865549 | HQ30: 14.79527428 | HR30: 53.99398859 | HS30: 17.45464243 | HT30: 73.33628611 | HU30: 119.4527929 | HV30: 158.8171103 | HW30: 182.0467992 | HX30: =SUM(HX26:HX29) -> 158.4180728 | HY30: 113.4384877 | HZ30: 82.11326075 | IA30: 60.42040793 | IB30: 26.78717106 | IC30: 18.42400124 | ID30: 55.00565839 | IE30: 20.85219272 | IF30: 71.97766432 | IG30: 117.7172784 | IH30: 157.4898115 | II30: 177.8518927 | IJ30: 156.4688995 | IK30: 112.0193693 | IL30: 80.62586621 | IM30: 60.3529469 | IN30: 30.13568663 | IO30: 22.05272821 | IP30: 56.0173282 | IQ30: 24.24974301 | IR30: 70.61904253 | IS30: 115.9817638 | IT30: 156.1625128 | IU30: 173.6569862 | IV30: 154.5197261 | IW30: 110.6002509 | IX30: 79.13847167 | IY30: 60.28548588 | IZ30: 33.48420219 | JA30: 25.68145518 | JB30: 57.02899801 | JC30: 27.64729331 | JD30: 69.26042073 | JE30: 114.2462492 | JF30: 154.8352141 | JG30: 169.4620797 | JH30: 152.5705528 | JI30: 109.1811324 | JJ30: 77.65107713 | JK30: 60.21802485 | JL30: 36.83271776 | JM30: 29.31018214 | JN30: 58.04066781 | JO30: 31.0448436 | JP30: 67.90179894 | JQ30: 112.5107346 | JR30: 153.5079154 | JS30: 165.2671733 | JT30: 150.6213794 | JU30: 107.762014 | JV30: 76.16368259 | JW30: 60.15056382 | JX30: 40.18123333 | JY30: 32.93890911 | JZ30: 59.05233762 | KA30: 34.44239389 | KB30: 66.54317715 | KC30: 110.77522 | KD30: 152.1806166 | KE30: 165.2671733 | KF30: 150.6213794 | KG30: 107.762014 | KH30: 76.16368259 | KI30: 60.15056382 | KJ30: =SUM(KJ26:KJ29) -> 40.18123333 | KK30: 32.93890911 | KL30: 59.05233762 | KM30: 34.44239389 | KN30: 66.54317715 | KO30: 110.77522 | KP30: 152.1806166 | KQ30: 165.2671733 | KR30: 150.6213794 | KS30: 107.762014 | KT30: 76.16368259 | KU30: 60.15056382 | KV30: 40.18123333 | KW30: 32.93890911 | KX30: 59.05233762 | KY30: 34.44239389 | KZ30: 66.54317715 | LA30: 110.77522 | LB30: 152.1806166 | LC30: 165.2671733 | LD30: 150.6213794 | LE30: 107.762014 | LF30: 76.16368259 | LG30: 60.15056382 | LH30: 40.18123333 | LI30: 32.93890911 | LJ30: 59.05233762 | LK30: 34.44239389 | LL30: 66.54317715 | LM30: 110.77522 | LN30: 152.1806166 | LO30: 165.2671733 | LP30: 150.6213794 | LQ30: 107.762014 | LR30: 76.16368259 | LS30: 60.15056382 | LT30: 40.18123333 | LU30: 32.93890911 | LV30: 59.05233762 | LW30: 34.44239389 | LX30: 66.54317715 | LY30: 110.77522 | LZ30: 152.1806166 | MA30: 165.2671733 | MB30: 150.6213794 | MC30: 107.762014 | MD30: 76.16368259 | ME30: 60.15056382 | MF30: 40.18123333 | MG30: 32.93890911 | MH30: 59.05233762 | MI30: 34.44239389 | MJ30: 66.54317715 | MK30: 110.77522 | ML30: 152.1806166 | MM30: 165.2671733 | MN30: 150.6213794 | MO30: 107.762014 | MP30: 76.16368259 | MQ30: 60.15056382 | MR30: 40.18123333 | MS30: 32.93890911 | MT30: 59.05233762 | MU30: 34.44239389 | MV30: =SUM(MV26:MV29) -> 66.54317715 | MW30: 110.77522 | MX30: 152.1806166 | MY30: 165.2671733 | MZ30: 150.6213794 | NA30: 107.762014 | NB30: 76.16368259 | NC30: 60.15056382 | ND30: 40.18123333 | NE30: 32.93890911 | NF30: 59.05233762 | NG30: 34.44239389 | NH30: 66.54317715 | NI30: 110.77522 | NJ30: 152.1806166 | NK30: 165.2671733 | NL30: 150.6213794 | NM30: 107.762014 | NN30: 76.16368259 | NO30: 60.15056382 | NP30: 40.18123333 | NQ30: 32.93890911 | NR30: 59.05233762 | NS30: 34.44239389 | NT30: 66.54317715 | NU30: 110.77522 | NV30: 152.1806166 | NW30: 165.2671733 | NX30: 150.6213794 | NY30: 107.762014 | NZ30: 76.16368259 | OA30: 60.15056382 | OB30: 40.18123333 | OC30: 32.93890911 | OD30: 59.05233762 | OE30: 34.44239389 | OF30: 66.54317715 | OG30: 110.77522 | OH30: 152.1806166 | OI30: 165.2671733 | OJ30: 150.6213794 | OK30: 107.762014 | OL30: 76.16368259 | OM30: 60.15056382 | ON30: 40.18123333 | OO30: 32.93890911 | OP30: 59.05233762 | OQ30: 34.44239389 | OR30: 66.54317715 | OS30: 110.77522 | OT30: 152.1806166
D31: Varmetransmissionsomkostning | F31: 2.49862206 | G31: =G47*1.28 -> 2.287747635 | H31: =H47*1.28 -> 2.252852228 | I31: =I47*1.28 -> 5.308036518 | J31: 3.218982542 | K31: 2.867522203 | L31: 2.798544006 | M31: 2.765697245 | N31: 2.693434372 | O31: 2.624456175 | P31: 2.48649978 | Q31: 2.276280512 | R31: 2.276280512 | S31: 2.276280512 | T31: 2.276280512 | U31: 2.276280512 | V31: 2.276280512 | W31: 2.276280512 | X31: 2.276280512 | Y31: 2.276280512 | Z31: 2.276280512 | AA31: =AA47*1.28 -> 2.276280512 | AB31: =AB47*1.28 -> 2.276280512 | AC31: 2.276280512 | AD31: 2.276280512 | AE31: =AE47*1.28 -> 2.276280512 | AF31: 2.276280512 | AG31: 2.276280512 | AH31: 2.276280512 | AI31: 2.276280512 | AJ31: 2.276280512 | AK31: 2.276280512 | AM31: =AM47*1.28 -> 2.287747635 | AN31: =AN47*1.28 -> 2.287747635 | AO31: 2.287747635 | AP31: 2.287747635 | AQ31: 2.287747635 | AR31: 2.287747635 | AS31: 2.287747635 | AT31: 2.287747635 | AU31: 2.287747635 | AV31: 2.287747635 | AW31: 2.287747635 | AX31: 2.287747635 | AY31: 2.252852228 | AZ31: 2.252852228 | BA31: 2.252852228 | BB31: 2.252852228 | BC31: 2.252852228 | BD31: 2.252852228 | BE31: 2.252852228 | BF31: 2.252852228 | BG31: 2.252852228 | BH31: 2.252852228 | BI31: 2.252852228 | BJ31: 2.252852228 | BK31: 5.308036518 | BL31: 5.308036518 | BM31: 5.308036518 | BN31: 5.308036518 | BO31: 5.308036518 | BP31: 5.308036518 | BQ31: 5.308036518 | BR31: 5.308036518 | BS31: 5.308036518 | BT31: 5.308036518 | BU31: 5.308036518 | BV31: 5.308036518 | BW31: 3.218982542 | BX31: 3.218982542 | BY31: 3.218982542 | BZ31: 3.218982542 | CA31: 3.218982542 | CB31: 3.218982542 | CC31: 3.218982542 | CD31: 3.218982542 | CE31: 3.218982542 | CF31: 3.218982542 | CG31: 3.218982542 | CH31: 3.218982542 | CI31: 2.867522203 | CJ31: 2.867522203 | CK31: 2.867522203 | CL31: 2.867522203 | CM31: 2.867522203 | CN31: 2.867522203 | CO31: 2.867522203 | CP31: 2.867522203 | CQ31: 2.867522203 | CR31: 2.867522203 | CS31: 2.867522203 | CT31: 2.867522203 | CU31: 2.798544006 | CV31: 2.798544006 | CW31: 2.798544006 | CX31: 2.798544006 | CY31: 2.798544006 | CZ31: =CZ47*1.28 -> 2.798544006 | DA31: 2.798544006 | DB31: 2.798544006 | DC31: 2.798544006 | DD31: 2.798544006 | DE31: 2.798544006 | DF31: 2.798544006 | DG31: 2.765697245 | DH31: 2.765697245 | DI31: 2.765697245 | DJ31: 2.765697245 | DK31: 2.765697245 | DL31: 2.765697245 | DM31: 2.765697245 | DN31: 2.765697245 | DO31: 2.765697245 | DP31: 2.765697245 | DQ31: 2.765697245 | DR31: 2.765697245 | DS31: 2.693434372 | DT31: 2.693434372 | DU31: 2.693434372 | DV31: 2.693434372 | DW31: 2.693434372 | DX31: 2.693434372 | DY31: 2.693434372 | DZ31: 2.693434372 | EA31: 2.693434372 | EB31: 2.693434372 | EC31: 2.693434372 | ED31: 2.693434372 | EE31: 2.624456175 | EF31: 2.624456175 | EG31: 2.624456175 | EH31: 2.624456175 | EI31: 2.624456175 | EJ31: 2.624456175 | EK31: 2.624456175 | EL31: 2.624456175 | EM31: 2.624456175 | EN31: 2.624456175 | EO31: 2.624456175 | EP31: 2.624456175 | EQ31: 2.48649978 | ER31: 2.48649978 | ES31: 2.48649978 | ET31: 2.48649978 | EU31: 2.48649978 | EV31: 2.48649978 | EW31: 2.48649978 | EX31: 2.48649978 | EY31: 2.48649978 | EZ31: 2.48649978 | FA31: 2.48649978 | FB31: 2.48649978 | FC31: 2.276280512 | FD31: 2.276280512 | FE31: 2.276280512 | FF31: 2.276280512 | FG31: 2.276280512 | FH31: 2.276280512 | FI31: 2.276280512 | FJ31: 2.276280512 | FK31: 2.276280512 | FL31: =FL47*1.28 -> 2.276280512 | FM31: 2.276280512 | FN31: 2.276280512 | FO31: 2.276280512 | FP31: 2.276280512 | FQ31: 2.276280512 | FR31: 2.276280512 | FS31: 2.276280512 | FT31: 2.276280512 | FU31: 2.276280512 | FV31: 2.276280512 | FW31: 2.276280512 | FX31: 2.276280512 | FY31: 2.276280512 | FZ31: 2.276280512 | GA31: 2.276280512 | GB31: 2.276280512 | GC31: 2.276280512 | GD31: 2.276280512 | GE31: 2.276280512 | GF31: 2.276280512 | GG31: 2.276280512 | GH31: 2.276280512 | GI31: 2.276280512 | GJ31: 2.276280512 | GK31: 2.276280512 | GL31: 2.276280512 | GM31: 2.276280512 | GN31: 2.276280512 | GO31: 2.276280512 | GP31: 2.276280512 | GQ31: 2.276280512 | GR31: 2.276280512 | GS31: 2.276280512 | GT31: 2.276280512 | GU31: 2.276280512 | GV31: 2.276280512 | GW31: 2.276280512 | GX31: 2.276280512 | GY31: 2.276280512 | GZ31: 2.276280512 | HA31: 2.276280512 | HB31: 2.276280512 | HC31: 2.276280512 | HD31: 2.276280512 | HE31: 2.276280512 | HF31: 2.276280512 | HG31: 2.276280512 | HH31: 2.276280512 | HI31: 2.276280512 | HJ31: 2.276280512 | HK31: 2.276280512 | HL31: 2.276280512 | HM31: 2.276280512 | HN31: 2.276280512 | HO31: 2.276280512 | HP31: 2.276280512 | HQ31: 2.276280512 | HR31: 2.276280512 | HS31: 2.276280512 | HT31: 2.276280512 | HU31: 2.276280512 | HV31: 2.276280512 | HW31: 2.276280512 | HX31: =HX47*1.28 -> 2.276280512 | HY31: 2.276280512 | HZ31: 2.276280512 | IA31: 2.276280512 | IB31: 2.276280512 | IC31: 2.276280512 | ID31: 2.276280512 | IE31: 2.276280512 | IF31: 2.276280512 | IG31: 2.276280512 | IH31: 2.276280512 | II31: 2.276280512 | IJ31: 2.276280512 | IK31: 2.276280512 | IL31: 2.276280512 | IM31: 2.276280512 | IN31: 2.276280512 | IO31: 2.276280512 | IP31: 2.276280512 | IQ31: 2.276280512 | IR31: 2.276280512 | IS31: 2.276280512 | IT31: 2.276280512 | IU31: 2.276280512 | IV31: 2.276280512 | IW31: 2.276280512 | IX31: 2.276280512 | IY31: 2.276280512 | IZ31: 2.276280512 | JA31: 2.276280512 | JB31: 2.276280512 | JC31: 2.276280512 | JD31: 2.276280512 | JE31: 2.276280512 | JF31: 2.276280512 | JG31: 2.276280512 | JH31: 2.276280512 | JI31: 2.276280512 | JJ31: 2.276280512 | JK31: 2.276280512 | JL31: 2.276280512 | JM31: 2.276280512 | JN31: 2.276280512 | JO31: 2.276280512 | JP31: 2.276280512 | JQ31: 2.276280512 | JR31: 2.276280512 | JS31: 2.276280512 | JT31: 2.276280512 | JU31: 2.276280512 | JV31: 2.276280512 | JW31: 2.276280512 | JX31: 2.276280512 | JY31: 2.276280512 | JZ31: 2.276280512 | KA31: 2.276280512 | KB31: 2.276280512 | KC31: 2.276280512 | KD31: 2.276280512 | KE31: 2.276280512 | KF31: 2.276280512 | KG31: 2.276280512 | KH31: 2.276280512 | KI31: 2.276280512 | KJ31: =KJ47*1.28 -> 2.276280512 | KK31: 2.276280512 | KL31: 2.276280512 | KM31: 2.276280512 | KN31: 2.276280512 | KO31: 2.276280512 | KP31: 2.276280512 | KQ31: 2.276280512 | KR31: 2.276280512 | KS31: 2.276280512 | KT31: 2.276280512 | KU31: 2.276280512 | KV31: 2.276280512 | KW31: 2.276280512 | KX31: 2.276280512 | KY31: 2.276280512 | KZ31: 2.276280512 | LA31: 2.276280512 | LB31: 2.276280512 | LC31: 2.276280512 | LD31: 2.276280512 | LE31: 2.276280512 | LF31: 2.276280512 | LG31: 2.276280512 | LH31: 2.276280512 | LI31: 2.276280512 | LJ31: 2.276280512 | LK31: 2.276280512 | LL31: 2.276280512 | LM31: 2.276280512 | LN31: 2.276280512 | LO31: 2.276280512 | LP31: 2.276280512 | LQ31: 2.276280512 | LR31: 2.276280512 | LS31: 2.276280512 | LT31: 2.276280512 | LU31: 2.276280512 | LV31: 2.276280512 | LW31: 2.276280512 | LX31: 2.276280512 | LY31: 2.276280512 | LZ31: 2.276280512 | MA31: 2.276280512 | MB31: 2.276280512 | MC31: 2.276280512 | MD31: 2.276280512 | ME31: 2.276280512 | MF31: 2.276280512 | MG31: 2.276280512 | MH31: 2.276280512 | MI31: 2.276280512 | MJ31: 2.276280512 | MK31: 2.276280512 | ML31: 2.276280512 | MM31: 2.276280512 | MN31: 2.276280512 | MO31: 2.276280512 | MP31: 2.276280512 | MQ31: 2.276280512 | MR31: 2.276280512 | MS31: 2.276280512 | MT31: 2.276280512 | MU31: 2.276280512 | MV31: =MV47*1.28 -> 2.276280512 | MW31: 2.276280512 | MX31: 2.276280512 | MY31: 2.276280512 | MZ31: 2.276280512 | NA31: 2.276280512 | NB31: 2.276280512 | NC31: 2.276280512 | ND31: 2.276280512 | NE31: 2.276280512 | NF31: 2.276280512 | NG31: 2.276280512 | NH31: 2.276280512 | NI31: 2.276280512 | NJ31: 2.276280512 | NK31: 2.276280512 | NL31: 2.276280512 | NM31: 2.276280512 | NN31: 2.276280512 | NO31: 2.276280512 | NP31: 2.276280512 | NQ31: 2.276280512 | NR31: 2.276280512 | NS31: 2.276280512 | NT31: 2.276280512 | NU31: 2.276280512 | NV31: 2.276280512 | NW31: 2.276280512 | NX31: 2.276280512 | NY31: 2.276280512 | NZ31: 2.276280512 | OA31: 2.276280512 | OB31: 2.276280512 | OC31: 2.276280512 | OD31: 2.276280512 | OE31: 2.276280512 | OF31: 2.276280512 | OG31: 2.276280512 | OH31: 2.276280512 | OI31: 2.276280512 | OJ31: 2.276280512 | OK31: 2.276280512 | OL31: 2.276280512 | OM31: 2.276280512 | ON31: 2.276280512 | OO31: 2.276280512 | OP31: 2.276280512 | OQ31: 2.276280512 | OR31: 2.276280512 | OS31: 2.276280512 | OT31: 2.276280512
D32: Samfundsøkonomiske pris i alt (uden afgifter) | F32: 79.77662751 | G32: =SUM(G30:G31) -> 63.73030396 | H32: =SUM(H30:H31) -> 64.60628894 | I32: =SUM(I30:I31) -> -8.322487043 | J32: 57.36496777 | K32: 58.76537067 | L32: 61.90969121 | M32: 63.48522892 | N32: 66.36669374 | O32: 69.47614254 | P32: 75.15128615 | Q32: 83.60739818 | R32: =SUM(R30:R31) -> 84.14572716 | S32: 82.44877192 | T32: 82.09725203 | U32: 97.64918585 | V32: 98.87223836 | W32: 97.80173774 | X32: 96.70343475 | Y32: 95.75352026 | Z32: 94.87880867 | AA32: =SUM(AA30:AA31) -> 94.11374485 | AB32: =SUM(AB30:AB31) -> 94.11374485 | AC32: 94.11374485 | AD32: 94.11374485 | AE32: =SUM(AE30:AE31) -> 94.11374485 | AF32: 94.11374485 | AG32: 94.11374485 | AH32: 94.11374485 | AI32: 94.11374485 | AJ32: 94.11374485 | AK32: 94.11374485 | AM32: =SUM(AM30:AM31) -> 90.51707155 | AN32: =SUM(AN30:AN31) -> 89.27621387 | AO32: 84.01043723 | AP32: 69.93727078 | AQ32: 42.87014268 | AR32: 34.99296259 | AS32: 19.72207734 | AT32: 47.22493384 | AU32: 41.33731061 | AV32: 48.05068322 | AW32: 79.9486337 | AX32: 101.5053813 | AY32: 95.31528747 | AZ32: 92.06117281 | BA32: 83.92636623 | BB32: 67.62216334 | BC32: 41.11840643 | BD32: 28.60576876 | BE32: 14.39565681 | BF32: 46.07228015 | BG32: 36.78152986 | BH32: 47.82239676 | BI32: 77.79272055 | BJ32: 106.7735895 | BK32: 103.2035831 | BL32: 97.93621145 | BM32: 86.93237492 | BN32: 68.39713559 | BO32: 42.45674987 | BP32: 25.30865464 | BQ32: 12.15931598 | BR32: 48.00970616 | BS32: 35.3158288 | BT32: 50.68419 | BU32: 78.7268871 | BV32: 115.1318773 | BW32: 105.9476404 | BX32: 98.66701183 | BY32: 84.79414535 | BZ32: 64.02786958 | CA32: 38.65085505 | CB32: 16.86730225 | CC32: 4.778736886 | CD32: 44.80289391 | CE32: 28.70588948 | CF32: 48.40174497 | CG32: 74.51681538 | CH32: 118.3459269 | CI32: 110.4292914 | CJ32: 101.1354058 | CK32: 84.39350941 | CL32: 61.39619721 | CM32: 36.58255387 | CN32: 10.1635435 | CO32: -0.8642485719 | CP32: 43.33367529 | CQ32: 23.83354379 | CR32: 47.85689359 | CS32: 72.04433729 | CT32: 123.2975701 | CU32: 115.1934246 | CV32: 103.886282 | CW32: 84.27535561 | CX32: 59.04700698 | CY32: 34.79673483 | CZ32: =SUM(CZ30:CZ31) -> 3.74226689 | DA32: -6.224751888 | DB32: 42.14693881 | DC32: 19.24368025 | DD32: 47.59452434 | DE32: 69.85434135 | DF32: 128.5316955 | DG32: 119.2467781 | DH32: 106.9758733 | DI32: 87.87949502 | DJ32: 63.84417547 | DK32: 41.48675282 | DL32: 9.726868204 | DM32: -0.4970000139 | DN32: 46.62287884 | DO32: 24.40884111 | DP32: 54.2060109 | DQ32: 75.43274928 | DR32: 129.2165438 | DS32: 123.2607155 | DT32: 110.0260486 | DU32: 91.44421832 | DV32: 68.60192786 | DW32: 48.13735471 | DX32: 15.67205341 | DY32: 5.191335748 | DZ32: 51.05940276 | EA32: 29.53458587 | EB32: 60.77808135 | EC32: 80.9717411 | ED32: 129.8619759 | EE32: 127.2779376 | EF32: 113.0795085 | EG32: 95.01222629 | EH32: 73.36296492 | EI32: 54.79124127 | EJ32: 21.62052328 | EK32: 10.88295619 | EL32: 55.49921135 | EM32: 34.66361529 | EN32: 67.35343648 | EO32: 86.51401759 | EP32: 130.5106927 | EQ32: 131.2261816 | ER32: 116.0639902 | ES32: 98.51125607 | ET32: 78.05502378 | EU32: 61.37614964 | EV32: 27.50001496 | EW32: 16.50559843 | EX32: 59.87004174 | EY32: 39.72366652 | EZ32: 73.85981341 | FA32: 91.98731588 | FB32: 131.0904314 | FC32: 135.1021626 | FD32: 118.9762091 | FE32: 101.938023 | FF32: 82.67481978 | FG32: 67.88879513 | FH32: 33.30724377 | FI32: 22.05597779 | FJ32: 64.16860926 | FK32: 44.71145488 | FL32: =SUM(FL30:FL31) -> 80.29392746 | FM32: 97.3883513 | FN32: 131.5979071 | FO32: 136.5155765 | FP32: 112.9955566 | FQ32: 101.8932397 | FR32: 81.35480975 | FS32: 67.140745 | FT32: 32.17723974 | FU32: 20.9391479 | FV32: 66.27848821 | FW32: 45.69863574 | FX32: 82.37292927 | FY32: 97.86866359 | FZ32: 134.8677801 | GA32: 138.3247442 | GB32: 122.5112911 | GC32: 103.7284872 | GD32: 91.59743472 | GE32: 62.87503921 | GF32: 30.98864481 | GG32: 22.57980658 | GH32: 56.77176333 | GI32: 33.40386869 | GJ32: 70.09265479 | GK32: 97.66808287 | GL32: 135.2570777 | GM32: 142.3538181 | GN32: 122.9079363 | GO32: 98.22818783 | GP32: 91.80911988 | GQ32: 58.94971619 | GR32: 25.12024632 | GS32: 18.17815746 | GT32: 59.28925025 | GU32: 30.73335351 | GV32: 69.56736158 | GW32: 97.68077328 | GX32: 138.0453486 | GY32: 189.2574025 | GZ32: 165.9384406 | HA32: 120.5743824 | HB32: 88.05757593 | HC32: 58.85618309 | HD32: 24.48951361 | HE32: 18.62052259 | HF32: 64.64169456 | HG32: 30.5822011 | HH32: 74.63376888 | HI32: 120.6013946 | HJ32: 162.6145119 | HK32: 188.5179862 | HL32: 162.6435267 | HM32: 117.1338867 | HN32: 85.8769358 | HO32: 62.76414947 | HP32: 25.714936 | HQ32: 17.07155479 | HR32: 56.2702691 | HS32: 19.73092294 | HT32: 75.61256662 | HU32: 121.7290734 | HV32: 161.0933908 | HW32: 184.3230797 | HX32: =SUM(HX30:HX31) -> 160.6943533 | HY32: 115.7147682 | HZ32: 84.38954126 | IA32: 62.69668845 | IB32: 29.06345157 | IC32: 20.70028176 | ID32: 57.2819389 | IE32: 23.12847323 | IF32: 74.25394483 | IG32: 119.9935589 | IH32: 159.7660921 | II32: 180.1281732 | IJ32: 158.74518 | IK32: 114.2956498 | IL32: 82.90214672 | IM32: 62.62922742 | IN32: 32.41196714 | IO32: 24.32900872 | IP32: 58.29360871 | IQ32: 26.52602352 | IR32: 72.89532304 | IS32: 118.2580443 | IT32: 158.4387933 | IU32: 175.9332667 | IV32: 156.7960066 | IW32: 112.8765314 | IX32: 81.41475218 | IY32: 62.56176639 | IZ32: 35.76048271 | JA32: 27.95773569 | JB32: 59.30527852 | JC32: 29.92357382 | JD32: 71.53670124 | JE32: 116.5225297 | JF32: 157.1114946 | JG32: 171.7383602 | JH32: 154.8468333 | JI32: 111.4574129 | JJ32: 79.92735764 | JK32: 62.49430536 | JL32: 39.10899827 | JM32: 31.58646266 | JN32: 60.31694832 | JO32: 33.32112411 | JP32: 70.17807945 | JQ32: 114.7870151 | JR32: 155.7841959 | JS32: 167.5434538 | JT32: 152.8976599 | JU32: 110.0382945 | JV32: 78.4399631 | JW32: 62.42684433 | JX32: 42.45751384 | JY32: 35.21518962 | JZ32: 61.32861813 | KA32: 36.7186744 | KB32: 68.81945766 | KC32: 113.0515006 | KD32: 154.4568972 | KE32: 167.5434538 | KF32: 152.8976599 | KG32: 110.0382945 | KH32: 78.4399631 | KI32: 62.42684433 | KJ32: =SUM(KJ30:KJ31) -> 42.45751384 | KK32: 35.21518962 | KL32: 61.32861813 | KM32: 36.7186744 | KN32: 68.81945766 | KO32: 113.0515006 | KP32: 154.4568972 | KQ32: 167.5434538 | KR32: 152.8976599 | KS32: 110.0382945 | KT32: 78.4399631 | KU32: 62.42684433 | KV32: 42.45751384 | KW32: 35.21518962 | KX32: 61.32861813 | KY32: 36.7186744 | KZ32: 68.81945766 | LA32: 113.0515006 | LB32: 154.4568972 | LC32: 167.5434538 | LD32: 152.8976599 | LE32: 110.0382945 | LF32: 78.4399631 | LG32: 62.42684433 | LH32: 42.45751384 | LI32: 35.21518962 | LJ32: 61.32861813 | LK32: 36.7186744 | LL32: 68.81945766 | LM32: 113.0515006 | LN32: 154.4568972 | LO32: 167.5434538 | LP32: 152.8976599 | LQ32: 110.0382945 | LR32: 78.4399631 | LS32: 62.42684433 | LT32: 42.45751384 | LU32: 35.21518962 | LV32: 61.32861813 | LW32: 36.7186744 | LX32: 68.81945766 | LY32: 113.0515006 | LZ32: 154.4568972 | MA32: 167.5434538 | MB32: 152.8976599 | MC32: 110.0382945 | MD32: 78.4399631 | ME32: 62.42684433 | MF32: 42.45751384 | MG32: 35.21518962 | MH32: 61.32861813 | MI32: 36.7186744 | MJ32: 68.81945766 | MK32: 113.0515006 | ML32: 154.4568972 | MM32: 167.5434538 | MN32: 152.8976599 | MO32: 110.0382945 | MP32: 78.4399631 | MQ32: 62.42684433 | MR32: 42.45751384 | MS32: 35.21518962 | MT32: 61.32861813 | MU32: 36.7186744 | MV32: =SUM(MV30:MV31) -> 68.81945766 | MW32: 113.0515006 | MX32: 154.4568972 | MY32: 167.5434538 | MZ32: 152.8976599 | NA32: 110.0382945 | NB32: 78.4399631 | NC32: 62.42684433 | ND32: 42.45751384 | NE32: 35.21518962 | NF32: 61.32861813 | NG32: 36.7186744 | NH32: 68.81945766 | NI32: 113.0515006 | NJ32: 154.4568972 | NK32: 167.5434538 | NL32: 152.8976599 | NM32: 110.0382945 | NN32: 78.4399631 | NO32: 62.42684433 | NP32: 42.45751384 | NQ32: 35.21518962 | NR32: 61.32861813 | NS32: 36.7186744 | NT32: 68.81945766 | NU32: 113.0515006 | NV32: 154.4568972 | NW32: 167.5434538 | NX32: 152.8976599 | NY32: 110.0382945 | NZ32: 78.4399631 | OA32: 62.42684433 | OB32: 42.45751384 | OC32: 35.21518962 | OD32: 61.32861813 | OE32: 36.7186744 | OF32: 68.81945766 | OG32: 113.0515006 | OH32: 154.4568972 | OI32: 167.5434538 | OJ32: 152.8976599 | OK32: 110.0382945 | OL32: 78.4399631 | OM32: 62.42684433 | ON32: 42.45751384 | OO32: 35.21518962 | OP32: 61.32861813 | OQ32: 36.7186744 | OR32: 68.81945766 | OS32: 113.0515006 | OT32: 154.4568972
D33: Afgifter | F33: 9.313754126 | G33: =G49 -> 11.81874165 | H33: =H49 -> 11.03880583 | I33: =I49 -> 10.36672931 | J33: 9.692517393 | K33: 9.016159886 | L33: 8.273763694 | M33: 8.111117493 | N33: 7.948470734 | O33: 7.785823418 | P33: 7.623175545 | Q33: 7.460527114 | R33: 7.284401189 | S33: 6.971927828 | T33: 7.254065527 | U33: 11.83297335 | V33: 11.02723893 | W33: 11.18373135 | X33: 11.34022436 | Y33: 11.49671799 | Z33: 11.65321222 | AA33: =AA49 -> 11.80970706 | AB33: =AB49 -> 11.80970706 | AC33: 11.80970706 | AD33: 11.80970706 | AE33: =AE49 -> 11.80970706 | AF33: 11.80970706 | AG33: 11.80970706 | AH33: 11.80970706 | AI33: 11.80970706 | AJ33: 11.80970706 | AK33: 11.80970706 | AM33: =AM49 -> 40.58370438 | AN33: =AN49 -> 27.30114916 | AO33: 8.979111928 | AP33: 2.447696854 | AQ33: 8.329177412 | AR33: 0.4973087611 | AS33: 8.346127694 | AT33: 8.51695602 | AU33: 0.1690274935 | AV33: 6.801169903 | AW33: 10.41130789 | AX33: 19.99131941 | AY33: 38.57487155 | AZ33: 25.81930136 | BA33: 8.615952895 | BB33: 3.149011642 | BC33: 8.26169834 | BD33: 0.335041203 | BE33: 7.136236426 | BF33: 7.507410648 | BG33: 0.2537894909 | BH33: 5.898035093 | BI33: 9.57900927 | BJ33: 18.68230205 | BK33: 36.56603873 | BL33: 24.33745355 | BM33: 8.252793862 | BN33: 3.85032643 | BO33: 8.194219268 | BP33: 0.1727736449 | BQ33: 5.926345157 | BR33: 6.497865276 | BS33: 0.3385514883 | BT33: 4.994900284 | BU33: 8.746710652 | BV33: 17.3732847 | BW33: 34.55720591 | BX33: 22.85560575 | BY33: 7.889634829 | BZ33: 4.551641218 | CA33: 8.126740196 | CB33: 0.01050608686 | CC33: 4.716453889 | CD33: 5.488319903 | CE33: 0.4233134857 | CF33: 4.091765475 | CG33: 7.914412033 | CH33: 16.06426734 | CI33: 32.54837308 | CJ33: 21.37375794 | CK33: 7.526475797 | CL33: 5.252956007 | CM33: 8.059261124 | CN33: -0.1517614712 | CO33: 3.506562621 | CP33: 4.478774531 | CQ33: 0.5080754831 | CR33: 3.188630666 | CS33: 7.082113415 | CT33: 14.75524998 | CU33: 30.53954026 | CV33: 19.89191014 | CW33: 7.163316764 | CX33: 5.954270795 | CY33: 7.991782052 | CZ33: =CZ49 -> -0.3140290293 | DA33: 2.296671352 | DB33: 3.469229159 | DC33: 0.5928374805 | DD33: 2.285495857 | DE33: 6.249814796 | DF33: 13.44623263 | DG33: 29.71646126 | DH33: 19.12104454 | DI33: 6.791152667 | DJ33: 6.666193934 | DK33: 7.059994318 | DL33: 0.01371406027 | DM33: 2.60710812 | DN33: 4.273293381 | DO33: 0.6226376195 | DP33: 2.227183375 | DQ33: 5.903091196 | DR33: 12.65871467 | DS33: 28.89338226 | DT33: 18.35017894 | DU33: 6.418988569 | DV33: 7.378117073 | DW33: 6.128206585 | DX33: 0.3414571498 | DY33: 2.917544888 | DZ33: 5.077357603 | EA33: 0.6524377585 | EB33: 2.168870894 | EC33: 5.556367597 | ED33: 11.8711967 | EE33: 28.07030326 | EF33: 17.57931334 | EG33: 6.046824472 | EH33: 8.090040212 | EI33: 5.196418851 | EJ33: 0.6692002393 | EK33: 3.227981657 | EL33: 5.881421825 | EM33: 0.6822378975 | EN33: 2.110558412 | EO33: 5.209643997 | EP33: 11.08367874 | EQ33: 27.24722426 | ER33: 16.80844774 | ES33: 5.674660375 | ET33: 8.801963352 | EU33: 4.264631117 | EV33: 0.9969433289 | EW33: 3.538418425 | EX33: 6.685486047 | EY33: 0.7120380365 | EZ33: 2.052245931 | FA33: 4.862920397 | FB33: 10.29616077 | FC33: 26.42414526 | FD33: 16.03758214 | FE33: 5.302496278 | FF33: 9.513886491 | FG33: 3.332843384 | FH33: 1.324686418 | FI33: 3.848855193 | FJ33: 7.489550269 | FK33: 0.7418381755 | FL33: =FL49 -> 1.99393345 | FM33: 4.516196797 | FN33: 9.508642811 | FO33: 25.0190488 | FP33: 15.68605036 | FQ33: 5.655166602 | FR33: 10.01783849 | FS33: 2.715525091 | FT33: 0.6843493315 | FU33: 4.638759849 | FV33: 7.005405939 | FW33: 0.9956503106 | FX33: 2.129316085 | FY33: 4.275077915 | FZ33: 9.224105168 | GA33: 23.12457752 | GB33: 15.888397 | GC33: 5.509089459 | GD33: 3.95346607 | GE33: 4.363650438 | GF33: -0.7986491977 | GG33: 4.95543423 | GH33: 8.5993073 | GI33: 2.635168613 | GJ33: 3.183416658 | GK33: 4.843791295 | GL33: 7.534773493 | GM33: 21.21422765 | GN33: 14.94991022 | GO33: 8.468004996 | GP33: 5.77330474 | GQ33: 3.855744905 | GR33: 1.858992187 | GS33: 3.647859142 | GT33: 6.085371303 | GU33: 3.28555616 | GV33: 3.72819852 | GW33: 5.090148775 | GX33: 9.43395623 | GY33: 40.82362665 | GZ33: 26.84639641 | HA33: 14.69662454 | HB33: 6.616723573 | HC33: 5.01267612 | HD33: 1.041259004 | HE33: 4.468917387 | HF33: 7.687950852 | HG33: 2.14776653 | HH33: 4.247105628 | HI33: 17.155088 | HJ33: 11.99660056 | HK33: 38.26243003 | HL33: 24.25534945 | HM33: 11.22852362 | HN33: 8.136043531 | HO33: 1.74425963 | HP33: 1.374832752 | HQ33: 8.229662076 | HR33: 7.791426902 | HS33: 1.104760218 | HT33: 4.403956532 | HU33: 16.14737207 | HV33: 10.5237852 | HW33: 37.24899172 | HX33: =HX49 -> 22.9460977 | HY33: 10.1994341 | HZ33: 8.164458567 | IA33: 1.758624975 | IB33: 2.399327053 | IC33: 11.42731629 | ID33: 8.420482746 | IE33: 1.057012586 | IF33: 4.348527806 | IG33: 16.29675038 | IH33: 10.76381536 | II33: 36.23555341 | IJ33: 21.63684594 | IK33: 9.170344568 | IL33: 8.192873604 | IM33: 1.77299032 | IN33: 3.423821354 | IO33: 14.62497051 | IP33: 9.049538591 | IQ33: 1.009264955 | IR33: 4.29309908 | IS33: 16.44612869 | IT33: 11.00384552 | IU33: 35.2221151 | IV33: 20.32759419 | IW33: 8.141255039 | IX33: 8.221288641 | IY33: 1.787355665 | IZ33: 4.448315655 | JA33: 17.82262473 | JB33: 9.678594435 | JC33: 0.961517324 | JD33: 4.237670354 | JE33: 16.595507 | JF33: 11.24387569 | JG33: 34.20867679 | JH33: 19.01834244 | JI33: 7.112165511 | JJ33: 8.249703678 | JK33: 1.80172101 | JL33: 5.472809956 | JM33: 21.02027894 | JN33: 10.30765028 | JO33: 0.9137696928 | JP33: 4.182241628 | JQ33: 16.74488531 | JR33: 11.48390585 | JS33: 33.19523847 | JT33: 17.70909069 | JU33: 6.083075983 | JV33: 8.278118715 | JW33: 1.816086355 | JX33: 6.497304256 | JY33: 24.21793316 | JZ33: 10.93670612 | KA33: 0.8660220616 | KB33: 4.126812902 | KC33: 16.89426362 | KD33: 11.72393601 | KE33: 33.19523847 | KF33: 17.70909069 | KG33: 6.083075983 | KH33: 8.278118715 | KI33: 1.816086355 | KJ33: =KJ49 -> 6.497304256 | KK33: 24.21793316 | KL33: 10.93670612 | KM33: 0.8660220616 | KN33: 4.126812902 | KO33: 16.89426362 | KP33: 11.72393601 | KQ33: 33.19523847 | KR33: 17.70909069 | KS33: 6.083075983 | KT33: 8.278118715 | KU33: 1.816086355 | KV33: 6.497304256 | KW33: 24.21793316 | KX33: 10.93670612 | KY33: 0.8660220616 | KZ33: 4.126812902 | LA33: 16.89426362 | LB33: 11.72393601 | LC33: 33.19523847 | LD33: 17.70909069 | LE33: 6.083075983 | LF33: 8.278118715 | LG33: 1.816086355 | LH33: 6.497304256 | LI33: 24.21793316 | LJ33: 10.93670612 | LK33: 0.8660220616 | LL33: 4.126812902 | LM33: 16.89426362 | LN33: 11.72393601 | LO33: 33.19523847 | LP33: 17.70909069 | LQ33: 6.083075983 | LR33: 8.278118715 | LS33: 1.816086355 | LT33: 6.497304256 | LU33: 24.21793316 | LV33: 10.93670612 | LW33: 0.8660220616 | LX33: 4.126812902 | LY33: 16.89426362 | LZ33: 11.72393601 | MA33: 33.19523847 | MB33: 17.70909069 | MC33: 6.083075983 | MD33: 8.278118715 | ME33: 1.816086355 | MF33: 6.497304256 | MG33: 24.21793316 | MH33: 10.93670612 | MI33: 0.8660220616 | MJ33: 4.126812902 | MK33: 16.89426362 | ML33: 11.72393601 | MM33: 33.19523847 | MN33: 17.70909069 | MO33: 6.083075983 | MP33: 8.278118715 | MQ33: 1.816086355 | MR33: 6.497304256 | MS33: 24.21793316 | MT33: 10.93670612 | MU33: 0.8660220616 | MV33: =MV49 -> 4.126812902 | MW33: 16.89426362 | MX33: 11.72393601 | MY33: 33.19523847 | MZ33: 17.70909069 | NA33: 6.083075983 | NB33: 8.278118715 | NC33: 1.816086355 | ND33: 6.497304256 | NE33: 24.21793316 | NF33: 10.93670612 | NG33: 0.8660220616 | NH33: 4.126812902 | NI33: 16.89426362 | NJ33: 11.72393601 | NK33: 33.19523847 | NL33: 17.70909069 | NM33: 6.083075983 | NN33: 8.278118715 | NO33: 1.816086355 | NP33: 6.497304256 | NQ33: 24.21793316 | NR33: 10.93670612 | NS33: 0.8660220616 | NT33: 4.126812902 | NU33: 16.89426362 | NV33: 11.72393601 | NW33: 33.19523847 | NX33: 17.70909069 | NY33: 6.083075983 | NZ33: 8.278118715 | OA33: 1.816086355 | OB33: 6.497304256 | OC33: 24.21793316 | OD33: 10.93670612 | OE33: 0.8660220616 | OF33: 4.126812902 | OG33: 16.89426362 | OH33: 11.72393601 | OI33: 33.19523847 | OJ33: 17.70909069 | OK33: 6.083075983 | OL33: 8.278118715 | OM33: 1.816086355 | ON33: 6.497304256 | OO33: 24.21793316 | OP33: 10.93670612 | OQ33: 0.8660220616 | OR33: 4.126812902 | OS33: 16.89426362 | OT33: 11.72393601
D34: Eltilskud | F34: -11.85484087 | G34: =G50 -> -13.98522471 | H34: =H50 -> -14.08628939 | I34: =I50 -> -14.15807369 | J34: -14.17355998 | K34: -14.20291496 | L34: -14.04005482 | M34: -13.88830412 | N34: -13.7542677 | O34: -13.62454376 | P34: -13.48706551 | Q34: -13.35410284 | R34: -12.96643821 | S34: -12.72186982 | T34: -12.19323541 | U34: -9.618057064 | V34: -9.916506154 | W34: -9.551985138 | X34: -9.194336918 | Y34: -8.850556593 | Z34: -8.513624909 | AA34: =AA50 -> -8.183868553 | AB34: =AB50 -> -8.02294979 | AC34: -7.868237259 | AD34: -7.714166442 | AE34: =AE50 -> -7.566013576 | AF34: -7.418623702 | AG34: -7.273873617 | AH34: -7.131947854 | AI34: -6.992791307 | AJ34: -6.856349943 | AK34: -6.722570785 | AM34: =AM50 -> -2.262201678 | AN34: =AN50 -> -5.761300563 | AO34: -15.0125092 | AP34: -20.35546665 | AQ34: -18.59180526 | AR34: -19.10007616 | AS34: -16.43807525 | AT34: -17.50762433 | AU34: -19.26721655 | AV34: -18.43804266 | AW34: -16.38167683 | AX34: 1.82930956 | AY34: -2.209106528 | AZ34: -6.320112514 | BA34: -14.61117643 | BB34: -20.10033562 | BC34: -18.12537743 | BD34: -18.90340684 | BE34: -16.63265415 | BF34: -17.04262646 | BG34: -19.07457504 | BH34: -18.09988772 | BI34: -15.978787 | BJ34: -0.4039622499 | BK34: -2.156011378 | BL34: -6.878924465 | BM34: -14.20984366 | BN34: -19.84520459 | BO34: -17.6589496 | BP34: -18.70673753 | BQ34: -16.82723306 | BR34: -16.5776286 | BS34: -18.88193353 | BT34: -17.76173277 | BU34: -15.57589718 | BV34: -2.63723406 | BW34: -2.102916227 | BX34: -7.437736415 | BY34: -13.80851089 | BZ34: -19.59007356 | CA34: -17.19252176 | CB34: -18.51006821 | CC34: -17.02181196 | CD34: -16.11263074 | CE34: -18.68929202 | CF34: -17.42357783 | CG34: -15.17300736 | CH34: -4.870505869 | CI34: -2.049821077 | CJ34: -7.996548366 | CK34: -13.40717812 | CL34: -19.33494253 | CM34: -16.72609393 | CN34: -18.3133989 | CO34: -17.21639086 | CP34: -15.64763287 | CQ34: -18.49665051 | CR34: -17.08542288 | CS34: -14.77011754 | CT34: -7.103777679 | CU34: -1.996725926 | CV34: -8.555360317 | CW34: -13.00584535 | CX34: -19.0798115 | CY34: -16.25966609 | CZ34: =CZ50 -> -18.11672958 | DA34: -17.41096976 | DB34: -15.18263501 | DC34: -18.304009 | DD34: -16.74726794 | DE34: -14.36722771 | DF34: -9.337049489 | DG34: -2.245817114 | DH34: -8.118666245 | DI34: -12.88623652 | DJ34: -18.59174845 | DK34: -16.30155317 | DL34: -17.72295791 | DM34: -17.12926511 | DN34: -15.13302394 | DO34: -18.12194707 | DP34: -16.54793075 | DQ34: -14.11356434 | DR34: -9.743612446 | DS34: -2.494908302 | DT34: -7.681972173 | DU34: -12.76662768 | DV34: -18.1036854 | DW34: -16.34344024 | DX34: -17.32918624 | DY34: -16.84756045 | DZ34: -15.08341286 | EA34: -17.93988513 | EB34: -16.34859356 | EC34: -13.85990096 | ED34: -10.1501754 | EE34: -2.74399949 | EF34: -7.245278101 | EG34: -12.64701885 | EH34: -17.61562234 | EI34: -16.38532731 | EJ34: -16.93541456 | EK34: -16.5658558 | EL34: -15.03380179 | EM34: -17.75782319 | EN34: -16.14925637 | EO34: -13.60623759 | EP34: -10.55673836 | EQ34: -2.993090678 | ER34: -6.80858403 | ES34: -12.52741002 | ET34: -17.12755929 | EU34: -16.42721438 | EV34: -16.54164289 | EW34: -16.28415114 | EX34: -14.98419072 | EY34: -17.57576125 | EZ34: -15.94991918 | FA34: -13.35257421 | FB34: -10.96330132 | FC34: -3.242181866 | FD34: -6.371889958 | FE34: -12.40780119 | FF34: -16.63949624 | FG34: -16.46910146 | FH34: -16.14787122 | FI34: -16.00244649 | FJ34: -14.93457965 | FK34: -17.39369931 | FL34: =FL50 -> -15.75058199 | FM34: -13.09891083 | FN34: -11.36986428 | FO34: -4.047469077 | FP34: -5.930595169 | FQ34: -12.49197793 | FR34: -16.0288712 | FS34: -16.0305046 | FT34: -16.1200949 | FU34: -15.40963245 | FV34: -15.00413993 | FW34: -16.924566 | FX34: -15.49626237 | FY34: -12.84399927 | FZ34: -8.848387763 | GA34: -5.40397298 | GB34: -7.441721579 | GC34: -12.39864677 | GD34: -17.21396202 | GE34: -15.46318624 | GF34: -16.14923641 | GG34: -14.96103073 | GH34: -13.16776603 | GI34: -15.50730026 | GJ34: -13.34541648 | GK34: -12.80884366 | GL34: -8.634242952 | GM34: -6.455606252 | GN34: -6.545001148 | GO34: -10.34715889 | GP34: -16.11255775 | GQ34: -14.74125459 | GR34: -15.02889657 | GS34: -14.73635038 | GT34: -13.31120458 | GU34: -15.00095081 | GV34: -12.68741539 | GW34: -11.20202178 | GX34: -9.825088314 | GY34: 1.560202377 | GZ34: -1.485401575 | HA34: -6.56969146 | HB34: -13.15770772 | HC34: -14.09441348 | HD34: -14.99453549 | HE34: -14.26876818 | HF34: -11.66406187 | HG34: -14.72431095 | HH34: -11.92078573 | HI34: -5.978378398 | HJ34: -7.734470594 | HK34: 1.996880387 | HL34: -3.320727656 | HM34: -7.906471427 | HN34: -12.46849776 | HO34: -14.2876741 | HP34: -14.78839891 | HQ34: -13.24874393 | HR34: -12.18756984 | HS34: -14.43822654 | HT34: -11.48464335 | HU34: -8.308346399 | HV34: -8.215323242 | HW34: 1.280873227 | HX34: =HX50 -> -2.894496897 | HY34: -8.007478097 | HZ34: -11.58521427 | IA34: -13.88765773 | IB34: -14.24554764 | IC34: -12.50400254 | ID34: -11.91525998 | IE34: -14.03064092 | IF34: -10.33286736 | IG34: -8.179720509 | IH34: -8.167707052 | II34: 0.5648660679 | IJ34: -2.468266138 | IK34: -8.108484767 | IL34: -10.70193079 | IM34: -13.48764136 | IN34: -13.70269638 | IO34: -11.75926115 | IP34: -11.64295012 | IQ34: -13.62305531 | IR34: -9.181091378 | IS34: -8.051094619 | IT34: -8.120090863 | IU34: -0.1511410916 | IV34: -2.042035378 | IW34: -8.209491437 | IX34: -9.818647302 | IY34: -13.08762499 | IZ34: -13.15984512 | JA34: -11.01451976 | JB34: -11.37064027 | JC34: -13.2154697 | JD34: -8.029315391 | JE34: -7.922468728 | JF34: -8.072474673 | JG34: -0.8671482511 | JH34: -1.615804619 | JI34: -8.310498107 | JJ34: -8.935363815 | JK34: -12.68760862 | JL34: -12.61699385 | JM34: -10.26977838 | JN34: -11.09833041 | JO34: -12.80788409 | JP34: -6.877539404 | JQ34: -7.793842838 | JR34: -8.024858483 | JS34: -1.583155411 | JT34: -1.18957386 | JU34: -8.411504777 | JV34: -8.052080328 | JW34: -12.28759225 | JX34: -12.07414259 | JY34: -9.525036986 | JZ34: -10.82602055 | KA34: -12.40029848 | KB34: -5.725763418 | KC34: -7.665216947 | KD34: -7.977242293 | KE34: -1.553548348 | KF34: -1.167327284 | KG34: -8.254198714 | KH34: -7.901495969 | KI34: -12.05779832 | KJ34: =KJ50 -> -11.84834044 | KK34: -9.346906424 | KL34: -10.62355991 | KM34: -12.16839679 | KN34: -5.618684206 | KO34: -7.521867436 | KP34: -7.828057502 | KQ34: -1.523941286 | KR34: -1.145080708 | KS34: -8.09689265 | KT34: -7.75091161 | KU34: -11.82800438 | KV34: -11.62253829 | KW34: -9.168775863 | KX34: -10.42109927 | KY34: -11.9364951 | KZ34: -5.511604994 | LA34: -7.378517924 | LB34: -7.678872711 | LC34: -1.494334224 | LD34: -1.122834132 | LE34: -7.939586587 | LF34: -7.60032725 | LG34: -11.59821045 | LH34: -11.39673615 | LI34: -8.990645301 | LJ34: -10.21863862 | LK34: -11.70459342 | LL34: -5.404525782 | LM34: -7.235168412 | LN34: -7.52968792 | LO34: -1.464727162 | LP34: -1.100587556 | LQ34: -7.782280524 | LR34: -7.449742891 | LS34: -11.36841652 | LT34: -11.170934 | LU34: -8.812514739 | LV34: -10.01617798 | LW34: -11.47269173 | LX34: -5.29744657 | LY34: -7.0918189 | LZ34: -7.380503129 | MA34: -1.435120099 | MB34: -1.078340979 | MC34: -7.62497446 | MD34: -7.299158531 | ME34: -11.13862258 | MF34: -10.94513185 | MG34: -8.634384177 | MH34: -9.813717334 | MI34: -11.24079005 | MJ34: -5.190367358 | MK34: -6.948469389 | ML34: -7.231318338 | MM34: -1.40819005 | MN34: -1.058105895 | MO34: -7.481891702 | MP34: -7.162189714 | MQ34: -10.92960617 | MR34: -10.73974629 | MS34: -8.47235983 | MT34: -9.629562783 | MU34: -11.02985646 | MV34: =MV50 -> -5.092970038 | MW34: -6.818081258 | MX34: -7.095622543 | MY34: -1.38126 | MZ34: -1.037870811 | NA34: -7.338808943 | NB34: -7.025220896 | NC34: -10.72058975 | ND34: -10.53436073 | NE34: -8.310335484 | NF34: -9.445408233 | NG34: -10.81892286 | NH34: -4.995572718 | NI34: -6.687693127 | NJ34: -6.959926747 | NK34: -1.35432995 | NL34: -1.017635726 | NM34: -7.195726185 | NN34: -6.888252078 | NO34: -10.51157333 | NP34: -10.32897517 | NQ34: -8.148311137 | NR34: -9.261253682 | NS34: -10.60798927 | NT34: -4.898175398 | NU34: -6.557304996 | NV34: -6.824230952 | NW34: -1.3273999 | NX34: -0.9974006418 | NY34: -7.052643427 | NZ34: -6.751283261 | OA34: -10.30255691 | OB34: -10.12358961 | OC34: -7.986286791 | OD34: -9.077099131 | OE34: -10.39705568 | OF34: -4.800778077 | OG34: -6.426916866 | OH34: -6.688535156 | OI34: -1.30046985 | OJ34: -0.9771655574 | OK34: -6.909560668 | OL34: -6.614314443 | OM34: -10.0935405 | ON34: -9.918204048 | OO34: -7.824262444 | OP34: -8.89294458 | OQ34: -10.18612209 | OR34: -4.703380757 | OS34: -6.296528735 | OT34: -6.552839361
D35: Samlet afgiftsbetaling | F35: -2.541086748 | G35: =SUM(G33:G34) -> -2.166483061 | H35: =SUM(H33:H34) -> -3.047483566 | I35: =SUM(I33:I34) -> -3.791344385 | J35: -4.481042588 | K35: -5.186755077 | L35: -5.766291127 | M35: -5.777186624 | N35: -5.805796967 | O35: -5.838720344 | P35: -5.863889966 | Q35: -5.893575724 | R35: -5.682037017 | S35: -5.749941996 | T35: -4.939169887 | U35: 2.214916284 | V35: 1.11073278 | W35: 1.631746208 | X35: 2.145887446 | Y35: 2.646161395 | Z35: 3.13958731 | AA35: =SUM(AA33:AA34) -> 3.625838503 | AB35: =SUM(AB33:AB34) -> 3.786757267 | AC35: 3.941469797 | AD35: 4.095540615 | AE35: =SUM(AE33:AE34) -> 4.24369348 | AF35: 4.391083355 | AG35: 4.53583344 | AH35: 4.677759202 | AI35: 4.816915749 | AJ35: 4.953357113 | AK35: 5.087136272 | AM35: =SUM(AM33:AM34) -> 38.3215027 | AN35: =SUM(AN33:AN34) -> 21.5398486 | AO35: -6.03339727 | AP35: -17.90776979 | AQ35: -10.26262785 | AR35: -18.60276739 | AS35: -8.091947556 | AT35: -8.990668308 | AU35: -19.09818906 | AV35: -11.63687276 | AW35: -5.970368936 | AX35: 21.82062897 | AY35: 36.36576502 | AZ35: 19.49918884 | BA35: -5.995223532 | BB35: -16.95132398 | BC35: -9.863679089 | BD35: -18.56836564 | BE35: -9.496417727 | BF35: -9.535215816 | BG35: -18.82078555 | BH35: -12.20185262 | BI35: -6.399777733 | BJ35: 18.2783398 | BK35: 34.41002735 | BL35: 17.45852909 | BM35: -5.957049795 | BN35: -15.99487816 | BO35: -9.464730327 | BP35: -18.53396388 | BQ35: -10.9008879 | BR35: -10.07976332 | BS35: -18.54338204 | BT35: -12.76683249 | BU35: -6.829186529 | BV35: 14.73605064 | BW35: 32.45428968 | BX35: 15.41786933 | BY35: -5.918876057 | BZ35: -15.03843234 | CA35: -9.065781566 | CB35: -18.49956213 | CC35: -12.30535807 | CD35: -10.62431083 | CE35: -18.26597854 | CF35: -13.33181235 | CG35: -7.258595325 | CH35: 11.19376147 | CI35: 30.49855201 | CJ35: 13.37720958 | CK35: -5.88070232 | CL35: -14.08198653 | CM35: -8.666832804 | CN35: -18.46516037 | CO35: -13.70982824 | CP35: -11.16885834 | CQ35: -17.98857503 | CR35: -13.89679222 | CS35: -7.688004121 | CT35: 7.651472306 | CU35: 28.54281434 | CV35: 11.33654982 | CW35: -5.842528582 | CX35: -13.12554071 | CY35: -8.267884042 | CZ35: =SUM(CZ33:CZ34) -> -18.43075861 | DA35: -15.11429841 | DB35: -11.71340585 | DC35: -17.71117152 | DD35: -14.46177208 | DE35: -8.117412918 | DF35: 4.10918314 | DG35: 27.47064415 | DH35: 11.0023783 | DI35: -6.095083849 | DJ35: -11.92555452 | DK35: -9.241558848 | DL35: -17.70924385 | DM35: -14.52215699 | DN35: -10.85973055 | DO35: -17.49930945 | DP35: -14.32074737 | DQ35: -8.210473141 | DR35: 2.915102219 | DS35: 26.39847396 | DT35: 10.66820677 | DU35: -6.347639115 | DV35: -10.72556832 | DW35: -10.21523365 | DX35: -16.98772909 | DY35: -13.93001557 | DZ35: -10.00605526 | EA35: -17.28744737 | EB35: -14.17972266 | EC35: -8.303533365 | ED35: 1.721021297 | EE35: 25.32630377 | EF35: 10.33403524 | EG35: -6.600194382 | EH35: -9.525582131 | EI35: -11.18890846 | EJ35: -16.26621432 | EK35: -13.33787414 | EL35: -9.152379968 | EM35: -17.07558529 | EN35: -14.03869796 | EO35: -8.396593589 | EP35: 0.5269403761 | EQ35: 24.25413359 | ER35: 9.999863714 | ES35: -6.852749648 | ET35: -8.325595938 | EU35: -12.16258327 | EV35: -15.54469956 | EW35: -12.74573272 | EX35: -8.298704674 | EY35: -16.86372322 | EZ35: -13.89767325 | FA35: -8.489653812 | FB35: -0.6671405453 | FC35: 23.1819634 | FD35: 9.665692187 | FE35: -7.105304915 | FF35: -7.125609746 | FG35: -13.13625807 | FH35: -14.8231848 | FI35: -12.15359129 | FJ35: -7.445029381 | FK35: -16.65186114 | FL35: =SUM(FL33:FL34) -> -13.75664854 | FM35: -8.582714036 | FN35: -1.861221467 | FO35: 20.97157972 | FP35: 9.755455188 | FQ35: -6.83681133 | FR35: -6.011032709 | FS35: -13.31497951 | FT35: -15.43574556 | FU35: -10.7708726 | FV35: -7.998733995 | FW35: -15.92891569 | FX35: -13.36694628 | FY35: -8.568921353 | FZ35: 0.3757174054 | GA35: 17.72060454 | GB35: 8.446675419 | GC35: -6.889557315 | GD35: -13.26049595 | GE35: -11.09953581 | GF35: -16.9478856 | GG35: -10.0055965 | GH35: -4.568458725 | GI35: -12.87213165 | GJ35: -10.16199982 | GK35: -7.965052362 | GL35: -1.09946946 | GM35: 14.7586214 | GN35: 8.404909074 | GO35: -1.879153894 | GP35: -10.33925301 | GQ35: -10.88550968 | GR35: -13.16990439 | GS35: -11.08849123 | GT35: -7.225833273 | GU35: -11.71539465 | GV35: -8.959216871 | GW35: -6.111873001 | GX35: -0.3911320848 | GY35: 42.38382903 | GZ35: 25.36099484 | HA35: 8.126933083 | HB35: -6.540984148 | HC35: -9.081737358 | HD35: -13.95327648 | HE35: -9.799850792 | HF35: -3.976111023 | HG35: -12.57654442 | HH35: -7.673680102 | HI35: 11.17670961 | HJ35: 4.262129969 | HK35: 40.25931042 | HL35: 20.93462179 | HM35: 3.322052197 | HN35: -4.332454231 | HO35: -12.54341447 | HP35: -13.41356615 | HQ35: -5.019081856 | HR35: -4.396142935 | HS35: -13.33346632 | HT35: -7.080686819 | HU35: 7.839025675 | HV35: 2.308461954 | HW35: 38.52986495 | HX35: =SUM(HX33:HX34) -> 20.0516008 | HY35: 2.191955999 | HZ35: -3.420755708 | IA35: -12.12903276 | IB35: -11.84622059 | IC35: -1.07668625 | ID35: -3.494777234 | IE35: -12.97362834 | IF35: -5.984339558 | IG35: 8.117029875 | IH35: 2.596108308 | II35: 36.80041948 | IJ35: 19.16857981 | IK35: 1.061859801 | IL35: -2.509057184 | IM35: -11.71465104 | IN35: -10.27887503 | IO35: 2.865709356 | IP35: -2.593411533 | IQ35: -12.61379036 | IR35: -4.887992298 | IS35: 8.395034075 | IT35: 2.883754661 | IU35: 35.07097401 | IV35: 18.28555882 | IW35: -0.06823639755 | IX35: -1.597358661 | IY35: -11.30026932 | IZ35: -8.711529461 | JA35: 6.808104962 | JB35: -1.692045832 | JC35: -12.25395238 | JD35: -3.791645037 | JE35: 8.673038275 | JF35: 3.171401014 | JG35: 33.34152854 | JH35: 17.40253782 | JI35: -1.198332596 | JJ35: -0.6856601371 | JK35: -10.88588761 | JL35: -7.144183896 | JM35: 10.75050057 | JN35: -0.7906801311 | JO35: -11.8941144 | JP35: -2.695297776 | JQ35: 8.951042475 | JR35: 3.459047368 | JS35: 31.61208306 | JT35: 16.51951683 | JU35: -2.328428794 | JV35: 0.2260383864 | JW35: -10.47150589 | JX35: -5.576838332 | JY35: 14.69289617 | JZ35: 0.1106855699 | KA35: -11.53427641 | KB35: -1.598950516 | KC35: 9.229046675 | KD35: 3.746693721 | KE35: 31.64169013 | KF35: 16.54176341 | KG35: -2.171122731 | KH35: 0.3766227458 | KI35: -10.24171196 | KJ35: =SUM(KJ33:KJ34) -> -5.351036185 | KK35: 14.87102674 | KL35: 0.313146214 | KM35: -11.30237473 | KN35: -1.491871304 | KO35: 9.372396187 | KP35: 3.895878512 | KQ35: 31.67129719 | KR35: 16.56400998 | KS35: -2.013816667 | KT35: 0.5272071052 | KU35: -10.01191803 | KV35: -5.125234038 | KW35: 15.0491573 | KX35: 0.5156068582 | KY35: -11.07047304 | KZ35: -1.384792092 | LA35: 9.515745699 | LB35: 4.045063303 | LC35: 31.70090425 | LD35: 16.58625656 | LE35: -1.856510604 | LF35: 0.6777914645 | LG35: -9.782124094 | LH35: -4.899431891 | LI35: 15.22728786 | LJ35: 0.7180675023 | LK35: -10.83857136 | LL35: -1.27771288 | LM35: 9.65909521 | LN35: 4.194248094 | LO35: 31.73051131 | LP35: 16.60850314 | LQ35: -1.699204541 | LR35: 0.8283758239 | LS35: -9.552330161 | LT35: -4.673629744 | LU35: 15.40541842 | LV35: 0.9205281464 | LW35: -10.60666967 | LX35: -1.170633668 | LY35: 9.802444722 | LZ35: 4.343432885 | MA35: 31.76011838 | MB35: 16.63074971 | MC35: -1.541898477 | MD35: 0.9789601833 | ME35: -9.322536228 | MF35: -4.447827597 | MG35: 15.58354898 | MH35: 1.122988791 | MI35: -10.37476799 | MJ35: -1.063554456 | MK35: 9.945794234 | ML35: 4.492617676 | MM35: 31.78704842 | MN35: 16.6509848 | MO35: -1.398815719 | MP35: 1.115929001 | MQ35: -9.113519811 | MR35: -4.242442036 | MS35: 15.74557333 | MT35: 1.307143341 | MU35: -10.16383439 | MV35: =SUM(MV33:MV34) -> -0.9661571356 | MW35: 10.07618236 | MX35: 4.628313471 | MY35: 31.81397847 | MZ35: 16.67121988 | NA35: -1.25573296 | NB35: 1.252897819 | NC35: -8.904503393 | ND35: -4.037056475 | NE35: 15.90759768 | NF35: 1.491297892 | NG35: -9.952900803 | NH35: -0.8687598154 | NI35: 10.2065705 | NJ35: 4.764009267 | NK35: 31.84090852 | NL35: 16.69145497 | NM35: -1.112650202 | NN35: 1.389866636 | NO35: -8.695486976 | NP35: -3.831670914 | NQ35: 16.06962202 | NR35: 1.675452443 | NS35: -9.741967212 | NT35: -0.7713624953 | NU35: 10.33695863 | NV35: 4.899705062 | NW35: 31.86783857 | NX35: 16.71169005 | NY35: -0.9695674436 | NZ35: 1.526835454 | OA35: -8.486470559 | OB35: -3.626285353 | OC35: 16.23164637 | OD35: 1.859606994 | OE35: -9.531033621 | OF35: -0.6739651751 | OG35: 10.46734676 | OH35: 5.035400858 | OI35: 31.89476862 | OJ35: 16.73192513 | OK35: -0.8264846852 | OL35: 1.663804272 | OM35: -8.277454141 | ON35: -3.420899792 | OO35: 16.39367072 | OP35: 2.043761544 | OQ35: -9.32010003 | OR35: -0.576567855 | OS35: 10.59773489 | OT35: 5.171096653
C39: Samfundsøkonomiske priser (faktorpriser)
C40: Gaspris og fjernvarmepris | E40: ="Enhed: "&Sammenligning!G10&"-kr/"&Sammenligning!$G$9 -> Enhed: 2021-kr/GJ | F40: Nutidsværdi | G40: 2020 | H40: 2021 | I40: 2022 | J40: 2023 | K40: 2024 | L40: 2025 | M40: 2026 | N40: 2027 | O40: 2028 | P40: 2029 | Q40: 2030 | R40: 2031 | S40: 2032 | T40: 2033 | U40: 2034 | V40: 2035 | W40: 2036 | X40: 2037 | Y40: 2038 | Z40: 2039 | AA40: 2040 | AB40: 2041 | AC40: 2042 | AD40: 2043 | AE40: 2044 | AF40: 2045 | AG40: 2046 | AH40: 2047 | AI40: 2048 | AJ40: 2049 | AK40: 2050 | AM40: 2020-januar | AN40: 2020-februar | AO40: 2020-marts | AP40: 2020-april | AQ40: 2020-maj | AR40: 2020-juni | AS40: 2020-juli | AT40: 2020-august | AU40: 2020-september | AV40: 2020-oktober | AW40: 2020-november | AX40: 2020-december | AY40: 2021-januar | AZ40: 2021-februar | BA40: 2021-marts | BB40: 2021-april | BC40: 2021-maj | BD40: 2021-juni | BE40: 2021-juli | BF40: 2021-august | BG40: 2021-september | BH40: 2021-oktober | BI40: 2021-november | BJ40: 2021-december | BK40: 2022-januar | BL40: 2022-februar | BM40: 2022-marts | BN40: 2022-april | BO40: 2022-maj | BP40: 2022-juni | BQ40: 2022-juli | BR40: 2022-august | BS40: 2022-september | BT40: 2022-oktober | BU40: 2022-november | BV40: 2022-december | BW40: 2023-januar | BX40: 2023-februar | BY40: 2023-marts | BZ40: 2023-april | CA40: 2023-maj | CB40: 2023-juni | CC40: 2023-juli | CD40: 2023-august | CE40: 2023-september | CF40: 2023-oktober | CG40: 2023-november | CH40: 2023-december | CI40: 2024-januar | CJ40: 2024-februar | CK40: 2024-marts | CL40: 2024-april | CM40: 2024-maj | CN40: 2024-juni | CO40: 2024-juli | CP40: 2024-august | CQ40: 2024-september | CR40: 2024-oktober | CS40: 2024-november | CT40: 2024-december | CU40: 2025-januar | CV40: 2025-februar | CW40: 2025-marts | CX40: 2025-april | CY40: 2025-maj | CZ40: 2025-juni | DA40: 2025-juli | DB40: 2025-august | DC40: 2025-september | DD40: 2025-oktober | DE40: 2025-november | DF40: 2025-december | DG40: 2026-januar | DH40: 2026-februar | DI40: 2026-marts | DJ40: 2026-april | DK40: 2026-maj | DL40: 2026-juni | DM40: 2026-juli | DN40: 2026-august | DO40: 2026-september | DP40: 2026-oktober | DQ40: 2026-november | DR40: 2026-december | DS40: 2027-januar | DT40: 2027-februar | DU40: 2027-marts | DV40: 2027-april | DW40: 2027-maj | DX40: 2027-juni | DY40: 2027-juli | DZ40: 2027-august | EA40: 2027-september | EB40: 2027-oktober | EC40: 2027-november | ED40: 2027-december | EE40: 2028-januar | EF40: 2028-februar | EG40: 2028-marts | EH40: 2028-april | EI40: 2028-maj | EJ40: 2028-juni | EK40: 2028-juli | EL40: 2028-august | EM40: 2028-september | EN40: 2028-oktober | EO40: 2028-november | EP40: 2028-december | EQ40: 2029-januar | ER40: 2029-februar | ES40: 2029-marts | ET40: 2029-april | EU40: 2029-maj | EV40: 2029-juni | EW40: 2029-juli | EX40: 2029-august | EY40: 2029-september | EZ40: 2029-oktober | FA40: 2029-november | FB40: 2029-december | FC40: 2030-januar | FD40: 2030-februar | FE40: 2030-marts | FF40: 2030-april | FG40: 2030-maj | FH40: 2030-juni | FI40: 2030-juli | FJ40: 2030-august | FK40: 2030-september | FL40: 2030-oktober | FM40: 2030-november | FN40: 2030-december | FO40: 2031-januar | FP40: 2031-februar | FQ40: 2031-marts | FR40: 2031-april | FS40: 2031-maj | FT40: 2031-juni | FU40: 2031-juli | FV40: 2031-august | FW40: 2031-september | FX40: 2031-oktober | FY40: 2031-november | FZ40: 2031-december | GA40: 2032-januar | GB40: 2032-februar | GC40: 2032-marts | GD40: 2032-april | GE40: 2032-maj | GF40: 2032-juni | GG40: 2032-juli | GH40: 2032-august | GI40: 2032-september | GJ40: 2032-oktober | GK40: 2032-november | GL40: 2032-december | GM40: 2033-januar | GN40: 2033-februar | GO40: 2033-marts | GP40: 2033-april | GQ40: 2033-maj | GR40: 2033-juni | GS40: 2033-juli | GT40: 2033-august | GU40: 2033-september | GV40: 2033-oktober | GW40: 2033-november | GX40: 2033-december | GY40: 2034-januar | GZ40: 2034-februar | HA40: 2034-marts | HB40: 2034-april | HC40: 2034-maj | HD40: 2034-juni | HE40: 2034-juli | HF40: 2034-august | HG40: 2034-september | HH40: 2034-oktober | HI40: 2034-november | HJ40: 2034-december | HK40: 2035-januar | HL40: 2035-februar | HM40: 2035-marts | HN40: 2035-april | HO40: 2035-maj | HP40: 2035-juni | HQ40: 2035-juli | HR40: 2035-august | HS40: 2035-september | HT40: 2035-oktober | HU40: 2035-november | HV40: 2035-december | HW40: 2036-januar | HX40: 2036-februar | HY40: 2036-marts | HZ40: 2036-april | IA40: 2036-maj | IB40: 2036-juni | IC40: 2036-juli | ID40: 2036-august | IE40: 2036-september | IF40: 2036-oktober | IG40: 2036-november | IH40: 2036-december | II40: 2037-januar | IJ40: 2037-februar | IK40: 2037-marts | IL40: 2037-april | IM40: 2037-maj | IN40: 2037-juni | IO40: 2037-juli | IP40: 2037-august | IQ40: 2037-september | IR40: 2037-oktober | IS40: 2037-november | IT40: 2037-december | IU40: 2038-januar | IV40: 2038-februar | IW40: 2038-marts | IX40: 2038-april | IY40: 2038-maj | IZ40: 2038-juni | JA40: 2038-juli | JB40: 2038-august | JC40: 2038-september | JD40: 2038-oktober | JE40: 2038-november | JF40: 2038-december | JG40: 2039-januar | JH40: 2039-februar | JI40: 2039-marts | JJ40: 2039-april | JK40: 2039-maj | JL40: 2039-juni | JM40: 2039-juli | JN40: 2039-august | JO40: 2039-september | JP40: 2039-oktober | JQ40: 2039-november | JR40: 2039-december | JS40: 2040-januar | JT40: 2040-februar | JU40: 2040-marts | JV40: 2040-april | JW40: 2040-maj | JX40: 2040-juni | JY40: 2040-juli | JZ40: 2040-august | KA40: 2040-september | KB40: 2040-oktober | KC40: 2040-november | KD40: 2040-december | KE40: 2041-januar | KF40: 2041-februar | KG40: 2041-marts | KH40: 2041-april | KI40: 2041-maj | KJ40: 2041-juni | KK40: 2041-juli | KL40: 2041-august | KM40: 2041-september | KN40: 2041-oktober | KO40: 2041-november | KP40: 2041-december | KQ40: 2042-januar | KR40: 2042-februar | KS40: 2042-marts | KT40: 2042-april | KU40: 2042-maj | KV40: 2042-juni | KW40: 2042-juli | KX40: 2042-august | KY40: 2042-september | KZ40: 2042-oktober | LA40: 2042-november | LB40: 2042-december | LC40: 2043-januar | LD40: 2043-februar | LE40: 2043-marts | LF40: 2043-april | LG40: 2043-maj | LH40: 2043-juni | LI40: 2043-juli | LJ40: 2043-august | LK40: 2043-september | LL40: 2043-oktober | LM40: 2043-november | LN40: 2043-december | LO40: 2044-januar | LP40: 2044-februar | LQ40: 2044-marts | LR40: 2044-april | LS40: 2044-maj | LT40: 2044-juni | LU40: 2044-juli | LV40: 2044-august | LW40: 2044-september | LX40: 2044-oktober | LY40: 2044-november | LZ40: 2044-december | MA40: 2045-januar | MB40: 2045-februar | MC40: 2045-marts | MD40: 2045-april | ME40: 2045-maj | MF40: 2045-juni | MG40: 2045-juli | MH40: 2045-august | MI40: 2045-september | MJ40: 2045-oktober | MK40: 2045-november | ML40: 2045-december | MM40: 2046-januar | MN40: 2046-februar | MO40: 2046-marts | MP40: 2046-april | MQ40: 2046-maj | MR40: 2046-juni | MS40: 2046-juli | MT40: 2046-august | MU40: 2046-september | MV40: 2046-oktober | MW40: 2046-november | MX40: 2046-december | MY40: 2047-januar | MZ40: 2047-februar | NA40: 2047-marts | NB40: 2047-april | NC40: 2047-maj | ND40: 2047-juni | NE40: 2047-juli | NF40: 2047-august | NG40: 2047-september | NH40: 2047-oktober | NI40: 2047-november | NJ40: 2047-december | NK40: 2048-januar | NL40: 2048-februar | NM40: 2048-marts | NN40: 2048-april | NO40: 2048-maj | NP40: 2048-juni | NQ40: 2048-juli | NR40: 2048-august | NS40: 2048-september | NT40: 2048-oktober | NU40: 2048-november | NV40: 2048-december | NW40: 2049-januar | NX40: 2049-februar | NY40: 2049-marts | NZ40: 2049-april | OA40: 2049-maj | OB40: 2049-juni | OC40: 2049-juli | OD40: 2049-august | OE40: 2049-september | OF40: 2049-oktober | OG40: 2049-november | OH40: 2049-december | OI40: 2050-januar | OJ40: 2050-februar | OK40: 2050-marts | OL40: 2050-april | OM40: 2050-maj | ON40: 2050-juni | OO40: 2050-juli | OP40: 2050-august | OQ40: 2050-september | OR40: 2050-oktober | OS40: 2050-november | OT40: 2050-december
C41: Fjernvarmepris ab net | F41: 2023-2042
D42: Kapitalomkostninger og fast D&V | F42: =NPV(Rente,J42:AC42)/$F$54 -> 0 | G42: =SUM('Samlet hovedstaden -alle værker'!I31:I32) -> 0 | H42: =SUM('Samlet hovedstaden -alle værker'!J31:J32) -> 0 | I42: =SUM('Samlet hovedstaden -alle værker'!K31:K32) -> 0 | J42: =SUM('Samlet hovedstaden -alle værker'!L31:L32) -> 0 | K42: =SUM('Samlet hovedstaden -alle værker'!M31:M32) -> 0 | L42: =SUM('Samlet hovedstaden -alle værker'!N31:N32) -> 0 | M42: =SUM('Samlet hovedstaden -alle værker'!O31:O32) -> 0 | N42: =SUM('Samlet hovedstaden -alle værker'!P31:P32) -> 0 | O42: =SUM('Samlet hovedstaden -alle værker'!Q31:Q32) -> 0 | P42: =SUM('Samlet hovedstaden -alle værker'!R31:R32) -> 0 | Q42: =SUM('Samlet hovedstaden -alle værker'!S31:S32) -> 0 | R42: =SUM('Samlet hovedstaden -alle værker'!T31:T32) -> 0 | S42: =SUM('Samlet hovedstaden -alle værker'!U31:U32) -> 0 | T42: =SUM('Samlet hovedstaden -alle værker'!V31:V32) -> 0 | U42: =SUM('Samlet hovedstaden -alle værker'!W31:W32) -> 0 | V42: =SUM('Samlet hovedstaden -alle værker'!X31:X32) -> 0 | W42: =SUM('Samlet hovedstaden -alle værker'!Y31:Y32) -> 0 | X42: =SUM('Samlet hovedstaden -alle værker'!Z31:Z32) -> 0 | Y42: =SUM('Samlet hovedstaden -alle værker'!AA31:AA32) -> 0 | Z42: =SUM('Samlet hovedstaden -alle værker'!AB31:AB32) -> 0 | AA42: =SUM('Samlet hovedstaden -alle værker'!AC31:AC32) -> 0 | AB42: =SUM('Samlet hovedstaden -alle værker'!AD31:AD32) -> 0 | AC42: =SUM('Samlet hovedstaden -alle værker'!AE31:AE32) -> 0 | AD42: =SUM('Samlet hovedstaden -alle værker'!AF31:AF32) -> 0 | AE42: =SUM('Samlet hovedstaden -alle værker'!AG31:AG32) -> 0 | AF42: =SUM('Samlet hovedstaden -alle værker'!AH31:AH32) -> 0 | AG42: =SUM('Samlet hovedstaden -alle værker'!AI31:AI32) -> 0 | AH42: =SUM('Samlet hovedstaden -alle værker'!AJ31:AJ32) -> 0 | AI42: =SUM('Samlet hovedstaden -alle værker'!AK31:AK32) -> 0 | AJ42: =SUM('Samlet hovedstaden -alle værker'!AL31:AL32) -> 0 | AK42: =SUM('Samlet hovedstaden -alle værker'!AM31:AM32) -> 0 | AM42: =SUM('Samlet hovedstaden -alle værker'!AO31:AO32) -> 0 | AN42: =SUM('Samlet hovedstaden -alle værker'!AP31:AP32) -> 0 | AO42: =SUM('Samlet hovedstaden -alle værker'!AQ31:AQ32) -> 0 | AP42: =SUM('Samlet hovedstaden -alle værker'!AR31:AR32) -> 0 | AQ42: =SUM('Samlet hovedstaden -alle værker'!AS31:AS32) -> 0 | AR42: =SUM('Samlet hovedstaden -alle værker'!AT31:AT32) -> 0 | AS42: =SUM('Samlet hovedstaden -alle værker'!AU31:AU32) -> 0 | AT42: =SUM('Samlet hovedstaden -alle værker'!AV31:AV32) -> 0 | AU42: =SUM('Samlet hovedstaden -alle værker'!AW31:AW32) -> 0 | AV42: =SUM('Samlet hovedstaden -alle værker'!AX31:AX32) -> 0 | AW42: =SUM('Samlet hovedstaden -alle værker'!AY31:AY32) -> 0 | AX42: =SUM('Samlet hovedstaden -alle værker'!AZ31:AZ32) -> 0 | AY42: =SUM('Samlet hovedstaden -alle værker'!BA31:BA32) -> 0 | AZ42: =SUM('Samlet hovedstaden -alle værker'!BB31:BB32) -> 0 | BA42: =SUM('Samlet hovedstaden -alle værker'!BC31:BC32) -> 0 | BB42: =SUM('Samlet hovedstaden -alle værker'!BD31:BD32) -> 0 | BC42: =SUM('Samlet hovedstaden -alle værker'!BE31:BE32) -> 0 | BD42: =SUM('Samlet hovedstaden -alle værker'!BF31:BF32) -> 0 | BE42: =SUM('Samlet hovedstaden -alle værker'!BG31:BG32) -> 0 | BF42: =SUM('Samlet hovedstaden -alle værker'!BH31:BH32) -> 0 | BG42: =SUM('Samlet hovedstaden -alle værker'!BI31:BI32) -> 0 | BH42: =SUM('Samlet hovedstaden -alle værker'!BJ31:BJ32) -> 0 | BI42: =SUM('Samlet hovedstaden -alle værker'!BK31:BK32) -> 0 | BJ42: =SUM('Samlet hovedstaden -alle værker'!BL31:BL32) -> 0 | BK42: =SUM('Samlet hovedstaden -alle værker'!BM31:BM32) -> 0 | BL42: =SUM('Samlet hovedstaden -alle værker'!BN31:BN32) -> 0 | BM42: =SUM('Samlet hovedstaden -alle værker'!BO31:BO32) -> 0 | BN42: =SUM('Samlet hovedstaden -alle værker'!BP31:BP32) -> 0 | BO42: =SUM('Samlet hovedstaden -alle værker'!BQ31:BQ32) -> 0 | BP42: =SUM('Samlet hovedstaden -alle værker'!BR31:BR32) -> 0 | BQ42: =SUM('Samlet hovedstaden -alle værker'!BS31:BS32) -> 0 | BR42: =SUM('Samlet hovedstaden -alle værker'!BT31:BT32) -> 0 | BS42: =SUM('Samlet hovedstaden -alle værker'!BU31:BU32) -> 0 | BT42: =SUM('Samlet hovedstaden -alle værker'!BV31:BV32) -> 0 | BU42: =SUM('Samlet hovedstaden -alle værker'!BW31:BW32) -> 0 | BV42: =SUM('Samlet hovedstaden -alle værker'!BX31:BX32) -> 0 | BW42: =SUM('Samlet hovedstaden -alle værker'!BY31:BY32) -> 0 | BX42: =SUM('Samlet hovedstaden -alle værker'!BZ31:BZ32) -> 0 | BY42: =SUM('Samlet hovedstaden -alle værker'!CA31:CA32) -> 0 | BZ42: =SUM('Samlet hovedstaden -alle værker'!CB31:CB32) -> 0 | CA42: =SUM('Samlet hovedstaden -alle værker'!CC31:CC32) -> 0 | CB42: =SUM('Samlet hovedstaden -alle værker'!CD31:CD32) -> 0 | CC42: =SUM('Samlet hovedstaden -alle værker'!CE31:CE32) -> 0 | CD42: =SUM('Samlet hovedstaden -alle værker'!CF31:CF32) -> 0 | CE42: =SUM('Samlet hovedstaden -alle værker'!CG31:CG32) -> 0 | CF42: =SUM('Samlet hovedstaden -alle værker'!CH31:CH32) -> 0 | CG42: =SUM('Samlet hovedstaden -alle værker'!CI31:CI32) -> 0 | CH42: =SUM('Samlet hovedstaden -alle værker'!CJ31:CJ32) -> 0 | CI42: =SUM('Samlet hovedstaden -alle værker'!CK31:CK32) -> 0 | CJ42: =SUM('Samlet hovedstaden -alle værker'!CL31:CL32) -> 0 | CK42: =SUM('Samlet hovedstaden -alle værker'!CM31:CM32) -> 0 | CL42: =SUM('Samlet hovedstaden -alle værker'!CN31:CN32) -> 0 | CM42: =SUM('Samlet hovedstaden -alle værker'!CO31:CO32) -> 0 | CN42: =SUM('Samlet hovedstaden -alle værker'!CP31:CP32) -> 0 | CO42: =SUM('Samlet hovedstaden -alle værker'!CQ31:CQ32) -> 0 | CP42: =SUM('Samlet hovedstaden -alle værker'!CR31:CR32) -> 0 | CQ42: =SUM('Samlet hovedstaden -alle værker'!CS31:CS32) -> 0 | CR42: =SUM('Samlet hovedstaden -alle værker'!CT31:CT32) -> 0 | CS42: =SUM('Samlet hovedstaden -alle værker'!CU31:CU32) -> 0 | CT42: =SUM('Samlet hovedstaden -alle værker'!CV31:CV32) -> 0 | CU42: =SUM('Samlet hovedstaden -alle værker'!CW31:CW32) -> 0 | CV42: =SUM('Samlet hovedstaden -alle værker'!CX31:CX32) -> 0 | CW42: =SUM('Samlet hovedstaden -alle værker'!CY31:CY32) -> 0 | CX42: =SUM('Samlet hovedstaden -alle værker'!CZ31:CZ32) -> 0 | CY42: =SUM('Samlet hovedstaden -alle værker'!DA31:DA32) -> 0 | CZ42: =SUM('Samlet hovedstaden -alle værker'!DB31:DB32) -> 0 | DA42: =SUM('Samlet hovedstaden -alle værker'!DC31:DC32) -> 0 | DB42: =SUM('Samlet hovedstaden -alle værker'!DD31:DD32) -> 0 | DC42: =SUM('Samlet hovedstaden -alle værker'!DE31:DE32) -> 0 | DD42: =SUM('Samlet hovedstaden -alle værker'!DF31:DF32) -> 0 | DE42: =SUM('Samlet hovedstaden -alle værker'!DG31:DG32) -> 0 | DF42: =SUM('Samlet hovedstaden -alle værker'!DH31:DH32) -> 0 | DG42: =SUM('Samlet hovedstaden -alle værker'!DI31:DI32) -> 0 | DH42: =SUM('Samlet hovedstaden -alle værker'!DJ31:DJ32) -> 0 | DI42: =SUM('Samlet hovedstaden -alle værker'!DK31:DK32) -> 0 | DJ42: =SUM('Samlet hovedstaden -alle værker'!DL31:DL32) -> 0 | DK42: =SUM('Samlet hovedstaden -alle værker'!DM31:DM32) -> 0 | DL42: =SUM('Samlet hovedstaden -alle værker'!DN31:DN32) -> 0 | DM42: =SUM('Samlet hovedstaden -alle værker'!DO31:DO32) -> 0 | DN42: =SUM('Samlet hovedstaden -alle værker'!DP31:DP32) -> 0 | DO42: =SUM('Samlet hovedstaden -alle værker'!DQ31:DQ32) -> 0 | DP42: =SUM('Samlet hovedstaden -alle værker'!DR31:DR32) -> 0 | DQ42: =SUM('Samlet hovedstaden -alle værker'!DS31:DS32) -> 0 | DR42: =SUM('Samlet hovedstaden -alle værker'!DT31:DT32) -> 0 | DS42: =SUM('Samlet hovedstaden -alle værker'!DU31:DU32) -> 0 | DT42: =SUM('Samlet hovedstaden -alle værker'!DV31:DV32) -> 0 | DU42: =SUM('Samlet hovedstaden -alle værker'!DW31:DW32) -> 0 | DV42: =SUM('Samlet hovedstaden -alle værker'!DX31:DX32) -> 0 | DW42: =SUM('Samlet hovedstaden -alle værker'!DY31:DY32) -> 0 | DX42: =SUM('Samlet hovedstaden -alle værker'!DZ31:DZ32) -> 0 | DY42: =SUM('Samlet hovedstaden -alle værker'!EA31:EA32) -> 0 | DZ42: =SUM('Samlet hovedstaden -alle værker'!EB31:EB32) -> 0 | EA42: =SUM('Samlet hovedstaden -alle værker'!EC31:EC32) -> 0 | EB42: =SUM('Samlet hovedstaden -alle værker'!ED31:ED32) -> 0 | EC42: =SUM('Samlet hovedstaden -alle værker'!EE31:EE32) -> 0 | ED42: =SUM('Samlet hovedstaden -alle værker'!EF31:EF32) -> 0 | EE42: =SUM('Samlet hovedstaden -alle værker'!EG31:EG32) -> 0 | EF42: =SUM('Samlet hovedstaden -alle værker'!EH31:EH32) -> 0 | EG42: =SUM('Samlet hovedstaden -alle værker'!EI31:EI32) -> 0 | EH42: =SUM('Samlet hovedstaden -alle værker'!EJ31:EJ32) -> 0 | EI42: =SUM('Samlet hovedstaden -alle værker'!EK31:EK32) -> 0 | EJ42: =SUM('Samlet hovedstaden -alle værker'!EL31:EL32) -> 0 | EK42: =SUM('Samlet hovedstaden -alle værker'!EM31:EM32) -> 0 | EL42: =SUM('Samlet hovedstaden -alle værker'!EN31:EN32) -> 0 | EM42: =SUM('Samlet hovedstaden -alle værker'!EO31:EO32) -> 0 | EN42: =SUM('Samlet hovedstaden -alle værker'!EP31:EP32) -> 0 | EO42: =SUM('Samlet hovedstaden -alle værker'!EQ31:EQ32) -> 0 | EP42: =SUM('Samlet hovedstaden -alle værker'!ER31:ER32) -> 0 | EQ42: =SUM('Samlet hovedstaden -alle værker'!ES31:ES32) -> 0 | ER42: =SUM('Samlet hovedstaden -alle værker'!ET31:ET32) -> 0 | ES42: =SUM('Samlet hovedstaden -alle værker'!EU31:EU32) -> 0 | ET42: =SUM('Samlet hovedstaden -alle værker'!EV31:EV32) -> 0 | EU42: =SUM('Samlet hovedstaden -alle værker'!EW31:EW32) -> 0 | EV42: =SUM('Samlet hovedstaden -alle værker'!EX31:EX32) -> 0 | EW42: =SUM('Samlet hovedstaden -alle værker'!EY31:EY32) -> 0 | EX42: =SUM('Samlet hovedstaden -alle værker'!EZ31:EZ32) -> 0 | EY42: =SUM('Samlet hovedstaden -alle værker'!FA31:FA32) -> 0 | EZ42: =SUM('Samlet hovedstaden -alle værker'!FB31:FB32) -> 0 | FA42: =SUM('Samlet hovedstaden -alle værker'!FC31:FC32) -> 0 | FB42: =SUM('Samlet hovedstaden -alle værker'!FD31:FD32) -> 0 | FC42: =SUM('Samlet hovedstaden -alle værker'!FE31:FE32) -> 0 | FD42: =SUM('Samlet hovedstaden -alle værker'!FF31:FF32) -> 0 | FE42: =SUM('Samlet hovedstaden -alle værker'!FG31:FG32) -> 0 | FF42: =SUM('Samlet hovedstaden -alle værker'!FH31:FH32) -> 0 | FG42: =SUM('Samlet hovedstaden -alle værker'!FI31:FI32) -> 0 | FH42: =SUM('Samlet hovedstaden -alle værker'!FJ31:FJ32) -> 0 | FI42: =SUM('Samlet hovedstaden -alle værker'!FK31:FK32) -> 0 | FJ42: =SUM('Samlet hovedstaden -alle værker'!FL31:FL32) -> 0 | FK42: =SUM('Samlet hovedstaden -alle værker'!FM31:FM32) -> 0 | FL42: =SUM('Samlet hovedstaden -alle værker'!FN31:FN32) -> 0 | FM42: =SUM('Samlet hovedstaden -alle værker'!FO31:FO32) -> 0 | FN42: =SUM('Samlet hovedstaden -alle værker'!FP31:FP32) -> 0 | FO42: =SUM('Samlet hovedstaden -alle værker'!FQ31:FQ32) -> 0 | FP42: =SUM('Samlet hovedstaden -alle værker'!FR31:FR32) -> 0 | FQ42: =SUM('Samlet hovedstaden -alle værker'!FS31:FS32) -> 0 | FR42: =SUM('Samlet hovedstaden -alle værker'!FT31:FT32) -> 0 | FS42: =SUM('Samlet hovedstaden -alle værker'!FU31:FU32) -> 0 | FT42: =SUM('Samlet hovedstaden -alle værker'!FV31:FV32) -> 0 | FU42: =SUM('Samlet hovedstaden -alle værker'!FW31:FW32) -> 0 | FV42: =SUM('Samlet hovedstaden -alle værker'!FX31:FX32) -> 0 | FW42: =SUM('Samlet hovedstaden -alle værker'!FY31:FY32) -> 0 | FX42: =SUM('Samlet hovedstaden -alle værker'!FZ31:FZ32) -> 0 | FY42: =SUM('Samlet hovedstaden -alle værker'!GA31:GA32) -> 0 | FZ42: =SUM('Samlet hovedstaden -alle værker'!GB31:GB32) -> 0 | GA42: =SUM('Samlet hovedstaden -alle værker'!GC31:GC32) -> 0 | GB42: =SUM('Samlet hovedstaden -alle værker'!GD31:GD32) -> 0 | GC42: =SUM('Samlet hovedstaden -alle værker'!GE31:GE32) -> 0 | GD42: =SUM('Samlet hovedstaden -alle værker'!GF31:GF32) -> 0 | GE42: =SUM('Samlet hovedstaden -alle værker'!GG31:GG32) -> 0 | GF42: =SUM('Samlet hovedstaden -alle værker'!GH31:GH32) -> 0 | GG42: =SUM('Samlet hovedstaden -alle værker'!GI31:GI32) -> 0 | GH42: =SUM('Samlet hovedstaden -alle værker'!GJ31:GJ32) -> 0 | GI42: =SUM('Samlet hovedstaden -alle værker'!GK31:GK32) -> 0 | GJ42: =SUM('Samlet hovedstaden -alle værker'!GL31:GL32) -> 0 | GK42: =SUM('Samlet hovedstaden -alle værker'!GM31:GM32) -> 0 | GL42: =SUM('Samlet hovedstaden -alle værker'!GN31:GN32) -> 0 | GM42: =SUM('Samlet hovedstaden -alle værker'!GO31:GO32) -> 0 | GN42: =SUM('Samlet hovedstaden -alle værker'!GP31:GP32) -> 0 | GO42: =SUM('Samlet hovedstaden -alle værker'!GQ31:GQ32) -> 0 | GP42: =SUM('Samlet hovedstaden -alle værker'!GR31:GR32) -> 0 | GQ42: =SUM('Samlet hovedstaden -alle værker'!GS31:GS32) -> 0 | GR42: =SUM('Samlet hovedstaden -alle værker'!GT31:GT32) -> 0 | GS42: =SUM('Samlet hovedstaden -alle værker'!GU31:GU32) -> 0 | GT42: =SUM('Samlet hovedstaden -alle værker'!GV31:GV32) -> 0 | GU42: =SUM('Samlet hovedstaden -alle værker'!GW31:GW32) -> 0 | GV42: =SUM('Samlet hovedstaden -alle værker'!GX31:GX32) -> 0 | GW42: =SUM('Samlet hovedstaden -alle værker'!GY31:GY32) -> 0 | GX42: =SUM('Samlet hovedstaden -alle værker'!GZ31:GZ32) -> 0 | GY42: =SUM('Samlet hovedstaden -alle værker'!HA31:HA32) -> 0 | GZ42: =SUM('Samlet hovedstaden -alle værker'!HB31:HB32) -> 0 | HA42: =SUM('Samlet hovedstaden -alle værker'!HC31:HC32) -> 0 | HB42: =SUM('Samlet hovedstaden -alle værker'!HD31:HD32) -> 0 | HC42: =SUM('Samlet hovedstaden -alle værker'!HE31:HE32) -> 0 | HD42: =SUM('Samlet hovedstaden -alle værker'!HF31:HF32) -> 0 | HE42: =SUM('Samlet hovedstaden -alle værker'!HG31:HG32) -> 0 | HF42: =SUM('Samlet hovedstaden -alle værker'!HH31:HH32) -> 0 | HG42: =SUM('Samlet hovedstaden -alle værker'!HI31:HI32) -> 0 | HH42: =SUM('Samlet hovedstaden -alle værker'!HJ31:HJ32) -> 0 | HI42: =SUM('Samlet hovedstaden -alle værker'!HK31:HK32) -> 0 | HJ42: =SUM('Samlet hovedstaden -alle værker'!HL31:HL32) -> 0 | HK42: =SUM('Samlet hovedstaden -alle værker'!HM31:HM32) -> 0 | HL42: =SUM('Samlet hovedstaden -alle værker'!HN31:HN32) -> 0 | HM42: =SUM('Samlet hovedstaden -alle værker'!HO31:HO32) -> 0 | HN42: =SUM('Samlet hovedstaden -alle værker'!HP31:HP32) -> 0 | HO42: =SUM('Samlet hovedstaden -alle værker'!HQ31:HQ32) -> 0 | HP42: =SUM('Samlet hovedstaden -alle værker'!HR31:HR32) -> 0 | HQ42: =SUM('Samlet hovedstaden -alle værker'!HS31:HS32) -> 0 | HR42: =SUM('Samlet hovedstaden -alle værker'!HT31:HT32) -> 0 | HS42: =SUM('Samlet hovedstaden -alle værker'!HU31:HU32) -> 0 | HT42: =SUM('Samlet hovedstaden -alle værker'!HV31:HV32) -> 0 | HU42: =SUM('Samlet hovedstaden -alle værker'!HW31:HW32) -> 0 | HV42: =SUM('Samlet hovedstaden -alle værker'!HX31:HX32) -> 0 | HW42: =SUM('Samlet hovedstaden -alle værker'!HY31:HY32) -> 0 | HX42: =SUM('Samlet hovedstaden -alle værker'!HZ31:HZ32) -> 0 | HY42: =SUM('Samlet hovedstaden -alle værker'!IA31:IA32) -> 0 | HZ42: =SUM('Samlet hovedstaden -alle værker'!IB31:IB32) -> 0 | IA42: =SUM('Samlet hovedstaden -alle værker'!IC31:IC32) -> 0 | IB42: =SUM('Samlet hovedstaden -alle værker'!ID31:ID32) -> 0 | IC42: =SUM('Samlet hovedstaden -alle værker'!IE31:IE32) -> 0 | ID42: =SUM('Samlet hovedstaden -alle værker'!IF31:IF32) -> 0 | IE42: =SUM('Samlet hovedstaden -alle værker'!IG31:IG32) -> 0 | IF42: =SUM('Samlet hovedstaden -alle værker'!IH31:IH32) -> 0 | IG42: =SUM('Samlet hovedstaden -alle værker'!II31:II32) -> 0 | IH42: =SUM('Samlet hovedstaden -alle værker'!IJ31:IJ32) -> 0 | II42: =SUM('Samlet hovedstaden -alle værker'!IK31:IK32) -> 0 | IJ42: =SUM('Samlet hovedstaden -alle værker'!IL31:IL32) -> 0 | IK42: =SUM('Samlet hovedstaden -alle værker'!IM31:IM32) -> 0 | IL42: =SUM('Samlet hovedstaden -alle værker'!IN31:IN32) -> 0 | IM42: =SUM('Samlet hovedstaden -alle værker'!IO31:IO32) -> 0 | IN42: =SUM('Samlet hovedstaden -alle værker'!IP31:IP32) -> 0 | IO42: =SUM('Samlet hovedstaden -alle værker'!IQ31:IQ32) -> 0 | IP42: =SUM('Samlet hovedstaden -alle værker'!IR31:IR32) -> 0 | IQ42: =SUM('Samlet hovedstaden -alle værker'!IS31:IS32) -> 0 | IR42: =SUM('Samlet hovedstaden -alle værker'!IT31:IT32) -> 0 | IS42: =SUM('Samlet hovedstaden -alle værker'!IU31:IU32) -> 0 | IT42: =SUM('Samlet hovedstaden -alle værker'!IV31:IV32) -> 0 | IU42: =SUM('Samlet hovedstaden -alle værker'!IW31:IW32) -> 0 | IV42: =SUM('Samlet hovedstaden -alle værker'!IX31:IX32) -> 0 | IW42: =SUM('Samlet hovedstaden -alle værker'!IY31:IY32) -> 0 | IX42: =SUM('Samlet hovedstaden -alle værker'!IZ31:IZ32) -> 0 | IY42: =SUM('Samlet hovedstaden -alle værker'!JA31:JA32) -> 0 | IZ42: =SUM('Samlet hovedstaden -alle værker'!JB31:JB32) -> 0 | JA42: =SUM('Samlet hovedstaden -alle værker'!JC31:JC32) -> 0 | JB42: =SUM('Samlet hovedstaden -alle værker'!JD31:JD32) -> 0 | JC42: =SUM('Samlet hovedstaden -alle værker'!JE31:JE32) -> 0 | JD42: =SUM('Samlet hovedstaden -alle værker'!JF31:JF32) -> 0 | JE42: =SUM('Samlet hovedstaden -alle værker'!JG31:JG32) -> 0 | JF42: =SUM('Samlet hovedstaden -alle værker'!JH31:JH32) -> 0 | JG42: =SUM('Samlet hovedstaden -alle værker'!JI31:JI32) -> 0 | JH42: =SUM('Samlet hovedstaden -alle værker'!JJ31:JJ32) -> 0 | JI42: =SUM('Samlet hovedstaden -alle værker'!JK31:JK32) -> 0 | JJ42: =SUM('Samlet hovedstaden -alle værker'!JL31:JL32) -> 0 | JK42: =SUM('Samlet hovedstaden -alle værker'!JM31:JM32) -> 0 | JL42: =SUM('Samlet hovedstaden -alle værker'!JN31:JN32) -> 0 | JM42: =SUM('Samlet hovedstaden -alle værker'!JO31:JO32) -> 0 | JN42: =SUM('Samlet hovedstaden -alle værker'!JP31:JP32) -> 0 | JO42: =SUM('Samlet hovedstaden -alle værker'!JQ31:JQ32) -> 0 | JP42: =SUM('Samlet hovedstaden -alle værker'!JR31:JR32) -> 0 | JQ42: =SUM('Samlet hovedstaden -alle værker'!JS31:JS32) -> 0 | JR42: =SUM('Samlet hovedstaden -alle værker'!JT31:JT32) -> 0 | JS42: =SUM('Samlet hovedstaden -alle værker'!JU31:JU32) -> 0 | JT42: =SUM('Samlet hovedstaden -alle værker'!JV31:JV32) -> 0 | JU42: =SUM('Samlet hovedstaden -alle værker'!JW31:JW32) -> 0 | JV42: =SUM('Samlet hovedstaden -alle værker'!JX31:JX32) -> 0 | JW42: =SUM('Samlet hovedstaden -alle værker'!JY31:JY32) -> 0 | JX42: =SUM('Samlet hovedstaden -alle værker'!JZ31:JZ32) -> 0 | JY42: =SUM('Samlet hovedstaden -alle værker'!KA31:KA32) -> 0 | JZ42: =SUM('Samlet hovedstaden -alle værker'!KB31:KB32) -> 0 | KA42: =SUM('Samlet hovedstaden -alle værker'!KC31:KC32) -> 0 | KB42: =SUM('Samlet hovedstaden -alle værker'!KD31:KD32) -> 0 | KC42: =SUM('Samlet hovedstaden -alle værker'!KE31:KE32) -> 0 | KD42: =SUM('Samlet hovedstaden -alle værker'!KF31:KF32) -> 0 | KE42: =SUM('Samlet hovedstaden -alle værker'!KG31:KG32) -> 0 | KF42: =SUM('Samlet hovedstaden -alle værker'!KH31:KH32) -> 0 | KG42: =SUM('Samlet hovedstaden -alle værker'!KI31:KI32) -> 0 | KH42: =SUM('Samlet hovedstaden -alle værker'!KJ31:KJ32) -> 0 | KI42: =SUM('Samlet hovedstaden -alle værker'!KK31:KK32) -> 0 | KJ42: =SUM('Samlet hovedstaden -alle værker'!KL31:KL32) -> 0 | KK42: =SUM('Samlet hovedstaden -alle værker'!KM31:KM32) -> 0 | KL42: =SUM('Samlet hovedstaden -alle værker'!KN31:KN32) -> 0 | KM42: =SUM('Samlet hovedstaden -alle værker'!KO31:KO32) -> 0 | KN42: =SUM('Samlet hovedstaden -alle værker'!KP31:KP32) -> 0 | KO42: =SUM('Samlet hovedstaden -alle værker'!KQ31:KQ32) -> 0 | KP42: =SUM('Samlet hovedstaden -alle værker'!KR31:KR32) -> 0 | KQ42: =SUM('Samlet hovedstaden -alle værker'!KS31:KS32) -> 0 | KR42: =SUM('Samlet hovedstaden -alle værker'!KT31:KT32) -> 0 | KS42: =SUM('Samlet hovedstaden -alle værker'!KU31:KU32) -> 0 | KT42: =SUM('Samlet hovedstaden -alle værker'!KV31:KV32) -> 0 | KU42: =SUM('Samlet hovedstaden -alle værker'!KW31:KW32) -> 0 | KV42: =SUM('Samlet hovedstaden -alle værker'!KX31:KX32) -> 0 | KW42: =SUM('Samlet hovedstaden -alle værker'!KY31:KY32) -> 0 | KX42: =SUM('Samlet hovedstaden -alle værker'!KZ31:KZ32) -> 0 | KY42: =SUM('Samlet hovedstaden -alle værker'!LA31:LA32) -> 0 | KZ42: =SUM('Samlet hovedstaden -alle værker'!LB31:LB32) -> 0 | LA42: =SUM('Samlet hovedstaden -alle værker'!LC31:LC32) -> 0 | LB42: =SUM('Samlet hovedstaden -alle værker'!LD31:LD32) -> 0 | LC42: =SUM('Samlet hovedstaden -alle værker'!LE31:LE32) -> 0 | LD42: =SUM('Samlet hovedstaden -alle værker'!LF31:LF32) -> 0 | LE42: =SUM('Samlet hovedstaden -alle værker'!LG31:LG32) -> 0 | LF42: =SUM('Samlet hovedstaden -alle værker'!LH31:LH32) -> 0 | LG42: =SUM('Samlet hovedstaden -alle værker'!LI31:LI32) -> 0 | LH42: =SUM('Samlet hovedstaden -alle værker'!LJ31:LJ32) -> 0 | LI42: =SUM('Samlet hovedstaden -alle værker'!LK31:LK32) -> 0 | LJ42: =SUM('Samlet hovedstaden -alle værker'!LL31:LL32) -> 0 | LK42: =SUM('Samlet hovedstaden -alle værker'!LM31:LM32) -> 0 | LL42: =SUM('Samlet hovedstaden -alle værker'!LN31:LN32) -> 0 | LM42: =SUM('Samlet hovedstaden -alle værker'!LO31:LO32) -> 0 | LN42: =SUM('Samlet hovedstaden -alle værker'!LP31:LP32) -> 0 | LO42: =SUM('Samlet hovedstaden -alle værker'!LQ31:LQ32) -> 0 | LP42: =SUM('Samlet hovedstaden -alle værker'!LR31:LR32) -> 0 | LQ42: =SUM('Samlet hovedstaden -alle værker'!LS31:LS32) -> 0 | LR42: =SUM('Samlet hovedstaden -alle værker'!LT31:LT32) -> 0 | LS42: =SUM('Samlet hovedstaden -alle værker'!LU31:LU32) -> 0 | LT42: =SUM('Samlet hovedstaden -alle værker'!LV31:LV32) -> 0 | LU42: =SUM('Samlet hovedstaden -alle værker'!LW31:LW32) -> 0 | LV42: =SUM('Samlet hovedstaden -alle værker'!LX31:LX32) -> 0 | LW42: =SUM('Samlet hovedstaden -alle værker'!LY31:LY32) -> 0 | LX42: =SUM('Samlet hovedstaden -alle værker'!LZ31:LZ32) -> 0 | LY42: =SUM('Samlet hovedstaden -alle værker'!MA31:MA32) -> 0 | LZ42: =SUM('Samlet hovedstaden -alle værker'!MB31:MB32) -> 0 | MA42: =SUM('Samlet hovedstaden -alle værker'!MC31:MC32) -> 0 | MB42: =SUM('Samlet hovedstaden -alle værker'!MD31:MD32) -> 0 | MC42: =SUM('Samlet hovedstaden -alle værker'!ME31:ME32) -> 0 | MD42: =SUM('Samlet hovedstaden -alle værker'!MF31:MF32) -> 0 | ME42: =SUM('Samlet hovedstaden -alle værker'!MG31:MG32) -> 0 | MF42: =SUM('Samlet hovedstaden -alle værker'!MH31:MH32) -> 0 | MG42: =SUM('Samlet hovedstaden -alle værker'!MI31:MI32) -> 0 | MH42: =SUM('Samlet hovedstaden -alle værker'!MJ31:MJ32) -> 0 | MI42: =SUM('Samlet hovedstaden -alle værker'!MK31:MK32) -> 0 | MJ42: =SUM('Samlet hovedstaden -alle værker'!ML31:ML32) -> 0 | MK42: =SUM('Samlet hovedstaden -alle værker'!MM31:MM32) -> 0 | ML42: =SUM('Samlet hovedstaden -alle værker'!MN31:MN32) -> 0 | MM42: =SUM('Samlet hovedstaden -alle værker'!MO31:MO32) -> 0 | MN42: =SUM('Samlet hovedstaden -alle værker'!MP31:MP32) -> 0 | MO42: =SUM('Samlet hovedstaden -alle værker'!MQ31:MQ32) -> 0 | MP42: =SUM('Samlet hovedstaden -alle værker'!MR31:MR32) -> 0 | MQ42: =SUM('Samlet hovedstaden -alle værker'!MS31:MS32) -> 0 | MR42: =SUM('Samlet hovedstaden -alle værker'!MT31:MT32) -> 0 | MS42: =SUM('Samlet hovedstaden -alle værker'!MU31:MU32) -> 0 | MT42: =SUM('Samlet hovedstaden -alle værker'!MV31:MV32) -> 0 | MU42: =SUM('Samlet hovedstaden -alle værker'!MW31:MW32) -> 0 | MV42: =SUM('Samlet hovedstaden -alle værker'!MX31:MX32) -> 0 | MW42: =SUM('Samlet hovedstaden -alle værker'!MY31:MY32) -> 0 | MX42: =SUM('Samlet hovedstaden -alle værker'!MZ31:MZ32) -> 0 | MY42: =SUM('Samlet hovedstaden -alle værker'!NA31:NA32) -> 0 | MZ42: =SUM('Samlet hovedstaden -alle værker'!NB31:NB32) -> 0 | NA42: =SUM('Samlet hovedstaden -alle værker'!NC31:NC32) -> 0 | NB42: =SUM('Samlet hovedstaden -alle værker'!ND31:ND32) -> 0 | NC42: =SUM('Samlet hovedstaden -alle værker'!NE31:NE32) -> 0 | ND42: =SUM('Samlet hovedstaden -alle værker'!NF31:NF32) -> 0 | NE42: =SUM('Samlet hovedstaden -alle værker'!NG31:NG32) -> 0 | NF42: =SUM('Samlet hovedstaden -alle værker'!NH31:NH32) -> 0 | NG42: =SUM('Samlet hovedstaden -alle værker'!NI31:NI32) -> 0 | NH42: =SUM('Samlet hovedstaden -alle værker'!NJ31:NJ32) -> 0 | NI42: =SUM('Samlet hovedstaden -alle værker'!NK31:NK32) -> 0 | NJ42: =SUM('Samlet hovedstaden -alle værker'!NL31:NL32) -> 0 | NK42: =SUM('Samlet hovedstaden -alle værker'!NM31:NM32) -> 0 | NL42: =SUM('Samlet hovedstaden -alle værker'!NN31:NN32) -> 0 | NM42: =SUM('Samlet hovedstaden -alle værker'!NO31:NO32) -> 0 | NN42: =SUM('Samlet hovedstaden -alle værker'!NP31:NP32) -> 0 | NO42: =SUM('Samlet hovedstaden -alle værker'!NQ31:NQ32) -> 0 | NP42: =SUM('Samlet hovedstaden -alle værker'!NR31:NR32) -> 0 | NQ42: =SUM('Samlet hovedstaden -alle værker'!NS31:NS32) -> 0 | NR42: =SUM('Samlet hovedstaden -alle værker'!NT31:NT32) -> 0 | NS42: =SUM('Samlet hovedstaden -alle værker'!NU31:NU32) -> 0 | NT42: =SUM('Samlet hovedstaden -alle værker'!NV31:NV32) -> 0 | NU42: =SUM('Samlet hovedstaden -alle værker'!NW31:NW32) -> 0 | NV42: =SUM('Samlet hovedstaden -alle værker'!NX31:NX32) -> 0 | NW42: =SUM('Samlet hovedstaden -alle værker'!NY31:NY32) -> 0 | NX42: =SUM('Samlet hovedstaden -alle værker'!NZ31:NZ32) -> 0 | NY42: =SUM('Samlet hovedstaden -alle værker'!OA31:OA32) -> 0 | NZ42: =SUM('Samlet hovedstaden -alle værker'!OB31:OB32) -> 0 | OA42: =SUM('Samlet hovedstaden -alle værker'!OC31:OC32) -> 0 | OB42: =SUM('Samlet hovedstaden -alle værker'!OD31:OD32) -> 0 | OC42: =SUM('Samlet hovedstaden -alle værker'!OE31:OE32) -> 0 | OD42: =SUM('Samlet hovedstaden -alle værker'!OF31:OF32) -> 0 | OE42: =SUM('Samlet hovedstaden -alle værker'!OG31:OG32) -> 0 | OF42: =SUM('Samlet hovedstaden -alle værker'!OH31:OH32) -> 0 | OG42: =SUM('Samlet hovedstaden -alle værker'!OI31:OI32) -> 0 | OH42: =SUM('Samlet hovedstaden -alle værker'!OJ31:OJ32) -> 0 | OI42: =SUM('Samlet hovedstaden -alle værker'!OK31:OK32) -> 0 | OJ42: =SUM('Samlet hovedstaden -alle værker'!OL31:OL32) -> 0 | OK42: =SUM('Samlet hovedstaden -alle værker'!OM31:OM32) -> 0 | OL42: =SUM('Samlet hovedstaden -alle værker'!ON31:ON32) -> 0 | OM42: =SUM('Samlet hovedstaden -alle værker'!OO31:OO32) -> 0 | ON42: =SUM('Samlet hovedstaden -alle værker'!OP31:OP32) -> 0 | OO42: =SUM('Samlet hovedstaden -alle værker'!OQ31:OQ32) -> 0 | OP42: =SUM('Samlet hovedstaden -alle værker'!OR31:OR32) -> 0 | OQ42: =SUM('Samlet hovedstaden -alle værker'!OS31:OS32) -> 0 | OR42: =SUM('Samlet hovedstaden -alle værker'!OT31:OT32) -> 0 | OS42: =SUM('Samlet hovedstaden -alle værker'!OU31:OU32) -> 0 | OT42: =SUM('Samlet hovedstaden -alle værker'!OV31:OV32) -> 0
D43: Elsalg | F43: -45.01613435 | G43: ='Samlet hovedstaden -alle værker'!I42 -> -40.79180951 | H43: ='Samlet hovedstaden -alle værker'!J42 -> -39.25386046 | I43: ='Samlet hovedstaden -alle værker'!K42 -> -135.7211183 | J43: ='Samlet hovedstaden -alle værker'!L42 -> -70.14322122 | K43: ='Samlet hovedstaden -alle værker'!M42 -> -58.64614552 | L43: ='Samlet hovedstaden -alle værker'!N42 -> -55.21121856 | M43: ='Samlet hovedstaden -alle værker'!O42 -> -54.6568968 | N43: ='Samlet hovedstaden -alle værker'!P42 -> -52.9633119 | O43: ='Samlet hovedstaden -alle værker'!Q42 -> -51.16248217 | P43: ='Samlet hovedstaden -alle værker'!R42 -> -47.16765574 | Q43: ='Samlet hovedstaden -alle værker'!S42 -> -40.97378294 | R43: ='Samlet hovedstaden -alle værker'!T42 -> -40.58692896 | S43: ='Samlet hovedstaden -alle værker'!U42 -> -40.69247249 | T43: ='Samlet hovedstaden -alle værker'!V42 -> -41.22329221 | U43: ='Samlet hovedstaden -alle værker'!W42 -> -36.14169603 | V43: ='Samlet hovedstaden -alle værker'!X42 -> -34.83535057 | W43: ='Samlet hovedstaden -alle værker'!Y42 -> -34.56536982 | X43: ='Samlet hovedstaden -alle værker'!Z42 -> -34.28851036 | Y43: ='Samlet hovedstaden -alle værker'!AA42 -> -34.00477213 | Z43: ='Samlet hovedstaden -alle værker'!AB42 -> -33.71415511 | AA43: ='Samlet hovedstaden -alle værker'!AC42 -> -33.41665925 | AB43: ='Samlet hovedstaden -alle værker'!AD42 -> -33.41665925 | AC43: ='Samlet hovedstaden -alle værker'!AE42 -> -33.41665925 | AD43: ='Samlet hovedstaden -alle værker'!AF42 -> -33.41665925 | AE43: ='Samlet hovedstaden -alle værker'!AG42 -> -33.41665925 | AF43: ='Samlet hovedstaden -alle værker'!AH42 -> -33.41665925 | AG43: ='Samlet hovedstaden -alle værker'!AI42 -> -33.41665925 | AH43: ='Samlet hovedstaden -alle værker'!AJ42 -> -33.41665925 | AI43: ='Samlet hovedstaden -alle værker'!AK42 -> -33.41665925 | AJ43: ='Samlet hovedstaden -alle værker'!AL42 -> -33.41665925 | AK43: ='Samlet hovedstaden -alle værker'!AM42 -> -33.41665925 | AM43: ='Samlet hovedstaden -alle værker'!AO42 -> -17.44811656 | AN43: ='Samlet hovedstaden -alle værker'!AP42 -> -25.06081917 | AO43: ='Samlet hovedstaden -alle værker'!AQ42 -> -46.57333294 | AP43: ='Samlet hovedstaden -alle værker'!AR42 -> -54.66786348 | AQ43: ='Samlet hovedstaden -alle værker'!AS42 -> -46.49067703 | AR43: ='Samlet hovedstaden -alle værker'!AT42 -> -51.56640549 | AS43: ='Samlet hovedstaden -alle værker'!AU42 -> -46.83370919 | AT43: ='Samlet hovedstaden -alle værker'!AV42 -> -49.44627142 | AU43: ='Samlet hovedstaden -alle værker'!AW42 -> -47.74735333 | AV43: ='Samlet hovedstaden -alle værker'!AX42 -> -45.82190206 | AW43: ='Samlet hovedstaden -alle værker'!AY42 -> -50.20818846 | AX43: ='Samlet hovedstaden -alle værker'!AZ42 -> -5.968436866 | AY43: ='Samlet hovedstaden -alle værker'!BA42 -> -16.22303545 | AZ43: ='Samlet hovedstaden -alle værker'!BB42 -> -26.1046126 | BA43: ='Samlet hovedstaden -alle værker'!BC42 -> -47.79598158 | BB43: ='Samlet hovedstaden -alle værker'!BD42 -> -58.83427915 | BC43: ='Samlet hovedstaden -alle værker'!BE42 -> -50.24346923 | BD43: ='Samlet hovedstaden -alle værker'!BF42 -> -56.99794003 | BE43: ='Samlet hovedstaden -alle værker'!BG42 -> -53.86719866 | BF43: ='Samlet hovedstaden -alle værker'!BH42 -> -52.58840208 | BG43: ='Samlet hovedstaden -alle værker'!BI42 -> -52.86961644 | BH43: ='Samlet hovedstaden -alle værker'!BJ42 -> -49.65398228 | BI43: ='Samlet hovedstaden -alle værker'!BK42 -> -52.98871697 | BJ43: ='Samlet hovedstaden -alle værker'!BL42 -> -8.320465039 | BK43: ='Samlet hovedstaden -alle værker'!BM42 -> -14.99795433 | BL43: ='Samlet hovedstaden -alle værker'!BN42 -> -27.14840602 | BM43: ='Samlet hovedstaden -alle værker'!BO42 -> -49.01863022 | BN43: ='Samlet hovedstaden -alle værker'!BP42 -> -63.00069482 | BO43: ='Samlet hovedstaden -alle værker'!BQ42 -> -53.99626143 | BP43: ='Samlet hovedstaden -alle værker'!BR42 -> -62.42947456 | BQ43: ='Samlet hovedstaden -alle værker'!BS42 -> -60.90068813 | BR43: ='Samlet hovedstaden -alle værker'!BT42 -> -55.73053274 | BS43: ='Samlet hovedstaden -alle værker'!BU42 -> -57.99187955 | BT43: ='Samlet hovedstaden -alle værker'!BV42 -> -53.4860625 | BU43: ='Samlet hovedstaden -alle værker'!BW42 -> -55.76924549 | BV43: ='Samlet hovedstaden -alle værker'!BX42 -> -10.67249321 | BW43: ='Samlet hovedstaden -alle værker'!BY42 -> -13.77287322 | BX43: ='Samlet hovedstaden -alle værker'!BZ42 -> -28.19219945 | BY43: ='Samlet hovedstaden -alle værker'!CA42 -> -50.24127886 | BZ43: ='Samlet hovedstaden -alle værker'!CB42 -> -67.1671105 | CA43: ='Samlet hovedstaden -alle værker'!CC42 -> -57.74905362 | CB43: ='Samlet hovedstaden -alle værker'!CD42 -> -67.8610091 | CC43: ='Samlet hovedstaden -alle værker'!CE42 -> -67.93417759 | CD43: ='Samlet hovedstaden -alle værker'!CF42 -> -58.8726634 | CE43: ='Samlet hovedstaden -alle værker'!CG42 -> -63.11414267 | CF43: ='Samlet hovedstaden -alle værker'!CH42 -> -57.31814273 | CG43: ='Samlet hovedstaden -alle værker'!CI42 -> -58.549774 | CH43: ='Samlet hovedstaden -alle værker'!CJ42 -> -13.02452138 | CI43: ='Samlet hovedstaden -alle værker'!CK42 -> -12.54779211 | CJ43: ='Samlet hovedstaden -alle værker'!CL42 -> -29.23599288 | CK43: ='Samlet hovedstaden -alle værker'!CM42 -> -51.4639275 | CL43: ='Samlet hovedstaden -alle værker'!CN42 -> -71.33352617 | CM43: ='Samlet hovedstaden -alle værker'!CO42 -> -61.50184582 | CN43: ='Samlet hovedstaden -alle værker'!CP42 -> -73.29254364 | CO43: ='Samlet hovedstaden -alle værker'!CQ42 -> -74.96766706 | CP43: ='Samlet hovedstaden -alle værker'!CR42 -> -62.01479406 | CQ43: ='Samlet hovedstaden -alle værker'!CS42 -> -68.23640578 | CR43: ='Samlet hovedstaden -alle værker'!CT42 -> -61.15022295 | CS43: ='Samlet hovedstaden -alle værker'!CU42 -> -61.33030252 | CT43: ='Samlet hovedstaden -alle værker'!CV42 -> -15.37654956 | CU43: ='Samlet hovedstaden -alle værker'!CW42 -> -11.32271099 | CV43: ='Samlet hovedstaden -alle værker'!CX42 -> -30.2797863 | CW43: ='Samlet hovedstaden -alle værker'!CY42 -> -52.68657614 | CX43: ='Samlet hovedstaden -alle værker'!CZ42 -> -75.49994184 | CY43: ='Samlet hovedstaden -alle værker'!DA42 -> -65.25463802 | CZ43: ='Samlet hovedstaden -alle værker'!DB42 -> -78.72407818 | DA43: ='Samlet hovedstaden -alle værker'!DC42 -> -82.00115652 | DB43: ='Samlet hovedstaden -alle værker'!DD42 -> -65.15692472 | DC43: ='Samlet hovedstaden -alle værker'!DE42 -> -73.35866889 | DD43: ='Samlet hovedstaden -alle værker'!DF42 -> -64.98230317 | DE43: ='Samlet hovedstaden -alle værker'!DG42 -> -64.11083103 | DF43: ='Samlet hovedstaden -alle værker'!DH42 -> -17.72857773 | DG43: ='Samlet hovedstaden -alle værker'!DI42 -> -9.31034536 | DH43: ='Samlet hovedstaden -alle værker'!DJ42 -> -27.36547164 | DI43: ='Samlet hovedstaden -alle værker'!DK42 -> -49.79240498 | DJ43: ='Samlet hovedstaden -alle værker'!DL42 -> -71.06182054 | DK43: ='Samlet hovedstaden -alle værker'!DM42 -> -62.67553071 | DL43: ='Samlet hovedstaden -alle værker'!DN42 -> -74.52954725 | DM43: ='Samlet hovedstaden -alle værker'!DO42 -> -78.11242332 | DN43: ='Samlet hovedstaden -alle værker'!DP42 -> -62.67113981 | DO43: ='Samlet hovedstaden -alle værker'!DQ42 -> -71.24958786 | DP43: ='Samlet hovedstaden -alle værker'!DR42 -> -60.61535458 | DQ43: ='Samlet hovedstaden -alle værker'!DS42 -> -59.30735448 | DR43: ='Samlet hovedstaden -alle værker'!DT42 -> -17.34656642 | DS43: ='Samlet hovedstaden -alle værker'!DU42 -> -7.297979728 | DT43: ='Samlet hovedstaden -alle værker'!DV42 -> -24.45115697 | DU43: ='Samlet hovedstaden -alle værker'!DW42 -> -46.89823382 | DV43: ='Samlet hovedstaden -alle værker'!DX42 -> -66.62369923 | DW43: ='Samlet hovedstaden -alle værker'!DY42 -> -60.09642341 | DX43: ='Samlet hovedstaden -alle værker'!DZ42 -> -70.33501632 | DY43: ='Samlet hovedstaden -alle værker'!EA42 -> -74.22369013 | DZ43: ='Samlet hovedstaden -alle værker'!EB42 -> -60.1853549 | EA43: ='Samlet hovedstaden -alle værker'!EC42 -> -69.14050683 | EB43: ='Samlet hovedstaden -alle værker'!ED42 -> -56.24840598 | EC43: ='Samlet hovedstaden -alle værker'!EE42 -> -54.50387793 | ED43: ='Samlet hovedstaden -alle værker'!EF42 -> -16.9645551 | EE43: ='Samlet hovedstaden -alle værker'!EG42 -> -5.285614096 | EF43: ='Samlet hovedstaden -alle værker'!EH42 -> -21.53684231 | EG43: ='Samlet hovedstaden -alle værker'!EI42 -> -44.00406267 | EH43: ='Samlet hovedstaden -alle værker'!EJ42 -> -62.18557793 | EI43: ='Samlet hovedstaden -alle værker'!EK42 -> -57.51731611 | EJ43: ='Samlet hovedstaden -alle værker'!EL42 -> -66.1404854 | EK43: ='Samlet hovedstaden -alle værker'!EM42 -> -70.33495693 | EL43: ='Samlet hovedstaden -alle værker'!EN42 -> -57.69956999 | EM43: ='Samlet hovedstaden -alle værker'!EO42 -> -67.0314258 | EN43: ='Samlet hovedstaden -alle værker'!EP42 -> -51.88145738 | EO43: ='Samlet hovedstaden -alle værker'!EQ42 -> -49.70040138 | EP43: ='Samlet hovedstaden -alle værker'!ER42 -> -16.58254379 | EQ43: ='Samlet hovedstaden -alle værker'!ES42 -> -3.273248464 | ER43: ='Samlet hovedstaden -alle værker'!ET42 -> -18.62252765 | ES43: ='Samlet hovedstaden -alle værker'!EU42 -> -41.10989151 | ET43: ='Samlet hovedstaden -alle værker'!EV42 -> -57.74745663 | EU43: ='Samlet hovedstaden -alle værker'!EW42 -> -54.93820881 | EV43: ='Samlet hovedstaden -alle værker'!EX42 -> -61.94595447 | EW43: ='Samlet hovedstaden -alle værker'!EY42 -> -66.44622373 | EX43: ='Samlet hovedstaden -alle værker'!EZ42 -> -55.21378508 | EY43: ='Samlet hovedstaden -alle værker'!FA42 -> -64.92234477 | EZ43: ='Samlet hovedstaden -alle værker'!FB42 -> -47.51450878 | FA43: ='Samlet hovedstaden -alle værker'!FC42 -> -44.89692483 | FB43: ='Samlet hovedstaden -alle værker'!FD42 -> -16.20053247 | FC43: ='Samlet hovedstaden -alle værker'!FE42 -> -1.260882832 | FD43: ='Samlet hovedstaden -alle værker'!FF42 -> -15.70821298 | FE43: ='Samlet hovedstaden -alle værker'!FG42 -> -38.21572035 | FF43: ='Samlet hovedstaden -alle værker'!FH42 -> -53.30933532 | FG43: ='Samlet hovedstaden -alle værker'!FI42 -> -52.35910151 | FH43: ='Samlet hovedstaden -alle værker'!FJ42 -> -57.75142354 | FI43: ='Samlet hovedstaden -alle værker'!FK42 -> -62.55749053 | FJ43: ='Samlet hovedstaden -alle værker'!FL42 -> -52.72800017 | FK43: ='Samlet hovedstaden -alle værker'!FM42 -> -62.81326374 | FL43: ='Samlet hovedstaden -alle værker'!FN42 -> -43.14756018 | FM43: ='Samlet hovedstaden -alle værker'!FO42 -> -40.09344828 | FN43: ='Samlet hovedstaden -alle værker'!FP42 -> -15.81852116 | FO43: ='Samlet hovedstaden -alle værker'!FQ42 -> -2.442510081 | FP43: ='Samlet hovedstaden -alle værker'!FR42 -> -20.33722204 | FQ43: ='Samlet hovedstaden -alle værker'!FS42 -> -39.65392624 | FR43: ='Samlet hovedstaden -alle værker'!FT42 -> -52.84735996 | FS43: ='Samlet hovedstaden -alle værker'!FU42 -> -52.00822426 | FT43: ='Samlet hovedstaden -alle værker'!FV42 -> -59.96932684 | FU43: ='Samlet hovedstaden -alle værker'!FW42 -> -62.64646849 | FV43: ='Samlet hovedstaden -alle værker'!FX42 -> -53.41913503 | FW43: ='Samlet hovedstaden -alle værker'!FY42 -> -60.4807824 | FX43: ='Samlet hovedstaden -alle værker'!FZ42 -> -42.37153951 | FY43: ='Samlet hovedstaden -alle værker'!GA42 -> -39.53743711 | FZ43: ='Samlet hovedstaden -alle værker'!GB42 -> -10.75928218 | GA43: ='Samlet hovedstaden -alle værker'!GC42 -> -5.478551544 | GB43: ='Samlet hovedstaden -alle værker'!GD42 -> -17.92873075 | GC43: ='Samlet hovedstaden -alle værker'!GE42 -> -41.07791905 | GD43: ='Samlet hovedstaden -alle værker'!GF42 -> -57.96596117 | GE43: ='Samlet hovedstaden -alle værker'!GG42 -> -50.84196037 | GF43: ='Samlet hovedstaden -alle værker'!GH42 -> -61.7183859 | GG43: ='Samlet hovedstaden -alle værker'!GI42 -> -61.03754973 | GH43: ='Samlet hovedstaden -alle værker'!GJ42 -> -51.86549692 | GI43: ='Samlet hovedstaden -alle værker'!GK42 -> -56.22953306 | GJ43: ='Samlet hovedstaden -alle værker'!GL42 -> -37.56321372 | GK43: ='Samlet hovedstaden -alle værker'!GM42 -> -40.14800003 | GL43: ='Samlet hovedstaden -alle værker'!GN42 -> -10.61879743 | GM43: ='Samlet hovedstaden -alle værker'!GO42 -> -4.309404997 | GN43: ='Samlet hovedstaden -alle værker'!GP42 -> -17.18932575 | GO43: ='Samlet hovedstaden -alle værker'!GQ42 -> -38.18150587 | GP43: ='Samlet hovedstaden -alle værker'!GR42 -> -54.09316037 | GQ43: ='Samlet hovedstaden -alle værker'!GS42 -> -53.95875945 | GR43: ='Samlet hovedstaden -alle værker'!GT42 -> -64.92756127 | GS43: ='Samlet hovedstaden -alle værker'!GU42 -> -64.6172843 | GT43: ='Samlet hovedstaden -alle værker'!GV42 -> -54.01708011 | GU43: ='Samlet hovedstaden -alle værker'!GW42 -> -60.0125003 | GV43: ='Samlet hovedstaden -alle værker'!GX42 -> -39.4385207 | GW43: ='Samlet hovedstaden -alle værker'!GY42 -> -39.21471975 | GX43: ='Samlet hovedstaden -alle værker'!GZ42 -> -16.0684285 | GY43: ='Samlet hovedstaden -alle værker'!HA42 -> 4.160905459 | GZ43: ='Samlet hovedstaden -alle værker'!HB42 -> -13.9878682 | HA43: ='Samlet hovedstaden -alle værker'!HC42 -> -44.31712319 | HB43: ='Samlet hovedstaden -alle værker'!HD42 -> -45.80891847 | HC43: ='Samlet hovedstaden -alle værker'!HE42 -> -50.95830972 | HD43: ='Samlet hovedstaden -alle værker'!HF42 -> -67.08585612 | HE43: ='Samlet hovedstaden -alle værker'!HG42 -> -64.11528893 | HF43: ='Samlet hovedstaden -alle værker'!HH42 -> -46.34766591 | HG43: ='Samlet hovedstaden -alle værker'!HI42 -> -61.85011694 | HH43: ='Samlet hovedstaden -alle værker'!HJ42 -> -33.8883547 | HI43: ='Samlet hovedstaden -alle værker'!HK42 -> -24.19151447 | HJ43: ='Samlet hovedstaden -alle værker'!HL42 -> -16.28082241 | HK43: ='Samlet hovedstaden -alle værker'!HM42 -> 5.170575863 | HL43: ='Samlet hovedstaden -alle værker'!HN42 -> -14.70323723 | HM43: ='Samlet hovedstaden -alle værker'!HO42 -> -44.95916583 | HN43: ='Samlet hovedstaden -alle værker'!HP42 -> -43.87778868 | HO43: ='Samlet hovedstaden -alle værker'!HQ42 -> -50.60360665 | HP43: ='Samlet hovedstaden -alle værker'!HR42 -> -65.92040909 | HQ43: ='Samlet hovedstaden -alle værker'!HS42 -> -62.46375597 | HR43: ='Samlet hovedstaden -alle værker'!HT42 -> -56.1939347 | HS43: ='Samlet hovedstaden -alle værker'!HU42 -> -70.76016247 | HT43: ='Samlet hovedstaden -alle værker'!HV42 -> -31.71734443 | HU43: ='Samlet hovedstaden -alle værker'!HW42 -> -29.77709515 | HV43: ='Samlet hovedstaden -alle værker'!HX42 -> -12.95574063 | HW43: ='Samlet hovedstaden -alle værker'!HY42 -> 3.948654668 | HX43: ='Samlet hovedstaden -alle værker'!HZ42 -> -13.23111182 | HY43: ='Samlet hovedstaden -alle værker'!IA42 -> -42.94758893 | HZ43: ='Samlet hovedstaden -alle værker'!IB42 -> -43.25526339 | IA43: ='Samlet hovedstaden -alle værker'!IC42 -> -51.23103268 | IB43: ='Samlet hovedstaden -alle værker'!ID42 -> -63.57991064 | IC43: ='Samlet hovedstaden -alle værker'!IE42 -> -59.58801065 | ID43: ='Samlet hovedstaden -alle værker'!IF42 -> -55.74113951 | IE43: ='Samlet hovedstaden -alle værker'!IG42 -> -69.15195726 | IF43: ='Samlet hovedstaden -alle værker'!IH42 -> -31.14458875 | IG43: ='Samlet hovedstaden -alle værker'!II42 -> -29.78729524 | IH43: ='Samlet hovedstaden -alle værker'!IJ42 -> -13.59629049 | II43: ='Samlet hovedstaden -alle værker'!IK42 -> 2.726733474 | IJ43: ='Samlet hovedstaden -alle værker'!IL42 -> -11.75898641 | IK43: ='Samlet hovedstaden -alle værker'!IM42 -> -40.93601203 | IL43: ='Samlet hovedstaden -alle værker'!IN42 -> -42.6327381 | IM43: ='Samlet hovedstaden -alle værker'!IO42 -> -51.8584587 | IN43: ='Samlet hovedstaden -alle værker'!IP42 -> -61.23941219 | IO43: ='Samlet hovedstaden -alle værker'!IQ42 -> -56.71226532 | IP43: ='Samlet hovedstaden -alle værker'!IR42 -> -55.28834432 | IQ43: ='Samlet hovedstaden -alle værker'!IS42 -> -67.54375206 | IR43: ='Samlet hovedstaden -alle værker'!IT42 -> -30.57183308 | IS43: ='Samlet hovedstaden -alle værker'!IU42 -> -29.79749533 | IT43: ='Samlet hovedstaden -alle værker'!IV42 -> -14.23684036 | IU43: ='Samlet hovedstaden -alle værker'!IW42 -> 1.504812279 | IV43: ='Samlet hovedstaden -alle værker'!IX42 -> -10.286861 | IW43: ='Samlet hovedstaden -alle værker'!IY42 -> -38.92443512 | IX43: ='Samlet hovedstaden -alle værker'!IZ42 -> -42.01021282 | IY43: ='Samlet hovedstaden -alle værker'!JA42 -> -52.48588473 | IZ43: ='Samlet hovedstaden -alle værker'!JB42 -> -58.89891374 | JA43: ='Samlet hovedstaden -alle værker'!JC42 -> -53.83652 | JB43: ='Samlet hovedstaden -alle værker'!JD42 -> -54.83554913 | JC43: ='Samlet hovedstaden -alle værker'!JE42 -> -65.93554686 | JD43: ='Samlet hovedstaden -alle værker'!JF42 -> -29.9990774 | JE43: ='Samlet hovedstaden -alle værker'!JG42 -> -29.80769542 | JF43: ='Samlet hovedstaden -alle værker'!JH42 -> -14.87739022 | JG43: ='Samlet hovedstaden -alle værker'!JI42 -> 0.2828910836 | JH43: ='Samlet hovedstaden -alle værker'!JJ42 -> -8.814735587 | JI43: ='Samlet hovedstaden -alle værker'!JK42 -> -36.91285822 | JJ43: ='Samlet hovedstaden -alle værker'!JL42 -> -41.38768753 | JK43: ='Samlet hovedstaden -alle værker'!JM42 -> -53.11331075 | JL43: ='Samlet hovedstaden -alle værker'!JN42 -> -56.55841528 | JM43: ='Samlet hovedstaden -alle værker'!JO42 -> -50.96077468 | JN43: ='Samlet hovedstaden -alle værker'!JP42 -> -54.38275395 | JO43: ='Samlet hovedstaden -alle værker'!JQ42 -> -64.32734165 | JP43: ='Samlet hovedstaden -alle værker'!JR42 -> -29.42632173 | JQ43: ='Samlet hovedstaden -alle værker'!JS42 -> -29.81789551 | JR43: ='Samlet hovedstaden -alle værker'!JT42 -> -15.51794009 | JS43: ='Samlet hovedstaden -alle værker'!JU42 -> -0.9390301113 | JT43: ='Samlet hovedstaden -alle værker'!JV42 -> -7.342610176 | JU43: ='Samlet hovedstaden -alle værker'!JW42 -> -34.90128132 | JV43: ='Samlet hovedstaden -alle værker'!JX42 -> -40.76516224 | JW43: ='Samlet hovedstaden -alle værker'!JY42 -> -53.74073678 | JX43: ='Samlet hovedstaden -alle værker'!JZ42 -> -54.21791683 | JY43: ='Samlet hovedstaden -alle værker'!KA42 -> -48.08502936 | JZ43: ='Samlet hovedstaden -alle værker'!KB42 -> -53.92995876 | KA43: ='Samlet hovedstaden -alle værker'!KC42 -> -62.71913645 | KB43: ='Samlet hovedstaden -alle værker'!KD42 -> -28.85356605 | KC43: ='Samlet hovedstaden -alle værker'!KE42 -> -29.8280956 | KD43: ='Samlet hovedstaden -alle værker'!KF42 -> -16.15848995 | KE43: ='Samlet hovedstaden -alle værker'!KG42 -> -0.9390301113 | KF43: ='Samlet hovedstaden -alle værker'!KH42 -> -7.342610176 | KG43: ='Samlet hovedstaden -alle værker'!KI42 -> -34.90128132 | KH43: ='Samlet hovedstaden -alle værker'!KJ42 -> -40.76516224 | KI43: ='Samlet hovedstaden -alle værker'!KK42 -> -53.74073678 | KJ43: ='Samlet hovedstaden -alle værker'!KL42 -> -54.21791683 | KK43: ='Samlet hovedstaden -alle værker'!KM42 -> -48.08502936 | KL43: ='Samlet hovedstaden -alle værker'!KN42 -> -53.92995876 | KM43: ='Samlet hovedstaden -alle værker'!KO42 -> -62.71913645 | KN43: ='Samlet hovedstaden -alle værker'!KP42 -> -28.85356605 | KO43: ='Samlet hovedstaden -alle værker'!KQ42 -> -29.8280956 | KP43: ='Samlet hovedstaden -alle værker'!KR42 -> -16.15848995 | KQ43: ='Samlet hovedstaden -alle værker'!KS42 -> -0.9390301113 | KR43: ='Samlet hovedstaden -alle værker'!KT42 -> -7.342610176 | KS43: ='Samlet hovedstaden -alle værker'!KU42 -> -34.90128132 | KT43: ='Samlet hovedstaden -alle værker'!KV42 -> -40.76516224 | KU43: ='Samlet hovedstaden -alle værker'!KW42 -> -53.74073678 | KV43: ='Samlet hovedstaden -alle værker'!KX42 -> -54.21791683 | KW43: ='Samlet hovedstaden -alle værker'!KY42 -> -48.08502936 | KX43: ='Samlet hovedstaden -alle værker'!KZ42 -> -53.92995876 | KY43: ='Samlet hovedstaden -alle værker'!LA42 -> -62.71913645 | KZ43: ='Samlet hovedstaden -alle værker'!LB42 -> -28.85356605 | LA43: ='Samlet hovedstaden -alle værker'!LC42 -> -29.8280956 | LB43: ='Samlet hovedstaden -alle værker'!LD42 -> -16.15848995 | LC43: ='Samlet hovedstaden -alle værker'!LE42 -> -0.9390301113 | LD43: ='Samlet hovedstaden -alle værker'!LF42 -> -7.342610176 | LE43: ='Samlet hovedstaden -alle værker'!LG42 -> -34.90128132 | LF43: ='Samlet hovedstaden -alle værker'!LH42 -> -40.76516224 | LG43: ='Samlet hovedstaden -alle værker'!LI42 -> -53.74073678 | LH43: ='Samlet hovedstaden -alle værker'!LJ42 -> -54.21791683 | LI43: ='Samlet hovedstaden -alle værker'!LK42 -> -48.08502936 | LJ43: ='Samlet hovedstaden -alle værker'!LL42 -> -53.92995876 | LK43: ='Samlet hovedstaden -alle værker'!LM42 -> -62.71913645 | LL43: ='Samlet hovedstaden -alle værker'!LN42 -> -28.85356605 | LM43: ='Samlet hovedstaden -alle værker'!LO42 -> -29.8280956 | LN43: ='Samlet hovedstaden -alle værker'!LP42 -> -16.15848995 | LO43: ='Samlet hovedstaden -alle værker'!LQ42 -> -0.9390301113 | LP43: ='Samlet hovedstaden -alle værker'!LR42 -> -7.342610176 | LQ43: ='Samlet hovedstaden -alle værker'!LS42 -> -34.90128132 | LR43: ='Samlet hovedstaden -alle værker'!LT42 -> -40.76516224 | LS43: ='Samlet hovedstaden -alle værker'!LU42 -> -53.74073678 | LT43: ='Samlet hovedstaden -alle værker'!LV42 -> -54.21791683 | LU43: ='Samlet hovedstaden -alle værker'!LW42 -> -48.08502936 | LV43: ='Samlet hovedstaden -alle værker'!LX42 -> -53.92995876 | LW43: ='Samlet hovedstaden -alle værker'!LY42 -> -62.71913645 | LX43: ='Samlet hovedstaden -alle værker'!LZ42 -> -28.85356605 | LY43: ='Samlet hovedstaden -alle værker'!MA42 -> -29.8280956 | LZ43: ='Samlet hovedstaden -alle værker'!MB42 -> -16.15848995 | MA43: ='Samlet hovedstaden -alle værker'!MC42 -> -0.9390301113 | MB43: ='Samlet hovedstaden -alle værker'!MD42 -> -7.342610176 | MC43: ='Samlet hovedstaden -alle værker'!ME42 -> -34.90128132 | MD43: ='Samlet hovedstaden -alle værker'!MF42 -> -40.76516224 | ME43: ='Samlet hovedstaden -alle værker'!MG42 -> -53.74073678 | MF43: ='Samlet hovedstaden -alle værker'!MH42 -> -54.21791683 | MG43: ='Samlet hovedstaden -alle værker'!MI42 -> -48.08502936 | MH43: ='Samlet hovedstaden -alle værker'!MJ42 -> -53.92995876 | MI43: ='Samlet hovedstaden -alle værker'!MK42 -> -62.71913645 | MJ43: ='Samlet hovedstaden -alle værker'!ML42 -> -28.85356605 | MK43: ='Samlet hovedstaden -alle værker'!MM42 -> -29.8280956 | ML43: ='Samlet hovedstaden -alle værker'!MN42 -> -16.15848995 | MM43: ='Samlet hovedstaden -alle værker'!MO42 -> -0.9390301113 | MN43: ='Samlet hovedstaden -alle værker'!MP42 -> -7.342610176 | MO43: ='Samlet hovedstaden -alle værker'!MQ42 -> -34.90128132 | MP43: ='Samlet hovedstaden -alle værker'!MR42 -> -40.76516224 | MQ43: ='Samlet hovedstaden -alle værker'!MS42 -> -53.74073678 | MR43: ='Samlet hovedstaden -alle værker'!MT42 -> -54.21791683 | MS43: ='Samlet hovedstaden -alle værker'!MU42 -> -48.08502936 | MT43: ='Samlet hovedstaden -alle værker'!MV42 -> -53.92995876 | MU43: ='Samlet hovedstaden -alle værker'!MW42 -> -62.71913645 | MV43: ='Samlet hovedstaden -alle værker'!MX42 -> -28.85356605 | MW43: ='Samlet hovedstaden -alle værker'!MY42 -> -29.8280956 | MX43: ='Samlet hovedstaden -alle værker'!MZ42 -> -16.15848995 | MY43: ='Samlet hovedstaden -alle værker'!NA42 -> -0.9390301113 | MZ43: ='Samlet hovedstaden -alle værker'!NB42 -> -7.342610176 | NA43: ='Samlet hovedstaden -alle værker'!NC42 -> -34.90128132 | NB43: ='Samlet hovedstaden -alle værker'!ND42 -> -40.76516224 | NC43: ='Samlet hovedstaden -alle værker'!NE42 -> -53.74073678 | ND43: ='Samlet hovedstaden -alle værker'!NF42 -> -54.21791683 | NE43: ='Samlet hovedstaden -alle værker'!NG42 -> -48.08502936 | NF43: ='Samlet hovedstaden -alle værker'!NH42 -> -53.92995876 | NG43: ='Samlet hovedstaden -alle værker'!NI42 -> -62.71913645 | NH43: ='Samlet hovedstaden -alle værker'!NJ42 -> -28.85356605 | NI43: ='Samlet hovedstaden -alle værker'!NK42 -> -29.8280956 | NJ43: ='Samlet hovedstaden -alle værker'!NL42 -> -16.15848995 | NK43: ='Samlet hovedstaden -alle værker'!NM42 -> -0.9390301113 | NL43: ='Samlet hovedstaden -alle værker'!NN42 -> -7.342610176 | NM43: ='Samlet hovedstaden -alle værker'!NO42 -> -34.90128132 | NN43: ='Samlet hovedstaden -alle værker'!NP42 -> -40.76516224 | NO43: ='Samlet hovedstaden -alle værker'!NQ42 -> -53.74073678 | NP43: ='Samlet hovedstaden -alle værker'!NR42 -> -54.21791683 | NQ43: ='Samlet hovedstaden -alle værker'!NS42 -> -48.08502936 | NR43: ='Samlet hovedstaden -alle værker'!NT42 -> -53.92995876 | NS43: ='Samlet hovedstaden -alle værker'!NU42 -> -62.71913645 | NT43: ='Samlet hovedstaden -alle værker'!NV42 -> -28.85356605 | NU43: ='Samlet hovedstaden -alle værker'!NW42 -> -29.8280956 | NV43: ='Samlet hovedstaden -alle værker'!NX42 -> -16.15848995 | NW43: ='Samlet hovedstaden -alle værker'!NY42 -> -0.9390301113 | NX43: ='Samlet hovedstaden -alle værker'!NZ42 -> -7.342610176 | NY43: ='Samlet hovedstaden -alle værker'!OA42 -> -34.90128132 | NZ43: ='Samlet hovedstaden -alle værker'!OB42 -> -40.76516224 | OA43: ='Samlet hovedstaden -alle værker'!OC42 -> -53.74073678 | OB43: ='Samlet hovedstaden -alle værker'!OD42 -> -54.21791683 | OC43: ='Samlet hovedstaden -alle værker'!OE42 -> -48.08502936 | OD43: ='Samlet hovedstaden -alle værker'!OF42 -> -53.92995876 | OE43: ='Samlet hovedstaden -alle værker'!OG42 -> -62.71913645 | OF43: ='Samlet hovedstaden -alle værker'!OH42 -> -28.85356605 | OG43: ='Samlet hovedstaden -alle værker'!OI42 -> -29.8280956 | OH43: ='Samlet hovedstaden -alle værker'!OJ42 -> -16.15848995 | OI43: ='Samlet hovedstaden -alle værker'!OK42 -> -0.9390301113 | OJ43: ='Samlet hovedstaden -alle værker'!OL42 -> -7.342610176 | OK43: ='Samlet hovedstaden -alle værker'!OM42 -> -34.90128132 | OL43: ='Samlet hovedstaden -alle værker'!ON42 -> -40.76516224 | OM43: ='Samlet hovedstaden -alle værker'!OO42 -> -53.74073678 | ON43: ='Samlet hovedstaden -alle værker'!OP42 -> -54.21791683 | OO43: ='Samlet hovedstaden -alle værker'!OQ42 -> -48.08502936 | OP43: ='Samlet hovedstaden -alle værker'!OR42 -> -53.92995876 | OQ43: ='Samlet hovedstaden -alle værker'!OS42 -> -62.71913645 | OR43: ='Samlet hovedstaden -alle værker'!OT42 -> -28.85356605 | OS43: ='Samlet hovedstaden -alle værker'!OU42 -> -29.8280956 | OT43: ='Samlet hovedstaden -alle værker'!OV42 -> -16.15848995
D44: Energiomkostninger og var. D&V | F44: 98.92001383 | G44: =SUM('Samlet hovedstaden -alle værker'!I33:I35) -> 84.69296793 | H44: =SUM('Samlet hovedstaden -alle værker'!J33:J35) -> 84.01955488 | I44: =SUM('Samlet hovedstaden -alle værker'!K33:K35) -> 116.1950727 | J44: =SUM('Samlet hovedstaden -alle værker'!L33:L35) -> 104.2001524 | K44: =SUM('Samlet hovedstaden -alle værker'!M33:M35) -> 94.67710338 | L44: =SUM('Samlet hovedstaden -alle værker'!N33:N35) -> 94.44814351 | M44: =SUM('Samlet hovedstaden -alle værker'!O33:O35) -> 95.15785226 | N44: =SUM('Samlet hovedstaden -alle værker'!P33:P35) -> 95.76927425 | O44: =SUM('Samlet hovedstaden -alle værker'!Q33:Q35) -> 96.44924754 | P44: =SUM('Samlet hovedstaden -alle værker'!R33:R35) -> 96.98600666 | Q44: =SUM('Samlet hovedstaden -alle værker'!S33:S35) -> 97.55506995 | R44: =SUM('Samlet hovedstaden -alle værker'!T33:T35) -> 97.56927478 | S44: =SUM('Samlet hovedstaden -alle værker'!U33:U35) -> 96.45800081 | T44: =SUM('Samlet hovedstaden -alle værker'!V33:V35) -> 96.16297737 | U44: =SUM('Samlet hovedstaden -alle værker'!W33:W35) -> 107.2997059 | V44: =SUM('Samlet hovedstaden -alle værker'!X33:X35) -> 106.8879328 | W44: =SUM('Samlet hovedstaden -alle værker'!Y33:Y35) -> 105.1580602 | X44: =SUM('Samlet hovedstaden -alle værker'!Z33:Z35) -> 103.358822 | Y44: =SUM('Samlet hovedstaden -alle værker'!AA33:AA35) -> 101.6165517 | Z44: =SUM('Samlet hovedstaden -alle værker'!AB33:AB35) -> 99.86893512 | AA44: =SUM('Samlet hovedstaden -alle værker'!AC33:AC35) -> 98.14368765 | AB44: =SUM('Samlet hovedstaden -alle værker'!AD33:AD35) -> 98.14368765 | AC44: =SUM('Samlet hovedstaden -alle værker'!AE33:AE35) -> 98.14368765 | AD44: =SUM('Samlet hovedstaden -alle værker'!AF33:AF35) -> 98.14368765 | AE44: =SUM('Samlet hovedstaden -alle værker'!AG33:AG35) -> 98.14368765 | AF44: =SUM('Samlet hovedstaden -alle værker'!AH33:AH35) -> 98.14368765 | AG44: =SUM('Samlet hovedstaden -alle værker'!AI33:AI35) -> 98.14368765 | AH44: =SUM('Samlet hovedstaden -alle værker'!AJ33:AJ35) -> 98.14368765 | AI44: =SUM('Samlet hovedstaden -alle værker'!AK33:AK35) -> 98.14368765 | AJ44: =SUM('Samlet hovedstaden -alle værker'!AL33:AL35) -> 98.14368765 | AK44: =SUM('Samlet hovedstaden -alle værker'!AM33:AM35) -> 98.14368765 | AM44: =SUM('Samlet hovedstaden -alle værker'!AO33:AO35) -> 75.12887411 | AN44: =SUM('Samlet hovedstaden -alle værker'!AP33:AP35) -> 84.83589755 | AO44: =SUM('Samlet hovedstaden -alle værker'!AQ33:AQ35) -> 106.3668113 | AP44: =SUM('Samlet hovedstaden -alle værker'!AR33:AR35) -> 106.092461 | AQ44: =SUM('Samlet hovedstaden -alle værker'!AS33:AS35) -> 75.18480428 | AR44: =SUM('Samlet hovedstaden -alle værker'!AT33:AT35) -> 76.11881597 | AS44: =SUM('Samlet hovedstaden -alle værker'!AU33:AU35) -> 57.53345139 | AT44: =SUM('Samlet hovedstaden -alle værker'!AV33:AV35) -> 81.56154589 | AU44: =SUM('Samlet hovedstaden -alle værker'!AW33:AW35) -> 77.41198456 | AV44: =SUM('Samlet hovedstaden -alle værker'!AX33:AX35) -> 79.0203545 | AW44: =SUM('Samlet hovedstaden -alle værker'!AY33:AY35) -> 106.7228131 | AX44: =SUM('Samlet hovedstaden -alle værker'!AZ33:AZ35) -> 76.49221263 | AY44: =SUM('Samlet hovedstaden -alle værker'!BA33:BA35) -> 75.45442329 | AZ44: =SUM('Samlet hovedstaden -alle værker'!BB33:BB35) -> 86.75760964 | BA44: =SUM('Samlet hovedstaden -alle værker'!BC33:BC35) -> 107.1483262 | BB44: =SUM('Samlet hovedstaden -alle værker'!BD33:BD35) -> 107.7324669 | BC44: =SUM('Samlet hovedstaden -alle værker'!BE33:BE35) -> 76.82737487 | BD44: =SUM('Samlet hovedstaden -alle værker'!BF33:BF35) -> 76.67906118 | BE44: =SUM('Samlet hovedstaden -alle værker'!BG33:BG35) -> 60.50185623 | BF44: =SUM('Samlet hovedstaden -alle værker'!BH33:BH35) -> 83.7612693 | BG44: =SUM('Samlet hovedstaden -alle værker'!BI33:BI35) -> 78.91799895 | BH44: =SUM('Samlet hovedstaden -alle værker'!BJ33:BJ35) -> 82.73933012 | BI44: =SUM('Samlet hovedstaden -alle værker'!BK33:BK35) -> 107.5741097 | BJ44: =SUM('Samlet hovedstaden -alle værker'!BL33:BL35) -> 81.86521014 | BK44: =SUM('Samlet hovedstaden -alle værker'!BM33:BM35) -> 75.77997248 | BL44: =SUM('Samlet hovedstaden -alle værker'!BN33:BN35) -> 88.67932173 | BM44: =SUM('Samlet hovedstaden -alle værker'!BO33:BO35) -> 107.9298412 | BN44: =SUM('Samlet hovedstaden -alle værker'!BP33:BP35) -> 109.3724728 | BO44: =SUM('Samlet hovedstaden -alle værker'!BQ33:BQ35) -> 78.46994546 | BP44: =SUM('Samlet hovedstaden -alle værker'!BR33:BR35) -> 77.23930639 | BQ44: =SUM('Samlet hovedstaden -alle værker'!BS33:BS35) -> 63.47026106 | BR44: =SUM('Samlet hovedstaden -alle værker'!BT33:BT35) -> 85.96099271 | BS44: =SUM('Samlet hovedstaden -alle værker'!BU33:BU35) -> 80.42401333 | BT44: =SUM('Samlet hovedstaden -alle værker'!BV33:BV35) -> 86.45830573 | BU44: =SUM('Samlet hovedstaden -alle værker'!BW33:BW35) -> 108.4254063 | BV44: =SUM('Samlet hovedstaden -alle værker'!BX33:BX35) -> 87.23820766 | BW44: =SUM('Samlet hovedstaden -alle værker'!BY33:BY35) -> 76.10552167 | BX44: =SUM('Samlet hovedstaden -alle værker'!BZ33:BZ35) -> 90.60103382 | BY44: =SUM('Samlet hovedstaden -alle værker'!CA33:CA35) -> 108.7113561 | BZ44: =SUM('Samlet hovedstaden -alle værker'!CB33:CB35) -> 111.0124787 | CA44: =SUM('Samlet hovedstaden -alle værker'!CC33:CC35) -> 80.11251605 | CB44: =SUM('Samlet hovedstaden -alle værker'!CD33:CD35) -> 77.7995516 | CC44: =SUM('Samlet hovedstaden -alle værker'!CE33:CE35) -> 66.4386659 | CD44: =SUM('Samlet hovedstaden -alle værker'!CF33:CF35) -> 88.16071613 | CE44: =SUM('Samlet hovedstaden -alle værker'!CG33:CG35) -> 81.93002772 | CF44: =SUM('Samlet hovedstaden -alle værker'!CH33:CH35) -> 90.17728135 | CG44: =SUM('Samlet hovedstaden -alle værker'!CI33:CI35) -> 109.2767029 | CH44: =SUM('Samlet hovedstaden -alle værker'!CJ33:CJ35) -> 92.61120518 | CI44: =SUM('Samlet hovedstaden -alle værker'!CK33:CK35) -> 76.43107086 | CJ44: =SUM('Samlet hovedstaden -alle værker'!CL33:CL35) -> 92.5227459 | CK44: =SUM('Samlet hovedstaden -alle værker'!CM33:CM35) -> 109.4928711 | CL44: =SUM('Samlet hovedstaden -alle værker'!CN33:CN35) -> 112.6524847 | CM44: =SUM('Samlet hovedstaden -alle værker'!CO33:CO35) -> 81.75508664 | CN44: =SUM('Samlet hovedstaden -alle værker'!CP33:CP35) -> 78.3597968 | CO44: =SUM('Samlet hovedstaden -alle værker'!CQ33:CQ35) -> 69.40707073 | CP44: =SUM('Samlet hovedstaden -alle værker'!CR33:CR35) -> 90.36043954 | CQ44: =SUM('Samlet hovedstaden -alle værker'!CS33:CS35) -> 83.4360421 | CR44: =SUM('Samlet hovedstaden -alle værker'!CT33:CT35) -> 93.89625697 | CS44: =SUM('Samlet hovedstaden -alle værker'!CU33:CU35) -> 110.1279995 | CT44: =SUM('Samlet hovedstaden -alle værker'!CV33:CV35) -> 97.9842027 | CU44: =SUM('Samlet hovedstaden -alle værker'!CW33:CW35) -> 76.75662005 | CV44: =SUM('Samlet hovedstaden -alle værker'!CX33:CX35) -> 94.44445799 | CW44: =SUM('Samlet hovedstaden -alle værker'!CY33:CY35) -> 110.274386 | CX44: =SUM('Samlet hovedstaden -alle værker'!CZ33:CZ35) -> 114.2924906 | CY44: =SUM('Samlet hovedstaden -alle værker'!DA33:DA35) -> 83.39765723 | CZ44: =SUM('Samlet hovedstaden -alle værker'!DB33:DB35) -> 78.92004201 | DA44: =SUM('Samlet hovedstaden -alle værker'!DC33:DC35) -> 72.37547557 | DB44: =SUM('Samlet hovedstaden -alle værker'!DD33:DD35) -> 92.56016295 | DC44: =SUM('Samlet hovedstaden -alle værker'!DE33:DE35) -> 84.94205648 | DD44: =SUM('Samlet hovedstaden -alle værker'!DF33:DF35) -> 97.61523259 | DE44: =SUM('Samlet hovedstaden -alle værker'!DG33:DG35) -> 110.9792962 | DF44: =SUM('Samlet hovedstaden -alle værker'!DH33:DH35) -> 103.3572002 | DG44: =SUM('Samlet hovedstaden -alle værker'!DI33:DI35) -> 78.11538912 | DH44: =SUM('Samlet hovedstaden -alle værker'!DJ33:DJ35) -> 94.18746807 | DI44: =SUM('Samlet hovedstaden -alle værker'!DK33:DK35) -> 110.4234453 | DJ44: =SUM('Samlet hovedstaden -alle værker'!DL33:DL35) -> 112.8764051 | DK44: =SUM('Samlet hovedstaden -alle værker'!DM33:DM35) -> 86.71072421 | DL44: =SUM('Samlet hovedstaden -alle værker'!DN33:DN35) -> 79.14858044 | DM44: =SUM('Samlet hovedstaden -alle værker'!DO33:DO35) -> 72.65481569 | DN44: =SUM('Samlet hovedstaden -alle værker'!DP33:DP35) -> 92.81488825 | DO44: =SUM('Samlet hovedstaden -alle værker'!DQ33:DQ35) -> 86.85231267 | DP44: =SUM('Samlet hovedstaden -alle værker'!DR33:DR35) -> 98.44415837 | DQ44: =SUM('Samlet hovedstaden -alle værker'!DS33:DS35) -> 110.758477 | DR44: =SUM('Samlet hovedstaden -alle værker'!DT33:DT35) -> 104.1851041 | DS44: =SUM('Samlet hovedstaden -alle værker'!DU33:DU35) -> 79.47415819 | DT44: =SUM('Samlet hovedstaden -alle værker'!DV33:DV35) -> 93.93047815 | DU44: =SUM('Samlet hovedstaden -alle værker'!DW33:DW35) -> 110.5725046 | DV44: =SUM('Samlet hovedstaden -alle værker'!DX33:DX35) -> 111.4603197 | DW44: =SUM('Samlet hovedstaden -alle værker'!DY33:DY35) -> 90.02379118 | DX44: =SUM('Samlet hovedstaden -alle værker'!DZ33:DZ35) -> 79.37711887 | DY44: =SUM('Samlet hovedstaden -alle værker'!EA33:EA35) -> 72.93415581 | DZ44: =SUM('Samlet hovedstaden -alle værker'!EB33:EB35) -> 93.06961355 | EA44: =SUM('Samlet hovedstaden -alle værker'!EC33:EC35) -> 88.76256886 | EB44: =SUM('Samlet hovedstaden -alle værker'!ED33:ED35) -> 99.27308416 | EC44: =SUM('Samlet hovedstaden -alle værker'!EE33:EE35) -> 110.5376578 | ED44: =SUM('Samlet hovedstaden -alle værker'!EF33:EF35) -> 105.013008 | EE44: =SUM('Samlet hovedstaden -alle værker'!EG33:EG35) -> 80.83292726 | EF44: =SUM('Samlet hovedstaden -alle værker'!EH33:EH35) -> 93.67348823 | EG44: =SUM('Samlet hovedstaden -alle værker'!EI33:EI35) -> 110.7215639 | EH44: =SUM('Samlet hovedstaden -alle værker'!EJ33:EJ35) -> 110.0442342 | EI44: =SUM('Samlet hovedstaden -alle værker'!EK33:EK35) -> 93.33685815 | EJ44: =SUM('Samlet hovedstaden -alle værker'!EL33:EL35) -> 79.60565729 | EK44: =SUM('Samlet hovedstaden -alle værker'!EM33:EM35) -> 73.21349594 | EL44: =SUM('Samlet hovedstaden -alle værker'!EN33:EN35) -> 93.32433886 | EM44: =SUM('Samlet hovedstaden -alle værker'!EO33:EO35) -> 90.67282505 | EN44: =SUM('Samlet hovedstaden -alle værker'!EP33:EP35) -> 100.1020099 | EO44: =SUM('Samlet hovedstaden -alle værker'!EQ33:EQ35) -> 110.3168386 | EP44: =SUM('Samlet hovedstaden -alle værker'!ER33:ER35) -> 105.8409119 | EQ44: =SUM('Samlet hovedstaden -alle værker'!ES33:ES35) -> 82.19169633 | ER44: =SUM('Samlet hovedstaden -alle værker'!ET33:ET35) -> 93.41649832 | ES44: =SUM('Samlet hovedstaden -alle værker'!EU33:EU35) -> 110.8706232 | ET44: =SUM('Samlet hovedstaden -alle værker'!EV33:EV35) -> 108.6281487 | EU44: =SUM('Samlet hovedstaden -alle værker'!EW33:EW35) -> 96.64992513 | EV44: =SUM('Samlet hovedstaden -alle værker'!EX33:EX35) -> 79.83419572 | EW44: =SUM('Samlet hovedstaden -alle værker'!EY33:EY35) -> 73.49283606 | EX44: =SUM('Samlet hovedstaden -alle værker'!EZ33:EZ35) -> 93.57906416 | EY44: =SUM('Samlet hovedstaden -alle værker'!FA33:FA35) -> 92.58308123 | EZ44: =SUM('Samlet hovedstaden -alle værker'!FB33:FB35) -> 100.9309357 | FA44: =SUM('Samlet hovedstaden -alle værker'!FC33:FC35) -> 110.0960194 | FB44: =SUM('Samlet hovedstaden -alle værker'!FD33:FD35) -> 106.6688159 | FC44: =SUM('Samlet hovedstaden -alle værker'!FE33:FE35) -> 83.5504654 | FD44: =SUM('Samlet hovedstaden -alle værker'!FF33:FF35) -> 93.1595084 | FE44: =SUM('Samlet hovedstaden -alle værker'!FG33:FG35) -> 111.0196825 | FF44: =SUM('Samlet hovedstaden -alle værker'!FH33:FH35) -> 107.2120632 | FG44: =SUM('Samlet hovedstaden -alle værker'!FI33:FI35) -> 99.9629921 | FH44: =SUM('Samlet hovedstaden -alle værker'!FJ33:FJ35) -> 80.06273415 | FI44: =SUM('Samlet hovedstaden -alle værker'!FK33:FK35) -> 73.77217618 | FJ44: =SUM('Samlet hovedstaden -alle værker'!FL33:FL35) -> 93.83378946 | FK44: =SUM('Samlet hovedstaden -alle værker'!FM33:FM35) -> 94.49333742 | FL44: =SUM('Samlet hovedstaden -alle værker'!FN33:FN35) -> 101.7598615 | FM44: =SUM('Samlet hovedstaden -alle værker'!FO33:FO35) -> 109.8752002 | FN44: =SUM('Samlet hovedstaden -alle værker'!FP33:FP35) -> 107.4967198 | FO44: =SUM('Samlet hovedstaden -alle værker'!FQ33:FQ35) -> 86.35006426 | FP44: =SUM('Samlet hovedstaden -alle værker'!FR33:FR35) -> 93.31290679 | FQ44: =SUM('Samlet hovedstaden -alle værker'!FS33:FS35) -> 112.026334 | FR44: =SUM('Samlet hovedstaden -alle værker'!FT33:FT35) -> 105.016013 | FS44: =SUM('Samlet hovedstaden -alle værker'!FU33:FU35) -> 99.51797635 | FT44: =SUM('Samlet hovedstaden -alle værker'!FV33:FV35) -> 81.93698116 | FU44: =SUM('Samlet hovedstaden -alle værker'!FW33:FW35) -> 72.1851531 | FV44: =SUM('Samlet hovedstaden -alle værker'!FX33:FX35) -> 96.41041957 | FW44: =SUM('Samlet hovedstaden -alle værker'!FY33:FY35) -> 92.68646682 | FX44: =SUM('Samlet hovedstaden -alle værker'!FZ33:FZ35) -> 102.4439296 | FY44: =SUM('Samlet hovedstaden -alle værker'!GA33:GA35) -> 109.7983786 | FZ44: =SUM('Samlet hovedstaden -alle værker'!GB33:GB35) -> 104.8913659 | GA44: =SUM('Samlet hovedstaden -alle værker'!GC33:GC35) -> 91.75168482 | GB44: =SUM('Samlet hovedstaden -alle værker'!GD33:GD35) -> 97.77953712 | GC44: =SUM('Samlet hovedstaden -alle værker'!GE33:GE35) -> 114.9050099 | GD44: =SUM('Samlet hovedstaden -alle værker'!GF33:GF35) -> 123.5191312 | GE44: =SUM('Samlet hovedstaden -alle værker'!GG33:GG35) -> 93.37633709 | GF44: =SUM('Samlet hovedstaden -alle værker'!GH33:GH35) -> 84.12312835 | GG44: =SUM('Samlet hovedstaden -alle værker'!GI33:GI35) -> 71.43658974 | GH44: =SUM('Samlet hovedstaden -alle værker'!GJ33:GJ35) -> 85.74749296 | GI44: =SUM('Samlet hovedstaden -alle værker'!GK33:GK35) -> 77.27932611 | GJ44: =SUM('Samlet hovedstaden -alle værker'!GL33:GL35) -> 87.006968 | GK44: =SUM('Samlet hovedstaden -alle værker'!GM33:GM35) -> 109.6212007 | GL44: =SUM('Samlet hovedstaden -alle værker'!GN33:GN35) -> 106.6166171 | GM44: =SUM('Samlet hovedstaden -alle værker'!GO33:GO35) -> 94.67181403 | GN44: =SUM('Samlet hovedstaden -alle værker'!GP33:GP35) -> 97.70413953 | GO44: =SUM('Samlet hovedstaden -alle værker'!GQ33:GQ35) -> 104.7934092 | GP44: =SUM('Samlet hovedstaden -alle værker'!GR33:GR35) -> 117.9181854 | GQ44: =SUM('Samlet hovedstaden -alle værker'!GS33:GS35) -> 93.79403724 | GR44: =SUM('Samlet hovedstaden -alle værker'!GT33:GT35) -> 80.21861464 | GS44: =SUM('Samlet hovedstaden -alle værker'!GU33:GU35) -> 72.69784728 | GT44: =SUM('Samlet hovedstaden -alle værker'!GV33:GV35) -> 92.04303514 | GU44: =SUM('Samlet hovedstaden -alle værker'!GW33:GW35) -> 78.27421639 | GV44: =SUM('Samlet hovedstaden -alle værker'!GX33:GX35) -> 87.83166619 | GW44: =SUM('Samlet hovedstaden -alle værker'!GY33:GY35) -> 108.3684725 | GX44: =SUM('Samlet hovedstaden -alle værker'!GZ33:GZ35) -> 111.4413331 | GY44: =SUM('Samlet hovedstaden -alle værker'!HA33:HA35) -> 140.5851294 | GZ44: =SUM('Samlet hovedstaden -alle værker'!HB33:HB35) -> 141.3228734 | HA44: =SUM('Samlet hovedstaden -alle værker'!HC33:HC35) -> 133.7888686 | HB44: =SUM('Samlet hovedstaden -alle værker'!HD33:HD35) -> 108.0947898 | HC44: =SUM('Samlet hovedstaden -alle værker'!HE33:HE35) -> 90.31779949 | HD44: =SUM('Samlet hovedstaden -alle værker'!HF33:HF35) -> 83.08301543 | HE44: =SUM('Samlet hovedstaden -alle værker'!HG33:HG35) -> 71.61521643 | HF44: =SUM('Samlet hovedstaden -alle værker'!HH33:HH35) -> 87.38970035 | HG44: =SUM('Samlet hovedstaden -alle værker'!HI33:HI35) -> 81.2456951 | HH44: =SUM('Samlet hovedstaden -alle værker'!HJ33:HJ35) -> 87.48792694 | HI44: =SUM('Samlet hovedstaden -alle værker'!HK33:HK35) -> 112.5104066 | HJ44: =SUM('Samlet hovedstaden -alle værker'!HL33:HL35) -> 140.1270242 | HK44: =SUM('Samlet hovedstaden -alle værker'!HM33:HM35) -> 138.757384 | HL44: =SUM('Samlet hovedstaden -alle værker'!HN33:HN35) -> 139.4917794 | HM44: =SUM('Samlet hovedstaden -alle værker'!HO33:HO35) -> 132.2469384 | HN44: =SUM('Samlet hovedstaden -alle værker'!HP33:HP35) -> 102.7906793 | HO44: =SUM('Samlet hovedstaden -alle værker'!HQ33:HQ35) -> 96.2916949 | HP44: =SUM('Samlet hovedstaden -alle værker'!HR33:HR35) -> 82.50338406 | HQ44: =SUM('Samlet hovedstaden -alle værker'!HS33:HS35) -> 64.71272822 | HR44: =SUM('Samlet hovedstaden -alle værker'!HT33:HT35) -> 90.35984308 | HS44: =SUM('Samlet hovedstaden -alle værker'!HU33:HU35) -> 82.71314716 | HT44: =SUM('Samlet hovedstaden -alle værker'!HV33:HV35) -> 85.88943373 | HU44: =SUM('Samlet hovedstaden -alle værker'!HW33:HW35) -> 119.8838602 | HV44: =SUM('Samlet hovedstaden -alle værker'!HX33:HX35) -> 135.9126017 | HW44: =SUM('Samlet hovedstaden -alle værker'!HY33:HY35) -> 136.2275035 | HX44: =SUM('Samlet hovedstaden -alle værker'!HZ33:HZ35) -> 136.3687002 | HY44: =SUM('Samlet hovedstaden -alle værker'!IA33:IA35) -> 129.1923426 | HZ44: =SUM('Samlet hovedstaden -alle værker'!IB33:IB35) -> 100.7349463 | IA44: =SUM('Samlet hovedstaden -alle værker'!IC33:IC35) -> 96.81389096 | IB44: =SUM('Samlet hovedstaden -alle værker'!ID33:ID35) -> 81.47170493 | IC44: =SUM('Samlet hovedstaden -alle værker'!IE33:IE35) -> 60.3286697 | ID44: =SUM('Samlet hovedstaden -alle værker'!IF33:IF35) -> 89.61948647 | IE44: =SUM('Samlet hovedstaden -alle værker'!IG33:IG35) -> 83.79120698 | IF44: =SUM('Samlet hovedstaden -alle værker'!IH33:IH35) -> 84.22149746 | IG44: =SUM('Samlet hovedstaden -alle værker'!II33:II35) -> 117.4974019 | IH44: =SUM('Samlet hovedstaden -alle værker'!IJ33:IJ35) -> 135.5416224 | II44: =SUM('Samlet hovedstaden -alle værker'!IK33:IK35) -> 133.6976231 | IJ44: =SUM('Samlet hovedstaden -alle værker'!IL33:IL35) -> 133.2456209 | IK44: =SUM('Samlet hovedstaden -alle værker'!IM33:IM35) -> 126.1377468 | IL44: =SUM('Samlet hovedstaden -alle værker'!IN33:IN35) -> 98.67921332 | IM44: =SUM('Samlet hovedstaden -alle værker'!IO33:IO35) -> 97.33608702 | IN44: =SUM('Samlet hovedstaden -alle værker'!IP33:IP35) -> 80.44002581 | IO44: =SUM('Samlet hovedstaden -alle værker'!IQ33:IQ35) -> 55.94461117 | IP44: =SUM('Samlet hovedstaden -alle værker'!IR33:IR35) -> 88.87912987 | IQ44: =SUM('Samlet hovedstaden -alle værker'!IS33:IS35) -> 84.8692668 | IR44: =SUM('Samlet hovedstaden -alle værker'!IT33:IT35) -> 82.55356119 | IS44: =SUM('Samlet hovedstaden -alle værker'!IU33:IU35) -> 115.1109435 | IT44: =SUM('Samlet hovedstaden -alle værker'!IV33:IV35) -> 135.1706431 | IU44: =SUM('Samlet hovedstaden -alle værker'!IW33:IW35) -> 131.1677427 | IV44: =SUM('Samlet hovedstaden -alle værker'!IX33:IX35) -> 130.1225417 | IW44: =SUM('Samlet hovedstaden -alle værker'!IY33:IY35) -> 123.083151 | IX44: =SUM('Samlet hovedstaden -alle værker'!IZ33:IZ35) -> 96.62348035 | IY44: =SUM('Samlet hovedstaden -alle værker'!JA33:JA35) -> 97.85828309 | IZ44: =SUM('Samlet hovedstaden -alle værker'!JB33:JB35) -> 79.40834668 | JA44: =SUM('Samlet hovedstaden -alle værker'!JC33:JC35) -> 51.56055264 | JB44: =SUM('Samlet hovedstaden -alle værker'!JD33:JD35) -> 88.13877327 | JC44: =SUM('Samlet hovedstaden -alle værker'!JE33:JE35) -> 85.94732663 | JD44: =SUM('Samlet hovedstaden -alle værker'!JF33:JF35) -> 80.88562492 | JE44: =SUM('Samlet hovedstaden -alle værker'!JG33:JG35) -> 112.7244852 | JF44: =SUM('Samlet hovedstaden -alle værker'!JH33:JH35) -> 134.7996639 | JG44: =SUM('Samlet hovedstaden -alle værker'!JI33:JI35) -> 128.6378623 | JH44: =SUM('Samlet hovedstaden -alle værker'!JJ33:JJ35) -> 126.9994625 | JI44: =SUM('Samlet hovedstaden -alle værker'!JK33:JK35) -> 120.0285552 | JJ44: =SUM('Samlet hovedstaden -alle værker'!JL33:JL35) -> 94.56774738 | JK44: =SUM('Samlet hovedstaden -alle værker'!JM33:JM35) -> 98.38047915 | JL44: =SUM('Samlet hovedstaden -alle værker'!JN33:JN35) -> 78.37666755 | JM44: =SUM('Samlet hovedstaden -alle værker'!JO33:JO35) -> 47.17649411 | JN44: =SUM('Samlet hovedstaden -alle værker'!JP33:JP35) -> 87.39841667 | JO44: =SUM('Samlet hovedstaden -alle værker'!JQ33:JQ35) -> 87.02538645 | JP44: =SUM('Samlet hovedstaden -alle værker'!JR33:JR35) -> 79.21768865 | JQ44: =SUM('Samlet hovedstaden -alle værker'!JS33:JS35) -> 110.3380269 | JR44: =SUM('Samlet hovedstaden -alle værker'!JT33:JT35) -> 134.4286846 | JS44: =SUM('Samlet hovedstaden -alle værker'!JU33:JU35) -> 126.1079818 | JT44: =SUM('Samlet hovedstaden -alle værker'!JV33:JV35) -> 123.8763832 | JU44: =SUM('Samlet hovedstaden -alle værker'!JW33:JW35) -> 116.9739594 | JV44: =SUM('Samlet hovedstaden -alle værker'!JX33:JX35) -> 92.51201442 | JW44: =SUM('Samlet hovedstaden -alle værker'!JY33:JY35) -> 98.90267522 | JX44: =SUM('Samlet hovedstaden -alle værker'!JZ33:JZ35) -> 77.34498843 | JY44: =SUM('Samlet hovedstaden -alle værker'!KA33:KA35) -> 42.79243559 | JZ44: =SUM('Samlet hovedstaden -alle værker'!KB33:KB35) -> 86.65806007 | KA44: =SUM('Samlet hovedstaden -alle værker'!KC33:KC35) -> 88.10344627 | KB44: =SUM('Samlet hovedstaden -alle værker'!KD33:KD35) -> 77.54975238 | KC44: =SUM('Samlet hovedstaden -alle værker'!KE33:KE35) -> 107.9515686 | KD44: =SUM('Samlet hovedstaden -alle værker'!KF33:KF35) -> 134.0577053 | KE44: =SUM('Samlet hovedstaden -alle værker'!KG33:KG35) -> 126.1079818 | KF44: =SUM('Samlet hovedstaden -alle værker'!KH33:KH35) -> 123.8763832 | KG44: =SUM('Samlet hovedstaden -alle værker'!KI33:KI35) -> 116.9739594 | KH44: =SUM('Samlet hovedstaden -alle værker'!KJ33:KJ35) -> 92.51201442 | KI44: =SUM('Samlet hovedstaden -alle værker'!KK33:KK35) -> 98.90267522 | KJ44: =SUM('Samlet hovedstaden -alle værker'!KL33:KL35) -> 77.34498843 | KK44: =SUM('Samlet hovedstaden -alle værker'!KM33:KM35) -> 42.79243559 | KL44: =SUM('Samlet hovedstaden -alle værker'!KN33:KN35) -> 86.65806007 | KM44: =SUM('Samlet hovedstaden -alle værker'!KO33:KO35) -> 88.10344627 | KN44: =SUM('Samlet hovedstaden -alle værker'!KP33:KP35) -> 77.54975238 | KO44: =SUM('Samlet hovedstaden -alle værker'!KQ33:KQ35) -> 107.9515686 | KP44: =SUM('Samlet hovedstaden -alle værker'!KR33:KR35) -> 134.0577053 | KQ44: =SUM('Samlet hovedstaden -alle værker'!KS33:KS35) -> 126.1079818 | KR44: =SUM('Samlet hovedstaden -alle værker'!KT33:KT35) -> 123.8763832 | KS44: =SUM('Samlet hovedstaden -alle værker'!KU33:KU35) -> 116.9739594 | KT44: =SUM('Samlet hovedstaden -alle værker'!KV33:KV35) -> 92.51201442 | KU44: =SUM('Samlet hovedstaden -alle værker'!KW33:KW35) -> 98.90267522 | KV44: =SUM('Samlet hovedstaden -alle værker'!KX33:KX35) -> 77.34498843 | KW44: =SUM('Samlet hovedstaden -alle værker'!KY33:KY35) -> 42.79243559 | KX44: =SUM('Samlet hovedstaden -alle værker'!KZ33:KZ35) -> 86.65806007 | KY44: =SUM('Samlet hovedstaden -alle værker'!LA33:LA35) -> 88.10344627 | KZ44: =SUM('Samlet hovedstaden -alle værker'!LB33:LB35) -> 77.54975238 | LA44: =SUM('Samlet hovedstaden -alle værker'!LC33:LC35) -> 107.9515686 | LB44: =SUM('Samlet hovedstaden -alle værker'!LD33:LD35) -> 134.0577053 | LC44: =SUM('Samlet hovedstaden -alle værker'!LE33:LE35) -> 126.1079818 | LD44: =SUM('Samlet hovedstaden -alle værker'!LF33:LF35) -> 123.8763832 | LE44: =SUM('Samlet hovedstaden -alle værker'!LG33:LG35) -> 116.9739594 | LF44: =SUM('Samlet hovedstaden -alle værker'!LH33:LH35) -> 92.51201442 | LG44: =SUM('Samlet hovedstaden -alle værker'!LI33:LI35) -> 98.90267522 | LH44: =SUM('Samlet hovedstaden -alle værker'!LJ33:LJ35) -> 77.34498843 | LI44: =SUM('Samlet hovedstaden -alle værker'!LK33:LK35) -> 42.79243559 | LJ44: =SUM('Samlet hovedstaden -alle værker'!LL33:LL35) -> 86.65806007 | LK44: =SUM('Samlet hovedstaden -alle værker'!LM33:LM35) -> 88.10344627 | LL44: =SUM('Samlet hovedstaden -alle værker'!LN33:LN35) -> 77.54975238 | LM44: =SUM('Samlet hovedstaden -alle værker'!LO33:LO35) -> 107.9515686 | LN44: =SUM('Samlet hovedstaden -alle værker'!LP33:LP35) -> 134.0577053 | LO44: =SUM('Samlet hovedstaden -alle værker'!LQ33:LQ35) -> 126.1079818 | LP44: =SUM('Samlet hovedstaden -alle værker'!LR33:LR35) -> 123.8763832 | LQ44: =SUM('Samlet hovedstaden -alle værker'!LS33:LS35) -> 116.9739594 | LR44: =SUM('Samlet hovedstaden -alle værker'!LT33:LT35) -> 92.51201442 | LS44: =SUM('Samlet hovedstaden -alle værker'!LU33:LU35) -> 98.90267522 | LT44: =SUM('Samlet hovedstaden -alle værker'!LV33:LV35) -> 77.34498843 | LU44: =SUM('Samlet hovedstaden -alle værker'!LW33:LW35) -> 42.79243559 | LV44: =SUM('Samlet hovedstaden -alle værker'!LX33:LX35) -> 86.65806007 | LW44: =SUM('Samlet hovedstaden -alle værker'!LY33:LY35) -> 88.10344627 | LX44: =SUM('Samlet hovedstaden -alle værker'!LZ33:LZ35) -> 77.54975238 | LY44: =SUM('Samlet hovedstaden -alle værker'!MA33:MA35) -> 107.9515686 | LZ44: =SUM('Samlet hovedstaden -alle værker'!MB33:MB35) -> 134.0577053 | MA44: =SUM('Samlet hovedstaden -alle værker'!MC33:MC35) -> 126.1079818 | MB44: =SUM('Samlet hovedstaden -alle værker'!MD33:MD35) -> 123.8763832 | MC44: =SUM('Samlet hovedstaden -alle værker'!ME33:ME35) -> 116.9739594 | MD44: =SUM('Samlet hovedstaden -alle værker'!MF33:MF35) -> 92.51201442 | ME44: =SUM('Samlet hovedstaden -alle værker'!MG33:MG35) -> 98.90267522 | MF44: =SUM('Samlet hovedstaden -alle værker'!MH33:MH35) -> 77.34498843 | MG44: =SUM('Samlet hovedstaden -alle værker'!MI33:MI35) -> 42.79243559 | MH44: =SUM('Samlet hovedstaden -alle værker'!MJ33:MJ35) -> 86.65806007 | MI44: =SUM('Samlet hovedstaden -alle værker'!MK33:MK35) -> 88.10344627 | MJ44: =SUM('Samlet hovedstaden -alle værker'!ML33:ML35) -> 77.54975238 | MK44: =SUM('Samlet hovedstaden -alle værker'!MM33:MM35) -> 107.9515686 | ML44: =SUM('Samlet hovedstaden -alle værker'!MN33:MN35) -> 134.0577053 | MM44: =SUM('Samlet hovedstaden -alle værker'!MO33:MO35) -> 126.1079818 | MN44: =SUM('Samlet hovedstaden -alle værker'!MP33:MP35) -> 123.8763832 | MO44: =SUM('Samlet hovedstaden -alle værker'!MQ33:MQ35) -> 116.9739594 | MP44: =SUM('Samlet hovedstaden -alle værker'!MR33:MR35) -> 92.51201442 | MQ44: =SUM('Samlet hovedstaden -alle værker'!MS33:MS35) -> 98.90267522 | MR44: =SUM('Samlet hovedstaden -alle værker'!MT33:MT35) -> 77.34498843 | MS44: =SUM('Samlet hovedstaden -alle værker'!MU33:MU35) -> 42.79243559 | MT44: =SUM('Samlet hovedstaden -alle værker'!MV33:MV35) -> 86.65806007 | MU44: =SUM('Samlet hovedstaden -alle værker'!MW33:MW35) -> 88.10344627 | MV44: =SUM('Samlet hovedstaden -alle værker'!MX33:MX35) -> 77.54975238 | MW44: =SUM('Samlet hovedstaden -alle værker'!MY33:MY35) -> 107.9515686 | MX44: =SUM('Samlet hovedstaden -alle værker'!MZ33:MZ35) -> 134.0577053 | MY44: =SUM('Samlet hovedstaden -alle værker'!NA33:NA35) -> 126.1079818 | MZ44: =SUM('Samlet hovedstaden -alle værker'!NB33:NB35) -> 123.8763832 | NA44: =SUM('Samlet hovedstaden -alle værker'!NC33:NC35) -> 116.9739594 | NB44: =SUM('Samlet hovedstaden -alle værker'!ND33:ND35) -> 92.51201442 | NC44: =SUM('Samlet hovedstaden -alle værker'!NE33:NE35) -> 98.90267522 | ND44: =SUM('Samlet hovedstaden -alle værker'!NF33:NF35) -> 77.34498843 | NE44: =SUM('Samlet hovedstaden -alle værker'!NG33:NG35) -> 42.79243559 | NF44: =SUM('Samlet hovedstaden -alle værker'!NH33:NH35) -> 86.65806007 | NG44: =SUM('Samlet hovedstaden -alle værker'!NI33:NI35) -> 88.10344627 | NH44: =SUM('Samlet hovedstaden -alle værker'!NJ33:NJ35) -> 77.54975238 | NI44: =SUM('Samlet hovedstaden -alle værker'!NK33:NK35) -> 107.9515686 | NJ44: =SUM('Samlet hovedstaden -alle værker'!NL33:NL35) -> 134.0577053 | NK44: =SUM('Samlet hovedstaden -alle værker'!NM33:NM35) -> 126.1079818 | NL44: =SUM('Samlet hovedstaden -alle værker'!NN33:NN35) -> 123.8763832 | NM44: =SUM('Samlet hovedstaden -alle værker'!NO33:NO35) -> 116.9739594 | NN44: =SUM('Samlet hovedstaden -alle værker'!NP33:NP35) -> 92.51201442 | NO44: =SUM('Samlet hovedstaden -alle værker'!NQ33:NQ35) -> 98.90267522 | NP44: =SUM('Samlet hovedstaden -alle værker'!NR33:NR35) -> 77.34498843 | NQ44: =SUM('Samlet hovedstaden -alle værker'!NS33:NS35) -> 42.79243559 | NR44: =SUM('Samlet hovedstaden -alle værker'!NT33:NT35) -> 86.65806007 | NS44: =SUM('Samlet hovedstaden -alle værker'!NU33:NU35) -> 88.10344627 | NT44: =SUM('Samlet hovedstaden -alle værker'!NV33:NV35) -> 77.54975238 | NU44: =SUM('Samlet hovedstaden -alle værker'!NW33:NW35) -> 107.9515686 | NV44: =SUM('Samlet hovedstaden -alle værker'!NX33:NX35) -> 134.0577053 | NW44: =SUM('Samlet hovedstaden -alle værker'!NY33:NY35) -> 126.1079818 | NX44: =SUM('Samlet hovedstaden -alle værker'!NZ33:NZ35) -> 123.8763832 | NY44: =SUM('Samlet hovedstaden -alle værker'!OA33:OA35) -> 116.9739594 | NZ44: =SUM('Samlet hovedstaden -alle værker'!OB33:OB35) -> 92.51201442 | OA44: =SUM('Samlet hovedstaden -alle værker'!OC33:OC35) -> 98.90267522 | OB44: =SUM('Samlet hovedstaden -alle værker'!OD33:OD35) -> 77.34498843 | OC44: =SUM('Samlet hovedstaden -alle værker'!OE33:OE35) -> 42.79243559 | OD44: =SUM('Samlet hovedstaden -alle værker'!OF33:OF35) -> 86.65806007 | OE44: =SUM('Samlet hovedstaden -alle værker'!OG33:OG35) -> 88.10344627 | OF44: =SUM('Samlet hovedstaden -alle værker'!OH33:OH35) -> 77.54975238 | OG44: =SUM('Samlet hovedstaden -alle værker'!OI33:OI35) -> 107.9515686 | OH44: =SUM('Samlet hovedstaden -alle værker'!OJ33:OJ35) -> 134.0577053 | OI44: =SUM('Samlet hovedstaden -alle værker'!OK33:OK35) -> 126.1079818 | OJ44: =SUM('Samlet hovedstaden -alle værker'!OL33:OL35) -> 123.8763832 | OK44: =SUM('Samlet hovedstaden -alle værker'!OM33:OM35) -> 116.9739594 | OL44: =SUM('Samlet hovedstaden -alle værker'!ON33:ON35) -> 92.51201442 | OM44: =SUM('Samlet hovedstaden -alle værker'!OO33:OO35) -> 98.90267522 | ON44: =SUM('Samlet hovedstaden -alle værker'!OP33:OP35) -> 77.34498843 | OO44: =SUM('Samlet hovedstaden -alle værker'!OQ33:OQ35) -> 42.79243559 | OP44: =SUM('Samlet hovedstaden -alle værker'!OR33:OR35) -> 86.65806007 | OQ44: =SUM('Samlet hovedstaden -alle værker'!OS33:OS35) -> 88.10344627 | OR44: =SUM('Samlet hovedstaden -alle værker'!OT33:OT35) -> 77.54975238 | OS44: =SUM('Samlet hovedstaden -alle værker'!OU33:OU35) -> 107.9515686 | OT44: =SUM('Samlet hovedstaden -alle værker'!OV33:OV35) -> 134.0577053
D45: Miljøomkostninger | F45: 6.691999106 | G45: =SUM('Samlet hovedstaden -alle værker'!I36:I41) -> 4.327687551 | H45: =SUM('Samlet hovedstaden -alle værker'!J36:J41) -> 4.174636239 | I45: =SUM('Samlet hovedstaden -alle værker'!K36:K41) -> 9.103766222 | J45: =SUM('Samlet hovedstaden -alle værker'!L36:L41) -> 8.471045386 | K45: =SUM('Samlet hovedstaden -alle værker'!M36:M41) -> 7.865519928 | L45: =SUM('Samlet hovedstaden -alle værker'!N36:N41) -> 7.168012609 | M45: =SUM('Samlet hovedstaden -alle værker'!O36:O41) -> 7.161950635 | N45: =SUM('Samlet hovedstaden -alle værker'!P36:P41) -> 7.165961656 | O45: =SUM('Samlet hovedstaden -alle værker'!Q36:Q41) -> 7.169722895 | P45: =SUM('Samlet hovedstaden -alle værker'!R36:R41) -> 7.1810399 | Q45: =SUM('Samlet hovedstaden -alle værker'!S36:S41) -> 7.190093306 | R45: =SUM('Samlet hovedstaden -alle værker'!T36:T41) -> 7.209840793 | S45: =SUM('Samlet hovedstaden -alle værker'!U36:U41) -> 7.099637703 | T45: =SUM('Samlet hovedstaden -alle værker'!V36:V41) -> 7.650680733 | U45: =SUM('Samlet hovedstaden -alle værker'!W36:W41) -> 3.554038096 | V45: =SUM('Samlet hovedstaden -alle værker'!X36:X41) -> 3.617901996 | W45: =SUM('Samlet hovedstaden -alle værker'!Y36:Y41) -> 4.244535229 | X45: =SUM('Samlet hovedstaden -alle værker'!Z36:Z41) -> 4.911934664 | Y45: =SUM('Samlet hovedstaden -alle værker'!AA36:AA41) -> 5.631416051 | Z45: =SUM('Samlet hovedstaden -alle værker'!AB36:AB41) -> 6.40811718 | AA45: =SUM('Samlet hovedstaden -alle værker'!AC36:AC41) -> 7.241232685 | AB45: =SUM('Samlet hovedstaden -alle værker'!AD36:AD41) -> 7.241232685 | AC45: =SUM('Samlet hovedstaden -alle værker'!AE36:AE41) -> 7.241232685 | AD45: =SUM('Samlet hovedstaden -alle værker'!AF36:AF41) -> 7.241232685 | AE45: =SUM('Samlet hovedstaden -alle værker'!AG36:AG41) -> 7.241232685 | AF45: =SUM('Samlet hovedstaden -alle værker'!AH36:AH41) -> 7.241232685 | AG45: =SUM('Samlet hovedstaden -alle værker'!AI36:AI41) -> 7.241232685 | AH45: =SUM('Samlet hovedstaden -alle værker'!AJ36:AJ41) -> 7.241232685 | AI45: =SUM('Samlet hovedstaden -alle værker'!AK36:AK41) -> 7.241232685 | AJ45: =SUM('Samlet hovedstaden -alle værker'!AL36:AL41) -> 7.241232685 | AK45: =SUM('Samlet hovedstaden -alle værker'!AM36:AM41) -> 7.241232685 | AM45: =SUM('Samlet hovedstaden -alle værker'!AO36:AO41) -> 11.43633568 | AN45: =SUM('Samlet hovedstaden -alle værker'!AP36:AP41) -> 8.381484305 | AO45: =SUM('Samlet hovedstaden -alle værker'!AQ36:AQ41) -> 4.269461381 | AP45: =SUM('Samlet hovedstaden -alle værker'!AR36:AR41) -> 1.655607745 | AQ45: =SUM('Samlet hovedstaden -alle værker'!AS36:AS41) -> 3.26420909 | AR45: =SUM('Samlet hovedstaden -alle værker'!AT36:AT41) -> 1.219771239 | AS45: =SUM('Samlet hovedstaden -alle værker'!AU36:AU41) -> 3.157954872 | AT45: =SUM('Samlet hovedstaden -alle værker'!AV36:AV41) -> 3.23904364 | AU45: =SUM('Samlet hovedstaden -alle værker'!AW36:AW41) -> 1.070385681 | AV45: =SUM('Samlet hovedstaden -alle værker'!AX36:AX41) -> 2.798315691 | AW45: =SUM('Samlet hovedstaden -alle værker'!AY36:AY41) -> 4.377203501 | AX45: =SUM('Samlet hovedstaden -alle værker'!AZ36:AZ41) -> 7.228337746 | AY45: =SUM('Samlet hovedstaden -alle værker'!BA36:BA41) -> 13.66360453 | AZ45: =SUM('Samlet hovedstaden -alle værker'!BB36:BB41) -> 9.707147249 | BA45: =SUM('Samlet hovedstaden -alle værker'!BC36:BC41) -> 4.674749606 | BB45: =SUM('Samlet hovedstaden -alle værker'!BD36:BD41) -> 2.40314653 | BC45: =SUM('Samlet hovedstaden -alle værker'!BE36:BE41) -> 4.030165918 | BD45: =SUM('Samlet hovedstaden -alle værker'!BF36:BF41) -> 1.129553577 | BE45: =SUM('Samlet hovedstaden -alle værker'!BG36:BG41) -> 3.088347454 | BF45: =SUM('Samlet hovedstaden -alle værker'!BH36:BH41) -> 3.302359808 | BG45: =SUM('Samlet hovedstaden -alle værker'!BI36:BI41) -> 1.155421626 | BH45: =SUM('Samlet hovedstaden -alle værker'!BJ36:BJ41) -> 2.755086966 | BI45: =SUM('Samlet hovedstaden -alle værker'!BK36:BK41) -> 4.650662461 | BJ45: =SUM('Samlet hovedstaden -alle værker'!BL36:BL41) -> 8.348482872 | BK45: =SUM('Samlet hovedstaden -alle værker'!BM36:BM41) -> 15.89087337 | BL45: =SUM('Samlet hovedstaden -alle værker'!BN36:BN41) -> 11.03281019 | BM45: =SUM('Samlet hovedstaden -alle værker'!BO36:BO41) -> 5.080037831 | BN45: =SUM('Samlet hovedstaden -alle værker'!BP36:BP41) -> 3.150685315 | BO45: =SUM('Samlet hovedstaden -alle værker'!BQ36:BQ41) -> 4.796122746 | BP45: =SUM('Samlet hovedstaden -alle værker'!BR36:BR41) -> 1.039335916 | BQ45: =SUM('Samlet hovedstaden -alle værker'!BS36:BS41) -> 3.018740036 | BR45: =SUM('Samlet hovedstaden -alle værker'!BT36:BT41) -> 3.365675976 | BS45: =SUM('Samlet hovedstaden -alle værker'!BU36:BU41) -> 1.24045757 | BT45: =SUM('Samlet hovedstaden -alle værker'!BV36:BV41) -> 2.71185824 | BU45: =SUM('Samlet hovedstaden -alle værker'!BW36:BW41) -> 4.92412142 | BV45: =SUM('Samlet hovedstaden -alle værker'!BX36:BX41) -> 9.468627998 | BW45: =SUM('Samlet hovedstaden -alle værker'!BY36:BY41) -> 18.11814222 | BX45: =SUM('Samlet hovedstaden -alle værker'!BZ36:BZ41) -> 12.35847314 | BY45: =SUM('Samlet hovedstaden -alle værker'!CA36:CA41) -> 5.485326057 | BZ45: =SUM('Samlet hovedstaden -alle værker'!CB36:CB41) -> 3.898224099 | CA45: =SUM('Samlet hovedstaden -alle værker'!CC36:CC41) -> 5.562079574 | CB45: =SUM('Samlet hovedstaden -alle værker'!CD36:CD41) -> 0.9491182549 | CC45: =SUM('Samlet hovedstaden -alle værker'!CE36:CE41) -> 2.949132617 | CD45: =SUM('Samlet hovedstaden -alle værker'!CF36:CF41) -> 3.428992143 | CE45: =SUM('Samlet hovedstaden -alle værker'!CG36:CG41) -> 1.325493514 | CF45: =SUM('Samlet hovedstaden -alle værker'!CH36:CH41) -> 2.668629515 | CG45: =SUM('Samlet hovedstaden -alle værker'!CI36:CI41) -> 5.19758038 | CH45: =SUM('Samlet hovedstaden -alle værker'!CJ36:CJ41) -> 10.58877312 | CI45: =SUM('Samlet hovedstaden -alle værker'!CK36:CK41) -> 20.34541107 | CJ45: =SUM('Samlet hovedstaden -alle værker'!CL36:CL41) -> 13.68413608 | CK45: =SUM('Samlet hovedstaden -alle værker'!CM36:CM41) -> 5.890614282 | CL45: =SUM('Samlet hovedstaden -alle værker'!CN36:CN41) -> 4.645762884 | CM45: =SUM('Samlet hovedstaden -alle værker'!CO36:CO41) -> 6.328036402 | CN45: =SUM('Samlet hovedstaden -alle værker'!CP36:CP41) -> 0.8589005937 | CO45: =SUM('Samlet hovedstaden -alle værker'!CQ36:CQ41) -> 2.879525199 | CP45: =SUM('Samlet hovedstaden -alle værker'!CR36:CR41) -> 3.492308311 | CQ45: =SUM('Samlet hovedstaden -alle værker'!CS36:CS41) -> 1.410529458 | CR45: =SUM('Samlet hovedstaden -alle værker'!CT36:CT41) -> 2.62540079 | CS45: =SUM('Samlet hovedstaden -alle værker'!CU36:CU41) -> 5.471039339 | CT45: =SUM('Samlet hovedstaden -alle værker'!CV36:CV41) -> 11.70891825 | CU45: =SUM('Samlet hovedstaden -alle værker'!CW36:CW41) -> 22.57267991 | CV45: =SUM('Samlet hovedstaden -alle værker'!CX36:CX41) -> 15.00979902 | CW45: =SUM('Samlet hovedstaden -alle værker'!CY36:CY41) -> 6.295902508 | CX45: =SUM('Samlet hovedstaden -alle værker'!CZ36:CZ41) -> 5.393301669 | CY45: =SUM('Samlet hovedstaden -alle værker'!DA36:DA41) -> 7.09399323 | CZ45: =SUM('Samlet hovedstaden -alle værker'!DB36:DB41) -> 0.7686829324 | DA45: =SUM('Samlet hovedstaden -alle værker'!DC36:DC41) -> 2.809917781 | DB45: =SUM('Samlet hovedstaden -alle værker'!DD36:DD41) -> 3.555624479 | DC45: =SUM('Samlet hovedstaden -alle værker'!DE36:DE41) -> 1.495565402 | DD45: =SUM('Samlet hovedstaden -alle værker'!DF36:DF41) -> 2.582172064 | DE45: =SUM('Samlet hovedstaden -alle værker'!DG36:DG41) -> 5.744498299 | DF45: =SUM('Samlet hovedstaden -alle værker'!DH36:DH41) -> 12.82906338 | DG45: =SUM('Samlet hovedstaden -alle værker'!DI36:DI41) -> 22.39971939 | DH45: =SUM('Samlet hovedstaden -alle værker'!DJ36:DJ41) -> 14.79733088 | DI45: =SUM('Samlet hovedstaden -alle værker'!DK36:DK41) -> 6.094246921 | DJ45: =SUM('Samlet hovedstaden -alle værker'!DL36:DL41) -> 6.14541929 | DK45: =SUM('Samlet hovedstaden -alle værker'!DM36:DM41) -> 6.452655784 | DL45: =SUM('Samlet hovedstaden -alle værker'!DN36:DN41) -> 1.047212067 | DM45: =SUM('Samlet hovedstaden -alle værker'!DO36:DO41) -> 3.144902862 | DN45: =SUM('Samlet hovedstaden -alle værker'!DP36:DP41) -> 4.339099614 | DO45: =SUM('Samlet hovedstaden -alle værker'!DQ36:DQ41) -> 1.538086835 | DP45: =SUM('Samlet hovedstaden -alle værker'!DR36:DR41) -> 2.577475107 | DQ45: =SUM('Samlet hovedstaden -alle værker'!DS36:DS41) -> 5.545506176 | DR45: =SUM('Samlet hovedstaden -alle værker'!DT36:DT41) -> 12.18065683 | DS45: =SUM('Samlet hovedstaden -alle værker'!DU36:DU41) -> 22.22675886 | DT45: =SUM('Samlet hovedstaden -alle værker'!DV36:DV41) -> 14.58486273 | DU45: =SUM('Samlet hovedstaden -alle værker'!DW36:DW41) -> 5.892591334 | DV45: =SUM('Samlet hovedstaden -alle værker'!DX36:DX41) -> 6.897536912 | DW45: =SUM('Samlet hovedstaden -alle værker'!DY36:DY41) -> 5.811318337 | DX45: =SUM('Samlet hovedstaden -alle værker'!DZ36:DZ41) -> 1.325741201 | DY45: =SUM('Samlet hovedstaden -alle værker'!EA36:EA41) -> 3.479887944 | DZ45: =SUM('Samlet hovedstaden -alle værker'!EB36:EB41) -> 5.12257475 | EA45: =SUM('Samlet hovedstaden -alle værker'!EC36:EC41) -> 1.580608268 | EB45: =SUM('Samlet hovedstaden -alle værker'!ED36:ED41) -> 2.572778149 | EC45: =SUM('Samlet hovedstaden -alle værker'!EE36:EE41) -> 5.346514054 | ED45: =SUM('Samlet hovedstaden -alle værker'!EF36:EF41) -> 11.53225029 | EE45: =SUM('Samlet hovedstaden -alle værker'!EG36:EG41) -> 22.05379833 | EF45: =SUM('Samlet hovedstaden -alle værker'!EH36:EH41) -> 14.37239459 | EG45: =SUM('Samlet hovedstaden -alle værker'!EI36:EI41) -> 5.690935747 | EH45: =SUM('Samlet hovedstaden -alle værker'!EJ36:EJ41) -> 7.649654533 | EI45: =SUM('Samlet hovedstaden -alle værker'!EK36:EK41) -> 5.169980891 | EJ45: =SUM('Samlet hovedstaden -alle værker'!EL36:EL41) -> 1.604270336 | EK45: =SUM('Samlet hovedstaden -alle værker'!EM36:EM41) -> 3.814873025 | EL45: =SUM('Samlet hovedstaden -alle værker'!EN36:EN41) -> 5.906049885 | EM45: =SUM('Samlet hovedstaden -alle værker'!EO36:EO41) -> 1.623129701 | EN45: =SUM('Samlet hovedstaden -alle værker'!EP36:EP41) -> 2.568081192 | EO45: =SUM('Samlet hovedstaden -alle værker'!EQ36:EQ41) -> 5.147521932 | EP45: =SUM('Samlet hovedstaden -alle værker'!ER36:ER41) -> 10.88384375 | EQ45: =SUM('Samlet hovedstaden -alle værker'!ES36:ES41) -> 21.88083781 | ER45: =SUM('Samlet hovedstaden -alle værker'!ET36:ET41) -> 14.15992644 | ES45: =SUM('Samlet hovedstaden -alle værker'!EU36:EU41) -> 5.48928016 | ET45: =SUM('Samlet hovedstaden -alle værker'!EV36:EV41) -> 8.401772155 | EU45: =SUM('Samlet hovedstaden -alle værker'!EW36:EW41) -> 4.528643444 | EV45: =SUM('Samlet hovedstaden -alle værker'!EX36:EX41) -> 1.88279947 | EW45: =SUM('Samlet hovedstaden -alle værker'!EY36:EY41) -> 4.149858107 | EX45: =SUM('Samlet hovedstaden -alle værker'!EZ36:EZ41) -> 6.689525021 | EY45: =SUM('Samlet hovedstaden -alle værker'!FA36:FA41) -> 1.665651134 | EZ45: =SUM('Samlet hovedstaden -alle værker'!FB36:FB41) -> 2.563384234 | FA45: =SUM('Samlet hovedstaden -alle værker'!FC36:FC41) -> 4.94852981 | FB45: =SUM('Samlet hovedstaden -alle værker'!FD36:FD41) -> 10.23543721 | FC45: =SUM('Samlet hovedstaden -alle værker'!FE36:FE41) -> 21.70787728 | FD45: =SUM('Samlet hovedstaden -alle værker'!FF36:FF41) -> 13.94745829 | FE45: =SUM('Samlet hovedstaden -alle værker'!FG36:FG41) -> 5.287624573 | FF45: =SUM('Samlet hovedstaden -alle værker'!FH36:FH41) -> 9.153889776 | FG45: =SUM('Samlet hovedstaden -alle værker'!FI36:FI41) -> 3.887305997 | FH45: =SUM('Samlet hovedstaden -alle værker'!FJ36:FJ41) -> 2.161328605 | FI45: =SUM('Samlet hovedstaden -alle værker'!FK36:FK41) -> 4.484843189 | FJ45: =SUM('Samlet hovedstaden -alle værker'!FL36:FL41) -> 7.473000156 | FK45: =SUM('Samlet hovedstaden -alle værker'!FM36:FM41) -> 1.708172567 | FL45: =SUM('Samlet hovedstaden -alle værker'!FN36:FN41) -> 2.558687276 | FM45: =SUM('Samlet hovedstaden -alle værker'!FO36:FO41) -> 4.749537688 | FN45: =SUM('Samlet hovedstaden -alle værker'!FP36:FP41) -> 9.587030668 | FO45: =SUM('Samlet hovedstaden -alle værker'!FQ36:FQ41) -> 21.19374014 | FP45: =SUM('Samlet hovedstaden -alle værker'!FR36:FR41) -> 13.75344061 | FQ45: =SUM('Samlet hovedstaden -alle værker'!FS36:FS41) -> 5.68185608 | FR45: =SUM('Samlet hovedstaden -alle værker'!FT36:FT41) -> 9.857762414 | FS45: =SUM('Samlet hovedstaden -alle værker'!FU36:FU41) -> 3.393414881 | FT45: =SUM('Samlet hovedstaden -alle værker'!FV36:FV41) -> 1.622642851 | FU45: =SUM('Samlet hovedstaden -alle værker'!FW36:FW41) -> 5.286927918 | FV45: =SUM('Samlet hovedstaden -alle værker'!FX36:FX41) -> 7.237145125 | FW45: =SUM('Samlet hovedstaden -alle værker'!FY36:FY41) -> 1.953770419 | FX45: =SUM('Samlet hovedstaden -alle værker'!FZ36:FZ41) -> 2.723028519 | FY45: =SUM('Samlet hovedstaden -alle værker'!GA36:GA41) -> 4.645996231 | FZ45: =SUM('Samlet hovedstaden -alle værker'!GB36:GB41) -> 9.692629737 | GA45: =SUM('Samlet hovedstaden -alle værker'!GC36:GC41) -> 20.2300348 | GB45: =SUM('Samlet hovedstaden -alle værker'!GD36:GD41) -> 14.30933663 | GC45: =SUM('Samlet hovedstaden -alle værker'!GE36:GE41) -> 5.662842562 | GD45: =SUM('Samlet hovedstaden -alle værker'!GF36:GF41) -> 4.460530918 | GE45: =SUM('Samlet hovedstaden -alle værker'!GG36:GG41) -> 5.047002361 | GF45: =SUM('Samlet hovedstaden -alle værker'!GH36:GH41) -> 0.2546349 | GG45: =SUM('Samlet hovedstaden -alle værker'!GI36:GI41) -> 5.705921519 | GH45: =SUM('Samlet hovedstaden -alle værker'!GJ36:GJ41) -> 8.918356049 | GI45: =SUM('Samlet hovedstaden -alle værker'!GK36:GK41) -> 3.506360641 | GJ45: =SUM('Samlet hovedstaden -alle værker'!GL36:GL41) -> 3.758843355 | GK45: =SUM('Samlet hovedstaden -alle værker'!GM36:GM41) -> 5.276392349 | GL45: =SUM('Samlet hovedstaden -alle værker'!GN36:GN41) -> 8.136322973 | GM45: =SUM('Samlet hovedstaden -alle værker'!GO36:GO41) -> 19.28724523 | GN45: =SUM('Samlet hovedstaden -alle værker'!GP36:GP41) -> 13.96275051 | GO45: =SUM('Samlet hovedstaden -alle værker'!GQ36:GQ41) -> 8.581856248 | GP45: =SUM('Samlet hovedstaden -alle værker'!GR36:GR41) -> 6.360770024 | GQ45: =SUM('Samlet hovedstaden -alle værker'!GS36:GS41) -> 4.677275712 | GR45: =SUM('Samlet hovedstaden -alle værker'!GT36:GT41) -> 2.786735007 | GS45: =SUM('Samlet hovedstaden -alle værker'!GU36:GU41) -> 4.581078021 | GT45: =SUM('Samlet hovedstaden -alle værker'!GV36:GV41) -> 6.734406544 | GU45: =SUM('Samlet hovedstaden -alle værker'!GW36:GW41) -> 4.207645736 | GV45: =SUM('Samlet hovedstaden -alle værker'!GX36:GX41) -> 4.4056911 | GW45: =SUM('Samlet hovedstaden -alle værker'!GY36:GY41) -> 5.605626357 | GX45: =SUM('Samlet hovedstaden -alle værker'!GZ36:GZ41) -> 10.92790171 | GY45: =SUM('Samlet hovedstaden -alle værker'!HA36:HA41) -> 1.441364655 | GZ45: =SUM('Samlet hovedstaden -alle værker'!HB36:HB41) -> 0.6426475674 | HA45: =SUM('Samlet hovedstaden -alle værker'!HC36:HC41) -> 3.128581726 | HB45: =SUM('Samlet hovedstaden -alle værker'!HD36:HD41) -> 4.969923995 | HC45: =SUM('Samlet hovedstaden -alle værker'!HE36:HE41) -> 5.079164211 | HD45: =SUM('Samlet hovedstaden -alle værker'!HF36:HF41) -> 1.58489496 | HE45: =SUM('Samlet hovedstaden -alle værker'!HG36:HG41) -> 5.506345454 | HF45: =SUM('Samlet hovedstaden -alle værker'!HH36:HH41) -> 7.89676132 | HG45: =SUM('Samlet hovedstaden -alle værker'!HI36:HI41) -> 2.956581964 | HH45: =SUM('Samlet hovedstaden -alle værker'!HJ36:HJ41) -> 3.155317897 | HI45: =SUM('Samlet hovedstaden -alle værker'!HK36:HK41) -> 4.304606347 | HJ45: =SUM('Samlet hovedstaden -alle værker'!HL36:HL41) -> 1.630180095 | HK45: =SUM('Samlet hovedstaden -alle værker'!HM36:HM41) -> 1.694745932 | HL45: =SUM('Samlet hovedstaden -alle værker'!HN36:HN41) -> 0.6276884396 | HM45: =SUM('Samlet hovedstaden -alle værker'!HO36:HO41) -> 2.646711375 | HN45: =SUM('Samlet hovedstaden -alle værker'!HP36:HP41) -> 6.637172618 | HO45: =SUM('Samlet hovedstaden -alle værker'!HQ36:HQ41) -> 1.796448974 | HP45: =SUM('Samlet hovedstaden -alle værker'!HR36:HR41) -> 1.957132747 | HQ45: =SUM('Samlet hovedstaden -alle værker'!HS36:HS41) -> 9.555095103 | HR45: =SUM('Samlet hovedstaden -alle værker'!HT36:HT41) -> 8.232748696 | HS45: =SUM('Samlet hovedstaden -alle værker'!HU36:HU41) -> 1.915827171 | HT45: =SUM('Samlet hovedstaden -alle værker'!HV36:HV41) -> 3.346184175 | HU45: =SUM('Samlet hovedstaden -alle værker'!HW36:HW41) -> 3.389457453 | HV45: =SUM('Samlet hovedstaden -alle værker'!HX36:HX41) -> 1.333550901 | HW45: =SUM('Samlet hovedstaden -alle værker'!HY36:HY41) -> 2.171331562 | HX45: =SUM('Samlet hovedstaden -alle værker'!HZ36:HZ41) -> 0.7692488558 | HY45: =SUM('Samlet hovedstaden -alle værker'!IA36:IA41) -> 2.583176677 | HZ45: =SUM('Samlet hovedstaden -alle værker'!IB36:IB41) -> 6.909967193 | IA45: =SUM('Samlet hovedstaden -alle værker'!IC36:IC41) -> 1.85045955 | IB45: =SUM('Samlet hovedstaden -alle værker'!ID36:ID41) -> 3.265731381 | IC45: =SUM('Samlet hovedstaden -alle værker'!IE36:IE41) -> 13.90686121 | ID45: =SUM('Samlet hovedstaden -alle værker'!IF36:IF41) -> 9.311551121 | IE45: =SUM('Samlet hovedstaden -alle værker'!IG36:IG41) -> 1.882315299 | IF45: =SUM('Samlet hovedstaden -alle værker'!IH36:IH41) -> 3.384816012 | IG45: =SUM('Samlet hovedstaden -alle værker'!II36:II41) -> 4.436763963 | IH45: =SUM('Samlet hovedstaden -alle værker'!IJ36:IJ41) -> 1.304233417 | II45: =SUM('Samlet hovedstaden -alle værker'!IK36:IK41) -> 2.647917192 | IJ45: =SUM('Samlet hovedstaden -alle værker'!IL36:IL41) -> 0.9108092721 | IK45: =SUM('Samlet hovedstaden -alle værker'!IM36:IM41) -> 2.519641978 | IL45: =SUM('Samlet hovedstaden -alle værker'!IN36:IN41) -> 7.182761768 | IM45: =SUM('Samlet hovedstaden -alle værker'!IO36:IO41) -> 1.904470126 | IN45: =SUM('Samlet hovedstaden -alle værker'!IP36:IP41) -> 4.574330015 | IO45: =SUM('Samlet hovedstaden -alle værker'!IQ36:IQ41) -> 18.25862732 | IP45: =SUM('Samlet hovedstaden -alle værker'!IR36:IR41) -> 10.39035355 | IQ45: =SUM('Samlet hovedstaden -alle værker'!IS36:IS41) -> 1.848803428 | IR45: =SUM('Samlet hovedstaden -alle værker'!IT36:IT41) -> 3.423447849 | IS45: =SUM('Samlet hovedstaden -alle værker'!IU36:IU41) -> 5.484070474 | IT45: =SUM('Samlet hovedstaden -alle værker'!IV36:IV41) -> 1.274915932 | IU45: =SUM('Samlet hovedstaden -alle værker'!IW36:IW41) -> 3.124502822 | IV45: =SUM('Samlet hovedstaden -alle værker'!IX36:IX41) -> 1.052369688 | IW45: =SUM('Samlet hovedstaden -alle værker'!IY36:IY41) -> 2.45610728 | IX45: =SUM('Samlet hovedstaden -alle værker'!IZ36:IZ41) -> 7.455556342 | IY45: =SUM('Samlet hovedstaden -alle værker'!JA36:JA41) -> 1.958480703 | IZ45: =SUM('Samlet hovedstaden -alle værker'!JB36:JB41) -> 5.882928649 | JA45: =SUM('Samlet hovedstaden -alle værker'!JC36:JC41) -> 22.61039343 | JB45: =SUM('Samlet hovedstaden -alle værker'!JD36:JD41) -> 11.46915597 | JC45: =SUM('Samlet hovedstaden -alle værker'!JE36:JE41) -> 1.815291556 | JD45: =SUM('Samlet hovedstaden -alle værker'!JF36:JF41) -> 3.462079685 | JE45: =SUM('Samlet hovedstaden -alle værker'!JG36:JG41) -> 6.531376984 | JF45: =SUM('Samlet hovedstaden -alle værker'!JH36:JH41) -> 1.245598447 | JG45: =SUM('Samlet hovedstaden -alle værker'!JI36:JI41) -> 3.601088452 | JH45: =SUM('Samlet hovedstaden -alle værker'!JJ36:JJ41) -> 1.193930105 | JI45: =SUM('Samlet hovedstaden -alle værker'!JK36:JK41) -> 2.392572582 | JJ45: =SUM('Samlet hovedstaden -alle værker'!JL36:JL41) -> 7.728350917 | JK45: =SUM('Samlet hovedstaden -alle værker'!JM36:JM41) -> 2.012491279 | JL45: =SUM('Samlet hovedstaden -alle værker'!JN36:JN41) -> 7.191527283 | JM45: =SUM('Samlet hovedstaden -alle værker'!JO36:JO41) -> 26.96215953 | JN45: =SUM('Samlet hovedstaden -alle værker'!JP36:JP41) -> 12.5479584 | JO45: =SUM('Samlet hovedstaden -alle værker'!JQ36:JQ41) -> 1.781779684 | JP45: =SUM('Samlet hovedstaden -alle værker'!JR36:JR41) -> 3.500711522 | JQ45: =SUM('Samlet hovedstaden -alle værker'!JS36:JS41) -> 7.578683494 | JR45: =SUM('Samlet hovedstaden -alle værker'!JT36:JT41) -> 1.216280962 | JS45: =SUM('Samlet hovedstaden -alle værker'!JU36:JU41) -> 4.077674082 | JT45: =SUM('Samlet hovedstaden -alle værker'!JV36:JV41) -> 1.335490521 | JU45: =SUM('Samlet hovedstaden -alle værker'!JW36:JW41) -> 2.329037883 | JV45: =SUM('Samlet hovedstaden -alle værker'!JX36:JX41) -> 8.001145492 | JW45: =SUM('Samlet hovedstaden -alle værker'!JY36:JY41) -> 2.066501855 | JX45: =SUM('Samlet hovedstaden -alle værker'!JZ36:JZ41) -> 8.500125917 | JY45: =SUM('Samlet hovedstaden -alle værker'!KA36:KA41) -> 31.31392564 | JZ45: =SUM('Samlet hovedstaden -alle værker'!KB36:KB41) -> 13.62676082 | KA45: =SUM('Samlet hovedstaden -alle værker'!KC36:KC41) -> 1.748267813 | KB45: =SUM('Samlet hovedstaden -alle værker'!KD36:KD41) -> 3.539343358 | KC45: =SUM('Samlet hovedstaden -alle værker'!KE36:KE41) -> 8.625990004 | KD45: =SUM('Samlet hovedstaden -alle værker'!KF36:KF41) -> 1.186963477 | KE45: =SUM('Samlet hovedstaden -alle værker'!KG36:KG41) -> 4.077674082 | KF45: =SUM('Samlet hovedstaden -alle værker'!KH36:KH41) -> 1.335490521 | KG45: =SUM('Samlet hovedstaden -alle værker'!KI36:KI41) -> 2.329037883 | KH45: =SUM('Samlet hovedstaden -alle værker'!KJ36:KJ41) -> 8.001145492 | KI45: =SUM('Samlet hovedstaden -alle værker'!KK36:KK41) -> 2.066501855 | KJ45: =SUM('Samlet hovedstaden -alle værker'!KL36:KL41) -> 8.500125917 | KK45: =SUM('Samlet hovedstaden -alle værker'!KM36:KM41) -> 31.31392564 | KL45: =SUM('Samlet hovedstaden -alle værker'!KN36:KN41) -> 13.62676082 | KM45: =SUM('Samlet hovedstaden -alle værker'!KO36:KO41) -> 1.748267813 | KN45: =SUM('Samlet hovedstaden -alle værker'!KP36:KP41) -> 3.539343358 | KO45: =SUM('Samlet hovedstaden -alle værker'!KQ36:KQ41) -> 8.625990004 | KP45: =SUM('Samlet hovedstaden -alle værker'!KR36:KR41) -> 1.186963477 | KQ45: =SUM('Samlet hovedstaden -alle værker'!KS36:KS41) -> 4.077674082 | KR45: =SUM('Samlet hovedstaden -alle værker'!KT36:KT41) -> 1.335490521 | KS45: =SUM('Samlet hovedstaden -alle værker'!KU36:KU41) -> 2.329037883 | KT45: =SUM('Samlet hovedstaden -alle værker'!KV36:KV41) -> 8.001145492 | KU45: =SUM('Samlet hovedstaden -alle værker'!KW36:KW41) -> 2.066501855 | KV45: =SUM('Samlet hovedstaden -alle værker'!KX36:KX41) -> 8.500125917 | KW45: =SUM('Samlet hovedstaden -alle værker'!KY36:KY41) -> 31.31392564 | KX45: =SUM('Samlet hovedstaden -alle værker'!KZ36:KZ41) -> 13.62676082 | KY45: =SUM('Samlet hovedstaden -alle værker'!LA36:LA41) -> 1.748267813 | KZ45: =SUM('Samlet hovedstaden -alle værker'!LB36:LB41) -> 3.539343358 | LA45: =SUM('Samlet hovedstaden -alle værker'!LC36:LC41) -> 8.625990004 | LB45: =SUM('Samlet hovedstaden -alle værker'!LD36:LD41) -> 1.186963477 | LC45: =SUM('Samlet hovedstaden -alle værker'!LE36:LE41) -> 4.077674082 | LD45: =SUM('Samlet hovedstaden -alle værker'!LF36:LF41) -> 1.335490521 | LE45: =SUM('Samlet hovedstaden -alle værker'!LG36:LG41) -> 2.329037883 | LF45: =SUM('Samlet hovedstaden -alle værker'!LH36:LH41) -> 8.001145492 | LG45: =SUM('Samlet hovedstaden -alle værker'!LI36:LI41) -> 2.066501855 | LH45: =SUM('Samlet hovedstaden -alle værker'!LJ36:LJ41) -> 8.500125917 | LI45: =SUM('Samlet hovedstaden -alle værker'!LK36:LK41) -> 31.31392564 | LJ45: =SUM('Samlet hovedstaden -alle værker'!LL36:LL41) -> 13.62676082 | LK45: =SUM('Samlet hovedstaden -alle værker'!LM36:LM41) -> 1.748267813 | LL45: =SUM('Samlet hovedstaden -alle værker'!LN36:LN41) -> 3.539343358 | LM45: =SUM('Samlet hovedstaden -alle værker'!LO36:LO41) -> 8.625990004 | LN45: =SUM('Samlet hovedstaden -alle værker'!LP36:LP41) -> 1.186963477 | LO45: =SUM('Samlet hovedstaden -alle værker'!LQ36:LQ41) -> 4.077674082 | LP45: =SUM('Samlet hovedstaden -alle værker'!LR36:LR41) -> 1.335490521 | LQ45: =SUM('Samlet hovedstaden -alle værker'!LS36:LS41) -> 2.329037883 | LR45: =SUM('Samlet hovedstaden -alle værker'!LT36:LT41) -> 8.001145492 | LS45: =SUM('Samlet hovedstaden -alle værker'!LU36:LU41) -> 2.066501855 | LT45: =SUM('Samlet hovedstaden -alle værker'!LV36:LV41) -> 8.500125917 | LU45: =SUM('Samlet hovedstaden -alle værker'!LW36:LW41) -> 31.31392564 | LV45: =SUM('Samlet hovedstaden -alle værker'!LX36:LX41) -> 13.62676082 | LW45: =SUM('Samlet hovedstaden -alle værker'!LY36:LY41) -> 1.748267813 | LX45: =SUM('Samlet hovedstaden -alle værker'!LZ36:LZ41) -> 3.539343358 | LY45: =SUM('Samlet hovedstaden -alle værker'!MA36:MA41) -> 8.625990004 | LZ45: =SUM('Samlet hovedstaden -alle værker'!MB36:MB41) -> 1.186963477 | MA45: =SUM('Samlet hovedstaden -alle værker'!MC36:MC41) -> 4.077674082 | MB45: =SUM('Samlet hovedstaden -alle værker'!MD36:MD41) -> 1.335490521 | MC45: =SUM('Samlet hovedstaden -alle værker'!ME36:ME41) -> 2.329037883 | MD45: =SUM('Samlet hovedstaden -alle værker'!MF36:MF41) -> 8.001145492 | ME45: =SUM('Samlet hovedstaden -alle værker'!MG36:MG41) -> 2.066501855 | MF45: =SUM('Samlet hovedstaden -alle værker'!MH36:MH41) -> 8.500125917 | MG45: =SUM('Samlet hovedstaden -alle værker'!MI36:MI41) -> 31.31392564 | MH45: =SUM('Samlet hovedstaden -alle værker'!MJ36:MJ41) -> 13.62676082 | MI45: =SUM('Samlet hovedstaden -alle værker'!MK36:MK41) -> 1.748267813 | MJ45: =SUM('Samlet hovedstaden -alle værker'!ML36:ML41) -> 3.539343358 | MK45: =SUM('Samlet hovedstaden -alle værker'!MM36:MM41) -> 8.625990004 | ML45: =SUM('Samlet hovedstaden -alle værker'!MN36:MN41) -> 1.186963477 | MM45: =SUM('Samlet hovedstaden -alle værker'!MO36:MO41) -> 4.077674082 | MN45: =SUM('Samlet hovedstaden -alle værker'!MP36:MP41) -> 1.335490521 | MO45: =SUM('Samlet hovedstaden -alle værker'!MQ36:MQ41) -> 2.329037883 | MP45: =SUM('Samlet hovedstaden -alle værker'!MR36:MR41) -> 8.001145492 | MQ45: =SUM('Samlet hovedstaden -alle værker'!MS36:MS41) -> 2.066501855 | MR45: =SUM('Samlet hovedstaden -alle værker'!MT36:MT41) -> 8.500125917 | MS45: =SUM('Samlet hovedstaden -alle værker'!MU36:MU41) -> 31.31392564 | MT45: =SUM('Samlet hovedstaden -alle værker'!MV36:MV41) -> 13.62676082 | MU45: =SUM('Samlet hovedstaden -alle værker'!MW36:MW41) -> 1.748267813 | MV45: =SUM('Samlet hovedstaden -alle værker'!MX36:MX41) -> 3.539343358 | MW45: =SUM('Samlet hovedstaden -alle værker'!MY36:MY41) -> 8.625990004 | MX45: =SUM('Samlet hovedstaden -alle værker'!MZ36:MZ41) -> 1.186963477 | MY45: =SUM('Samlet hovedstaden -alle værker'!NA36:NA41) -> 4.077674082 | MZ45: =SUM('Samlet hovedstaden -alle værker'!NB36:NB41) -> 1.335490521 | NA45: =SUM('Samlet hovedstaden -alle værker'!NC36:NC41) -> 2.329037883 | NB45: =SUM('Samlet hovedstaden -alle værker'!ND36:ND41) -> 8.001145492 | NC45: =SUM('Samlet hovedstaden -alle værker'!NE36:NE41) -> 2.066501855 | ND45: =SUM('Samlet hovedstaden -alle værker'!NF36:NF41) -> 8.500125917 | NE45: =SUM('Samlet hovedstaden -alle værker'!NG36:NG41) -> 31.31392564 | NF45: =SUM('Samlet hovedstaden -alle værker'!NH36:NH41) -> 13.62676082 | NG45: =SUM('Samlet hovedstaden -alle værker'!NI36:NI41) -> 1.748267813 | NH45: =SUM('Samlet hovedstaden -alle værker'!NJ36:NJ41) -> 3.539343358 | NI45: =SUM('Samlet hovedstaden -alle værker'!NK36:NK41) -> 8.625990004 | NJ45: =SUM('Samlet hovedstaden -alle værker'!NL36:NL41) -> 1.186963477 | NK45: =SUM('Samlet hovedstaden -alle værker'!NM36:NM41) -> 4.077674082 | NL45: =SUM('Samlet hovedstaden -alle værker'!NN36:NN41) -> 1.335490521 | NM45: =SUM('Samlet hovedstaden -alle værker'!NO36:NO41) -> 2.329037883 | NN45: =SUM('Samlet hovedstaden -alle værker'!NP36:NP41) -> 8.001145492 | NO45: =SUM('Samlet hovedstaden -alle værker'!NQ36:NQ41) -> 2.066501855 | NP45: =SUM('Samlet hovedstaden -alle værker'!NR36:NR41) -> 8.500125917 | NQ45: =SUM('Samlet hovedstaden -alle værker'!NS36:NS41) -> 31.31392564 | NR45: =SUM('Samlet hovedstaden -alle værker'!NT36:NT41) -> 13.62676082 | NS45: =SUM('Samlet hovedstaden -alle værker'!NU36:NU41) -> 1.748267813 | NT45: =SUM('Samlet hovedstaden -alle værker'!NV36:NV41) -> 3.539343358 | NU45: =SUM('Samlet hovedstaden -alle værker'!NW36:NW41) -> 8.625990004 | NV45: =SUM('Samlet hovedstaden -alle værker'!NX36:NX41) -> 1.186963477 | NW45: =SUM('Samlet hovedstaden -alle værker'!NY36:NY41) -> 4.077674082 | NX45: =SUM('Samlet hovedstaden -alle værker'!NZ36:NZ41) -> 1.335490521 | NY45: =SUM('Samlet hovedstaden -alle værker'!OA36:OA41) -> 2.329037883 | NZ45: =SUM('Samlet hovedstaden -alle værker'!OB36:OB41) -> 8.001145492 | OA45: =SUM('Samlet hovedstaden -alle værker'!OC36:OC41) -> 2.066501855 | OB45: =SUM('Samlet hovedstaden -alle værker'!OD36:OD41) -> 8.500125917 | OC45: =SUM('Samlet hovedstaden -alle værker'!OE36:OE41) -> 31.31392564 | OD45: =SUM('Samlet hovedstaden -alle værker'!OF36:OF41) -> 13.62676082 | OE45: =SUM('Samlet hovedstaden -alle værker'!OG36:OG41) -> 1.748267813 | OF45: =SUM('Samlet hovedstaden -alle værker'!OH36:OH41) -> 3.539343358 | OG45: =SUM('Samlet hovedstaden -alle værker'!OI36:OI41) -> 8.625990004 | OH45: =SUM('Samlet hovedstaden -alle værker'!OJ36:OJ41) -> 1.186963477 | OI45: =SUM('Samlet hovedstaden -alle værker'!OK36:OK41) -> 4.077674082 | OJ45: =SUM('Samlet hovedstaden -alle værker'!OL36:OL41) -> 1.335490521 | OK45: =SUM('Samlet hovedstaden -alle værker'!OM36:OM41) -> 2.329037883 | OL45: =SUM('Samlet hovedstaden -alle værker'!ON36:ON41) -> 8.001145492 | OM45: =SUM('Samlet hovedstaden -alle værker'!OO36:OO41) -> 2.066501855 | ON45: =SUM('Samlet hovedstaden -alle værker'!OP36:OP41) -> 8.500125917 | OO45: =SUM('Samlet hovedstaden -alle værker'!OQ36:OQ41) -> 31.31392564 | OP45: =SUM('Samlet hovedstaden -alle værker'!OR36:OR41) -> 13.62676082 | OQ45: =SUM('Samlet hovedstaden -alle værker'!OS36:OS41) -> 1.748267813 | OR45: =SUM('Samlet hovedstaden -alle værker'!OT36:OT41) -> 3.539343358 | OS45: =SUM('Samlet hovedstaden -alle værker'!OU36:OU41) -> 8.625990004 | OT45: =SUM('Samlet hovedstaden -alle værker'!OV36:OV41) -> 1.186963477
D46: Total, produktion | F46: 60.59587859 | G46: ='Samlet hovedstaden -alle værker'!I27 -> 48.22884597 | H46: ='Samlet hovedstaden -alle værker'!J27 -> 48.94033065 | I46: ='Samlet hovedstaden -alle værker'!K27 -> -10.42227938 | J46: ='Samlet hovedstaden -alle værker'!L27 -> 42.5279766 | K46: ='Samlet hovedstaden -alle værker'!M27 -> 43.8964778 | L46: ='Samlet hovedstaden -alle værker'!N27 -> 46.40493756 | M46: ='Samlet hovedstaden -alle værker'!O27 -> 47.66290609 | N46: ='Samlet hovedstaden -alle værker'!P27 -> 49.97192401 | O46: ='Samlet hovedstaden -alle værker'!Q27 -> 52.45648826 | P46: ='Samlet hovedstaden -alle værker'!R27 -> 56.99939081 | Q46: ='Samlet hovedstaden -alle værker'!S27 -> 63.77138032 | R46: ='Samlet hovedstaden -alle værker'!T27 -> 64.19218661 | S46: ='Samlet hovedstaden -alle værker'!U27 -> 62.86516603 | T46: ='Samlet hovedstaden -alle værker'!V27 -> 62.59036589 | U46: ='Samlet hovedstaden -alle værker'!W27 -> 74.71204799 | V46: ='Samlet hovedstaden -alle værker'!X27 -> 75.67048424 | W46: ='Samlet hovedstaden -alle værker'!Y27 -> 74.83722558 | X46: ='Samlet hovedstaden -alle værker'!Z27 -> 73.98224634 | Y46: ='Samlet hovedstaden -alle værker'!AA27 -> 73.24319563 | Z46: ='Samlet hovedstaden -alle værker'!AB27 -> 72.56289719 | AA46: ='Samlet hovedstaden -alle værker'!AC27 -> 71.96826109 | AB46: ='Samlet hovedstaden -alle værker'!AD27 -> 71.96826109 | AC46: ='Samlet hovedstaden -alle værker'!AE27 -> 71.96826109 | AD46: ='Samlet hovedstaden -alle værker'!AF27 -> 71.96826109 | AE46: ='Samlet hovedstaden -alle værker'!AG27 -> 71.96826109 | AF46: ='Samlet hovedstaden -alle værker'!AH27 -> 71.96826109 | AG46: ='Samlet hovedstaden -alle værker'!AI27 -> 71.96826109 | AH46: ='Samlet hovedstaden -alle værker'!AJ27 -> 71.96826109 | AI46: ='Samlet hovedstaden -alle værker'!AK27 -> 71.96826109 | AJ46: ='Samlet hovedstaden -alle værker'!AL27 -> 71.96826109 | AK46: ='Samlet hovedstaden -alle værker'!AM27 -> 71.96826109 | AM46: ='Samlet hovedstaden -alle værker'!AO27 -> 69.11709322 | AN46: ='Samlet hovedstaden -alle værker'!AP27 -> 68.15656269 | AO46: ='Samlet hovedstaden -alle værker'!AQ27 -> 64.0629397 | AP46: ='Samlet hovedstaden -alle værker'!AR27 -> 53.08020523 | AQ46: ='Samlet hovedstaden -alle værker'!AS27 -> 31.95833634 | AR46: ='Samlet hovedstaden -alle værker'!AT27 -> 25.77218172 | AS46: ='Samlet hovedstaden -alle værker'!AU27 -> 13.85769707 | AT46: ='Samlet hovedstaden -alle værker'!AV27 -> 35.3543181 | AU46: ='Samlet hovedstaden -alle værker'!AW27 -> 30.73501692 | AV46: ='Samlet hovedstaden -alle værker'!AX27 -> 35.99676813 | AW46: ='Samlet hovedstaden -alle værker'!AY27 -> 60.89182816 | AX46: ='Samlet hovedstaden -alle værker'!AZ27 -> 77.75211351 | AY46: ='Samlet hovedstaden -alle værker'!BA27 -> 76.63649476 | AZ46: ='Samlet hovedstaden -alle værker'!BB27 -> 75.25158795 | BA46: ='Samlet hovedstaden -alle værker'!BC27 -> 64.06367314 | BB46: ='Samlet hovedstaden -alle værker'!BD27 -> 50.64195011 | BC46: ='Samlet hovedstaden -alle værker'!BE27 -> 27.86949353 | BD46: ='Samlet hovedstaden -alle værker'!BF27 -> 21.21538946 | BE46: ='Samlet hovedstaden -alle værker'!BG27 -> 10.82162405 | BF46: ='Samlet hovedstaden -alle værker'!BH27 -> 34.91865634 | BG46: ='Samlet hovedstaden -alle værker'!BI27 -> 27.36752045 | BH46: ='Samlet hovedstaden -alle værker'!BJ27 -> 36.04712739 | BI46: ='Samlet hovedstaden -alle værker'!BK27 -> 58.22576103 | BJ46: ='Samlet hovedstaden -alle værker'!BL27 -> 84.57583036 | BK46: ='Samlet hovedstaden -alle værker'!BM27 -> 82.25969896 | BL46: ='Samlet hovedstaden -alle værker'!BN27 -> 79.92359155 | BM46: ='Samlet hovedstaden -alle værker'!BO27 -> 63.94933016 | BN46: ='Samlet hovedstaden -alle værker'!BP27 -> 48.4324155 | BO46: ='Samlet hovedstaden -alle værker'!BQ27 -> 25.09684828 | BP46: ='Samlet hovedstaden -alle værker'!BR27 -> 16.43427921 | BQ46: ='Samlet hovedstaden -alle værker'!BS27 -> 7.237916162 | BR46: ='Samlet hovedstaden -alle værker'!BT27 -> 34.15547517 | BS46: ='Samlet hovedstaden -alle værker'!BU27 -> 23.89971643 | BT46: ='Samlet hovedstaden -alle værker'!BV27 -> 35.93366497 | BU46: ='Samlet hovedstaden -alle værker'!BW27 -> 56.03264466 | BV46: ='Samlet hovedstaden -alle værker'!BX27 -> 90.02954735 | BW46: ='Samlet hovedstaden -alle værker'!BY27 -> 86.00479894 | BX46: ='Samlet hovedstaden -alle værker'!BZ27 -> 82.11868931 | BY46: ='Samlet hovedstaden -alle værker'!CA27 -> 63.71875438 | BZ46: ='Samlet hovedstaden -alle værker'!CB27 -> 46.44349805 | CA46: ='Samlet hovedstaden -alle værker'!CC27 -> 23.65498978 | CB46: ='Samlet hovedstaden -alle værker'!CD27 -> 11.43011304 | CC46: ='Samlet hovedstaden -alle værker'!CE27 -> 3.114190916 | CD46: ='Samlet hovedstaden -alle værker'!CF27 -> 33.06409026 | CE46: ='Samlet hovedstaden -alle værker'!CG27 -> 20.33248102 | CF46: ='Samlet hovedstaden -alle værker'!CH27 -> 35.65459899 | CG46: ='Samlet hovedstaden -alle værker'!CI27 -> 54.3150563 | CH46: ='Samlet hovedstaden -alle værker'!CJ27 -> 94.13511873 | CI46: ='Samlet hovedstaden -alle værker'!CK27 -> 87.88965837 | CJ46: ='Samlet hovedstaden -alle værker'!CL27 -> 81.78138736 | CK46: ='Samlet hovedstaden -alle værker'!CM27 -> 63.37077387 | CL46: ='Samlet hovedstaden -alle værker'!CN27 -> 44.66747272 | CM46: ='Samlet hovedstaden -alle værker'!CO27 -> 23.55872366 | CN46: ='Samlet hovedstaden -alle værker'!CP27 -> 6.204143539 | CO46: ='Samlet hovedstaden -alle værker'!CQ27 -> -1.542074818 | CP46: ='Samlet hovedstaden -alle værker'!CR27 -> 31.64381536 | CQ46: ='Samlet hovedstaden -alle værker'!CS27 -> 16.66668022 | CR46: ='Samlet hovedstaden -alle værker'!CT27 -> 35.20812162 | CS46: ='Samlet hovedstaden -alle værker'!CU27 -> 53.07559198 | CT46: ='Samlet hovedstaden -alle værker'!CV27 -> 96.91393638 | CU46: ='Samlet hovedstaden -alle værker'!CW27 -> 88.00658897 | CV46: ='Samlet hovedstaden -alle værker'!CX27 -> 79.17447071 | CW46: ='Samlet hovedstaden -alle værker'!CY27 -> 63.88371241 | CX46: ='Samlet hovedstaden -alle værker'!CZ27 -> 44.18585043 | CY46: ='Samlet hovedstaden -alle værker'!DA27 -> 25.23701245 | CZ46: ='Samlet hovedstaden -alle værker'!DB27 -> 0.9646467688 | DA46: ='Samlet hovedstaden -alle værker'!DC27 -> -6.815763175 | DB46: ='Samlet hovedstaden -alle værker'!DD27 -> 30.95886271 | DC46: ='Samlet hovedstaden -alle værker'!DE27 -> 13.07895299 | DD46: ='Samlet hovedstaden -alle værker'!DF27 -> 35.21510148 | DE46: ='Samlet hovedstaden -alle værker'!DG27 -> 52.61296342 | DF46: ='Samlet hovedstaden -alle værker'!DH27 -> 98.45768586 | DG46: ='Samlet hovedstaden -alle værker'!DI27 -> 92.63294995 | DH46: ='Samlet hovedstaden -alle værker'!DJ27 -> 81.81236767 | DI46: ='Samlet hovedstaden -alle værker'!DK27 -> 66.67976645 | DJ46: ='Samlet hovedstaden -alle værker'!DL27 -> 48.04171771 | DK46: ='Samlet hovedstaden -alle værker'!DM27 -> 30.19768211 | DL46: ='Samlet hovedstaden -alle værker'!DN27 -> 5.432117715 | DM46: ='Samlet hovedstaden -alle værker'!DO27 -> -2.446974343 | DN46: ='Samlet hovedstaden -alle værker'!DP27 -> 34.31179243 | DO46: ='Samlet hovedstaden -alle værker'!DQ27 -> 17.24186192 | DP46: ='Samlet hovedstaden -alle værker'!DR27 -> 40.3293346 | DQ46: ='Samlet hovedstaden -alle værker'!DS27 -> 53.39553288 | DR46: ='Samlet hovedstaden -alle værker'!DT27 -> 98.49658721 | DS46: ='Samlet hovedstaden -alle værker'!DU27 -> 96.55633152 | DT46: ='Samlet hovedstaden -alle værker'!DV27 -> 84.33420965 | DU46: ='Samlet hovedstaden -alle værker'!DW27 -> 69.50330235 | DV46: ='Samlet hovedstaden -alle værker'!DX27 -> 51.85086747 | DW46: ='Samlet hovedstaden -alle værker'!DY27 -> 35.31208955 | DX46: ='Samlet hovedstaden -alle værker'!DZ27 -> 10.01812488 | DY46: ='Samlet hovedstaden -alle værker'!EA27 -> 1.989711734 | DZ46: ='Samlet hovedstaden -alle værker'!EB27 -> 37.75025927 | EA46: ='Samlet hovedstaden -alle værker'!EC27 -> 21.35407071 | EB46: ='Samlet hovedstaden -alle værker'!ED27 -> 45.46822475 | EC46: ='Samlet hovedstaden -alle værker'!EE27 -> 55.99570918 | ED46: ='Samlet hovedstaden -alle værker'!EF27 -> 98.74252964 | EE46: ='Samlet hovedstaden -alle værker'!EG27 -> 99.76933596 | EF46: ='Samlet hovedstaden -alle værker'!EH27 -> 86.74187092 | EG46: ='Samlet hovedstaden -alle værker'!EI27 -> 72.35372693 | EH46: ='Samlet hovedstaden -alle værker'!EJ27 -> 55.61261573 | EI46: ='Samlet hovedstaden -alle værker'!EK27 -> 40.57858094 | EJ46: ='Samlet hovedstaden -alle værker'!EL27 -> 14.72389863 | EK46: ='Samlet hovedstaden -alle værker'!EM27 -> 6.494016091 | EL46: ='Samlet hovedstaden -alle værker'!EN27 -> 41.27677593 | EM46: ='Samlet hovedstaden -alle værker'!EO27 -> 25.41643641 | EN46: ='Samlet hovedstaden -alle værker'!EP27 -> 50.63152229 | EO46: ='Samlet hovedstaden -alle værker'!EQ27 -> 60.39794082 | EP46: ='Samlet hovedstaden -alle værker'!ER27 -> 99.19861135 | EQ46: ='Samlet hovedstaden -alle værker'!ES27 -> 102.2644614 | ER46: ='Samlet hovedstaden -alle værker'!ET27 -> 89.0371856 | ES46: ='Samlet hovedstaden -alle værker'!EU27 -> 75.23046396 | ET46: ='Samlet hovedstaden -alle værker'!EV27 -> 59.3262651 | EU46: ='Samlet hovedstaden -alle værker'!EW27 -> 45.99552607 | EV46: ='Samlet hovedstaden -alle værker'!EX27 -> 19.55068642 | EW46: ='Samlet hovedstaden -alle værker'!EY27 -> 11.06566129 | EX46: ='Samlet hovedstaden -alle værker'!EZ27 -> 44.8939545 | EY46: ='Samlet hovedstaden -alle værker'!FA27 -> 29.42979687 | EZ46: ='Samlet hovedstaden -alle værker'!FB27 -> 55.81898098 | FA46: ='Samlet hovedstaden -alle værker'!FC27 -> 66.58685321 | FB46: ='Samlet hovedstaden -alle værker'!FD27 -> 99.86799267 | FC46: ='Samlet hovedstaden -alle værker'!FE27 -> 103.9974599 | FD46: ='Samlet hovedstaden -alle værker'!FF27 -> 91.39875371 | FE46: ='Samlet hovedstaden -alle værker'!FG27 -> 78.09158673 | FF46: ='Samlet hovedstaden -alle værker'!FH27 -> 63.0566177 | FG46: ='Samlet hovedstaden -alle værker'!FI27 -> 51.49119659 | FH46: ='Samlet hovedstaden -alle værker'!FJ27 -> 24.47263921 | FI46: ='Samlet hovedstaden -alle værker'!FK27 -> 15.69952884 | FJ46: ='Samlet hovedstaden -alle værker'!FL27 -> 48.57878945 | FK46: ='Samlet hovedstaden -alle værker'!FM27 -> 33.38824625 | FL46: ='Samlet hovedstaden -alle værker'!FN27 -> 61.17098862 | FM46: ='Samlet hovedstaden -alle værker'!FO27 -> 74.53128959 | FN46: ='Samlet hovedstaden -alle værker'!FP27 -> 101.2652293 | FO46: ='Samlet hovedstaden -alle værker'!FQ27 -> 105.1012943 | FP46: ='Samlet hovedstaden -alle værker'!FR27 -> 86.72912535 | FQ46: ='Samlet hovedstaden -alle værker'!FS27 -> 78.05426388 | FR46: ='Samlet hovedstaden -alle værker'!FT27 -> 62.02641546 | FS46: ='Samlet hovedstaden -alle værker'!FU27 -> 50.90316697 | FT46: ='Samlet hovedstaden -alle værker'!FV27 -> 23.59029717 | FU46: ='Samlet hovedstaden -alle værker'!FW27 -> 14.82561253 | FV46: ='Samlet hovedstaden -alle værker'!FX27 -> 50.22842966 | FW46: ='Samlet hovedstaden -alle værker'!FY27 -> 34.15945484 | FX46: ='Samlet hovedstaden -alle værker'!FZ27 -> 62.79541857 | FY46: ='Samlet hovedstaden -alle værker'!GA27 -> 74.90693771 | FZ46: ='Samlet hovedstaden -alle værker'!GB27 -> 103.8247134 | GA46: ='Samlet hovedstaden -alle værker'!GC27 -> 106.5031681 | GB46: ='Samlet hovedstaden -alle værker'!GD27 -> 94.16014299 | GC46: ='Samlet hovedstaden -alle værker'!GE27 -> 79.48993345 | GD46: ='Samlet hovedstaden -alle værker'!GF27 -> 70.01370099 | GE46: ='Samlet hovedstaden -alle værker'!GG27 -> 47.58137908 | GF46: ='Samlet hovedstaden -alle værker'!GH27 -> 22.65937735 | GG46: ='Samlet hovedstaden -alle værker'!GI27 -> 16.10496153 | GH46: ='Samlet hovedstaden -alle værker'!GJ27 -> 42.80035209 | GI46: ='Samlet hovedstaden -alle værker'!GK27 -> 24.55615369 | GJ46: ='Samlet hovedstaden -alle værker'!GL27 -> 53.20259763 | GK46: ='Samlet hovedstaden -alle værker'!GM27 -> 74.74959305 | GL46: ='Samlet hovedstaden -alle værker'!GN27 -> 104.1341427 | GM46: ='Samlet hovedstaden -alle værker'!GO27 -> 109.6496543 | GN46: ='Samlet hovedstaden -alle værker'!GP27 -> 94.47756429 | GO46: ='Samlet hovedstaden -alle værker'!GQ27 -> 75.19375961 | GP46: ='Samlet hovedstaden -alle værker'!GR27 -> 70.18579505 | GQ46: ='Samlet hovedstaden -alle værker'!GS27 -> 44.51255351 | GR46: ='Samlet hovedstaden -alle værker'!GT27 -> 18.07778838 | GS46: ='Samlet hovedstaden -alle værker'!GU27 -> 12.661641 | GT46: ='Samlet hovedstaden -alle værker'!GV27 -> 44.76036157 | GU46: ='Samlet hovedstaden -alle værker'!GW27 -> 22.46936182 | GV46: ='Samlet hovedstaden -alle værker'!GX27 -> 52.79883658 | GW46: ='Samlet hovedstaden -alle værker'!GY27 -> 74.75937907 | GX46: ='Samlet hovedstaden -alle værker'!GZ27 -> 106.3008063 | GY46: ='Samlet hovedstaden -alle værker'!HA27 -> 146.1873995 | GZ46: ='Samlet hovedstaden -alle værker'!HB27 -> 127.9776528 | HA46: ='Samlet hovedstaden -alle værker'!HC27 -> 92.60032717 | HB46: ='Samlet hovedstaden -alle værker'!HD27 -> 67.25579533 | HC46: ='Samlet hovedstaden -alle værker'!HE27 -> 44.43865398 | HD46: ='Samlet hovedstaden -alle værker'!HF27 -> 17.58205426 | HE46: ='Samlet hovedstaden -alle værker'!HG27 -> 13.00627295 | HF46: ='Samlet hovedstaden -alle værker'!HH27 -> 48.93879577 | HG46: ='Samlet hovedstaden -alle værker'!HI27 -> 22.35216013 | HH46: ='Samlet hovedstaden -alle værker'!HJ27 -> 56.75489013 | HI46: ='Samlet hovedstaden -alle værker'!HK27 -> 92.62349851 | HJ46: ='Samlet hovedstaden -alle værker'!HL27 -> 125.4763818 | HK46: ='Samlet hovedstaden -alle værker'!HM27 -> 145.6227058 | HL46: ='Samlet hovedstaden -alle værker'!HN27 -> 125.4162306 | HM46: ='Samlet hovedstaden -alle værker'!HO27 -> 89.9344839 | HN46: ='Samlet hovedstaden -alle værker'!HP27 -> 65.5500632 | HO46: ='Samlet hovedstaden -alle værker'!HQ27 -> 47.48453722 | HP46: ='Samlet hovedstaden -alle værker'!HR27 -> 18.54010772 | HQ46: ='Samlet hovedstaden -alle værker'!HS27 -> 11.80406736 | HR46: ='Samlet hovedstaden -alle værker'!HT27 -> 42.39865707 | HS46: ='Samlet hovedstaden -alle værker'!HU27 -> 13.86881186 | HT46: ='Samlet hovedstaden -alle værker'!HV27 -> 57.51827348 | HU46: ='Samlet hovedstaden -alle værker'!HW27 -> 93.49622248 | HV46: ='Samlet hovedstaden -alle værker'!HX27 -> 124.2904119 | HW46: ='Samlet hovedstaden -alle værker'!HY27 -> 141.987171 | HX46: ='Samlet hovedstaden -alle værker'!HZ27 -> 123.7789873 | HY46: ='Samlet hovedstaden -alle værker'!IA27 -> 88.86323437 | HZ46: ='Samlet hovedstaden -alle værker'!IB27 -> 66.42283095 | IA46: ='Samlet hovedstaden -alle værker'!IC27 -> 47.41093929 | IB46: ='Samlet hovedstaden -alle værker'!ID27 -> 20.21205918 | IC46: ='Samlet hovedstaden -alle værker'!IE27 -> 14.04710307 | ID46: ='Samlet hovedstaden -alle værker'!IF27 -> 44.63714429 | IE46: ='Samlet hovedstaden -alle værker'!IG27 -> 18.18436534 | IF46: ='Samlet hovedstaden -alle værker'!IH27 -> 55.69632913 | IG46: ='Samlet hovedstaden -alle værker'!II27 -> 92.4642631 | IH46: ='Samlet hovedstaden -alle værker'!IJ27 -> 123.5322173 | II46: ='Samlet hovedstaden -alle værker'!IK27 -> 138.5125397 | IJ46: ='Samlet hovedstaden -alle værker'!IL27 -> 122.1211738 | IK46: ='Samlet hovedstaden -alle værker'!IM27 -> 87.77907966 | IL46: ='Samlet hovedstaden -alle værker'!IN27 -> 66.24287598 | IM46: ='Samlet hovedstaden -alle værker'!IO27 -> 47.34547833 | IN46: ='Samlet hovedstaden -alle værker'!IP27 -> 22.34999394 | IO46: ='Samlet hovedstaden -alle værker'!IQ27 -> 16.57949989 | IP46: ='Samlet hovedstaden -alle værker'!IR27 -> 46.14999393 | IQ46: ='Samlet hovedstaden -alle værker'!IS27 -> 21.65971616 | IR46: ='Samlet hovedstaden -alle værker'!IT27 -> 54.2592388 | IS46: ='Samlet hovedstaden -alle værker'!IU27 -> 91.26410448 | IT46: ='Samlet hovedstaden -alle værker'!IV27 -> 122.6351055 | IU46: ='Samlet hovedstaden -alle værker'!IW27 -> 135.1987423 | IV46: ='Samlet hovedstaden -alle værker'!IX27 -> 120.4430928 | IW46: ='Samlet hovedstaden -alle værker'!IY27 -> 86.68149249 | IX46: ='Samlet hovedstaden -alle værker'!IZ27 -> 65.04335217 | IY46: ='Samlet hovedstaden -alle værker'!JA27 -> 47.28805652 | IZ46: ='Samlet hovedstaden -alle værker'!JB27 -> 24.95760173 | JA46: ='Samlet hovedstaden -alle værker'!JC27 -> 19.40690443 | JB46: ='Samlet hovedstaden -alle værker'!JD27 -> 46.94025354 | JC46: ='Samlet hovedstaden -alle værker'!JE27 -> 24.29238251 | JD46: ='Samlet hovedstaden -alle værker'!JF27 -> 53.2054014 | JE46: ='Samlet hovedstaden -alle værker'!JG27 -> 89.89412508 | JF46: ='Samlet hovedstaden -alle værker'!JH27 -> 121.6002609 | JG46: ='Samlet hovedstaden -alle værker'!JI27 -> 132.0457091 | JH46: ='Samlet hovedstaden -alle værker'!JJ27 -> 118.7450415 | JI46: ='Samlet hovedstaden -alle værker'!JK27 -> 85.56991642 | JJ46: ='Samlet hovedstaden -alle værker'!JL27 -> 62.8560357 | JK46: ='Samlet hovedstaden -alle værker'!JM27 -> 47.23857759 | JL46: ='Samlet hovedstaden -alle værker'!JN27 -> 28.03861136 | JM46: ='Samlet hovedstaden -alle værker'!JO27 -> 22.53511119 | JN46: ='Samlet hovedstaden -alle værker'!JP27 -> 47.01095368 | JO46: ='Samlet hovedstaden -alle værker'!JQ27 -> 26.07987277 | JP46: ='Samlet hovedstaden -alle værker'!JR27 -> 52.53322471 | JQ46: ='Samlet hovedstaden -alle værker'!JS27 -> 88.35268247 | JR46: ='Samlet hovedstaden -alle værker'!JT27 -> 120.4288548 | JS46: ='Samlet hovedstaden -alle værker'!JU27 -> 129.2466258 | JT46: ='Samlet hovedstaden -alle værker'!JV27 -> 117.8692636 | JU46: ='Samlet hovedstaden -alle værker'!JW27 -> 84.40171598 | JV46: ='Samlet hovedstaden -alle værker'!JX27 -> 59.74799767 | JW46: ='Samlet hovedstaden -alle værker'!JY27 -> 47.22844029 | JX46: ='Samlet hovedstaden -alle værker'!JZ27 -> 31.62719751 | JY46: ='Samlet hovedstaden -alle værker'!KA27 -> 26.02133187 | JZ46: ='Samlet hovedstaden -alle værker'!KB27 -> 46.35486213 | KA46: ='Samlet hovedstaden -alle værker'!KC27 -> 27.13257764 | KB46: ='Samlet hovedstaden -alle værker'!KD27 -> 52.23552969 | KC46: ='Samlet hovedstaden -alle værker'!KE27 -> 86.74946297 | KD46: ='Samlet hovedstaden -alle værker'!KF27 -> 119.0861788 | KE46: ='Samlet hovedstaden -alle værker'!KG27 -> 129.2466258 | KF46: ='Samlet hovedstaden -alle værker'!KH27 -> 117.8692636 | KG46: ='Samlet hovedstaden -alle værker'!KI27 -> 84.40171598 | KH46: ='Samlet hovedstaden -alle værker'!KJ27 -> 59.74799767 | KI46: ='Samlet hovedstaden -alle værker'!KK27 -> 47.22844029 | KJ46: ='Samlet hovedstaden -alle værker'!KL27 -> 31.62719751 | KK46: ='Samlet hovedstaden -alle værker'!KM27 -> 26.02133187 | KL46: ='Samlet hovedstaden -alle værker'!KN27 -> 46.35486213 | KM46: ='Samlet hovedstaden -alle værker'!KO27 -> 27.13257764 | KN46: ='Samlet hovedstaden -alle værker'!KP27 -> 52.23552969 | KO46: ='Samlet hovedstaden -alle værker'!KQ27 -> 86.74946297 | KP46: ='Samlet hovedstaden -alle værker'!KR27 -> 119.0861788 | KQ46: ='Samlet hovedstaden -alle værker'!KS27 -> 129.2466258 | KR46: ='Samlet hovedstaden -alle værker'!KT27 -> 117.8692636 | KS46: ='Samlet hovedstaden -alle værker'!KU27 -> 84.40171598 | KT46: ='Samlet hovedstaden -alle værker'!KV27 -> 59.74799767 | KU46: ='Samlet hovedstaden -alle værker'!KW27 -> 47.22844029 | KV46: ='Samlet hovedstaden -alle værker'!KX27 -> 31.62719751 | KW46: ='Samlet hovedstaden -alle værker'!KY27 -> 26.02133187 | KX46: ='Samlet hovedstaden -alle værker'!KZ27 -> 46.35486213 | KY46: ='Samlet hovedstaden -alle værker'!LA27 -> 27.13257764 | KZ46: ='Samlet hovedstaden -alle værker'!LB27 -> 52.23552969 | LA46: ='Samlet hovedstaden -alle værker'!LC27 -> 86.74946297 | LB46: ='Samlet hovedstaden -alle værker'!LD27 -> 119.0861788 | LC46: ='Samlet hovedstaden -alle værker'!LE27 -> 129.2466258 | LD46: ='Samlet hovedstaden -alle værker'!LF27 -> 117.8692636 | LE46: ='Samlet hovedstaden -alle værker'!LG27 -> 84.40171598 | LF46: ='Samlet hovedstaden -alle værker'!LH27 -> 59.74799767 | LG46: ='Samlet hovedstaden -alle værker'!LI27 -> 47.22844029 | LH46: ='Samlet hovedstaden -alle værker'!LJ27 -> 31.62719751 | LI46: ='Samlet hovedstaden -alle værker'!LK27 -> 26.02133187 | LJ46: ='Samlet hovedstaden -alle værker'!LL27 -> 46.35486213 | LK46: ='Samlet hovedstaden -alle værker'!LM27 -> 27.13257764 | LL46: ='Samlet hovedstaden -alle værker'!LN27 -> 52.23552969 | LM46: ='Samlet hovedstaden -alle værker'!LO27 -> 86.74946297 | LN46: ='Samlet hovedstaden -alle værker'!LP27 -> 119.0861788 | LO46: ='Samlet hovedstaden -alle værker'!LQ27 -> 129.2466258 | LP46: ='Samlet hovedstaden -alle værker'!LR27 -> 117.8692636 | LQ46: ='Samlet hovedstaden -alle værker'!LS27 -> 84.40171598 | LR46: ='Samlet hovedstaden -alle værker'!LT27 -> 59.74799767 | LS46: ='Samlet hovedstaden -alle værker'!LU27 -> 47.22844029 | LT46: ='Samlet hovedstaden -alle værker'!LV27 -> 31.62719751 | LU46: ='Samlet hovedstaden -alle værker'!LW27 -> 26.02133187 | LV46: ='Samlet hovedstaden -alle værker'!LX27 -> 46.35486213 | LW46: ='Samlet hovedstaden -alle værker'!LY27 -> 27.13257764 | LX46: ='Samlet hovedstaden -alle værker'!LZ27 -> 52.23552969 | LY46: ='Samlet hovedstaden -alle værker'!MA27 -> 86.74946297 | LZ46: ='Samlet hovedstaden -alle værker'!MB27 -> 119.0861788 | MA46: ='Samlet hovedstaden -alle værker'!MC27 -> 129.2466258 | MB46: ='Samlet hovedstaden -alle værker'!MD27 -> 117.8692636 | MC46: ='Samlet hovedstaden -alle værker'!ME27 -> 84.40171598 | MD46: ='Samlet hovedstaden -alle værker'!MF27 -> 59.74799767 | ME46: ='Samlet hovedstaden -alle værker'!MG27 -> 47.22844029 | MF46: ='Samlet hovedstaden -alle værker'!MH27 -> 31.62719751 | MG46: ='Samlet hovedstaden -alle værker'!MI27 -> 26.02133187 | MH46: ='Samlet hovedstaden -alle værker'!MJ27 -> 46.35486213 | MI46: ='Samlet hovedstaden -alle værker'!MK27 -> 27.13257764 | MJ46: ='Samlet hovedstaden -alle værker'!ML27 -> 52.23552969 | MK46: ='Samlet hovedstaden -alle værker'!MM27 -> 86.74946297 | ML46: ='Samlet hovedstaden -alle værker'!MN27 -> 119.0861788 | MM46: ='Samlet hovedstaden -alle værker'!MO27 -> 129.2466258 | MN46: ='Samlet hovedstaden -alle værker'!MP27 -> 117.8692636 | MO46: ='Samlet hovedstaden -alle værker'!MQ27 -> 84.40171598 | MP46: ='Samlet hovedstaden -alle værker'!MR27 -> 59.74799767 | MQ46: ='Samlet hovedstaden -alle værker'!MS27 -> 47.22844029 | MR46: ='Samlet hovedstaden -alle værker'!MT27 -> 31.62719751 | MS46: ='Samlet hovedstaden -alle værker'!MU27 -> 26.02133187 | MT46: ='Samlet hovedstaden -alle værker'!MV27 -> 46.35486213 | MU46: ='Samlet hovedstaden -alle værker'!MW27 -> 27.13257764 | MV46: ='Samlet hovedstaden -alle værker'!MX27 -> 52.23552969 | MW46: ='Samlet hovedstaden -alle værker'!MY27 -> 86.74946297 | MX46: ='Samlet hovedstaden -alle værker'!MZ27 -> 119.0861788 | MY46: ='Samlet hovedstaden -alle værker'!NA27 -> 129.2466258 | MZ46: ='Samlet hovedstaden -alle værker'!NB27 -> 117.8692636 | NA46: ='Samlet hovedstaden -alle værker'!NC27 -> 84.40171598 | NB46: ='Samlet hovedstaden -alle værker'!ND27 -> 59.74799767 | NC46: ='Samlet hovedstaden -alle værker'!NE27 -> 47.22844029 | ND46: ='Samlet hovedstaden -alle værker'!NF27 -> 31.62719751 | NE46: ='Samlet hovedstaden -alle værker'!NG27 -> 26.02133187 | NF46: ='Samlet hovedstaden -alle værker'!NH27 -> 46.35486213 | NG46: ='Samlet hovedstaden -alle værker'!NI27 -> 27.13257764 | NH46: ='Samlet hovedstaden -alle værker'!NJ27 -> 52.23552969 | NI46: ='Samlet hovedstaden -alle værker'!NK27 -> 86.74946297 | NJ46: ='Samlet hovedstaden -alle værker'!NL27 -> 119.0861788 | NK46: ='Samlet hovedstaden -alle værker'!NM27 -> 129.2466258 | NL46: ='Samlet hovedstaden -alle værker'!NN27 -> 117.8692636 | NM46: ='Samlet hovedstaden -alle værker'!NO27 -> 84.40171598 | NN46: ='Samlet hovedstaden -alle værker'!NP27 -> 59.74799767 | NO46: ='Samlet hovedstaden -alle værker'!NQ27 -> 47.22844029 | NP46: ='Samlet hovedstaden -alle værker'!NR27 -> 31.62719751 | NQ46: ='Samlet hovedstaden -alle værker'!NS27 -> 26.02133187 | NR46: ='Samlet hovedstaden -alle værker'!NT27 -> 46.35486213 | NS46: ='Samlet hovedstaden -alle værker'!NU27 -> 27.13257764 | NT46: ='Samlet hovedstaden -alle værker'!NV27 -> 52.23552969 | NU46: ='Samlet hovedstaden -alle værker'!NW27 -> 86.74946297 | NV46: ='Samlet hovedstaden -alle værker'!NX27 -> 119.0861788 | NW46: ='Samlet hovedstaden -alle værker'!NY27 -> 129.2466258 | NX46: ='Samlet hovedstaden -alle værker'!NZ27 -> 117.8692636 | NY46: ='Samlet hovedstaden -alle værker'!OA27 -> 84.40171598 | NZ46: ='Samlet hovedstaden -alle værker'!OB27 -> 59.74799767 | OA46: ='Samlet hovedstaden -alle værker'!OC27 -> 47.22844029 | OB46: ='Samlet hovedstaden -alle værker'!OD27 -> 31.62719751 | OC46: ='Samlet hovedstaden -alle værker'!OE27 -> 26.02133187 | OD46: ='Samlet hovedstaden -alle værker'!OF27 -> 46.35486213 | OE46: ='Samlet hovedstaden -alle værker'!OG27 -> 27.13257764 | OF46: ='Samlet hovedstaden -alle værker'!OH27 -> 52.23552969 | OG46: ='Samlet hovedstaden -alle værker'!OI27 -> 86.74946297 | OH46: ='Samlet hovedstaden -alle værker'!OJ27 -> 119.0861788 | OI46: ='Samlet hovedstaden -alle værker'!OK27 -> 129.2466258 | OJ46: ='Samlet hovedstaden -alle værker'!OL27 -> 117.8692636 | OK46: ='Samlet hovedstaden -alle værker'!OM27 -> 84.40171598 | OL46: ='Samlet hovedstaden -alle værker'!ON27 -> 59.74799767 | OM46: ='Samlet hovedstaden -alle værker'!OO27 -> 47.22844029 | ON46: ='Samlet hovedstaden -alle værker'!OP27 -> 31.62719751 | OO46: ='Samlet hovedstaden -alle værker'!OQ27 -> 26.02133187 | OP46: ='Samlet hovedstaden -alle værker'!OR27 -> 46.35486213 | OQ46: ='Samlet hovedstaden -alle værker'!OS27 -> 27.13257764 | OR46: ='Samlet hovedstaden -alle værker'!OT27 -> 52.23552969 | OS46: ='Samlet hovedstaden -alle værker'!OU27 -> 86.74946297 | OT46: ='Samlet hovedstaden -alle værker'!OV27 -> 119.0861788
D47: Varmetransmissionsomkostning | F47: 1.952048484 | G47: =Netomkostning!E11 -> 1.78730284 | H47: =Netomkostning!F11 -> 1.760040803 | I47: =Netomkostning!G11 -> 4.14690353 | J47: =Netomkostning!H11 -> 2.514830111 | K47: =Netomkostning!I11 -> 2.240251721 | L47: =Netomkostning!J11 -> 2.186362505 | M47: =Netomkostning!K11 -> 2.160700973 | N47: =Netomkostning!L11 -> 2.104245603 | O47: =Netomkostning!M11 -> 2.050356386 | P47: =Netomkostning!N11 -> 1.942577953 | Q47: =Netomkostning!O11 -> 1.77834415 | R47: =Netomkostning!P11 -> 1.77834415 | S47: =Netomkostning!Q11 -> 1.77834415 | T47: =Netomkostning!R11 -> 1.77834415 | U47: =Netomkostning!S11 -> 1.77834415 | V47: =Netomkostning!T11 -> 1.77834415 | W47: =Netomkostning!U11 -> 1.77834415 | X47: =Netomkostning!V11 -> 1.77834415 | Y47: =Netomkostning!W11 -> 1.77834415 | Z47: =Netomkostning!X11 -> 1.77834415 | AA47: =Netomkostning!Y11 -> 1.77834415 | AB47: =Netomkostning!Z11 -> 1.77834415 | AC47: =Netomkostning!AA11 -> 1.77834415 | AD47: =Netomkostning!AB11 -> 1.77834415 | AE47: =Netomkostning!AC11 -> 1.77834415 | AF47: =Netomkostning!AD11 -> 1.77834415 | AG47: =Netomkostning!AE11 -> 1.77834415 | AH47: =Netomkostning!AF11 -> 1.77834415 | AI47: =Netomkostning!AG11 -> 1.77834415 | AJ47: =Netomkostning!AH11 -> 1.77834415 | AK47: =Netomkostning!AI11 -> 1.77834415 | AM47: =$G$47 -> 1.78730284 | AN47: =$G$47 -> 1.78730284 | AO47: 1.78730284 | AP47: 1.78730284 | AQ47: 1.78730284 | AR47: 1.78730284 | AS47: 1.78730284 | AT47: 1.78730284 | AU47: 1.78730284 | AV47: 1.78730284 | AW47: 1.78730284 | AX47: 1.78730284 | AY47: =$H$47 -> 1.760040803 | AZ47: =$H$47 -> 1.760040803 | BA47: 1.760040803 | BB47: 1.760040803 | BC47: 1.760040803 | BD47: 1.760040803 | BE47: 1.760040803 | BF47: 1.760040803 | BG47: 1.760040803 | BH47: 1.760040803 | BI47: 1.760040803 | BJ47: 1.760040803 | BK47: =$I$47 -> 4.14690353 | BL47: =$I$47 -> 4.14690353 | BM47: 4.14690353 | BN47: 4.14690353 | BO47: 4.14690353 | BP47: 4.14690353 | BQ47: 4.14690353 | BR47: 4.14690353 | BS47: 4.14690353 | BT47: 4.14690353 | BU47: 4.14690353 | BV47: 4.14690353 | BW47: =$J$47 -> 2.514830111 | BX47: =$J$47 -> 2.514830111 | BY47: 2.514830111 | BZ47: 2.514830111 | CA47: 2.514830111 | CB47: 2.514830111 | CC47: 2.514830111 | CD47: 2.514830111 | CE47: 2.514830111 | CF47: 2.514830111 | CG47: 2.514830111 | CH47: 2.514830111 | CI47: =$K$47 -> 2.240251721 | CJ47: =$K$47 -> 2.240251721 | CK47: 2.240251721 | CL47: 2.240251721 | CM47: 2.240251721 | CN47: 2.240251721 | CO47: 2.240251721 | CP47: 2.240251721 | CQ47: 2.240251721 | CR47: 2.240251721 | CS47: 2.240251721 | CT47: 2.240251721 | CU47: =$L$47 -> 2.186362505 | CV47: =$L$47 -> 2.186362505 | CW47: 2.186362505 | CX47: 2.186362505 | CY47: 2.186362505 | CZ47: 2.186362505 | DA47: 2.186362505 | DB47: 2.186362505 | DC47: 2.186362505 | DD47: 2.186362505 | DE47: 2.186362505 | DF47: 2.186362505 | DG47: =$M$47 -> 2.160700973 | DH47: =$M$47 -> 2.160700973 | DI47: 2.160700973 | DJ47: 2.160700973 | DK47: 2.160700973 | DL47: 2.160700973 | DM47: 2.160700973 | DN47: 2.160700973 | DO47: 2.160700973 | DP47: 2.160700973 | DQ47: 2.160700973 | DR47: 2.160700973 | DS47: =$N$47 -> 2.104245603 | DT47: =$N$47 -> 2.104245603 | DU47: 2.104245603 | DV47: 2.104245603 | DW47: 2.104245603 | DX47: 2.104245603 | DY47: 2.104245603 | DZ47: 2.104245603 | EA47: 2.104245603 | EB47: 2.104245603 | EC47: 2.104245603 | ED47: 2.104245603 | EE47: =$O$47 -> 2.050356386 | EF47: =$O$47 -> 2.050356386 | EG47: 2.050356386 | EH47: 2.050356386 | EI47: 2.050356386 | EJ47: 2.050356386 | EK47: 2.050356386 | EL47: 2.050356386 | EM47: 2.050356386 | EN47: 2.050356386 | EO47: 2.050356386 | EP47: 2.050356386 | EQ47: =$P$47 -> 1.942577953 | ER47: =$P$47 -> 1.942577953 | ES47: 1.942577953 | ET47: 1.942577953 | EU47: 1.942577953 | EV47: 1.942577953 | EW47: 1.942577953 | EX47: 1.942577953 | EY47: 1.942577953 | EZ47: 1.942577953 | FA47: 1.942577953 | FB47: 1.942577953 | FC47: =$Q$47 -> 1.77834415 | FD47: =$Q$47 -> 1.77834415 | FE47: 1.77834415 | FF47: 1.77834415 | FG47: 1.77834415 | FH47: 1.77834415 | FI47: 1.77834415 | FJ47: 1.77834415 | FK47: 1.77834415 | FL47: 1.77834415 | FM47: 1.77834415 | FN47: =$Q$47 -> 1.77834415 | FO47: =$R$47 -> 1.77834415 | FP47: =$R$47 -> 1.77834415 | FQ47: 1.77834415 | FR47: 1.77834415 | FS47: 1.77834415 | FT47: 1.77834415 | FU47: 1.77834415 | FV47: 1.77834415 | FW47: 1.77834415 | FX47: 1.77834415 | FY47: 1.77834415 | FZ47: 1.77834415 | GA47: =$S$47 -> 1.77834415 | GB47: =$S$47 -> 1.77834415 | GC47: 1.77834415 | GD47: 1.77834415 | GE47: 1.77834415 | GF47: 1.77834415 | GG47: 1.77834415 | GH47: 1.77834415 | GI47: 1.77834415 | GJ47: 1.77834415 | GK47: 1.77834415 | GL47: 1.77834415 | GM47: =$T$47 -> 1.77834415 | GN47: =$T$47 -> 1.77834415 | GO47: 1.77834415 | GP47: 1.77834415 | GQ47: 1.77834415 | GR47: 1.77834415 | GS47: 1.77834415 | GT47: 1.77834415 | GU47: 1.77834415 | GV47: 1.77834415 | GW47: 1.77834415 | GX47: 1.77834415 | GY47: =$U$47 -> 1.77834415 | GZ47: =$U$47 -> 1.77834415 | HA47: 1.77834415 | HB47: 1.77834415 | HC47: 1.77834415 | HD47: 1.77834415 | HE47: 1.77834415 | HF47: 1.77834415 | HG47: 1.77834415 | HH47: 1.77834415 | HI47: 1.77834415 | HJ47: =$U$47 -> 1.77834415 | HK47: =$V$47 -> 1.77834415 | HL47: =$V$47 -> 1.77834415 | HM47: 1.77834415 | HN47: 1.77834415 | HO47: 1.77834415 | HP47: 1.77834415 | HQ47: 1.77834415 | HR47: 1.77834415 | HS47: 1.77834415 | HT47: 1.77834415 | HU47: 1.77834415 | HV47: 1.77834415 | HW47: =$W$47 -> 1.77834415 | HX47: =$W$47 -> 1.77834415 | HY47: 1.77834415 | HZ47: 1.77834415 | IA47: 1.77834415 | IB47: 1.77834415 | IC47: 1.77834415 | ID47: 1.77834415 | IE47: 1.77834415 | IF47: 1.77834415 | IG47: 1.77834415 | IH47: 1.77834415 | II47: =$X$47 -> 1.77834415 | IJ47: =$X$47 -> 1.77834415 | IK47: 1.77834415 | IL47: 1.77834415 | IM47: 1.77834415 | IN47: 1.77834415 | IO47: 1.77834415 | IP47: 1.77834415 | IQ47: 1.77834415 | IR47: 1.77834415 | IS47: 1.77834415 | IT47: 1.77834415 | IU47: =$Y$47 -> 1.77834415 | IV47: =$Y$47 -> 1.77834415 | IW47: 1.77834415 | IX47: 1.77834415 | IY47: 1.77834415 | IZ47: 1.77834415 | JA47: 1.77834415 | JB47: 1.77834415 | JC47: 1.77834415 | JD47: 1.77834415 | JE47: 1.77834415 | JF47: 1.77834415 | JG47: =$Z$47 -> 1.77834415 | JH47: =$Z$47 -> 1.77834415 | JI47: 1.77834415 | JJ47: 1.77834415 | JK47: 1.77834415 | JL47: 1.77834415 | JM47: 1.77834415 | JN47: 1.77834415 | JO47: 1.77834415 | JP47: 1.77834415 | JQ47: 1.77834415 | JR47: 1.77834415 | JS47: =$AA$47 -> 1.77834415 | JT47: =$AA$47 -> 1.77834415 | JU47: 1.77834415 | JV47: 1.77834415 | JW47: 1.77834415 | JX47: 1.77834415 | JY47: 1.77834415 | JZ47: 1.77834415 | KA47: 1.77834415 | KB47: 1.77834415 | KC47: 1.77834415 | KD47: 1.77834415 | KE47: =$AB$47 -> 1.77834415 | KF47: =$AB$47 -> 1.77834415 | KG47: =$AB$47 -> 1.77834415 | KH47: 1.77834415 | KI47: 1.77834415 | KJ47: 1.77834415 | KK47: 1.77834415 | KL47: 1.77834415 | KM47: 1.77834415 | KN47: 1.77834415 | KO47: 1.77834415 | KP47: 1.77834415 | KQ47: =$AC$47 -> 1.77834415 | KR47: =$AC$47 -> 1.77834415 | KS47: 1.77834415 | KT47: 1.77834415 | KU47: 1.77834415 | KV47: 1.77834415 | KW47: 1.77834415 | KX47: 1.77834415 | KY47: 1.77834415 | KZ47: 1.77834415 | LA47: 1.77834415 | LB47: 1.77834415 | LC47: =$AD$47 -> 1.77834415 | LD47: =$AD$47 -> 1.77834415 | LE47: 1.77834415 | LF47: 1.77834415 | LG47: 1.77834415 | LH47: 1.77834415 | LI47: 1.77834415 | LJ47: 1.77834415 | LK47: 1.77834415 | LL47: 1.77834415 | LM47: 1.77834415 | LN47: 1.77834415 | LO47: =$AE$47 -> 1.77834415 | LP47: =$AE$47 -> 1.77834415 | LQ47: 1.77834415 | LR47: 1.77834415 | LS47: 1.77834415 | LT47: 1.77834415 | LU47: 1.77834415 | LV47: 1.77834415 | LW47: 1.77834415 | LX47: 1.77834415 | LY47: 1.77834415 | LZ47: 1.77834415 | MA47: =$AF$47 -> 1.77834415 | MB47: =$AF$47 -> 1.77834415 | MC47: 1.77834415 | MD47: 1.77834415 | ME47: 1.77834415 | MF47: 1.77834415 | MG47: 1.77834415 | MH47: 1.77834415 | MI47: 1.77834415 | MJ47: 1.77834415 | MK47: 1.77834415 | ML47: 1.77834415 | MM47: =$AG$47 -> 1.77834415 | MN47: =$AG$47 -> 1.77834415 | MO47: 1.77834415 | MP47: 1.77834415 | MQ47: 1.77834415 | MR47: 1.77834415 | MS47: 1.77834415 | MT47: 1.77834415 | MU47: 1.77834415 | MV47: 1.77834415 | MW47: 1.77834415 | MX47: 1.77834415 | MY47: =$AH$47 -> 1.77834415 | MZ47: =$AH$47 -> 1.77834415 | NA47: 1.77834415 | NB47: 1.77834415 | NC47: 1.77834415 | ND47: 1.77834415 | NE47: 1.77834415 | NF47: 1.77834415 | NG47: 1.77834415 | NH47: 1.77834415 | NI47: 1.77834415 | NJ47: 1.77834415 | NK47: =$AI$47 -> 1.77834415 | NL47: =$AI$47 -> 1.77834415 | NM47: 1.77834415 | NN47: 1.77834415 | NO47: 1.77834415 | NP47: 1.77834415 | NQ47: 1.77834415 | NR47: 1.77834415 | NS47: 1.77834415 | NT47: 1.77834415 | NU47: 1.77834415 | NV47: 1.77834415 | NW47: =$AJ$47 -> 1.77834415 | NX47: =$AJ$47 -> 1.77834415 | NY47: 1.77834415 | NZ47: 1.77834415 | OA47: 1.77834415 | OB47: 1.77834415 | OC47: 1.77834415 | OD47: 1.77834415 | OE47: 1.77834415 | OF47: 1.77834415 | OG47: 1.77834415 | OH47: 1.77834415 | OI47: =$AK$47 -> 1.77834415 | OJ47: =$AK$47 -> 1.77834415 | OK47: 1.77834415 | OL47: 1.77834415 | OM47: 1.77834415 | ON47: 1.77834415 | OO47: 1.77834415 | OP47: 1.77834415 | OQ47: 1.77834415 | OR47: 1.77834415 | OS47: 1.77834415 | OT47: 1.77834415
D48: Samfundsøkonomiske pris i alt (uden afgifter) | F48: 62.54792707 | G48: =SUM(G46:G47) -> 50.01614881 | H48: 50.70037146 | I48: -6.275375846 | J48: 45.04280671 | K48: 46.13672952 | L48: 48.59130006 | M48: 49.82360706 | N48: 52.07616961 | O48: 54.50684465 | P48: 58.94196877 | Q48: 65.54972447 | R48: 65.97053076 | S48: 64.64351018 | T48: 64.36871004 | U48: 76.49039214 | V48: 77.44882839 | W48: 76.61556973 | X48: 75.76059049 | Y48: 75.02153978 | Z48: 74.34124134 | AA48: 73.74660524 | AB48: =SUM(AB46:AB47) -> 73.74660524 | AC48: 73.74660524 | AD48: 73.74660524 | AE48: 73.74660524 | AF48: 73.74660524 | AG48: 73.74660524 | AH48: 73.74660524 | AI48: 73.74660524 | AJ48: 73.74660524 | AK48: 73.74660524 | AM48: =SUM(AM46:AM47) -> 70.90439606 | AN48: =SUM(AN46:AN47) -> 69.94386553 | AO48: 65.85024254 | AP48: 54.86750807 | AQ48: 33.74563918 | AR48: 27.55948456 | AS48: 15.64499991 | AT48: 37.14162094 | AU48: 32.52231976 | AV48: 37.78407097 | AW48: 62.679131 | AX48: 79.53941635 | AY48: 78.39653556 | AZ48: 77.01162875 | BA48: 65.82371394 | BB48: 52.40199091 | BC48: 29.62953434 | BD48: 22.97543026 | BE48: 12.58166485 | BF48: 36.67869714 | BG48: 29.12756126 | BH48: 37.80716819 | BI48: 59.98580183 | BJ48: 86.33587116 | BK48: 86.40660249 | BL48: 84.07049508 | BM48: 68.09623369 | BN48: 52.57931903 | BO48: 29.24375181 | BP48: 20.58118274 | BQ48: 11.38481969 | BR48: 38.3023787 | BS48: 28.04661996 | BT48: 40.0805685 | BU48: 60.17954819 | BV48: 94.17645088 | BW48: 88.51962905 | BX48: 84.63351942 | BY48: 66.2335845 | BZ48: 48.95832816 | CA48: 26.16981989 | CB48: 13.94494315 | CC48: 5.629021027 | CD48: 35.57892037 | CE48: 22.84731113 | CF48: 38.1694291 | CG48: 56.82988641 | CH48: 96.64994885 | CI48: 90.12991009 | CJ48: 84.02163908 | CK48: 65.6110256 | CL48: 46.90772444 | CM48: 25.79897539 | CN48: 8.444395261 | CO48: 0.6981769032 | CP48: 33.88406708 | CQ48: 18.90693194 | CR48: 37.44837335 | CS48: 55.3158437 | CT48: 99.1541881 | CU48: 90.19295147 | CV48: 81.36083322 | CW48: 66.07007492 | CX48: 46.37221294 | CY48: 27.42337495 | CZ48: =SUM(CZ46:CZ47) -> 3.151009273 | DA48: -4.629400671 | DB48: 33.14522522 | DC48: 15.26531549 | DD48: 37.40146398 | DE48: 54.79932592 | DF48: 100.6440484 | DG48: 94.79365092 | DH48: 83.97306865 | DI48: 68.84046743 | DJ48: 50.20241868 | DK48: 32.35838308 | DL48: 7.592818688 | DM48: -0.2862733696 | DN48: 36.4724934 | DO48: 19.40256289 | DP48: 42.49003558 | DQ48: 55.55623385 | DR48: 100.6572882 | DS48: 98.66057713 | DT48: 86.43845525 | DU48: 71.60754796 | DV48: 53.95511307 | DW48: 37.41633515 | DX48: 12.12237048 | DY48: 4.093957337 | DZ48: 39.85450487 | EA48: 23.45831631 | EB48: 47.57247035 | EC48: 58.09995478 | ED48: 100.8467752 | EE48: 101.8196923 | EF48: 88.7922273 | EG48: 74.40408332 | EH48: 57.66297212 | EI48: 42.62893733 | EJ48: 16.77425501 | EK48: 8.544372477 | EL48: 43.32713232 | EM48: 27.46679279 | EN48: 52.68187868 | EO48: 62.4482972 | EP48: 101.2489677 | EQ48: 104.2070393 | ER48: 90.97976355 | ES48: 77.17304192 | ET48: 61.26884305 | EU48: 47.93810402 | EV48: 21.49326437 | EW48: 13.00823924 | EX48: 46.83653245 | EY48: 31.37237482 | EZ48: 57.76155893 | FA48: 68.52943116 | FB48: 101.8105706 | FC48: 105.775804 | FD48: 93.17709786 | FE48: 79.86993088 | FF48: 64.83496185 | FG48: 53.26954074 | FH48: 26.25098336 | FI48: 17.47787299 | FJ48: 50.3571336 | FK48: 35.1665904 | FL48: =SUM(FL46:FL47) -> 62.94933277 | FM48: 76.30963374 | FN48: 103.0435734 | FO48: 106.8796385 | FP48: 88.5074695 | FQ48: 79.83260803 | FR48: 63.80475961 | FS48: 52.68151112 | FT48: 25.36864132 | FU48: 16.60395668 | FV48: 52.00677381 | FW48: 35.93779899 | FX48: 64.57376272 | FY48: 76.68528186 | FZ48: 105.6030576 | GA48: 108.2815122 | GB48: 95.93848714 | GC48: 81.2682776 | GD48: 71.79204514 | GE48: 49.35972323 | GF48: 24.4377215 | GG48: 17.88330568 | GH48: 44.57869624 | GI48: 26.33449784 | GJ48: 54.98094178 | GK48: 76.5279372 | GL48: 105.9124868 | GM48: 111.4279984 | GN48: 96.25590844 | GO48: 76.97210376 | GP48: 71.9641392 | GQ48: 46.29089766 | GR48: 19.85613253 | GS48: 14.43998515 | GT48: 46.53870572 | GU48: 24.24770597 | GV48: 54.57718073 | GW48: 76.53772322 | GX48: 108.0791505 | GY48: 147.9657437 | GZ48: 129.7559969 | HA48: 94.37867132 | HB48: 69.03413948 | HC48: 46.21699813 | HD48: 19.36039841 | HE48: 14.7846171 | HF48: 50.71713992 | HG48: 24.13050428 | HH48: 58.53323428 | HI48: 94.40184266 | HJ48: 127.254726 | HK48: 147.4010499 | HL48: 127.1945748 | HM48: 91.71282805 | HN48: 67.32840735 | HO48: 49.26288137 | HP48: 20.31845187 | HQ48: 13.58241151 | HR48: 44.17700122 | HS48: 15.64715601 | HT48: 59.29661763 | HU48: 95.27456663 | HV48: 126.0687561 | HW48: 143.7655151 | HX48: =SUM(HX46:HX47) -> 125.5573315 | HY48: 90.64157852 | HZ48: 68.2011751 | IA48: 49.18928344 | IB48: 21.99040333 | IC48: 15.82544722 | ID48: 46.41548844 | IE48: 19.96270949 | IF48: 57.47467328 | IG48: 94.24260725 | IH48: 125.3105615 | II48: 140.2908838 | IJ48: 123.8995179 | IK48: 89.55742381 | IL48: 68.02122013 | IM48: 49.12382248 | IN48: 24.12833809 | IO48: 18.35784404 | IP48: 47.92833808 | IQ48: 23.43806031 | IR48: 56.03758295 | IS48: 93.04244863 | IT48: 124.4134496 | IU48: 136.9770864 | IV48: 122.221437 | IW48: 88.45983664 | IX48: 66.82169632 | IY48: 49.06640067 | IZ48: 26.73594588 | JA48: 21.18524858 | JB48: 48.71859769 | JC48: 26.07072666 | JD48: 54.98374555 | JE48: 91.67246923 | JF48: 123.3786051 | JG48: 133.8240533 | JH48: 120.5233857 | JI48: 87.34826057 | JJ48: 64.63437985 | JK48: 49.01692174 | JL48: 29.81695551 | JM48: 24.31345534 | JN48: 48.78929783 | JO48: 27.85821692 | JP48: 54.31156886 | JQ48: 90.13102662 | JR48: 122.2071989 | JS48: 131.02497 | JT48: 119.6476077 | JU48: 86.18006013 | JV48: 61.52634182 | JW48: 49.00678444 | JX48: 33.40554166 | JY48: 27.79967602 | JZ48: 48.13320628 | KA48: 28.91092179 | KB48: 54.01387384 | KC48: 88.52780712 | KD48: 120.864523 | KE48: 131.02497 | KF48: 119.6476077 | KG48: 86.18006013 | KH48: 61.52634182 | KI48: 49.00678444 | KJ48: =SUM(KJ46:KJ47) -> 33.40554166 | KK48: 27.79967602 | KL48: 48.13320628 | KM48: 28.91092179 | KN48: 54.01387384 | KO48: 88.52780712 | KP48: 120.864523 | KQ48: 131.02497 | KR48: 119.6476077 | KS48: 86.18006013 | KT48: 61.52634182 | KU48: 49.00678444 | KV48: 33.40554166 | KW48: 27.79967602 | KX48: 48.13320628 | KY48: 28.91092179 | KZ48: 54.01387384 | LA48: 88.52780712 | LB48: 120.864523 | LC48: 131.02497 | LD48: 119.6476077 | LE48: 86.18006013 | LF48: 61.52634182 | LG48: 49.00678444 | LH48: 33.40554166 | LI48: 27.79967602 | LJ48: 48.13320628 | LK48: 28.91092179 | LL48: 54.01387384 | LM48: 88.52780712 | LN48: 120.864523 | LO48: 131.02497 | LP48: 119.6476077 | LQ48: 86.18006013 | LR48: 61.52634182 | LS48: 49.00678444 | LT48: 33.40554166 | LU48: 27.79967602 | LV48: 48.13320628 | LW48: 28.91092179 | LX48: 54.01387384 | LY48: 88.52780712 | LZ48: 120.864523 | MA48: 131.02497 | MB48: 119.6476077 | MC48: 86.18006013 | MD48: 61.52634182 | ME48: 49.00678444 | MF48: 33.40554166 | MG48: 27.79967602 | MH48: 48.13320628 | MI48: 28.91092179 | MJ48: 54.01387384 | MK48: 88.52780712 | ML48: 120.864523 | MM48: 131.02497 | MN48: 119.6476077 | MO48: 86.18006013 | MP48: 61.52634182 | MQ48: 49.00678444 | MR48: 33.40554166 | MS48: 27.79967602 | MT48: 48.13320628 | MU48: 28.91092179 | MV48: =SUM(MV46:MV47) -> 54.01387384 | MW48: 88.52780712 | MX48: 120.864523 | MY48: 131.02497 | MZ48: 119.6476077 | NA48: 86.18006013 | NB48: 61.52634182 | NC48: 49.00678444 | ND48: 33.40554166 | NE48: 27.79967602 | NF48: 48.13320628 | NG48: 28.91092179 | NH48: 54.01387384 | NI48: 88.52780712 | NJ48: 120.864523 | NK48: 131.02497 | NL48: 119.6476077 | NM48: 86.18006013 | NN48: 61.52634182 | NO48: 49.00678444 | NP48: 33.40554166 | NQ48: 27.79967602 | NR48: 48.13320628 | NS48: 28.91092179 | NT48: 54.01387384 | NU48: 88.52780712 | NV48: 120.864523 | NW48: 131.02497 | NX48: 119.6476077 | NY48: 86.18006013 | NZ48: 61.52634182 | OA48: 49.00678444 | OB48: 33.40554166 | OC48: 27.79967602 | OD48: 48.13320628 | OE48: 28.91092179 | OF48: 54.01387384 | OG48: 88.52780712 | OH48: 120.864523 | OI48: 131.02497 | OJ48: 119.6476077 | OK48: 86.18006013 | OL48: 61.52634182 | OM48: 49.00678444 | ON48: 33.40554166 | OO48: 27.79967602 | OP48: 48.13320628 | OQ48: 28.91092179 | OR48: 54.01387384 | OS48: 88.52780712 | OT48: 120.864523
